Workbook

Sheet Welcome
G1: Budget Template (last updated 07/12/2024)
A3: The following information is mandatory and must be completed in order for the template to properly function.
A5: 1) Determine the F&A Rate Category and F&A Base
A7: Select the primary submitting institution (RU or RBHS) | B7: Make a selection
A8: Submitting Institution code (from Selection above) | B8: =_xlfn.XLOOKUP(B7,Settings!A6:A8,Settings!B6:B8,"missing",0) -> 0
A9: Select the F&A Rate Category | B9: Make a selection
A10: F&A Rate Code (from selection above) | B10: =_xlfn.XLOOKUP(B9,Settings!A19:A30,Settings!B19:B30,"missing",0) -> 0
A11: Select the F&A Base | B11: Make a selection
A12: F&A Base Code (from selection above) | B12: =_xlfn.XLOOKUP(B11,Settings!A10:A13,Settings!B10:B13,"missing",0) -> 0
A13: Select the applicable Fringe Rates | B13: Make a selection
A14: Fringe Rate Code (from selection above) | B14: =_xlfn.XLOOKUP(B13,Settings!A15:A17,Settings!B15:B17,"missing",0) -> 0
A16: 2) Will the project involve cost sharing? | B16: Make a selection
B17: =_xlfn.XLOOKUP(B16,Settings!A2:A4,Settings!B2:B4,"missing",0) -> 0
A19: Budgets with mandatory comitted cost share must be accompanied by a signed copy of the Cost Sharing Distribution and Signatures Form (http://orsp.rutgers.edu/budget-template)
A21: Select the Cost Sharing F&A Rate Category | B21: Make a selection
A22: F&A Rate Code (from selection above) | B22: =_xlfn.XLOOKUP(B21,Settings!A19:A30,Settings!B19:B30,"missing",0) -> 0
A23: Select the Cost Sharing F&A Base | B23: Make a selection
A24: F&A Base Code (from selection above) | B24: =_xlfn.XLOOKUP(B23,Settings!A10:A13,Settings!B10:B13,"missing.0") -> 0
A25: Only non-Federal Fringe Rates are applicable | B25: Fringe Rates (non-Federal)
A26: Fringe Rate Code (from selection above) | B26: =_xlfn.XLOOKUP(B25,Settings!A15:A17,Settings!B15:B17,"missing",0) -> 2
A28: 3) Demographic Information
A30: Will the project involve consultants? | B30: Make a selection
B31: =_xlfn.XLOOKUP(B30,Settings!A2:A4,Settings!B2:B4,"missing",0) -> 0
A32: Will the project involve outgoing subcontracts? | B32: Make a selection
B33: =_xlfn.XLOOKUP(B32,Settings!A2:A4,Settings!B2:B4,"missing",0) -> 0
A34: Will the program income be received? | B34: Make a selection
B35: =_xlfn.XLOOKUP(B34,Settings!A2:A4,Settings!B2:B4,"missing",0) -> 0
A36: Indicate if there is a direct cost cap | B36: Make a selection
B37: =_xlfn.XLOOKUP(B36,Settings!A2:A4,Settings!B2:B4,"missing",0) -> 0
A38: Indicate if there is a total cost cap | B38: Make a selection
B39: =_xlfn.XLOOKUP(B38,Settings!A2:A4,Settings!B2:B4,"missing",0) -> 0
A40: Enter the RAPSS Funding Proposal number | B40: FPxxxxxxxx
A41: Enter the RAPSS Award number | B41: AWDxxxxxxxx
A42: Enter the Project Title | B42: Project Title
A43: Enter the PD/PI's full name | B43: PD/PI Name
A44: Enter the name of the Direct Sponsor | B44: Enter Direct Sponsor Name
A45: Enter the name of the Prime Sponsor (if applicable) | B45: Enter Prime Sponsor Name (if applicable)
A46: Oracle Award number (if available) | B46: xxxxxx
A47: Oracle Project number (if available) | B47: xxxxxx
A48: Oracle Cost Sharing Project number (if applicable) | B48: xxxxxx
A49: Oracle Program Income Project number (if applicable) | B49: xxxxxx
A50: Budget Preparation Date | B50: Enter date here
A52: 4) Select the number of budget periods - up to ten (10) - and enter the associated dates. | D52: 5 | F52: Calculate Split in Days or Whole Months: | I52: Whole Months
D53: =_xlfn.XLOOKUP(D52,Settings!A32:A41,Settings!B32:B41,"missing",0) -> 4 | I53: =_xlfn.XLOOKUP(I52,Settings!A43:A45,Settings!B43:B45,"missing",0) -> 1
A55: For any activity earlier then FY2017, you must select Custom F&A Rate in line 9 above | B55: Start Date (mm/dd/yyyy) | C55: End Date (mm/dd/yyyy) | D55: Budget Period Begins in FY1 | E55: Budget Period Ends in FY2 | F55: FY1 F&A Rate | G55: FY2 F&A Rate (if different) | H55: =IF($I$52="Days","Days @ FY 1 Rate","Whole Months @ FY 1 Rate") -> Whole Months @ FY 1 Rate | I55: =IF($I$52="Days","Days @ FY 2 Rate (If Different)","Whole Months @ FY 2 Rate (if different)") -> Whole Months @ FY 2 Rate (if different) | J55: Cost Sharing FY1 F&A Rate | K55: Cost Sharing FY2 F&A Rate (if different) | L55: =IF($I$52="Days","Cost Sharing Days @ FY 1 Rate","Cost Sharing Whole Months @ FY 1 Rate") -> Cost Sharing Whole Months @ FY 1 Rate | M55: =IF($I$52="Days","Cost Sharing Days @ FY 2 Rate (If Different)","Cost Sharing Whole Months @ FY 2 Rate (if different)") -> Cost Sharing Whole Months @ FY 2 Rate (if different) | N55: FY1 Rate | O55: FY2 Rate | P55: Cost Sharing FY1 Rate | Q55: Cost Sharing FY1 Rate | R55: =IF($I$52="Days","Split in Days","Split in Whole Months") -> Split in Whole Months | S55: =IF($I$52="Days","Split in Days","Split in Whole Months") -> Split in Whole Months | T55: FY1 Days | U55: FY2 Days | V55: FY1 Whole Months | W55: FY2 Whole Months | X55: FY1 Start | Y55: FY1 End | Z55: FY2 Start | AA55: FY2 End
A56: Budget Period 1 | B56: Enter Start Date | C56: Enter End Date | D56: =IF(OR(ISBLANK(B56),ISTEXT(B56),B56="Enter Start Date"),"N/A",YEAR(B56)+(IF(MONTH(B56)>=7,1,0))) -> N/A | E56: =IF(OR(ISBLANK(C56),ISTEXT(C56),C56="Enter End Date"),"N/A",YEAR(C56)+(IF(MONTH(C56)>=7,1,0))) -> N/A | F56: =N56 -> N/A | G56: =IF(N56=O56,"N/A",O56) -> N/A | H56: =IF(OR(D56="N/A",E56="N/A"),"N/A",IF(G56="N/A",SUM(R56:S56),R56)) -> N/A | I56: =IF(OR(D56="N/A",E56="N/A"),"N/A",IF(G56="N/A",0,S56)) -> N/A | J56: =IF(CSYN="No","N/A",P56) -> N/A | K56: =IF(P56=Q56,"N/A",Q56) -> N/A | L56: =IF(OR(D56="N/A",E56="N/A"),"N/A",IF(K56="N/A",SUM(R56:S56),R56)) -> N/A | M56: =IF(OR(D56="N/A",E56="N/A"),"N/A",IF(K56="N/A",0,S56)) -> N/A | N56: =IF(OR(D56="N/A",D56<=2016,FARC=0),"N/A",IF(FARC=10,'Budget Summary'!D3,INDEX(FARATE[],MATCH(D56,FARATE[Fiscal Year],0),MATCH($B$9,FARATE[#Headers],0)))) -> N/A | O56: =IF(OR(E56="N/A",E56<=2016,FARC=0),"N/A",INDEX(FARATE[],MATCH(E56,FARATE[Fiscal Year],0),MATCH($B$9,FARATE[#Headers],0))) -> N/A | P56: =IF(OR(CSYN="No",D56="N/A",D56<=2016,CSFARC=0),"N/A",IF(CSFARC=10,'Budget Summary-Cost Sharing'!D3,INDEX(FARATE[],MATCH(D56,FARATE[Fiscal Year],0),MATCH($B$21,FARATE[#Headers],0)))) -> N/A | Q56: =IF(OR(CSYN="No",E56="N/A",E56<=2016,CSFARC=0),"N/A",INDEX(FARATE[],MATCH(E56,FARATE[Fiscal Year],0),MATCH($B$21,FARATE[#Headers],0))) -> N/A | R56: =IF($I$52="Days",T56,V56) -> N/A | S56: N/A | T56: =IF(OR(D56="N/A",E56="N/A"),"N/A",DATEDIF(MAX(B56,X56),MIN(C56,Y56),"D")+1) -> N/A | U56: =IF(OR(D56="N/A",E56="N/A"),"N/A",IF(D56=E56,0,DATEDIF(MAX(B56,Z56),MIN(C56,AA56),"D")+1)) -> N/A | V56: =IF(OR(D56="N/A",E56="N/A"),"N/A",DATEDIF(MAX(B56,X56),MIN(C56,Y56),"M")+1) -> N/A | W56: =IF(OR(D56="N/A",E56="N/A"),"N/A",IF(D56=E56,0,DATEDIF(MAX(B56,Z56),MIN(C56,AA56),"M")+1)) -> N/A | X56: =IF(D56="N/A","N/A",DATE(D56-1,7,1)) -> N/A | Y56: =IF(D56="N/A","N/A",DATE(D56,6,30)) -> N/A | Z56: =IF(E56="N/A","N/A",DATE(E56-1,7,1)) -> N/A | AA56: =IF(E56="N/A","N/A",DATE(E56,6,30)) -> N/A
A57: Budget Period 2 | B57: Enter Start Date | C57: Enter End Date | D57: =IF(OR(ISBLANK(B57),ISTEXT(B57),B57="Enter Start Date"),"N/A",YEAR(B57)+(IF(MONTH(B57)>=7,1,0))) -> N/A | E57: =IF(OR(ISBLANK(C57),ISTEXT(C57),C57="Enter End Date"),"N/A",YEAR(C57)+(IF(MONTH(C57)>=7,1,0))) -> N/A | F57: =N57 -> N/A | G57: =IF(N57=O57,"N/A",O57) -> N/A | H57: N/A | I57: N/A | J57: N/A | K57: N/A | L57: N/A | M57: N/A | N57: =IF(OR(D57="N/A",D57<=2016,FARC=0),"N/A",IF(FARC=10,'Budget Summary'!E3,INDEX(FARATE[],MATCH(D57,FARATE[Fiscal Year],0),MATCH($B$9,FARATE[#Headers],0)))) -> N/A | O57: =IF(OR(E57="N/A",E57<=2016,FARC=0),"N/A",INDEX(FARATE[],MATCH(E57,FARATE[Fiscal Year],0),MATCH($B$9,FARATE[#Headers],0))) -> N/A | P57: =IF(OR(CSYN="No",D57="N/A",D57<=2016,CSFARC=0),"N/A",IF(CSFARC=10,'Budget Summary-Cost Sharing'!E3,INDEX(FARATE[],MATCH(D57,FARATE[Fiscal Year],0),MATCH($B$21,FARATE[#Headers],0)))) -> N/A | Q57: =IF(OR(CSYN="No",E57="N/A",E57<=2016,CSFARC=0),"N/A",INDEX(FARATE[],MATCH(E57,FARATE[Fiscal Year],0),MATCH($B$21,FARATE[#Headers],0))) -> N/A | R57: N/A | S57: N/A | T57: N/A | U57: N/A | V57: N/A | W57: N/A | X57: =IF(OR(D57="N/A",B57="Enter Start Date"),"N/A",DATE(D57-1,7,1)) -> N/A | Y57: =IF(OR(D57="N/A",B57="Enter Start Date"),"N/A",DATE(D57,6,30)) -> N/A | Z57: =IF(OR(E57="N/A",C57="Enter End Date"),"N/A",DATE(E57-1,7,1)) -> N/A | AA57: =IF(OR(E57="N/A",C57="Enter End Date"),"N/A",DATE(E57,6,30)) -> N/A
A58: Budget Period 3 | B58: Enter Start Date | C58: Enter End Date | D58: =IF(OR(ISBLANK(B58),ISTEXT(B58),B58="Enter Start Date"),"N/A",YEAR(B58)+(IF(MONTH(B58)>=7,1,0))) -> N/A | E58: =IF(OR(ISBLANK(C58),ISTEXT(C58),C58="Enter End Date"),"N/A",YEAR(C58)+(IF(MONTH(C58)>=7,1,0))) -> N/A | F58: =N58 -> N/A | G58: N/A | H58: N/A | I58: N/A | J58: N/A | K58: N/A | L58: N/A | M58: N/A | N58: =IF(OR(D58="N/A",D58<=2016,FARC=0),"N/A",IF(FARC=10,'Budget Summary'!F3,INDEX(FARATE[],MATCH(D58,FARATE[Fiscal Year],0),MATCH($B$9,FARATE[#Headers],0)))) -> N/A | O58: =IF(OR(E58="N/A",E58<=2016,FARC=0),"N/A",INDEX(FARATE[],MATCH(E58,FARATE[Fiscal Year],0),MATCH($B$9,FARATE[#Headers],0))) -> N/A | P58: =IF(OR(CSYN="No",D58="N/A",D58<=2016,CSFARC=0),"N/A",IF(CSFARC=10,'Budget Summary-Cost Sharing'!F3,INDEX(FARATE[],MATCH(D58,FARATE[Fiscal Year],0),MATCH($B$21,FARATE[#Headers],0)))) -> N/A | Q58: =IF(OR(CSYN="No",E58="N/A",E58<=2016,CSFARC=0),"N/A",INDEX(FARATE[],MATCH(E58,FARATE[Fiscal Year],0),MATCH($B$21,FARATE[#Headers],0))) -> N/A | R58: N/A | S58: N/A | T58: N/A | U58: N/A | V58: N/A | W58: N/A | X58: N/A | Y58: N/A | Z58: N/A | AA58: N/A
A59: Budget Period 4 | B59: Enter Start Date | C59: Enter End Date | D59: N/A | E59: N/A | F59: N/A | G59: N/A | H59: N/A | I59: N/A | J59: N/A | K59: N/A | L59: N/A | M59: N/A | N59: =IF(OR(D59="N/A",D59<=2016,FARC=0),"N/A",IF(FARC=10,'Budget Summary'!G3,INDEX(FARATE[],MATCH(D59,FARATE[Fiscal Year],0),MATCH($B$9,FARATE[#Headers],0)))) -> N/A | O59: =IF(OR(E59="N/A",E59<=2016,FARC=0),"N/A",INDEX(FARATE[],MATCH(E59,FARATE[Fiscal Year],0),MATCH($B$9,FARATE[#Headers],0))) -> N/A | P59: =IF(OR(CSYN="No",D59="N/A",D59<=2016,CSFARC=0),"N/A",IF(CSFARC=10,'Budget Summary-Cost Sharing'!G3,INDEX(FARATE[],MATCH(D59,FARATE[Fiscal Year],0),MATCH($B$21,FARATE[#Headers],0)))) -> N/A | Q59: =IF(OR(CSYN="No",E59="N/A",E59<=2016,CSFARC=0),"N/A",INDEX(FARATE[],MATCH(E59,FARATE[Fiscal Year],0),MATCH($B$21,FARATE[#Headers],0))) -> N/A | R59: N/A | S59: N/A | T59: N/A | U59: N/A | V59: N/A | W59: N/A | X59: N/A | Y59: N/A | Z59: N/A | AA59: N/A
A60: Budget Period 5 | B60: Enter Start Date | C60: Enter End Date | D60: N/A | E60: N/A | F60: N/A | G60: N/A | H60: N/A | I60: N/A | J60: N/A | K60: N/A | L60: N/A | M60: N/A | N60: =IF(OR(D60="N/A",D60<=2016,FARC=0),"N/A",IF(FARC=10,'Budget Summary'!H3,INDEX(FARATE[],MATCH(D60,FARATE[Fiscal Year],0),MATCH($B$9,FARATE[#Headers],0)))) -> N/A | O60: =IF(OR(E60="N/A",E60<=2016,FARC=0),"N/A",INDEX(FARATE[],MATCH(E60,FARATE[Fiscal Year],0),MATCH($B$9,FARATE[#Headers],0))) -> N/A | P60: =IF(OR(CSYN="No",D60="N/A",D60<=2016,CSFARC=0),"N/A",IF(CSFARC=10,'Budget Summary-Cost Sharing'!H3,INDEX(FARATE[],MATCH(D60,FARATE[Fiscal Year],0),MATCH($B$21,FARATE[#Headers],0)))) -> N/A | Q60: =IF(OR(CSYN="No",E60="N/A",E60<=2016,CSFARC=0),"N/A",INDEX(FARATE[],MATCH(E60,FARATE[Fiscal Year],0),MATCH($B$21,FARATE[#Headers],0))) -> N/A | R60: =IF($I$52="Days",T60,V60) -> N/A | S60: N/A | T60: N/A | U60: N/A | V60: N/A | W60: N/A | X60: N/A | Y60: N/A | Z60: N/A | AA60: N/A
A61: Budget Period 6 | B61: Enter Start Date | C61: Enter End Date | D61: =IF(OR(ISBLANK(B61),ISTEXT(B61),B61="Enter Start Date"),"N/A",YEAR(B61)+(IF(MONTH(B61)>=7,1,0))) -> N/A | E61: N/A | F61: =N61 -> N/A | G61: =IF(N61=O61,"N/A",O61) -> N/A | H61: =IF(OR(D61="N/A",E61="N/A"),"N/A",IF(G61="N/A",SUM(R61:S61),R61)) -> N/A | I61: =IF(OR(D61="N/A",E61="N/A"),"N/A",IF(G61="N/A",0,S61)) -> N/A | J61: =IF(CSYN="No","N/A",P61) -> N/A | K61: =IF(P61=Q61,"N/A",Q61) -> N/A | L61: =IF(OR(D61="N/A",E61="N/A"),"N/A",IF(K61="N/A",SUM(R61:S61),R61)) -> N/A | M61: =IF(OR(D61="N/A",E61="N/A"),"N/A",IF(K61="N/A",0,S61)) -> N/A | N61: =IF(OR(D61="N/A",D61<=2016,FARC=0),"N/A",IF(FARC=10,'Budget Summary'!I3,INDEX(FARATE[],MATCH(D61,FARATE[Fiscal Year],0),MATCH($B$9,FARATE[#Headers],0)))) -> N/A | O61: =IF(OR(E61="N/A",E61<=2016,FARC=0),"N/A",INDEX(FARATE[],MATCH(E61,FARATE[Fiscal Year],0),MATCH($B$9,FARATE[#Headers],0))) -> N/A | P61: =IF(OR(CSYN="No",D61="N/A",D61<=2016,CSFARC=0),"N/A",IF(CSFARC=10,'Budget Summary-Cost Sharing'!I3,INDEX(FARATE[],MATCH(D61,FARATE[Fiscal Year],0),MATCH($B$21,FARATE[#Headers],0)))) -> N/A | Q61: =IF(OR(CSYN="No",E61="N/A",E61<=2016,CSFARC=0),"N/A",INDEX(FARATE[],MATCH(E61,FARATE[Fiscal Year],0),MATCH($B$21,FARATE[#Headers],0))) -> N/A | R61: =IF($I$52="Days",T61,V61) -> N/A | S61: N/A | T61: N/A | U61: N/A | V61: N/A | W61: N/A | X61: N/A | Y61: N/A | Z61: N/A | AA61: N/A
A62: Budget Period 7 | B62: Enter Start Date | C62: Enter End Date | D62: =IF(OR(ISBLANK(B62),ISTEXT(B62),B62="Enter Start Date"),"N/A",YEAR(B62)+(IF(MONTH(B62)>=7,1,0))) -> N/A | E62: =IF(OR(ISBLANK(C62),ISTEXT(C62),C62="Enter End Date"),"N/A",YEAR(C62)+(IF(MONTH(C62)>=7,1,0))) -> N/A | F62: =N62 -> N/A | G62: =IF(N62=O62,"N/A",O62) -> N/A | H62: =IF(OR(D62="N/A",E62="N/A"),"N/A",IF(G62="N/A",SUM(R62:S62),R62)) -> N/A | I62: =IF(OR(D62="N/A",E62="N/A"),"N/A",IF(G62="N/A",0,S62)) -> N/A | J62: =IF(CSYN="No","N/A",P62) -> N/A | K62: =IF(P62=Q62,"N/A",Q62) -> N/A | L62: =IF(OR(D62="N/A",E62="N/A"),"N/A",IF(K62="N/A",SUM(R62:S62),R62)) -> N/A | M62: =IF(OR(D62="N/A",E62="N/A"),"N/A",IF(K62="N/A",0,S62)) -> N/A | N62: =IF(OR(D62="N/A",D62<=2016,FARC=0),"N/A",IF(FARC=10,'Budget Summary'!J3,INDEX(FARATE[],MATCH(D62,FARATE[Fiscal Year],0),MATCH($B$9,FARATE[#Headers],0)))) -> N/A | O62: =IF(OR(E62="N/A",E62<=2016,FARC=0),"N/A",INDEX(FARATE[],MATCH(E62,FARATE[Fiscal Year],0),MATCH($B$9,FARATE[#Headers],0))) -> N/A | P62: =IF(OR(CSYN="No",D62="N/A",D62<=2016,CSFARC=0),"N/A",IF(CSFARC=10,'Budget Summary-Cost Sharing'!J3,INDEX(FARATE[],MATCH(D62,FARATE[Fiscal Year],0),MATCH($B$21,FARATE[#Headers],0)))) -> N/A | Q62: =IF(OR(CSYN="No",E62="N/A",E62<=2016,CSFARC=0),"N/A",INDEX(FARATE[],MATCH(E62,FARATE[Fiscal Year],0),MATCH($B$21,FARATE[#Headers],0))) -> N/A | R62: =IF($I$52="Days",T62,V62) -> N/A | S62: =IF($I$52="Days",U62,W62) -> N/A | T62: =IF(OR(D62="N/A",E62="N/A"),"N/A",DATEDIF(MAX(B62,X62),MIN(C62,Y62),"D")+1) -> N/A | U62: =IF(OR(D62="N/A",E62="N/A"),"N/A",IF(D62=E62,0,DATEDIF(MAX(B62,Z62),MIN(C62,AA62),"D")+1)) -> N/A | V62: =IF(OR(D62="N/A",E62="N/A"),"N/A",DATEDIF(MAX(B62,X62),MIN(C62,Y62),"M")+1) -> N/A | W62: =IF(OR(D62="N/A",E62="N/A"),"N/A",IF(D62=E62,0,DATEDIF(MAX(B62,Z62),MIN(C62,AA62),"M")+1)) -> N/A | X62: N/A | Y62: N/A | Z62: N/A | AA62: N/A
A63: Budget Period 8 | B63: Enter Start Date | C63: Enter End Date | D63: =IF(OR(ISBLANK(B63),ISTEXT(B63),B63="Enter Start Date"),"N/A",YEAR(B63)+(IF(MONTH(B63)>=7,1,0))) -> N/A | E63: =IF(OR(ISBLANK(C63),ISTEXT(C63),C63="Enter End Date"),"N/A",YEAR(C63)+(IF(MONTH(C63)>=7,1,0))) -> N/A | F63: N/A | G63: N/A | H63: N/A | I63: N/A | J63: =IF(CSYN="No","N/A",P63) -> N/A | K63: N/A | L63: N/A | M63: N/A | N63: =IF(OR(D63="N/A",D63<=2016,FARC=0),"N/A",IF(FARC=10,'Budget Summary'!K3,INDEX(FARATE[],MATCH(D63,FARATE[Fiscal Year],0),MATCH($B$9,FARATE[#Headers],0)))) -> N/A | O63: =IF(OR(E63="N/A",E63<=2016,FARC=0),"N/A",INDEX(FARATE[],MATCH(E63,FARATE[Fiscal Year],0),MATCH($B$9,FARATE[#Headers],0))) -> N/A | P63: =IF(OR(CSYN="No",D63="N/A",D63<=2016,CSFARC=0),"N/A",IF(CSFARC=10,'Budget Summary-Cost Sharing'!K3,INDEX(FARATE[],MATCH(D63,FARATE[Fiscal Year],0),MATCH($B$21,FARATE[#Headers],0)))) -> N/A | Q63: =IF(OR(CSYN="No",E63="N/A",E63<=2016,CSFARC=0),"N/A",INDEX(FARATE[],MATCH(E63,FARATE[Fiscal Year],0),MATCH($B$21,FARATE[#Headers],0))) -> N/A | R63: =IF($I$52="Days",T63,V63) -> N/A | S63: =IF($I$52="Days",U63,W63) -> N/A | T63: =IF(OR(D63="N/A",E63="N/A"),"N/A",DATEDIF(MAX(B63,X63),MIN(C63,Y63),"D")+1) -> N/A | U63: =IF(OR(D63="N/A",E63="N/A"),"N/A",IF(D63=E63,0,DATEDIF(MAX(B63,Z63),MIN(C63,AA63),"D")+1)) -> N/A | V63: =IF(OR(D63="N/A",E63="N/A"),"N/A",DATEDIF(MAX(B63,X63),MIN(C63,Y63),"M")+1) -> N/A | W63: =IF(OR(D63="N/A",E63="N/A"),"N/A",IF(D63=E63,0,DATEDIF(MAX(B63,Z63),MIN(C63,AA63),"M")+1)) -> N/A | X63: N/A | Y63: =IF(OR(D63="N/A",B63="Enter Start Date"),"N/A",DATE(D63,6,30)) -> N/A | Z63: =IF(OR(E63="N/A",C63="Enter End Date"),"N/A",DATE(E63-1,7,1)) -> N/A | AA63: =IF(OR(E63="N/A",C63="Enter End Date"),"N/A",DATE(E63,6,30)) -> N/A
A64: Budget Period 9 | B64: Enter Start Date | C64: Enter End Date | D64: =IF(OR(ISBLANK(B64),ISTEXT(B64),B64="Enter Start Date"),"N/A",YEAR(B64)+(IF(MONTH(B64)>=7,1,0))) -> N/A | E64: =IF(OR(ISBLANK(C64),ISTEXT(C64),C64="Enter End Date"),"N/A",YEAR(C64)+(IF(MONTH(C64)>=7,1,0))) -> N/A | F64: N/A | G64: N/A | H64: N/A | I64: N/A | J64: =IF(CSYN="No","N/A",P64) -> N/A | K64: N/A | L64: N/A | M64: N/A | N64: =IF(OR(D64="N/A",D64<=2016,FARC=0),"N/A",IF(FARC=10,'Budget Summary'!L3,INDEX(FARATE[],MATCH(D64,FARATE[Fiscal Year],0),MATCH($B$9,FARATE[#Headers],0)))) -> N/A | O64: =IF(OR(E64="N/A",E64<=2016,FARC=0),"N/A",INDEX(FARATE[],MATCH(E64,FARATE[Fiscal Year],0),MATCH($B$9,FARATE[#Headers],0))) -> N/A | P64: =IF(OR(CSYN="No",D64="N/A",D64<=2016,CSFARC=0),"N/A",IF(CSFARC=10,'Budget Summary-Cost Sharing'!L3,INDEX(FARATE[],MATCH(D64,FARATE[Fiscal Year],0),MATCH($B$21,FARATE[#Headers],0)))) -> N/A | Q64: =IF(OR(CSYN="No",E64="N/A",E64<=2016,CSFARC=0),"N/A",INDEX(FARATE[],MATCH(E64,FARATE[Fiscal Year],0),MATCH($B$21,FARATE[#Headers],0))) -> N/A | R64: N/A | S64: N/A | T64: N/A | U64: N/A | V64: N/A | W64: =IF(OR(D64="N/A",E64="N/A"),"N/A",IF(D64=E64,0,DATEDIF(MAX(B64,Z64),MIN(C64,AA64),"M")+1)) -> N/A | X64: =IF(OR(D64="N/A",B64="Enter Start Date"),"N/A",DATE(D64-1,7,1)) -> N/A | Y64: N/A | Z64: N/A | AA64: N/A
A65: Budget Period 10 | B65: Enter Start Date | C65: Enter End Date | D65: =IF(OR(ISBLANK(B65),ISTEXT(B65),B65="Enter Start Date"),"N/A",YEAR(B65)+(IF(MONTH(B65)>=7,1,0))) -> N/A | E65: =IF(OR(ISBLANK(C65),ISTEXT(C65),C65="Enter End Date"),"N/A",YEAR(C65)+(IF(MONTH(C65)>=7,1,0))) -> N/A | F65: N/A | G65: N/A | H65: N/A | I65: N/A | J65: =IF(CSYN="No","N/A",P65) -> N/A | K65: N/A | L65: N/A | M65: N/A | N65: =IF(OR(D65="N/A",D65<=2016,FARC=0),"N/A",IF(FARC=10,'Budget Summary'!M3,INDEX(FARATE[],MATCH(D65,FARATE[Fiscal Year],0),MATCH($B$9,FARATE[#Headers],0)))) -> N/A | O65: =IF(OR(E65="N/A",E65<=2016,FARC=0),"N/A",INDEX(FARATE[],MATCH(E65,FARATE[Fiscal Year],0),MATCH($B$9,FARATE[#Headers],0))) -> N/A | P65: =IF(OR(CSYN="No",D65="N/A",D65<=2016,CSFARC=0),"N/A",IF(CSFARC=10,'Budget Summary-Cost Sharing'!M3,INDEX(FARATE[],MATCH(D65,FARATE[Fiscal Year],0),MATCH($B$21,FARATE[#Headers],0)))) -> N/A | Q65: =IF(OR(CSYN="No",E65="N/A",E65<=2016,CSFARC=0),"N/A",INDEX(FARATE[],MATCH(E65,FARATE[Fiscal Year],0),MATCH($B$21,FARATE[#Headers],0))) -> N/A | R65: N/A | S65: N/A | T65: N/A | U65: N/A | V65: N/A | W65: =IF(OR(D65="N/A",E65="N/A"),"N/A",IF(D65=E65,0,DATEDIF(MAX(B65,Z65),MIN(C65,AA65),"M")+1)) -> N/A | X65: N/A | Y65: N/A | Z65: N/A | AA65: N/A
A67: 5) Advance through the remainder of the temple to complete the information as appropriate
A68: The Empty Sheet is optional and may be used to enter freeform notes or calculations regardng the budget.
A69: The Effort Calculator is available for use in determining effort in person months.
A70: The F&A Rates and Fringe Rates and MTDC Structure sheets may be used for reference.
A72: Please send any questions regarding the budget emplate to: ru-orsp@research.rutgers.edu

Sheet Personnel (Advanced)
A1: Personnel Worksheet (Advanced) | H1: ** You are advised to build salary increases of 3% into future year budgets
A2: =Welcome!B13 -> Make a selection | H2: ** FICA and Medicare may apply to certain GAs and TAs based on appointment.
A3: =Welcome!B14 -> 0 | G3: =Welcome!A56 -> Budget Period 1 | J3: =Welcome!A57 -> Budget Period 2 | M3: =Welcome!A58 -> Budget Period 3 | P3: =Welcome!A59 -> Budget Period 4 | S3: =Welcome!A60 -> Budget Period 5 | V3: =Welcome!A61 -> Budget Period 6 | Y3: =Welcome!A62 -> Budget Period 7 | AB3: =Welcome!A63 -> Budget Period 8 | AE3: =Welcome!A64 -> Budget Period 9 | AH3: =Welcome!A65 -> Budget Period 10
F4: =Welcome!B56 -> Enter Start Date | G4: =Welcome!C56 -> Enter End Date | H4: =IF(OR(Welcome!D56="N/A",Welcome!E56="N/A"),"N/A",Welcome!D56) -> N/A | I4: =Welcome!B57 -> Enter Start Date | J4: =Welcome!C57 -> Enter End Date | K4: =IF(OR(Welcome!D57="N/A",Welcome!E57="N/A"),"N/A",Welcome!D57) -> N/A | L4: =Welcome!B58 -> Enter Start Date | M4: =Welcome!C58 -> Enter End Date | N4: =IF(OR(Welcome!D58="N/A",Welcome!E58="N/A"),"N/A",Welcome!D58) -> N/A | O4: =Welcome!B59 -> Enter Start Date | P4: =Welcome!C59 -> Enter End Date | Q4: =IF(OR(Welcome!D59="N/A",Welcome!E59="N/A"),"N/A",Welcome!D59) -> N/A | R4: =Welcome!B60 -> Enter Start Date | S4: =Welcome!C60 -> Enter End Date | T4: =IF(OR(Welcome!D60="N/A",Welcome!E60="N/A"),"N/A",Welcome!D60) -> N/A | U4: =Welcome!B61 -> Enter Start Date | V4: =Welcome!C61 -> Enter End Date | W4: =IF(OR(Welcome!D61="N/A",Welcome!E61="N/A"),"N/A",Welcome!D61) -> N/A | X4: =Welcome!B62 -> Enter Start Date | Y4: =Welcome!C62 -> Enter End Date | Z4: =IF(OR(Welcome!D62="N/A",Welcome!E62="N/A"),"N/A",Welcome!D62) -> N/A | AA4: =Welcome!B63 -> Enter Start Date | AB4: =Welcome!C63 -> Enter End Date | AC4: =IF(OR(Welcome!D63="N/A",Welcome!E63="N/A"),"N/A",Welcome!D63) -> N/A | AD4: =Welcome!B64 -> Enter Start Date | AE4: =Welcome!C64 -> Enter End Date | AF4: =IF(OR(Welcome!D64="N/A",Welcome!E64="N/A"),"N/A",Welcome!D64) -> N/A | AG4: =Welcome!B65 -> Enter Start Date | AH4: =Welcome!C65 -> Enter End Date | AI4: =IF(OR(Welcome!D65="N/A",Welcome!E65="N/A"),"N/A",Welcome!D65) -> N/A | AK4: Grand Total
A5: Select category from dropdown | E5: Base Salary | F5: Salary | G5: Fringe | H5: Total | I5: Salary | J5: Fringe | K5: Total | L5: Salary | M5: Fringe | N5: Total | O5: Salary | P5: Fringe | Q5: Total | R5: Salary | S5: Fringe | T5: Total | U5: Salary | V5: Fringe | W5: Total | X5: Salary | Y5: Fringe | Z5: Total | AA5: Salary | AB5: Fringe | AC5: Total | AD5: Salary | AE5: Fringe | AF5: Total | AG5: Salary | AH5: Fringe | AI5: Total | AJ5: Salary | AK5: Fringe | AL5: Grand Total | AN5: Notes
A6: Select Category | B6: =IF(A6="Select Category","N/A",HLOOKUP(A6,'Fringe Rates (Federal)'!$F$1:$S$2,2,FALSE)) -> N/A | C6: Enter Staff Name | D6: Select Appointment Type | E6: 0 | F6: =ROUND(IF(OR(A6="Select Category",D6="Select Appointment Type",$H$4="N/A"),0,IF(ISNUMBER(E6),(E6*H8/VLOOKUP(D6,'Effort Calculator'!$A$8:$C$14,3,FALSE)*(1+H9)),0)),0) -> 0 | G6: =IF($A$3=1,ROUND(IF(OR(A6="Select Category",D6="Select Appointment Type",$H$4="N/A"),0,(F6)*INDEX('Fringe Rates (Federal)'!$F$3:$S$19,MATCH($H$4,'Fringe Rates (Federal)'!$A$3:$A$19,0),MATCH(A6,FFR[[#Headers],[S&W Staff]:[S&W (Custom Fringe Rate)]],0))),0),ROUND(IF(OR(A6="Select Category",D6="Select Appointment Type",$H$4="N/A"),0,(F6)*INDEX('Fringe Rates (non-Federal)'!$F$3:$S$19,MATCH($H$4,'Fringe Rates (non-Federal)'!$A$3:$A$19,0),MATCH(A6,NFFR[[#Headers],[S&W Staff]:[S&W (Custom Fringe Rate)]],0))),0)) -> 0 | H6: =ROUND(SUM(F6:G6),0) -> 0 | I6: =ROUND(IF(OR(A6="Select Category",D6="Select Appointment Type",$K$4="N/A"),0,IF(ISNUMBER(E6),(E6*K8/VLOOKUP(D6,'Effort Calculator'!$A$8:$C$14,3,FALSE)*(1+H9)*(1+K9)),0)),0) -> 0 | J6: =IF($A$3=1,ROUND(IF(OR(A6="Select Category",D6="Select Appointment Type",$K$4="N/A"),0,(I6)*INDEX('Fringe Rates (Federal)'!$F$3:$S$19,MATCH($K$4,'Fringe Rates (Federal)'!$A$3:$A$19,0),MATCH(A6,FFR[[#Headers],[S&W Staff]:[S&W (Custom Fringe Rate)]],0))),0),ROUND(IF(OR(A6="Select Category",D6="Select Appointment Type",$K$4="N/A"),0,(I6)*INDEX('Fringe Rates (non-Federal)'!$F$3:$S$19,MATCH($K$4,'Fringe Rates (non-Federal)'!$A$3:$A$19,0),MATCH(A6,NFFR[[#Headers],[S&W Staff]:[S&W (Custom Fringe Rate)]],0))),0)) -> 0 | K6: =ROUND(SUM(I6:J6),0) -> 0 | L6: =ROUND(IF(OR(A6="Select Category",D6="Select Appointment Type",$N$4="N/A"),0,IF(ISNUMBER(E6),(E6*N8/VLOOKUP(D6,'Effort Calculator'!$A$8:$C$14,3,FALSE)*(1+H9)*(1+K9)*(1+N9)),0)),0) -> 0 | M6: =IF($A$3=1,ROUND(IF(OR(A6="Select Category",D6="Select Appointment Type",$N$4="N/A"),0,(L6)*INDEX('Fringe Rates (Federal)'!$F$3:$S$19,MATCH($N$4,'Fringe Rates (Federal)'!$A$3:$A$19,0),MATCH(A6,FFR[[#Headers],[S&W Staff]:[S&W (Custom Fringe Rate)]],0))),0),ROUND(IF(OR(A6="Select Category",D6="Select Appointment Type",$N$4="N/A"),0,(L6)*INDEX('Fringe Rates (non-Federal)'!$F$3:$S$19,MATCH($N$4,'Fringe Rates (non-Federal)'!$A$3:$A$19,0),MATCH(A6,NFFR[[#Headers],[S&W Staff]:[S&W (Custom Fringe Rate)]],0))),0)) -> 0 | N6: =ROUND(SUM(L6:M6),0) -> 0 | O6: =ROUND(IF(OR(A6="Select Category",D6="Select Appointment Type",$Q$4="N/A"),0,IF(ISNUMBER(E6),(E6*Q8/VLOOKUP(D6,'Effort Calculator'!$A$8:$C$14,3,FALSE)*(1+H9)*(1+K9)*(1+N9)*(1+Q9)),0)),0) -> 0 | P6: =IF($A$3=1,ROUND(IF(OR(A6="Select Category",D6="Select Appointment Type",$Q$4="N/A"),0,(O6)*INDEX('Fringe Rates (Federal)'!$F$3:$S$19,MATCH($Q$4,'Fringe Rates (Federal)'!$A$3:$A$19,0),MATCH(A6,FFR[[#Headers],[S&W Staff]:[S&W (Custom Fringe Rate)]],0))),0),ROUND(IF(OR(A6="Select Category",D6="Select Appointment Type",$Q$4="N/A"),0,(O6)*INDEX('Fringe Rates (non-Federal)'!$F$3:$S$19,MATCH($Q$4,'Fringe Rates (non-Federal)'!$A$3:$A$19,0),MATCH(A6,NFFR[[#Headers],[S&W Staff]:[S&W (Custom Fringe Rate)]],0))),0)) -> 0 | Q6: =ROUND(SUM(O6:P6),0) -> 0 | R6: =ROUND(IF(OR(A6="Select Category",D6="Select Appointment Type",$T$4="N/A"),0,IF(ISNUMBER(E6),(E6*T8/VLOOKUP(D6,'Effort Calculator'!$A$8:$C$14,3,FALSE)*(1+H9)*(1+K9)*(1+N9)*(1+Q9)*(1+T9)),0)),0) -> 0 | S6: =IF($A$3=1,ROUND(IF(OR(A6="Select Category",D6="Select Appointment Type",$T$4="N/A"),0,(R6)*INDEX('Fringe Rates (Federal)'!$F$3:$S$19,MATCH($T$4,'Fringe Rates (Federal)'!$A$3:$A$19,0),MATCH(A6,FFR[[#Headers],[S&W Staff]:[S&W (Custom Fringe Rate)]],0))),0),ROUND(IF(OR(A6="Select Category",D6="Select Appointment Type",$T$4="N/A"),0,(R6)*INDEX('Fringe Rates (non-Federal)'!$F$3:$S$19,MATCH($T$4,'Fringe Rates (non-Federal)'!$A$3:$A$19,0),MATCH(A6,NFFR[[#Headers],[S&W Staff]:[S&W (Custom Fringe Rate)]],0))),0)) -> 0 | T6: =ROUND(SUM(R6:S6),0) -> 0 | U6: =ROUND(IF(OR(A6="Select Category",D6="Select Appointment Type",$W$4="N/A"),0,IF(ISNUMBER(E6),(E6*W8/VLOOKUP(D6,'Effort Calculator'!$A$8:$C$14,3,FALSE)*(1+H9)*(1+K9)*(1+N9)*(1+Q9)*(1+T9)*(1+W9)),0)),0) -> 0 | V6: =IF($A$3=1,ROUND(IF(OR(A6="Select Category",D6="Select Appointment Type",$W$4="N/A"),0,(U6)*INDEX('Fringe Rates (Federal)'!$F$3:$S$19,MATCH($W$4,'Fringe Rates (Federal)'!$A$3:$A$19,0),MATCH(A6,FFR[[#Headers],[S&W Staff]:[S&W (Custom Fringe Rate)]],0))),0),ROUND(IF(OR(A6="Select Category",D6="Select Appointment Type",$W$4="N/A"),0,(U6)*INDEX('Fringe Rates (non-Federal)'!$F$3:$S$19,MATCH($W$4,'Fringe Rates (non-Federal)'!$A$3:$A$19,0),MATCH(A6,NFFR[[#Headers],[S&W Staff]:[S&W (Custom Fringe Rate)]],0))),0)) -> 0 | W6: =ROUND(SUM(U6:V6),0) -> 0 | X6: =ROUND(IF(OR(A6="Select Category",D6="Select Appointment Type",$Z$4="N/A"),0,IF(ISNUMBER(E6),(E6*Z8/VLOOKUP(D6,'Effort Calculator'!$A$8:$C$14,3,FALSE)*(1+H9)*(1+K9)*(1+N9)*(1+Q9)*(1+T9)*(1+W9)*(1+Z9)),0)),0) -> 0 | Y6: =IF($A$3=1,ROUND(IF(OR(A6="Select Category",D6="Select Appointment Type",$Z$4="N/A"),0,(X6)*INDEX('Fringe Rates (Federal)'!$F$3:$S$19,MATCH($Z$4,'Fringe Rates (Federal)'!$A$3:$A$19,0),MATCH(A6,FFR[[#Headers],[S&W Staff]:[S&W (Custom Fringe Rate)]],0))),0),ROUND(IF(OR(A6="Select Category",D6="Select Appointment Type",$Z$4="N/A"),0,(X6)*INDEX('Fringe Rates (non-Federal)'!$F$3:$S$19,MATCH($Z$4,'Fringe Rates (non-Federal)'!$A$3:$A$19,0),MATCH(A6,NFFR[[#Headers],[S&W Staff]:[S&W (Custom Fringe Rate)]],0))),0)) -> 0 | Z6: =ROUND(SUM(X6:Y6),0) -> 0 | AA6: =ROUND(IF(OR(A6="Select Category",D6="Select Appointment Type",$AC$4="N/A"),0,IF(ISNUMBER(E6),(E6*AC8/VLOOKUP(D6,'Effort Calculator'!$A$8:$C$14,3,FALSE)*(1+H9)*(1+K9)*(1+N9)*(1+Q9)*(1+T9)*(1+W9)*(1+Z9)*(1+AC9)),0)),0) -> 0 | AB6: =IF($A$3=1,ROUND(IF(OR(A6="Select Category",D6="Select Appointment Type",$AC$4="N/A"),0,(AA6)*INDEX('Fringe Rates (Federal)'!$F$3:$S$19,MATCH($AC$4,'Fringe Rates (Federal)'!$A$3:$A$19,0),MATCH(A6,FFR[[#Headers],[S&W Staff]:[S&W (Custom Fringe Rate)]],0))),0),ROUND(IF(OR(A6="Select Category",D6="Select Appointment Type",$AC$4="N/A"),0,(AA6)*INDEX('Fringe Rates (non-Federal)'!$F$3:$S$19,MATCH($AC$4,'Fringe Rates (non-Federal)'!$A$3:$A$19,0),MATCH(A6,NFFR[[#Headers],[S&W Staff]:[S&W (Custom Fringe Rate)]],0))),0)) -> 0 | AC6: =ROUND(SUM(AA6:AB6),0) -> 0 | AD6: =ROUND(IF(OR(A6="Select Category",D6="Select Appointment Type",$AF$4="N/A"),0,IF(ISNUMBER(E6),(E6*AF8/VLOOKUP(D6,'Effort Calculator'!$A$8:$C$14,3,FALSE)*(1+H9)*(1+K9)*(1+N9)*(1+Q9)*(1+T9)*(1+W9)*(1+Z9)*(1+AC9)*(1+AF9)),0)),0) -> 0 | AE6: =IF($A$3=1,ROUND(IF(OR(A6="Select Category",D6="Select Appointment Type",$AF$4="N/A"),0,(AD6)*INDEX('Fringe Rates (Federal)'!$F$3:$S$19,MATCH($AF$4,'Fringe Rates (Federal)'!$A$3:$A$19,0),MATCH(A6,FFR[[#Headers],[S&W Staff]:[S&W (Custom Fringe Rate)]],0))),0),ROUND(IF(OR(A6="Select Category",D6="Select Appointment Type",$AF$4="N/A"),0,(AD6)*INDEX('Fringe Rates (non-Federal)'!$F$3:$S$19,MATCH($AF$4,'Fringe Rates (non-Federal)'!$A$3:$A$19,0),MATCH(A6,NFFR[[#Headers],[S&W Staff]:[S&W (Custom Fringe Rate)]],0))),0)) -> 0 | AF6: =ROUND(SUM(AD6:AE6),0) -> 0 | AG6: =ROUND(IF(OR(A6="Select Category",D6="Select Appointment Type",$AI$4="N/A"),0,IF(ISNUMBER(E6),(E6*AI8/VLOOKUP(D6,'Effort Calculator'!$A$8:$C$14,3,FALSE)*(1+H9)*(1+K9)*(1+N9)*(1+Q9)*(1+T9)*(1+W9)*(1+Z9)*(1+AC9)*(1+AF9)*(1+AI9)),0)),0) -> 0 | AH6: =IF($A$3=1,ROUND(IF(OR(A6="Select Category",D6="Select Appointment Type",$AI$4="N/A"),0,(AG6)*INDEX('Fringe Rates (Federal)'!$F$3:$S$19,MATCH($AI$4,'Fringe Rates (Federal)'!$A$3:$A$19,0),MATCH(A6,FFR[[#Headers],[S&W Staff]:[S&W (Custom Fringe Rate)]],0))),0),ROUND(IF(OR(A6="Select Category",D6="Select Appointment Type",$AI$4="N/A"),0,(AG6)*INDEX('Fringe Rates (non-Federal)'!$F$3:$S$19,MATCH($AI$4,'Fringe Rates (non-Federal)'!$A$3:$A$19,0),MATCH(A6,NFFR[[#Headers],[S&W Staff]:[S&W (Custom Fringe Rate)]],0))),0)) -> 0 | AI6: =ROUND(SUM(AG6:AH6),0) -> 0 | AJ6: =ROUND(SUM(F6,I6,L6,O6,R6,U6,X6,AA6,AD6,AG6),0) -> 0 | AK6: =ROUND(SUM(G6,J6,M6,P6,S6,V6,Y6,AB6,AE6,AH6),0) -> 0 | AL6: =ROUND(SUM(AJ6:AK6),0) -> 0
E7: Effort | H7: 0 | K7: 0 | N7: 0 | Q7: 0 | T7: 0 | W7: 0 | Z7: 0 | AC7: 0 | AF7: 0 | AI7: 0
E8: Person Months | H8: =IF(D6="Select Appointment Type",0,VLOOKUP(D6,'Effort Calculator'!$A$8:$C$13,2,FALSE)*H7) -> 0 | K8: =IF(D6="Select Appointment Type",0,VLOOKUP(D6,'Effort Calculator'!$A$8:$C$13,2,FALSE)*K7) -> 0 | N8: =IF(D6="Select Appointment Type",0,VLOOKUP(D6,'Effort Calculator'!$A$8:$C$13,2,FALSE)*N7) -> 0 | Q8: =IF(D6="Select Appointment Type",0,VLOOKUP(D6,'Effort Calculator'!$A$8:$C$13,2,FALSE)*Q7) -> 0 | T8: =IF(D6="Select Appointment Type",0,VLOOKUP(D6,'Effort Calculator'!$A$8:$C$13,2,FALSE)*T7) -> 0 | W8: =IF(D6="Select Appointment Type",0,VLOOKUP(D6,'Effort Calculator'!$A$8:$C$13,2,FALSE)*W7) -> 0 | Z8: =IF(D6="Select Appointment Type",0,VLOOKUP(D6,'Effort Calculator'!$A$8:$C$13,2,FALSE)*Z7) -> 0 | AC8: =IF(D6="Select Appointment Type",0,VLOOKUP(D6,'Effort Calculator'!$A$8:$C$13,2,FALSE)*AC7) -> 0 | AF8: =IF(D6="Select Appointment Type",0,VLOOKUP(D6,'Effort Calculator'!$A$8:$C$13,2,FALSE)*AF7) -> 0 | AI8: =IF(D6="Select Appointment Type",0,VLOOKUP(D6,'Effort Calculator'!$A$8:$C$13,2,FALSE)*AI7) -> 0
E9: COLA | H9: 0 | K9: 0 | N9: 0 | Q9: 0 | T9: 0 | W9: 0 | Z9: 0 | AC9: 0 | AF9: 0 | AI9: 0
A10: Select Category | B10: =IF(A10="Select Category","N/A",HLOOKUP(A10,'Fringe Rates (Federal)'!$F$1:$S$2,2,FALSE)) -> N/A | C10: Enter Staff Name | D10: Select Appointment Type | E10: 0 | F10: =ROUND(IF(OR(A10="Select Category",D10="Select Appointment Type",$H$4="N/A"),0,IF(ISNUMBER(E10),(E10*H12/VLOOKUP(D10,'Effort Calculator'!$A$8:$C$14,3,FALSE)*(1+H13)),0)),0) -> 0 | G10: =IF($A$3=1,ROUND(IF(OR(A10="Select Category",D10="Select Appointment Type",$H$4="N/A"),0,(F10)*INDEX('Fringe Rates (Federal)'!$F$3:$S$19,MATCH($H$4,'Fringe Rates (Federal)'!$A$3:$A$19,0),MATCH(A10,FFR[[#Headers],[S&W Staff]:[S&W (Custom Fringe Rate)]],0))),0),ROUND(IF(OR(A10="Select Category",D10="Select Appointment Type",$H$4="N/A"),0,(F10)*INDEX('Fringe Rates (non-Federal)'!$F$3:$S$19,MATCH($H$4,'Fringe Rates (non-Federal)'!$A$3:$A$19,0),MATCH(A10,NFFR[[#Headers],[S&W Staff]:[S&W (Custom Fringe Rate)]],0))),0)) -> 0 | H10: =ROUND(SUM(F10:G10),0) -> 0 | I10: =ROUND(IF(OR(A10="Select Category",D10="Select Appointment Type",$K$4="N/A"),0,IF(ISNUMBER(E10),(E10*K12/VLOOKUP(D10,'Effort Calculator'!$A$8:$C$14,3,FALSE)*(1+H13)*(1+K13)),0)),0) -> 0 | J10: =IF($A$3=1,ROUND(IF(OR(A10="Select Category",D10="Select Appointment Type",$K$4="N/A"),0,(I10)*INDEX('Fringe Rates (Federal)'!$F$3:$S$19,MATCH($K$4,'Fringe Rates (Federal)'!$A$3:$A$19,0),MATCH(A10,FFR[[#Headers],[S&W Staff]:[S&W (Custom Fringe Rate)]],0))),0),ROUND(IF(OR(A10="Select Category",D10="Select Appointment Type",$K$4="N/A"),0,(I10)*INDEX('Fringe Rates (non-Federal)'!$F$3:$S$19,MATCH($K$4,'Fringe Rates (non-Federal)'!$A$3:$A$19,0),MATCH(A10,NFFR[[#Headers],[S&W Staff]:[S&W (Custom Fringe Rate)]],0))),0)) -> 0 | K10: =ROUND(SUM(I10:J10),0) -> 0 | L10: =ROUND(IF(OR(A10="Select Category",D10="Select Appointment Type",$N$4="N/A"),0,IF(ISNUMBER(E10),(E10*N12/VLOOKUP(D10,'Effort Calculator'!$A$8:$C$14,3,FALSE)*(1+H13)*(1+K13)*(1+N13)),0)),0) -> 0 | M10: =IF($A$3=1,ROUND(IF(OR(A10="Select Category",D10="Select Appointment Type",$N$4="N/A"),0,(L10)*INDEX('Fringe Rates (Federal)'!$F$3:$S$19,MATCH($N$4,'Fringe Rates (Federal)'!$A$3:$A$19,0),MATCH(A10,FFR[[#Headers],[S&W Staff]:[S&W (Custom Fringe Rate)]],0))),0),ROUND(IF(OR(A10="Select Category",D10="Select Appointment Type",$N$4="N/A"),0,(L10)*INDEX('Fringe Rates (non-Federal)'!$F$3:$S$19,MATCH($N$4,'Fringe Rates (non-Federal)'!$A$3:$A$19,0),MATCH(A10,NFFR[[#Headers],[S&W Staff]:[S&W (Custom Fringe Rate)]],0))),0)) -> 0 | N10: =ROUND(SUM(L10:M10),0) -> 0 | O10: =ROUND(IF(OR(A10="Select Category",D10="Select Appointment Type",$Q$4="N/A"),0,IF(ISNUMBER(E10),(E10*Q12/VLOOKUP(D10,'Effort Calculator'!$A$8:$C$14,3,FALSE)*(1+H13)*(1+K13)*(1+N13)*(1+Q13)),0)),0) -> 0 | P10: =IF($A$3=1,ROUND(IF(OR(A10="Select Category",D10="Select Appointment Type",$Q$4="N/A"),0,(O10)*INDEX('Fringe Rates (Federal)'!$F$3:$S$19,MATCH($Q$4,'Fringe Rates (Federal)'!$A$3:$A$19,0),MATCH(A10,FFR[[#Headers],[S&W Staff]:[S&W (Custom Fringe Rate)]],0))),0),ROUND(IF(OR(A10="Select Category",D10="Select Appointment Type",$Q$4="N/A"),0,(O10)*INDEX('Fringe Rates (non-Federal)'!$F$3:$S$19,MATCH($Q$4,'Fringe Rates (non-Federal)'!$A$3:$A$19,0),MATCH(A10,NFFR[[#Headers],[S&W Staff]:[S&W (Custom Fringe Rate)]],0))),0)) -> 0 | Q10: =ROUND(SUM(O10:P10),0) -> 0 | R10: =ROUND(IF(OR(A10="Select Category",D10="Select Appointment Type",$T$4="N/A"),0,IF(ISNUMBER(E10),(E10*T12/VLOOKUP(D10,'Effort Calculator'!$A$8:$C$14,3,FALSE)*(1+H13)*(1+K13)*(1+N13)*(1+Q13)*(1+T13)),0)),0) -> 0 | S10: =IF($A$3=1,ROUND(IF(OR(A10="Select Category",D10="Select Appointment Type",$T$4="N/A"),0,(R10)*INDEX('Fringe Rates (Federal)'!$F$3:$S$19,MATCH($T$4,'Fringe Rates (Federal)'!$A$3:$A$19,0),MATCH(A10,FFR[[#Headers],[S&W Staff]:[S&W (Custom Fringe Rate)]],0))),0),ROUND(IF(OR(A10="Select Category",D10="Select Appointment Type",$T$4="N/A"),0,(R10)*INDEX('Fringe Rates (non-Federal)'!$F$3:$S$19,MATCH($T$4,'Fringe Rates (non-Federal)'!$A$3:$A$19,0),MATCH(A10,NFFR[[#Headers],[S&W Staff]:[S&W (Custom Fringe Rate)]],0))),0)) -> 0 | T10: =ROUND(SUM(R10:S10),0) -> 0 | U10: =ROUND(IF(OR(A10="Select Category",D10="Select Appointment Type",$W$4="N/A"),0,IF(ISNUMBER(E10),(E10*W12/VLOOKUP(D10,'Effort Calculator'!$A$8:$C$14,3,FALSE)*(1+H13)*(1+K13)*(1+N13)*(1+Q13)*(1+T13)*(1+W13)),0)),0) -> 0 | V10: =IF($A$3=1,ROUND(IF(OR(A10="Select Category",D10="Select Appointment Type",$W$4="N/A"),0,(U10)*INDEX('Fringe Rates (Federal)'!$F$3:$S$19,MATCH($W$4,'Fringe Rates (Federal)'!$A$3:$A$19,0),MATCH(A10,FFR[[#Headers],[S&W Staff]:[S&W (Custom Fringe Rate)]],0))),0),ROUND(IF(OR(A10="Select Category",D10="Select Appointment Type",$W$4="N/A"),0,(U10)*INDEX('Fringe Rates (non-Federal)'!$F$3:$S$19,MATCH($W$4,'Fringe Rates (non-Federal)'!$A$3:$A$19,0),MATCH(A10,NFFR[[#Headers],[S&W Staff]:[S&W (Custom Fringe Rate)]],0))),0)) -> 0 | W10: =ROUND(SUM(U10:V10),0) -> 0 | X10: =ROUND(IF(OR(A10="Select Category",D10="Select Appointment Type",$Z$4="N/A"),0,IF(ISNUMBER(E10),(E10*Z12/VLOOKUP(D10,'Effort Calculator'!$A$8:$C$14,3,FALSE)*(1+H13)*(1+K13)*(1+N13)*(1+Q13)*(1+T13)*(1+W13)*(1+Z13)),0)),0) -> 0 | Y10: =IF($A$3=1,ROUND(IF(OR(A10="Select Category",D10="Select Appointment Type",$Z$4="N/A"),0,(X10)*INDEX('Fringe Rates (Federal)'!$F$3:$S$19,MATCH($Z$4,'Fringe Rates (Federal)'!$A$3:$A$19,0),MATCH(A10,FFR[[#Headers],[S&W Staff]:[S&W (Custom Fringe Rate)]],0))),0),ROUND(IF(OR(A10="Select Category",D10="Select Appointment Type",$Z$4="N/A"),0,(X10)*INDEX('Fringe Rates (non-Federal)'!$F$3:$S$19,MATCH($Z$4,'Fringe Rates (non-Federal)'!$A$3:$A$19,0),MATCH(A10,NFFR[[#Headers],[S&W Staff]:[S&W (Custom Fringe Rate)]],0))),0)) -> 0 | Z10: =ROUND(SUM(X10:Y10),0) -> 0 | AA10: =ROUND(IF(OR(A10="Select Category",D10="Select Appointment Type",$AC$4="N/A"),0,IF(ISNUMBER(E10),(E10*AC12/VLOOKUP(D10,'Effort Calculator'!$A$8:$C$14,3,FALSE)*(1+H13)*(1+K13)*(1+N13)*(1+Q13)*(1+T13)*(1+W13)*(1+Z13)*(1+AC13)),0)),0) -> 0 | AB10: =IF($A$3=1,ROUND(IF(OR(A10="Select Category",D10="Select Appointment Type",$AC$4="N/A"),0,(AA10)*INDEX('Fringe Rates (Federal)'!$F$3:$S$19,MATCH($AC$4,'Fringe Rates (Federal)'!$A$3:$A$19,0),MATCH(A10,FFR[[#Headers],[S&W Staff]:[S&W (Custom Fringe Rate)]],0))),0),ROUND(IF(OR(A10="Select Category",D10="Select Appointment Type",$AC$4="N/A"),0,(AA10)*INDEX('Fringe Rates (non-Federal)'!$F$3:$S$19,MATCH($AC$4,'Fringe Rates (non-Federal)'!$A$3:$A$19,0),MATCH(A10,NFFR[[#Headers],[S&W Staff]:[S&W (Custom Fringe Rate)]],0))),0)) -> 0 | AC10: =ROUND(SUM(AA10:AB10),0) -> 0 | AD10: =ROUND(IF(OR(A10="Select Category",D10="Select Appointment Type",$AF$4="N/A"),0,IF(ISNUMBER(E10),(E10*AF12/VLOOKUP(D10,'Effort Calculator'!$A$8:$C$14,3,FALSE)*(1+H13)*(1+K13)*(1+N13)*(1+Q13)*(1+T13)*(1+W13)*(1+Z13)*(1+AC13)*(1+AF13)),0)),0) -> 0 | AE10: =IF($A$3=1,ROUND(IF(OR(A10="Select Category",D10="Select Appointment Type",$AF$4="N/A"),0,(AD10)*INDEX('Fringe Rates (Federal)'!$F$3:$S$19,MATCH($AF$4,'Fringe Rates (Federal)'!$A$3:$A$19,0),MATCH(A10,FFR[[#Headers],[S&W Staff]:[S&W (Custom Fringe Rate)]],0))),0),ROUND(IF(OR(A10="Select Category",D10="Select Appointment Type",$AF$4="N/A"),0,(AD10)*INDEX('Fringe Rates (non-Federal)'!$F$3:$S$19,MATCH($AF$4,'Fringe Rates (non-Federal)'!$A$3:$A$19,0),MATCH(A10,NFFR[[#Headers],[S&W Staff]:[S&W (Custom Fringe Rate)]],0))),0)) -> 0 | AF10: =ROUND(SUM(AD10:AE10),0) -> 0 | AG10: =ROUND(IF(OR(A10="Select Category",D10="Select Appointment Type",$AI$4="N/A"),0,IF(ISNUMBER(E10),(E10*AI12/VLOOKUP(D10,'Effort Calculator'!$A$8:$C$14,3,FALSE)*(1+H13)*(1+K13)*(1+N13)*(1+Q13)*(1+T13)*(1+W13)*(1+Z13)*(1+AC13)*(1+AF13)*(1+AI13)),0)),0) -> 0 | AH10: =IF($A$3=1,ROUND(IF(OR(A10="Select Category",D10="Select Appointment Type",$AI$4="N/A"),0,(AG10)*INDEX('Fringe Rates (Federal)'!$F$3:$S$19,MATCH($AI$4,'Fringe Rates (Federal)'!$A$3:$A$19,0),MATCH(A10,FFR[[#Headers],[S&W Staff]:[S&W (Custom Fringe Rate)]],0))),0),ROUND(IF(OR(A10="Select Category",D10="Select Appointment Type",$AI$4="N/A"),0,(AG10)*INDEX('Fringe Rates (non-Federal)'!$F$3:$S$19,MATCH($AI$4,'Fringe Rates (non-Federal)'!$A$3:$A$19,0),MATCH(A10,NFFR[[#Headers],[S&W Staff]:[S&W (Custom Fringe Rate)]],0))),0)) -> 0 | AI10: =ROUND(SUM(AG10:AH10),0) -> 0 | AJ10: =ROUND(SUM(F10,I10,L10,O10,R10,U10,X10,AA10,AD10,AG10),0) -> 0 | AK10: =ROUND(SUM(G10,J10,M10,P10,S10,V10,Y10,AB10,AE10,AH10),0) -> 0 | AL10: =ROUND(SUM(AJ10:AK10),0) -> 0
E11: Effort | H11: 0 | K11: 0 | N11: 0 | Q11: 0 | T11: 0 | W11: 0 | Z11: 0 | AC11: 0 | AF11: 0 | AI11: 0
E12: Person Months | H12: =IF(D10="Select Appointment Type",0,VLOOKUP(D10,'Effort Calculator'!$A$8:$C$13,2,FALSE)*H11) -> 0 | K12: =IF(D10="Select Appointment Type",0,VLOOKUP(D10,'Effort Calculator'!$A$8:$C$13,2,FALSE)*K11) -> 0 | N12: =IF(D10="Select Appointment Type",0,VLOOKUP(D10,'Effort Calculator'!$A$8:$C$13,2,FALSE)*N11) -> 0 | Q12: =IF(D10="Select Appointment Type",0,VLOOKUP(D10,'Effort Calculator'!$A$8:$C$13,2,FALSE)*Q11) -> 0 | T12: =IF(D10="Select Appointment Type",0,VLOOKUP(D10,'Effort Calculator'!$A$8:$C$13,2,FALSE)*T11) -> 0 | W12: =IF(D10="Select Appointment Type",0,VLOOKUP(D10,'Effort Calculator'!$A$8:$C$13,2,FALSE)*W11) -> 0 | Z12: =IF(D10="Select Appointment Type",0,VLOOKUP(D10,'Effort Calculator'!$A$8:$C$13,2,FALSE)*Z11) -> 0 | AC12: =IF(D10="Select Appointment Type",0,VLOOKUP(D10,'Effort Calculator'!$A$8:$C$13,2,FALSE)*AC11) -> 0 | AF12: =IF(D10="Select Appointment Type",0,VLOOKUP(D10,'Effort Calculator'!$A$8:$C$13,2,FALSE)*AF11) -> 0 | AI12: =IF(D10="Select Appointment Type",0,VLOOKUP(D10,'Effort Calculator'!$A$8:$C$13,2,FALSE)*AI11) -> 0
E13: COLA | H13: 0 | K13: 0 | N13: 0 | Q13: 0 | T13: 0 | W13: 0 | Z13: 0 | AC13: 0 | AF13: 0 | AI13: 0
A14: Select Category | B14: =IF(A14="Select Category","N/A",HLOOKUP(A14,'Fringe Rates (Federal)'!$F$1:$S$2,2,FALSE)) -> N/A | C14: Enter Staff Name | D14: Select Appointment Type | E14: 0 | F14: =ROUND(IF(OR(A14="Select Category",D14="Select Appointment Type",$H$4="N/A"),0,IF(ISNUMBER(E14),(E14*H16/VLOOKUP(D14,'Effort Calculator'!$A$8:$C$14,3,FALSE)*(1+H17)),0)),0) -> 0 | G14: =IF($A$3=1,ROUND(IF(OR(A14="Select Category",D14="Select Appointment Type",$H$4="N/A"),0,(F14)*INDEX('Fringe Rates (Federal)'!$F$3:$S$19,MATCH($H$4,'Fringe Rates (Federal)'!$A$3:$A$19,0),MATCH(A14,FFR[[#Headers],[S&W Staff]:[S&W (Custom Fringe Rate)]],0))),0),ROUND(IF(OR(A14="Select Category",D14="Select Appointment Type",$H$4="N/A"),0,(F14)*INDEX('Fringe Rates (non-Federal)'!$F$3:$S$19,MATCH($H$4,'Fringe Rates (non-Federal)'!$A$3:$A$19,0),MATCH(A14,NFFR[[#Headers],[S&W Staff]:[S&W (Custom Fringe Rate)]],0))),0)) -> 0 | H14: =ROUND(SUM(F14:G14),0) -> 0 | I14: =ROUND(IF(OR(A14="Select Category",D14="Select Appointment Type",$K$4="N/A"),0,IF(ISNUMBER(E14),(E14*K16/VLOOKUP(D14,'Effort Calculator'!$A$8:$C$14,3,FALSE)*(1+H17)*(1+K17)),0)),0) -> 0 | J14: =IF($A$3=1,ROUND(IF(OR(A14="Select Category",D14="Select Appointment Type",$K$4="N/A"),0,(I14)*INDEX('Fringe Rates (Federal)'!$F$3:$S$19,MATCH($K$4,'Fringe Rates (Federal)'!$A$3:$A$19,0),MATCH(A14,FFR[[#Headers],[S&W Staff]:[S&W (Custom Fringe Rate)]],0))),0),ROUND(IF(OR(A14="Select Category",D14="Select Appointment Type",$K$4="N/A"),0,(I14)*INDEX('Fringe Rates (non-Federal)'!$F$3:$S$19,MATCH($K$4,'Fringe Rates (non-Federal)'!$A$3:$A$19,0),MATCH(A14,NFFR[[#Headers],[S&W Staff]:[S&W (Custom Fringe Rate)]],0))),0)) -> 0 | K14: =ROUND(SUM(I14:J14),0) -> 0 | L14: =ROUND(IF(OR(A14="Select Category",D14="Select Appointment Type",$N$4="N/A"),0,IF(ISNUMBER(E14),(E14*N16/VLOOKUP(D14,'Effort Calculator'!$A$8:$C$14,3,FALSE)*(1+H17)*(1+K17)*(1+N17)),0)),0) -> 0 | M14: =IF($A$3=1,ROUND(IF(OR(A14="Select Category",D14="Select Appointment Type",$N$4="N/A"),0,(L14)*INDEX('Fringe Rates (Federal)'!$F$3:$S$19,MATCH($N$4,'Fringe Rates (Federal)'!$A$3:$A$19,0),MATCH(A14,FFR[[#Headers],[S&W Staff]:[S&W (Custom Fringe Rate)]],0))),0),ROUND(IF(OR(A14="Select Category",D14="Select Appointment Type",$N$4="N/A"),0,(L14)*INDEX('Fringe Rates (non-Federal)'!$F$3:$S$19,MATCH($N$4,'Fringe Rates (non-Federal)'!$A$3:$A$19,0),MATCH(A14,NFFR[[#Headers],[S&W Staff]:[S&W (Custom Fringe Rate)]],0))),0)) -> 0 | N14: =ROUND(SUM(L14:M14),0) -> 0 | O14: =ROUND(IF(OR(A14="Select Category",D14="Select Appointment Type",$Q$4="N/A"),0,IF(ISNUMBER(E14),(E14*Q16/VLOOKUP(D14,'Effort Calculator'!$A$8:$C$14,3,FALSE)*(1+H17)*(1+K17)*(1+N17)*(1+Q17)),0)),0) -> 0 | P14: =IF($A$3=1,ROUND(IF(OR(A14="Select Category",D14="Select Appointment Type",$Q$4="N/A"),0,(O14)*INDEX('Fringe Rates (Federal)'!$F$3:$S$19,MATCH($Q$4,'Fringe Rates (Federal)'!$A$3:$A$19,0),MATCH(A14,FFR[[#Headers],[S&W Staff]:[S&W (Custom Fringe Rate)]],0))),0),ROUND(IF(OR(A14="Select Category",D14="Select Appointment Type",$Q$4="N/A"),0,(O14)*INDEX('Fringe Rates (non-Federal)'!$F$3:$S$19,MATCH($Q$4,'Fringe Rates (non-Federal)'!$A$3:$A$19,0),MATCH(A14,NFFR[[#Headers],[S&W Staff]:[S&W (Custom Fringe Rate)]],0))),0)) -> 0 | Q14: =ROUND(SUM(O14:P14),0) -> 0 | R14: =ROUND(IF(OR(A14="Select Category",D14="Select Appointment Type",$T$4="N/A"),0,IF(ISNUMBER(E14),(E14*T16/VLOOKUP(D14,'Effort Calculator'!$A$8:$C$14,3,FALSE)*(1+H17)*(1+K17)*(1+N17)*(1+Q17)*(1+T17)),0)),0) -> 0 | S14: =IF($A$3=1,ROUND(IF(OR(A14="Select Category",D14="Select Appointment Type",$T$4="N/A"),0,(R14)*INDEX('Fringe Rates (Federal)'!$F$3:$S$19,MATCH($T$4,'Fringe Rates (Federal)'!$A$3:$A$19,0),MATCH(A14,FFR[[#Headers],[S&W Staff]:[S&W (Custom Fringe Rate)]],0))),0),ROUND(IF(OR(A14="Select Category",D14="Select Appointment Type",$T$4="N/A"),0,(R14)*INDEX('Fringe Rates (non-Federal)'!$F$3:$S$19,MATCH($T$4,'Fringe Rates (non-Federal)'!$A$3:$A$19,0),MATCH(A14,NFFR[[#Headers],[S&W Staff]:[S&W (Custom Fringe Rate)]],0))),0)) -> 0 | T14: =ROUND(SUM(R14:S14),0) -> 0 | U14: =ROUND(IF(OR(A14="Select Category",D14="Select Appointment Type",$W$4="N/A"),0,IF(ISNUMBER(E14),(E14*W16/VLOOKUP(D14,'Effort Calculator'!$A$8:$C$14,3,FALSE)*(1+H17)*(1+K17)*(1+N17)*(1+Q17)*(1+T17)*(1+W17)),0)),0) -> 0 | V14: =IF($A$3=1,ROUND(IF(OR(A14="Select Category",D14="Select Appointment Type",$W$4="N/A"),0,(U14)*INDEX('Fringe Rates (Federal)'!$F$3:$S$19,MATCH($W$4,'Fringe Rates (Federal)'!$A$3:$A$19,0),MATCH(A14,FFR[[#Headers],[S&W Staff]:[S&W (Custom Fringe Rate)]],0))),0),ROUND(IF(OR(A14="Select Category",D14="Select Appointment Type",$W$4="N/A"),0,(U14)*INDEX('Fringe Rates (non-Federal)'!$F$3:$S$19,MATCH($W$4,'Fringe Rates (non-Federal)'!$A$3:$A$19,0),MATCH(A14,NFFR[[#Headers],[S&W Staff]:[S&W (Custom Fringe Rate)]],0))),0)) -> 0 | W14: =ROUND(SUM(U14:V14),0) -> 0 | X14: =ROUND(IF(OR(A14="Select Category",D14="Select Appointment Type",$Z$4="N/A"),0,IF(ISNUMBER(E14),(E14*Z16/VLOOKUP(D14,'Effort Calculator'!$A$8:$C$14,3,FALSE)*(1+H17)*(1+K17)*(1+N17)*(1+Q17)*(1+T17)*(1+W17)*(1+Z17)),0)),0) -> 0 | Y14: =IF($A$3=1,ROUND(IF(OR(A14="Select Category",D14="Select Appointment Type",$Z$4="N/A"),0,(X14)*INDEX('Fringe Rates (Federal)'!$F$3:$S$19,MATCH($Z$4,'Fringe Rates (Federal)'!$A$3:$A$19,0),MATCH(A14,FFR[[#Headers],[S&W Staff]:[S&W (Custom Fringe Rate)]],0))),0),ROUND(IF(OR(A14="Select Category",D14="Select Appointment Type",$Z$4="N/A"),0,(X14)*INDEX('Fringe Rates (non-Federal)'!$F$3:$S$19,MATCH($Z$4,'Fringe Rates (non-Federal)'!$A$3:$A$19,0),MATCH(A14,NFFR[[#Headers],[S&W Staff]:[S&W (Custom Fringe Rate)]],0))),0)) -> 0 | Z14: =ROUND(SUM(X14:Y14),0) -> 0 | AA14: =ROUND(IF(OR(A14="Select Category",D14="Select Appointment Type",$AC$4="N/A"),0,IF(ISNUMBER(E14),(E14*AC16/VLOOKUP(D14,'Effort Calculator'!$A$8:$C$14,3,FALSE)*(1+H17)*(1+K17)*(1+N17)*(1+Q17)*(1+T17)*(1+W17)*(1+Z17)*(1+AC17)),0)),0) -> 0 | AB14: =IF($A$3=1,ROUND(IF(OR(A14="Select Category",D14="Select Appointment Type",$AC$4="N/A"),0,(AA14)*INDEX('Fringe Rates (Federal)'!$F$3:$S$19,MATCH($AC$4,'Fringe Rates (Federal)'!$A$3:$A$19,0),MATCH(A14,FFR[[#Headers],[S&W Staff]:[S&W (Custom Fringe Rate)]],0))),0),ROUND(IF(OR(A14="Select Category",D14="Select Appointment Type",$AC$4="N/A"),0,(AA14)*INDEX('Fringe Rates (non-Federal)'!$F$3:$S$19,MATCH($AC$4,'Fringe Rates (non-Federal)'!$A$3:$A$19,0),MATCH(A14,NFFR[[#Headers],[S&W Staff]:[S&W (Custom Fringe Rate)]],0))),0)) -> 0 | AC14: =ROUND(SUM(AA14:AB14),0) -> 0 | AD14: =ROUND(IF(OR(A14="Select Category",D14="Select Appointment Type",$AF$4="N/A"),0,IF(ISNUMBER(E14),(E14*AF16/VLOOKUP(D14,'Effort Calculator'!$A$8:$C$14,3,FALSE)*(1+H17)*(1+K17)*(1+N17)*(1+Q17)*(1+T17)*(1+W17)*(1+Z17)*(1+AC17)*(1+AF17)),0)),0) -> 0 | AE14: =IF($A$3=1,ROUND(IF(OR(A14="Select Category",D14="Select Appointment Type",$AF$4="N/A"),0,(AD14)*INDEX('Fringe Rates (Federal)'!$F$3:$S$19,MATCH($AF$4,'Fringe Rates (Federal)'!$A$3:$A$19,0),MATCH(A14,FFR[[#Headers],[S&W Staff]:[S&W (Custom Fringe Rate)]],0))),0),ROUND(IF(OR(A14="Select Category",D14="Select Appointment Type",$AF$4="N/A"),0,(AD14)*INDEX('Fringe Rates (non-Federal)'!$F$3:$S$19,MATCH($AF$4,'Fringe Rates (non-Federal)'!$A$3:$A$19,0),MATCH(A14,NFFR[[#Headers],[S&W Staff]:[S&W (Custom Fringe Rate)]],0))),0)) -> 0 | AF14: =ROUND(SUM(AD14:AE14),0) -> 0 | AG14: =ROUND(IF(OR(A14="Select Category",D14="Select Appointment Type",$AI$4="N/A"),0,IF(ISNUMBER(E14),(E14*AI16/VLOOKUP(D14,'Effort Calculator'!$A$8:$C$14,3,FALSE)*(1+H17)*(1+K17)*(1+N17)*(1+Q17)*(1+T17)*(1+W17)*(1+Z17)*(1+AC17)*(1+AF17)*(1+AI17)),0)),0) -> 0 | AH14: =IF($A$3=1,ROUND(IF(OR(A14="Select Category",D14="Select Appointment Type",$AI$4="N/A"),0,(AG14)*INDEX('Fringe Rates (Federal)'!$F$3:$S$19,MATCH($AI$4,'Fringe Rates (Federal)'!$A$3:$A$19,0),MATCH(A14,FFR[[#Headers],[S&W Staff]:[S&W (Custom Fringe Rate)]],0))),0),ROUND(IF(OR(A14="Select Category",D14="Select Appointment Type",$AI$4="N/A"),0,(AG14)*INDEX('Fringe Rates (non-Federal)'!$F$3:$S$19,MATCH($AI$4,'Fringe Rates (non-Federal)'!$A$3:$A$19,0),MATCH(A14,NFFR[[#Headers],[S&W Staff]:[S&W (Custom Fringe Rate)]],0))),0)) -> 0 | AI14: =ROUND(SUM(AG14:AH14),0) -> 0 | AJ14: =ROUND(SUM(F14,I14,L14,O14,R14,U14,X14,AA14,AD14,AG14),0) -> 0 | AK14: =ROUND(SUM(G14,J14,M14,P14,S14,V14,Y14,AB14,AE14,AH14),0) -> 0 | AL14: =ROUND(SUM(AJ14:AK14),0) -> 0
E15: Effort | H15: 0 | K15: 0 | N15: 0 | Q15: 0 | T15: 0 | W15: 0 | Z15: 0 | AC15: 0 | AF15: 0 | AI15: 0
E16: Person Months | H16: =IF(D14="Select Appointment Type",0,VLOOKUP(D14,'Effort Calculator'!$A$8:$C$13,2,FALSE)*H15) -> 0 | K16: =IF(D14="Select Appointment Type",0,VLOOKUP(D14,'Effort Calculator'!$A$8:$C$13,2,FALSE)*K15) -> 0 | N16: =IF(D14="Select Appointment Type",0,VLOOKUP(D14,'Effort Calculator'!$A$8:$C$13,2,FALSE)*N15) -> 0 | Q16: =IF(D14="Select Appointment Type",0,VLOOKUP(D14,'Effort Calculator'!$A$8:$C$13,2,FALSE)*Q15) -> 0 | T16: =IF(D14="Select Appointment Type",0,VLOOKUP(D14,'Effort Calculator'!$A$8:$C$13,2,FALSE)*T15) -> 0 | W16: =IF(D14="Select Appointment Type",0,VLOOKUP(D14,'Effort Calculator'!$A$8:$C$13,2,FALSE)*W15) -> 0 | Z16: =IF(D14="Select Appointment Type",0,VLOOKUP(D14,'Effort Calculator'!$A$8:$C$13,2,FALSE)*Z15) -> 0 | AC16: =IF(D14="Select Appointment Type",0,VLOOKUP(D14,'Effort Calculator'!$A$8:$C$13,2,FALSE)*AC15) -> 0 | AF16: =IF(D14="Select Appointment Type",0,VLOOKUP(D14,'Effort Calculator'!$A$8:$C$13,2,FALSE)*AF15) -> 0 | AI16: =IF(D14="Select Appointment Type",0,VLOOKUP(D14,'Effort Calculator'!$A$8:$C$13,2,FALSE)*AI15) -> 0
E17: COLA | H17: 0 | K17: 0 | N17: 0 | Q17: 0 | T17: 0 | W17: 0 | Z17: 0 | AC17: 0 | AF17: 0 | AI17: 0
A18: Select Category | B18: =IF(A18="Select Category","N/A",HLOOKUP(A18,'Fringe Rates (Federal)'!$F$1:$S$2,2,FALSE)) -> N/A | C18: Enter Staff Name | D18: Select Appointment Type | E18: 0 | F18: =ROUND(IF(OR(A18="Select Category",D18="Select Appointment Type",$H$4="N/A"),0,IF(ISNUMBER(E18),(E18*H20/VLOOKUP(D18,'Effort Calculator'!$A$8:$C$14,3,FALSE)*(1+H21)),0)),0) -> 0 | G18: =IF($A$3=1,ROUND(IF(OR(A18="Select Category",D18="Select Appointment Type",$H$4="N/A"),0,(F18)*INDEX('Fringe Rates (Federal)'!$F$3:$S$19,MATCH($H$4,'Fringe Rates (Federal)'!$A$3:$A$19,0),MATCH(A18,FFR[[#Headers],[S&W Staff]:[S&W (Custom Fringe Rate)]],0))),0),ROUND(IF(OR(A18="Select Category",D18="Select Appointment Type",$H$4="N/A"),0,(F18)*INDEX('Fringe Rates (non-Federal)'!$F$3:$S$19,MATCH($H$4,'Fringe Rates (non-Federal)'!$A$3:$A$19,0),MATCH(A18,NFFR[[#Headers],[S&W Staff]:[S&W (Custom Fringe Rate)]],0))),0)) -> 0 | H18: =ROUND(SUM(F18:G18),0) -> 0 | I18: =ROUND(IF(OR(A18="Select Category",D18="Select Appointment Type",$K$4="N/A"),0,IF(ISNUMBER(E18),(E18*K20/VLOOKUP(D18,'Effort Calculator'!$A$8:$C$14,3,FALSE)*(1+H21)*(1+K21)),0)),0) -> 0 | J18: =IF($A$3=1,ROUND(IF(OR(A18="Select Category",D18="Select Appointment Type",$K$4="N/A"),0,(I18)*INDEX('Fringe Rates (Federal)'!$F$3:$S$19,MATCH($K$4,'Fringe Rates (Federal)'!$A$3:$A$19,0),MATCH(A18,FFR[[#Headers],[S&W Staff]:[S&W (Custom Fringe Rate)]],0))),0),ROUND(IF(OR(A18="Select Category",D18="Select Appointment Type",$K$4="N/A"),0,(I18)*INDEX('Fringe Rates (non-Federal)'!$F$3:$S$19,MATCH($K$4,'Fringe Rates (non-Federal)'!$A$3:$A$19,0),MATCH(A18,NFFR[[#Headers],[S&W Staff]:[S&W (Custom Fringe Rate)]],0))),0)) -> 0 | K18: =ROUND(SUM(I18:J18),0) -> 0 | L18: =ROUND(IF(OR(A18="Select Category",D18="Select Appointment Type",$N$4="N/A"),0,IF(ISNUMBER(E18),(E18*N20/VLOOKUP(D18,'Effort Calculator'!$A$8:$C$14,3,FALSE)*(1+H21)*(1+K21)*(1+N21)),0)),0) -> 0 | M18: =IF($A$3=1,ROUND(IF(OR(A18="Select Category",D18="Select Appointment Type",$N$4="N/A"),0,(L18)*INDEX('Fringe Rates (Federal)'!$F$3:$S$19,MATCH($N$4,'Fringe Rates (Federal)'!$A$3:$A$19,0),MATCH(A18,FFR[[#Headers],[S&W Staff]:[S&W (Custom Fringe Rate)]],0))),0),ROUND(IF(OR(A18="Select Category",D18="Select Appointment Type",$N$4="N/A"),0,(L18)*INDEX('Fringe Rates (non-Federal)'!$F$3:$S$19,MATCH($N$4,'Fringe Rates (non-Federal)'!$A$3:$A$19,0),MATCH(A18,NFFR[[#Headers],[S&W Staff]:[S&W (Custom Fringe Rate)]],0))),0)) -> 0 | N18: =ROUND(SUM(L18:M18),0) -> 0 | O18: =ROUND(IF(OR(A18="Select Category",D18="Select Appointment Type",$Q$4="N/A"),0,IF(ISNUMBER(E18),(E18*Q20/VLOOKUP(D18,'Effort Calculator'!$A$8:$C$14,3,FALSE)*(1+H21)*(1+K21)*(1+N21)*(1+Q21)),0)),0) -> 0 | P18: =IF($A$3=1,ROUND(IF(OR(A18="Select Category",D18="Select Appointment Type",$Q$4="N/A"),0,(O18)*INDEX('Fringe Rates (Federal)'!$F$3:$S$19,MATCH($Q$4,'Fringe Rates (Federal)'!$A$3:$A$19,0),MATCH(A18,FFR[[#Headers],[S&W Staff]:[S&W (Custom Fringe Rate)]],0))),0),ROUND(IF(OR(A18="Select Category",D18="Select Appointment Type",$Q$4="N/A"),0,(O18)*INDEX('Fringe Rates (non-Federal)'!$F$3:$S$19,MATCH($Q$4,'Fringe Rates (non-Federal)'!$A$3:$A$19,0),MATCH(A18,NFFR[[#Headers],[S&W Staff]:[S&W (Custom Fringe Rate)]],0))),0)) -> 0 | Q18: =ROUND(SUM(O18:P18),0) -> 0 | R18: =ROUND(IF(OR(A18="Select Category",D18="Select Appointment Type",$T$4="N/A"),0,IF(ISNUMBER(E18),(E18*T20/VLOOKUP(D18,'Effort Calculator'!$A$8:$C$14,3,FALSE)*(1+H21)*(1+K21)*(1+N21)*(1+Q21)*(1+T21)),0)),0) -> 0 | S18: =IF($A$3=1,ROUND(IF(OR(A18="Select Category",D18="Select Appointment Type",$T$4="N/A"),0,(R18)*INDEX('Fringe Rates (Federal)'!$F$3:$S$19,MATCH($T$4,'Fringe Rates (Federal)'!$A$3:$A$19,0),MATCH(A18,FFR[[#Headers],[S&W Staff]:[S&W (Custom Fringe Rate)]],0))),0),ROUND(IF(OR(A18="Select Category",D18="Select Appointment Type",$T$4="N/A"),0,(R18)*INDEX('Fringe Rates (non-Federal)'!$F$3:$S$19,MATCH($T$4,'Fringe Rates (non-Federal)'!$A$3:$A$19,0),MATCH(A18,NFFR[[#Headers],[S&W Staff]:[S&W (Custom Fringe Rate)]],0))),0)) -> 0 | T18: =ROUND(SUM(R18:S18),0) -> 0 | U18: =ROUND(IF(OR(A18="Select Category",D18="Select Appointment Type",$W$4="N/A"),0,IF(ISNUMBER(E18),(E18*W20/VLOOKUP(D18,'Effort Calculator'!$A$8:$C$14,3,FALSE)*(1+H21)*(1+K21)*(1+N21)*(1+Q21)*(1+T21)*(1+W21)),0)),0) -> 0 | V18: =IF($A$3=1,ROUND(IF(OR(A18="Select Category",D18="Select Appointment Type",$W$4="N/A"),0,(U18)*INDEX('Fringe Rates (Federal)'!$F$3:$S$19,MATCH($W$4,'Fringe Rates (Federal)'!$A$3:$A$19,0),MATCH(A18,FFR[[#Headers],[S&W Staff]:[S&W (Custom Fringe Rate)]],0))),0),ROUND(IF(OR(A18="Select Category",D18="Select Appointment Type",$W$4="N/A"),0,(U18)*INDEX('Fringe Rates (non-Federal)'!$F$3:$S$19,MATCH($W$4,'Fringe Rates (non-Federal)'!$A$3:$A$19,0),MATCH(A18,NFFR[[#Headers],[S&W Staff]:[S&W (Custom Fringe Rate)]],0))),0)) -> 0 | W18: =ROUND(SUM(U18:V18),0) -> 0 | X18: =ROUND(IF(OR(A18="Select Category",D18="Select Appointment Type",$Z$4="N/A"),0,IF(ISNUMBER(E18),(E18*Z20/VLOOKUP(D18,'Effort Calculator'!$A$8:$C$14,3,FALSE)*(1+H21)*(1+K21)*(1+N21)*(1+Q21)*(1+T21)*(1+W21)*(1+Z21)),0)),0) -> 0 | Y18: =IF($A$3=1,ROUND(IF(OR(A18="Select Category",D18="Select Appointment Type",$Z$4="N/A"),0,(X18)*INDEX('Fringe Rates (Federal)'!$F$3:$S$19,MATCH($Z$4,'Fringe Rates (Federal)'!$A$3:$A$19,0),MATCH(A18,FFR[[#Headers],[S&W Staff]:[S&W (Custom Fringe Rate)]],0))),0),ROUND(IF(OR(A18="Select Category",D18="Select Appointment Type",$Z$4="N/A"),0,(X18)*INDEX('Fringe Rates (non-Federal)'!$F$3:$S$19,MATCH($Z$4,'Fringe Rates (non-Federal)'!$A$3:$A$19,0),MATCH(A18,NFFR[[#Headers],[S&W Staff]:[S&W (Custom Fringe Rate)]],0))),0)) -> 0 | Z18: =ROUND(SUM(X18:Y18),0) -> 0 | AA18: =ROUND(IF(OR(A18="Select Category",D18="Select Appointment Type",$AC$4="N/A"),0,IF(ISNUMBER(E18),(E18*AC20/VLOOKUP(D18,'Effort Calculator'!$A$8:$C$14,3,FALSE)*(1+H21)*(1+K21)*(1+N21)*(1+Q21)*(1+T21)*(1+W21)*(1+Z21)*(1+AC21)),0)),0) -> 0 | AB18: =IF($A$3=1,ROUND(IF(OR(A18="Select Category",D18="Select Appointment Type",$AC$4="N/A"),0,(AA18)*INDEX('Fringe Rates (Federal)'!$F$3:$S$19,MATCH($AC$4,'Fringe Rates (Federal)'!$A$3:$A$19,0),MATCH(A18,FFR[[#Headers],[S&W Staff]:[S&W (Custom Fringe Rate)]],0))),0),ROUND(IF(OR(A18="Select Category",D18="Select Appointment Type",$AC$4="N/A"),0,(AA18)*INDEX('Fringe Rates (non-Federal)'!$F$3:$S$19,MATCH($AC$4,'Fringe Rates (non-Federal)'!$A$3:$A$19,0),MATCH(A18,NFFR[[#Headers],[S&W Staff]:[S&W (Custom Fringe Rate)]],0))),0)) -> 0 | AC18: =ROUND(SUM(AA18:AB18),0) -> 0 | AD18: =ROUND(IF(OR(A18="Select Category",D18="Select Appointment Type",$AF$4="N/A"),0,IF(ISNUMBER(E18),(E18*AF20/VLOOKUP(D18,'Effort Calculator'!$A$8:$C$14,3,FALSE)*(1+H21)*(1+K21)*(1+N21)*(1+Q21)*(1+T21)*(1+W21)*(1+Z21)*(1+AC21)*(1+AF21)),0)),0) -> 0 | AE18: =IF($A$3=1,ROUND(IF(OR(A18="Select Category",D18="Select Appointment Type",$AF$4="N/A"),0,(AD18)*INDEX('Fringe Rates (Federal)'!$F$3:$S$19,MATCH($AF$4,'Fringe Rates (Federal)'!$A$3:$A$19,0),MATCH(A18,FFR[[#Headers],[S&W Staff]:[S&W (Custom Fringe Rate)]],0))),0),ROUND(IF(OR(A18="Select Category",D18="Select Appointment Type",$AF$4="N/A"),0,(AD18)*INDEX('Fringe Rates (non-Federal)'!$F$3:$S$19,MATCH($AF$4,'Fringe Rates (non-Federal)'!$A$3:$A$19,0),MATCH(A18,NFFR[[#Headers],[S&W Staff]:[S&W (Custom Fringe Rate)]],0))),0)) -> 0 | AF18: =ROUND(SUM(AD18:AE18),0) -> 0 | AG18: =ROUND(IF(OR(A18="Select Category",D18="Select Appointment Type",$AI$4="N/A"),0,IF(ISNUMBER(E18),(E18*AI20/VLOOKUP(D18,'Effort Calculator'!$A$8:$C$14,3,FALSE)*(1+H21)*(1+K21)*(1+N21)*(1+Q21)*(1+T21)*(1+W21)*(1+Z21)*(1+AC21)*(1+AF21)*(1+AI21)),0)),0) -> 0 | AH18: =IF($A$3=1,ROUND(IF(OR(A18="Select Category",D18="Select Appointment Type",$AI$4="N/A"),0,(AG18)*INDEX('Fringe Rates (Federal)'!$F$3:$S$19,MATCH($AI$4,'Fringe Rates (Federal)'!$A$3:$A$19,0),MATCH(A18,FFR[[#Headers],[S&W Staff]:[S&W (Custom Fringe Rate)]],0))),0),ROUND(IF(OR(A18="Select Category",D18="Select Appointment Type",$AI$4="N/A"),0,(AG18)*INDEX('Fringe Rates (non-Federal)'!$F$3:$S$19,MATCH($AI$4,'Fringe Rates (non-Federal)'!$A$3:$A$19,0),MATCH(A18,NFFR[[#Headers],[S&W Staff]:[S&W (Custom Fringe Rate)]],0))),0)) -> 0 | AI18: =ROUND(SUM(AG18:AH18),0) -> 0 | AJ18: =ROUND(SUM(F18,I18,L18,O18,R18,U18,X18,AA18,AD18,AG18),0) -> 0 | AK18: =ROUND(SUM(G18,J18,M18,P18,S18,V18,Y18,AB18,AE18,AH18),0) -> 0 | AL18: =ROUND(SUM(AJ18:AK18),0) -> 0
E19: Effort | H19: 0 | K19: 0 | N19: 0 | Q19: 0 | T19: 0 | W19: 0 | Z19: 0 | AC19: 0 | AF19: 0 | AI19: 0
E20: Person Months | H20: =IF(D18="Select Appointment Type",0,VLOOKUP(D18,'Effort Calculator'!$A$8:$C$13,2,FALSE)*H19) -> 0 | K20: =IF(D18="Select Appointment Type",0,VLOOKUP(D18,'Effort Calculator'!$A$8:$C$13,2,FALSE)*K19) -> 0 | N20: =IF(D18="Select Appointment Type",0,VLOOKUP(D18,'Effort Calculator'!$A$8:$C$13,2,FALSE)*N19) -> 0 | Q20: =IF(D18="Select Appointment Type",0,VLOOKUP(D18,'Effort Calculator'!$A$8:$C$13,2,FALSE)*Q19) -> 0 | T20: =IF(D18="Select Appointment Type",0,VLOOKUP(D18,'Effort Calculator'!$A$8:$C$13,2,FALSE)*T19) -> 0 | W20: =IF(D18="Select Appointment Type",0,VLOOKUP(D18,'Effort Calculator'!$A$8:$C$13,2,FALSE)*W19) -> 0 | Z20: =IF(D18="Select Appointment Type",0,VLOOKUP(D18,'Effort Calculator'!$A$8:$C$13,2,FALSE)*Z19) -> 0 | AC20: =IF(D18="Select Appointment Type",0,VLOOKUP(D18,'Effort Calculator'!$A$8:$C$13,2,FALSE)*AC19) -> 0 | AF20: =IF(D18="Select Appointment Type",0,VLOOKUP(D18,'Effort Calculator'!$A$8:$C$13,2,FALSE)*AF19) -> 0 | AI20: =IF(D18="Select Appointment Type",0,VLOOKUP(D18,'Effort Calculator'!$A$8:$C$13,2,FALSE)*AI19) -> 0
E21: COLA | H21: 0 | K21: 0 | N21: 0 | Q21: 0 | T21: 0 | W21: 0 | Z21: 0 | AC21: 0 | AF21: 0 | AI21: 0
A22: Select Category | B22: =IF(A22="Select Category","N/A",HLOOKUP(A22,'Fringe Rates (Federal)'!$F$1:$S$2,2,FALSE)) -> N/A | C22: Enter Staff Name | D22: Select Appointment Type | E22: 0 | F22: =ROUND(IF(OR(A22="Select Category",D22="Select Appointment Type",$H$4="N/A"),0,IF(ISNUMBER(E22),(E22*H24/VLOOKUP(D22,'Effort Calculator'!$A$8:$C$14,3,FALSE)*(1+H25)),0)),0) -> 0 | G22: =IF($A$3=1,ROUND(IF(OR(A22="Select Category",D22="Select Appointment Type",$H$4="N/A"),0,(F22)*INDEX('Fringe Rates (Federal)'!$F$3:$S$19,MATCH($H$4,'Fringe Rates (Federal)'!$A$3:$A$19,0),MATCH(A22,FFR[[#Headers],[S&W Staff]:[S&W (Custom Fringe Rate)]],0))),0),ROUND(IF(OR(A22="Select Category",D22="Select Appointment Type",$H$4="N/A"),0,(F22)*INDEX('Fringe Rates (non-Federal)'!$F$3:$S$19,MATCH($H$4,'Fringe Rates (non-Federal)'!$A$3:$A$19,0),MATCH(A22,NFFR[[#Headers],[S&W Staff]:[S&W (Custom Fringe Rate)]],0))),0)) -> 0 | H22: =ROUND(SUM(F22:G22),0) -> 0 | I22: =ROUND(IF(OR(A22="Select Category",D22="Select Appointment Type",$K$4="N/A"),0,IF(ISNUMBER(E22),(E22*K24/VLOOKUP(D22,'Effort Calculator'!$A$8:$C$14,3,FALSE)*(1+H25)*(1+K25)),0)),0) -> 0 | J22: =IF($A$3=1,ROUND(IF(OR(A22="Select Category",D22="Select Appointment Type",$K$4="N/A"),0,(I22)*INDEX('Fringe Rates (Federal)'!$F$3:$S$19,MATCH($K$4,'Fringe Rates (Federal)'!$A$3:$A$19,0),MATCH(A22,FFR[[#Headers],[S&W Staff]:[S&W (Custom Fringe Rate)]],0))),0),ROUND(IF(OR(A22="Select Category",D22="Select Appointment Type",$K$4="N/A"),0,(I22)*INDEX('Fringe Rates (non-Federal)'!$F$3:$S$19,MATCH($K$4,'Fringe Rates (non-Federal)'!$A$3:$A$19,0),MATCH(A22,NFFR[[#Headers],[S&W Staff]:[S&W (Custom Fringe Rate)]],0))),0)) -> 0 | K22: =ROUND(SUM(I22:J22),0) -> 0 | L22: =ROUND(IF(OR(A22="Select Category",D22="Select Appointment Type",$N$4="N/A"),0,IF(ISNUMBER(E22),(E22*N24/VLOOKUP(D22,'Effort Calculator'!$A$8:$C$14,3,FALSE)*(1+H25)*(1+K25)*(1+N25)),0)),0) -> 0 | M22: =IF($A$3=1,ROUND(IF(OR(A22="Select Category",D22="Select Appointment Type",$N$4="N/A"),0,(L22)*INDEX('Fringe Rates (Federal)'!$F$3:$S$19,MATCH($N$4,'Fringe Rates (Federal)'!$A$3:$A$19,0),MATCH(A22,FFR[[#Headers],[S&W Staff]:[S&W (Custom Fringe Rate)]],0))),0),ROUND(IF(OR(A22="Select Category",D22="Select Appointment Type",$N$4="N/A"),0,(L22)*INDEX('Fringe Rates (non-Federal)'!$F$3:$S$19,MATCH($N$4,'Fringe Rates (non-Federal)'!$A$3:$A$19,0),MATCH(A22,NFFR[[#Headers],[S&W Staff]:[S&W (Custom Fringe Rate)]],0))),0)) -> 0 | N22: =ROUND(SUM(L22:M22),0) -> 0 | O22: =ROUND(IF(OR(A22="Select Category",D22="Select Appointment Type",$Q$4="N/A"),0,IF(ISNUMBER(E22),(E22*Q24/VLOOKUP(D22,'Effort Calculator'!$A$8:$C$14,3,FALSE)*(1+H25)*(1+K25)*(1+N25)*(1+Q25)),0)),0) -> 0 | P22: =IF($A$3=1,ROUND(IF(OR(A22="Select Category",D22="Select Appointment Type",$Q$4="N/A"),0,(O22)*INDEX('Fringe Rates (Federal)'!$F$3:$S$19,MATCH($Q$4,'Fringe Rates (Federal)'!$A$3:$A$19,0),MATCH(A22,FFR[[#Headers],[S&W Staff]:[S&W (Custom Fringe Rate)]],0))),0),ROUND(IF(OR(A22="Select Category",D22="Select Appointment Type",$Q$4="N/A"),0,(O22)*INDEX('Fringe Rates (non-Federal)'!$F$3:$S$19,MATCH($Q$4,'Fringe Rates (non-Federal)'!$A$3:$A$19,0),MATCH(A22,NFFR[[#Headers],[S&W Staff]:[S&W (Custom Fringe Rate)]],0))),0)) -> 0 | Q22: =ROUND(SUM(O22:P22),0) -> 0 | R22: =ROUND(IF(OR(A22="Select Category",D22="Select Appointment Type",$T$4="N/A"),0,IF(ISNUMBER(E22),(E22*T24/VLOOKUP(D22,'Effort Calculator'!$A$8:$C$14,3,FALSE)*(1+H25)*(1+K25)*(1+N25)*(1+Q25)*(1+T25)),0)),0) -> 0 | S22: =IF($A$3=1,ROUND(IF(OR(A22="Select Category",D22="Select Appointment Type",$T$4="N/A"),0,(R22)*INDEX('Fringe Rates (Federal)'!$F$3:$S$19,MATCH($T$4,'Fringe Rates (Federal)'!$A$3:$A$19,0),MATCH(A22,FFR[[#Headers],[S&W Staff]:[S&W (Custom Fringe Rate)]],0))),0),ROUND(IF(OR(A22="Select Category",D22="Select Appointment Type",$T$4="N/A"),0,(R22)*INDEX('Fringe Rates (non-Federal)'!$F$3:$S$19,MATCH($T$4,'Fringe Rates (non-Federal)'!$A$3:$A$19,0),MATCH(A22,NFFR[[#Headers],[S&W Staff]:[S&W (Custom Fringe Rate)]],0))),0)) -> 0 | T22: =ROUND(SUM(R22:S22),0) -> 0 | U22: =ROUND(IF(OR(A22="Select Category",D22="Select Appointment Type",$W$4="N/A"),0,IF(ISNUMBER(E22),(E22*W24/VLOOKUP(D22,'Effort Calculator'!$A$8:$C$14,3,FALSE)*(1+H25)*(1+K25)*(1+N25)*(1+Q25)*(1+T25)*(1+W25)),0)),0) -> 0 | V22: =IF($A$3=1,ROUND(IF(OR(A22="Select Category",D22="Select Appointment Type",$W$4="N/A"),0,(U22)*INDEX('Fringe Rates (Federal)'!$F$3:$S$19,MATCH($W$4,'Fringe Rates (Federal)'!$A$3:$A$19,0),MATCH(A22,FFR[[#Headers],[S&W Staff]:[S&W (Custom Fringe Rate)]],0))),0),ROUND(IF(OR(A22="Select Category",D22="Select Appointment Type",$W$4="N/A"),0,(U22)*INDEX('Fringe Rates (non-Federal)'!$F$3:$S$19,MATCH($W$4,'Fringe Rates (non-Federal)'!$A$3:$A$19,0),MATCH(A22,NFFR[[#Headers],[S&W Staff]:[S&W (Custom Fringe Rate)]],0))),0)) -> 0 | W22: =ROUND(SUM(U22:V22),0) -> 0 | X22: =ROUND(IF(OR(A22="Select Category",D22="Select Appointment Type",$Z$4="N/A"),0,IF(ISNUMBER(E22),(E22*Z24/VLOOKUP(D22,'Effort Calculator'!$A$8:$C$14,3,FALSE)*(1+H25)*(1+K25)*(1+N25)*(1+Q25)*(1+T25)*(1+W25)*(1+Z25)),0)),0) -> 0 | Y22: =IF($A$3=1,ROUND(IF(OR(A22="Select Category",D22="Select Appointment Type",$Z$4="N/A"),0,(X22)*INDEX('Fringe Rates (Federal)'!$F$3:$S$19,MATCH($Z$4,'Fringe Rates (Federal)'!$A$3:$A$19,0),MATCH(A22,FFR[[#Headers],[S&W Staff]:[S&W (Custom Fringe Rate)]],0))),0),ROUND(IF(OR(A22="Select Category",D22="Select Appointment Type",$Z$4="N/A"),0,(X22)*INDEX('Fringe Rates (non-Federal)'!$F$3:$S$19,MATCH($Z$4,'Fringe Rates (non-Federal)'!$A$3:$A$19,0),MATCH(A22,NFFR[[#Headers],[S&W Staff]:[S&W (Custom Fringe Rate)]],0))),0)) -> 0 | Z22: =ROUND(SUM(X22:Y22),0) -> 0 | AA22: =ROUND(IF(OR(A22="Select Category",D22="Select Appointment Type",$AC$4="N/A"),0,IF(ISNUMBER(E22),(E22*AC24/VLOOKUP(D22,'Effort Calculator'!$A$8:$C$14,3,FALSE)*(1+H25)*(1+K25)*(1+N25)*(1+Q25)*(1+T25)*(1+W25)*(1+Z25)*(1+AC25)),0)),0) -> 0 | AB22: =IF($A$3=1,ROUND(IF(OR(A22="Select Category",D22="Select Appointment Type",$AC$4="N/A"),0,(AA22)*INDEX('Fringe Rates (Federal)'!$F$3:$S$19,MATCH($AC$4,'Fringe Rates (Federal)'!$A$3:$A$19,0),MATCH(A22,FFR[[#Headers],[S&W Staff]:[S&W (Custom Fringe Rate)]],0))),0),ROUND(IF(OR(A22="Select Category",D22="Select Appointment Type",$AC$4="N/A"),0,(AA22)*INDEX('Fringe Rates (non-Federal)'!$F$3:$S$19,MATCH($AC$4,'Fringe Rates (non-Federal)'!$A$3:$A$19,0),MATCH(A22,NFFR[[#Headers],[S&W Staff]:[S&W (Custom Fringe Rate)]],0))),0)) -> 0 | AC22: =ROUND(SUM(AA22:AB22),0) -> 0 | AD22: =ROUND(IF(OR(A22="Select Category",D22="Select Appointment Type",$AF$4="N/A"),0,IF(ISNUMBER(E22),(E22*AF24/VLOOKUP(D22,'Effort Calculator'!$A$8:$C$14,3,FALSE)*(1+H25)*(1+K25)*(1+N25)*(1+Q25)*(1+T25)*(1+W25)*(1+Z25)*(1+AC25)*(1+AF25)),0)),0) -> 0 | AE22: =IF($A$3=1,ROUND(IF(OR(A22="Select Category",D22="Select Appointment Type",$AF$4="N/A"),0,(AD22)*INDEX('Fringe Rates (Federal)'!$F$3:$S$19,MATCH($AF$4,'Fringe Rates (Federal)'!$A$3:$A$19,0),MATCH(A22,FFR[[#Headers],[S&W Staff]:[S&W (Custom Fringe Rate)]],0))),0),ROUND(IF(OR(A22="Select Category",D22="Select Appointment Type",$AF$4="N/A"),0,(AD22)*INDEX('Fringe Rates (non-Federal)'!$F$3:$S$19,MATCH($AF$4,'Fringe Rates (non-Federal)'!$A$3:$A$19,0),MATCH(A22,NFFR[[#Headers],[S&W Staff]:[S&W (Custom Fringe Rate)]],0))),0)) -> 0 | AF22: =ROUND(SUM(AD22:AE22),0) -> 0 | AG22: =ROUND(IF(OR(A22="Select Category",D22="Select Appointment Type",$AI$4="N/A"),0,IF(ISNUMBER(E22),(E22*AI24/VLOOKUP(D22,'Effort Calculator'!$A$8:$C$14,3,FALSE)*(1+H25)*(1+K25)*(1+N25)*(1+Q25)*(1+T25)*(1+W25)*(1+Z25)*(1+AC25)*(1+AF25)*(1+AI25)),0)),0) -> 0 | AH22: =IF($A$3=1,ROUND(IF(OR(A22="Select Category",D22="Select Appointment Type",$AI$4="N/A"),0,(AG22)*INDEX('Fringe Rates (Federal)'!$F$3:$S$19,MATCH($AI$4,'Fringe Rates (Federal)'!$A$3:$A$19,0),MATCH(A22,FFR[[#Headers],[S&W Staff]:[S&W (Custom Fringe Rate)]],0))),0),ROUND(IF(OR(A22="Select Category",D22="Select Appointment Type",$AI$4="N/A"),0,(AG22)*INDEX('Fringe Rates (non-Federal)'!$F$3:$S$19,MATCH($AI$4,'Fringe Rates (non-Federal)'!$A$3:$A$19,0),MATCH(A22,NFFR[[#Headers],[S&W Staff]:[S&W (Custom Fringe Rate)]],0))),0)) -> 0 | AI22: =ROUND(SUM(AG22:AH22),0) -> 0 | AJ22: =ROUND(SUM(F22,I22,L22,O22,R22,U22,X22,AA22,AD22,AG22),0) -> 0 | AK22: =ROUND(SUM(G22,J22,M22,P22,S22,V22,Y22,AB22,AE22,AH22),0) -> 0 | AL22: =ROUND(SUM(AJ22:AK22),0) -> 0
E23: Effort | H23: 0 | K23: 0 | N23: 0 | Q23: 0 | T23: 0 | W23: 0 | Z23: 0 | AC23: 0 | AF23: 0 | AI23: 0
E24: Person Months | H24: =IF(D22="Select Appointment Type",0,VLOOKUP(D22,'Effort Calculator'!$A$8:$C$13,2,FALSE)*H23) -> 0 | K24: =IF(D22="Select Appointment Type",0,VLOOKUP(D22,'Effort Calculator'!$A$8:$C$13,2,FALSE)*K23) -> 0 | N24: =IF(D22="Select Appointment Type",0,VLOOKUP(D22,'Effort Calculator'!$A$8:$C$13,2,FALSE)*N23) -> 0 | Q24: =IF(D22="Select Appointment Type",0,VLOOKUP(D22,'Effort Calculator'!$A$8:$C$13,2,FALSE)*Q23) -> 0 | T24: =IF(D22="Select Appointment Type",0,VLOOKUP(D22,'Effort Calculator'!$A$8:$C$13,2,FALSE)*T23) -> 0 | W24: =IF(D22="Select Appointment Type",0,VLOOKUP(D22,'Effort Calculator'!$A$8:$C$13,2,FALSE)*W23) -> 0 | Z24: =IF(D22="Select Appointment Type",0,VLOOKUP(D22,'Effort Calculator'!$A$8:$C$13,2,FALSE)*Z23) -> 0 | AC24: =IF(D22="Select Appointment Type",0,VLOOKUP(D22,'Effort Calculator'!$A$8:$C$13,2,FALSE)*AC23) -> 0 | AF24: =IF(D22="Select Appointment Type",0,VLOOKUP(D22,'Effort Calculator'!$A$8:$C$13,2,FALSE)*AF23) -> 0 | AI24: =IF(D22="Select Appointment Type",0,VLOOKUP(D22,'Effort Calculator'!$A$8:$C$13,2,FALSE)*AI23) -> 0
E25: COLA | H25: 0 | K25: 0 | N25: 0 | Q25: 0 | T25: 0 | W25: 0 | Z25: 0 | AC25: 0 | AF25: 0 | AI25: 0
A26: =ROW() -> 26
D27: Total Salaries & Wages | F27: =IF($H$4="N/A",0,ROUND(SUMPRODUCT(--(ISNUMBER($AL$6:$AL$26)),F6:F26),0)) -> 0 | G27: =IF($H$4="N/A",0,ROUND(SUMPRODUCT(--(ISNUMBER($AL$6:$AL$26)),G6:G26),0)) -> 0 | H27: =IF($H$4="N/A",0,ROUND(SUMPRODUCT(--(ISNUMBER($AL$6:$AL$26)),H6:H26),0)) -> 0 | I27: =IF($K$4="N/A",0,ROUND(SUMPRODUCT(--(ISNUMBER($AL$6:$AL$26)),I6:I26),0)) -> 0 | J27: =IF($K$4="N/A",0,ROUND(SUMPRODUCT(--(ISNUMBER($AL$6:$AL$26)),J6:J26),0)) -> 0 | K27: =IF($K$4="N/A",0,ROUND(SUMPRODUCT(--(ISNUMBER($AL$6:$AL$26)),K6:K26),0)) -> 0 | L27: =IF($N$4="N/A",0,ROUND(SUMPRODUCT(--(ISNUMBER($AL$6:$AL$26)),L6:L26),0)) -> 0 | M27: =IF($N$4="N/A",0,ROUND(SUMPRODUCT(--(ISNUMBER($AL$6:$AL$26)),M6:M26),0)) -> 0 | N27: =IF($N$4="N/A",0,ROUND(SUMPRODUCT(--(ISNUMBER($AL$6:$AL$26)),N6:N26),0)) -> 0 | O27: =IF($Q$4="N/A",0,ROUND(SUMPRODUCT(--(ISNUMBER($AL$6:$AL$26)),O6:O26),0)) -> 0 | P27: =IF($Q$4="N/A",0,ROUND(SUMPRODUCT(--(ISNUMBER($AL$6:$AL$26)),P6:P26),0)) -> 0 | Q27: =IF($Q$4="N/A",0,ROUND(SUMPRODUCT(--(ISNUMBER($AL$6:$AL$26)),Q6:Q26),0)) -> 0 | R27: =IF($T$4="N/A",0,ROUND(SUMPRODUCT(--(ISNUMBER($AL$6:$AL$26)),R6:R26),0)) -> 0 | S27: =IF($T$4="N/A",0,ROUND(SUMPRODUCT(--(ISNUMBER($AL$6:$AL$26)),S6:S26),0)) -> 0 | T27: =IF($T$4="N/A",0,ROUND(SUMPRODUCT(--(ISNUMBER($AL$6:$AL$26)),T6:T26),0)) -> 0 | U27: =IF($W$4="N/A",0,ROUND(SUMPRODUCT(--(ISNUMBER($AL$6:$AL$26)),U6:U26),0)) -> 0 | V27: =IF($W$4="N/A",0,ROUND(SUMPRODUCT(--(ISNUMBER($AL$6:$AL$26)),V6:V26),0)) -> 0 | W27: =IF($W$4="N/A",0,ROUND(SUMPRODUCT(--(ISNUMBER($AL$6:$AL$26)),W6:W26),0)) -> 0 | X27: =IF($Z$4="N/A",0,ROUND(SUMPRODUCT(--(ISNUMBER($AL$6:$AL$26)),X6:X26),0)) -> 0 | Y27: =IF($Z$4="N/A",0,ROUND(SUMPRODUCT(--(ISNUMBER($AL$6:$AL$26)),Y6:Y26),0)) -> 0 | Z27: =IF($Z$4="N/A",0,ROUND(SUMPRODUCT(--(ISNUMBER($AL$6:$AL$26)),Z6:Z26),0)) -> 0 | AA27: =IF($AC$4="N/A",0,ROUND(SUMPRODUCT(--(ISNUMBER($AL$6:$AL$26)),AA6:AA26),0)) -> 0 | AB27: =IF($AC$4="N/A",0,ROUND(SUMPRODUCT(--(ISNUMBER($AL$6:$AL$26)),AB6:AB26),0)) -> 0 | AC27: =IF($AC$4="N/A",0,ROUND(SUMPRODUCT(--(ISNUMBER($AL$6:$AL$26)),AC6:AC26),0)) -> 0 | AD27: =IF($AF$4="N/A",0,ROUND(SUMPRODUCT(--(ISNUMBER($AL$6:$AL$26)),AD6:AD26),0)) -> 0 | AE27: =IF($AF$4="N/A",0,ROUND(SUMPRODUCT(--(ISNUMBER($AL$6:$AL$26)),AE6:AE26),0)) -> 0 | AF27: =IF($AF$4="N/A",0,ROUND(SUMPRODUCT(--(ISNUMBER($AL$6:$AL$26)),AF6:AF26),0)) -> 0 | AG27: =IF($AI$4="N/A",0,ROUND(SUMPRODUCT(--(ISNUMBER($AL$6:$AL$26)),AG6:AG26),0)) -> 0 | AH27: =IF($AI$4="N/A",0,ROUND(SUMPRODUCT(--(ISNUMBER($AL$6:$AL$26)),AH6:AH26),0)) -> 0 | AI27: =IF($AI$4="N/A",0,ROUND(SUMPRODUCT(--(ISNUMBER($AL$6:$AL$26)),AI6:AI26),0)) -> 0 | AJ27: =ROUND(SUMPRODUCT(--(ISNUMBER($AL$6:$AL$26)),AJ6:AJ26),0) -> 0 | AK27: =ROUND(SUMPRODUCT(--(ISNUMBER($AL$6:$AL$26)),AK6:AK26),0) -> 0 | AL27: =ROUND(SUMPRODUCT(--(ISNUMBER($AL$6:$AL$26)),AL6:AL26),0) -> 0
G29: =G3 -> Budget Period 1 | J29: =J3 -> Budget Period 2 | M29: =M3 -> Budget Period 3 | P29: =P3 -> Budget Period 4 | S29: =S3 -> Budget Period 5 | V29: =V3 -> Budget Period 6 | Y29: =Y3 -> Budget Period 7 | AB29: =AB3 -> Budget Period 8 | AE29: =AE3 -> Budget Period 9 | AH29: =AH3 -> Budget Period 10 | AK29: Grand Total
F30: =F5 -> Salary | G30: =G5 -> Fringe | H30: =H5 -> Total | I30: =I5 -> Salary | J30: =J5 -> Fringe | K30: Total | L30: =L5 -> Salary | M30: Fringe | N30: Total | O30: Salary | P30: Fringe | Q30: Total | R30: Salary | S30: Fringe | T30: Total | U30: Salary | V30: Fringe | W30: Total | X30: Salary | Y30: Fringe | Z30: Total | AA30: Salary | AB30: Fringe | AC30: Total | AD30: Salary | AE30: Fringe | AF30: Total | AG30: Salary | AH30: Fringe | AI30: Total | AJ30: Salary | AK30: Fringe | AL30: Grand Total
A31: S&W Staff | E31: =HLOOKUP(A31,'Fringe Rates (Federal)'!$F$1:$S$2,2,FALSE) -> 50010 | F31: =ROUND(SUMPRODUCT(--(ISNUMBER($AL$6:$AL$26)),($A$6:$A$26=$A$31)*$F$6:$F$26),0) -> 0 | G31: =ROUND(SUMPRODUCT(--(ISNUMBER($AL$6:$AL$26)),($A$6:$A$26=$A$31)*$G$6:$G$26),0) -> 0 | H31: =ROUND(SUMPRODUCT(--(ISNUMBER($AL$6:$AL$26)),($A$6:$A$26=$A$31)*$H$6:$H$26),0) -> 0 | I31: =ROUND(SUMPRODUCT(--(ISNUMBER($AL$6:$AL$26)),($A$6:$A$26=$A$31)*$I$6:$I$26),0) -> 0 | J31: =ROUND(SUMPRODUCT(--(ISNUMBER($AL$6:$AL$26)),($A$6:$A$26=$A$31)*$J$6:$J$26),0) -> 0 | K31: =ROUND(SUMPRODUCT(--(ISNUMBER($AL$6:$AL$26)),($A$6:$A$26=$A$31)*$K$6:$K$26),0) -> 0 | L31: =ROUND(SUMPRODUCT(--(ISNUMBER($AL$6:$AL$26)),($A$6:$A$26=$A$31)*$L$6:$L$26),0) -> 0 | M31: =ROUND(SUMPRODUCT(--(ISNUMBER($AL$6:$AL$26)),($A$6:$A$26=$A$31)*$M$6:$M$26),0) -> 0 | N31: =ROUND(SUMPRODUCT(--(ISNUMBER($AL$6:$AL$26)),($A$6:$A$26=$A$31)*$N$6:$N$26),0) -> 0 | O31: =ROUND(SUMPRODUCT(--(ISNUMBER($AL$6:$AL$26)),($A$6:$A$26=$A$31)*$O$6:$O$26),0) -> 0 | P31: =ROUND(SUMPRODUCT(--(ISNUMBER($AL$6:$AL$26)),($A$6:$A$26=$A$31)*$P$6:$P$26),0) -> 0 | Q31: =ROUND(SUMPRODUCT(--(ISNUMBER($AL$6:$AL$26)),($A$6:$A$26=$A$31)*$Q$6:$Q$26),0) -> 0 | R31: =ROUND(SUMPRODUCT(--(ISNUMBER($AL$6:$AL$26)),($A$6:$A$26=$A$31)*$R$6:$R$26),0) -> 0 | S31: =ROUND(SUMPRODUCT(--(ISNUMBER($AL$6:$AL$26)),($A$6:$A$26=$A$31)*$S$6:$S$26),0) -> 0 | T31: =ROUND(SUMPRODUCT(--(ISNUMBER($AL$6:$AL$26)),($A$6:$A$26=$A$31)*$T$6:$T$26),0) -> 0 | U31: =ROUND(SUMPRODUCT(--(ISNUMBER($AL$6:$AL$26)),($A$6:$A$26=$A$31)*$U$6:$U$26),0) -> 0 | V31: =ROUND(SUMPRODUCT(--(ISNUMBER($AL$6:$AL$26)),($A$6:$A$26=$A$31)*$V$6:$V$26),0) -> 0 | W31: =ROUND(SUMPRODUCT(--(ISNUMBER($AL$6:$AL$26)),($A$6:$A$26=$A$31)*$W$6:$W$26),0) -> 0 | X31: =ROUND(SUMPRODUCT(--(ISNUMBER($AL$6:$AL$26)),($A$6:$A$26=$A$31)*$X$6:$X$26),0) -> 0 | Y31: =ROUND(SUMPRODUCT(--(ISNUMBER($AL$6:$AL$26)),($A$6:$A$26=$A$31)*$Y$6:$Y$26),0) -> 0 | Z31: =ROUND(SUMPRODUCT(--(ISNUMBER($AL$6:$AL$26)),($A$6:$A$26=$A$31)*$Z$6:$Z$26),0) -> 0 | AA31: =ROUND(SUMPRODUCT(--(ISNUMBER($AL$6:$AL$26)),($A$6:$A$26=$A$31)*$AA$6:$AA$26),0) -> 0 | AB31: =ROUND(SUMPRODUCT(--(ISNUMBER($AL$6:$AL$26)),($A$6:$A$26=$A$31)*$AB$6:$AB$26),0) -> 0 | AC31: =ROUND(SUMPRODUCT(--(ISNUMBER($AL$6:$AL$26)),($A$6:$A$26=$A$31)*$AC$6:$AC$26),0) -> 0 | AD31: =ROUND(SUMPRODUCT(--(ISNUMBER($AL$6:$AL$26)),($A$6:$A$26=$A$31)*$AD$6:$AD$26),0) -> 0 | AE31: =ROUND(SUMPRODUCT(--(ISNUMBER($AL$6:$AL$26)),($A$6:$A$26=$A$31)*$AE$6:$AE$26),0) -> 0 | AF31: =ROUND(SUMPRODUCT(--(ISNUMBER($AL$6:$AL$26)),($A$6:$A$26=$A$31)*$AF$6:$AF$26),0) -> 0 | AG31: =ROUND(SUMPRODUCT(--(ISNUMBER($AL$6:$AL$26)),($A$6:$A$26=$A$31)*$AG$6:$AG$26),0) -> 0 | AH31: =ROUND(SUMPRODUCT(--(ISNUMBER($AL$6:$AL$26)),($A$6:$A$26=$A$31)*$AH$6:$AH$26),0) -> 0 | AI31: =ROUND(SUMPRODUCT(--(ISNUMBER($AL$6:$AL$26)),($A$6:$A$26=$A$31)*$AI$6:$AI$26),0) -> 0 | AJ31: =ROUND(SUMPRODUCT(--(ISNUMBER($AL$6:$AL$26)),($A$6:$A$26=$A$31)*$AJ$6:$AJ$26),0) -> 0 | AK31: =ROUND(SUMPRODUCT(--(ISNUMBER($AL$6:$AL$26)),($A$6:$A$26=$A$31)*$AK$6:$AK$26),0) -> 0 | AL31: =ROUND(SUMPRODUCT(--(ISNUMBER($AL$6:$AL$26)),($A$6:$A$26=$A$31)*$AL$6:$AL$26),0) -> 0
A32: ='Fringe Rates (Federal)'!G1 -> S&W Faculty | E32: =HLOOKUP(A32,'Fringe Rates (Federal)'!$F$1:$S$2,2,FALSE) -> 50020 | F32: =ROUND(SUMPRODUCT(--(ISNUMBER($AL$6:$AL$26)),($A$6:$A$26=$A$32)*$F$6:$F$26),0) -> 0 | G32: =ROUND(SUMPRODUCT(--(ISNUMBER($AL$6:$AL$26)),($A$6:$A$26=$A$32)*$G$6:$G$26),0) -> 0 | H32: =ROUND(SUMPRODUCT(--(ISNUMBER($AL$6:$AL$26)),($A$6:$A$26=$A$32)*$H$6:$H$26),0) -> 0 | I32: =ROUND(SUMPRODUCT(--(ISNUMBER($AL$6:$AL$26)),($A$6:$A$26=$A$32)*$I$6:$I$26),0) -> 0 | J32: =ROUND(SUMPRODUCT(--(ISNUMBER($AL$6:$AL$26)),($A$6:$A$26=$A$32)*$J$6:$J$26),0) -> 0 | K32: =ROUND(SUMPRODUCT(--(ISNUMBER($AL$6:$AL$26)),($A$6:$A$26=$A$32)*$K$6:$K$26),0) -> 0 | L32: =ROUND(SUMPRODUCT(--(ISNUMBER($AL$6:$AL$26)),($A$6:$A$26=$A$32)*$L$6:$L$26),0) -> 0 | M32: =ROUND(SUMPRODUCT(--(ISNUMBER($AL$6:$AL$26)),($A$6:$A$26=$A$32)*$M$6:$M$26),0) -> 0 | N32: =ROUND(SUMPRODUCT(--(ISNUMBER($AL$6:$AL$26)),($A$6:$A$26=$A$32)*$N$6:$N$26),0) -> 0 | O32: =ROUND(SUMPRODUCT(--(ISNUMBER($AL$6:$AL$26)),($A$6:$A$26=$A$32)*$O$6:$O$26),0) -> 0 | P32: =ROUND(SUMPRODUCT(--(ISNUMBER($AL$6:$AL$26)),($A$6:$A$26=$A$32)*$P$6:$P$26),0) -> 0 | Q32: =ROUND(SUMPRODUCT(--(ISNUMBER($AL$6:$AL$26)),($A$6:$A$26=$A$32)*$Q$6:$Q$26),0) -> 0 | R32: =ROUND(SUMPRODUCT(--(ISNUMBER($AL$6:$AL$26)),($A$6:$A$26=$A$32)*$R$6:$R$26),0) -> 0 | S32: =ROUND(SUMPRODUCT(--(ISNUMBER($AL$6:$AL$26)),($A$6:$A$26=$A$32)*$S$6:$S$26),0) -> 0 | T32: =ROUND(SUMPRODUCT(--(ISNUMBER($AL$6:$AL$26)),($A$6:$A$26=$A$32)*$T$6:$T$26),0) -> 0 | U32: =ROUND(SUMPRODUCT(--(ISNUMBER($AL$6:$AL$26)),($A$6:$A$26=$A$32)*$U$6:$U$26),0) -> 0 | V32: =ROUND(SUMPRODUCT(--(ISNUMBER($AL$6:$AL$26)),($A$6:$A$26=$A$32)*$V$6:$V$26),0) -> 0 | W32: =ROUND(SUMPRODUCT(--(ISNUMBER($AL$6:$AL$26)),($A$6:$A$26=$A$32)*$W$6:$W$26),0) -> 0 | X32: =ROUND(SUMPRODUCT(--(ISNUMBER($AL$6:$AL$26)),($A$6:$A$26=$A$32)*$X$6:$X$26),0) -> 0 | Y32: =ROUND(SUMPRODUCT(--(ISNUMBER($AL$6:$AL$26)),($A$6:$A$26=$A$32)*$Y$6:$Y$26),0) -> 0 | Z32: =ROUND(SUMPRODUCT(--(ISNUMBER($AL$6:$AL$26)),($A$6:$A$26=$A$32)*$Z$6:$Z$26),0) -> 0 | AA32: =ROUND(SUMPRODUCT(--(ISNUMBER($AL$6:$AL$26)),($A$6:$A$26=$A$32)*$AA$6:$AA$26),0) -> 0 | AB32: =ROUND(SUMPRODUCT(--(ISNUMBER($AL$6:$AL$26)),($A$6:$A$26=$A$32)*$AB$6:$AB$26),0) -> 0 | AC32: =ROUND(SUMPRODUCT(--(ISNUMBER($AL$6:$AL$26)),($A$6:$A$26=$A$32)*$AC$6:$AC$26),0) -> 0 | AD32: =ROUND(SUMPRODUCT(--(ISNUMBER($AL$6:$AL$26)),($A$6:$A$26=$A$32)*$AD$6:$AD$26),0) -> 0 | AE32: =ROUND(SUMPRODUCT(--(ISNUMBER($AL$6:$AL$26)),($A$6:$A$26=$A$32)*$AE$6:$AE$26),0) -> 0 | AF32: =ROUND(SUMPRODUCT(--(ISNUMBER($AL$6:$AL$26)),($A$6:$A$26=$A$32)*$AF$6:$AF$26),0) -> 0 | AG32: =ROUND(SUMPRODUCT(--(ISNUMBER($AL$6:$AL$26)),($A$6:$A$26=$A$32)*$AG$6:$AG$26),0) -> 0 | AH32: =ROUND(SUMPRODUCT(--(ISNUMBER($AL$6:$AL$26)),($A$6:$A$26=$A$32)*$AH$6:$AH$26),0) -> 0 | AI32: =ROUND(SUMPRODUCT(--(ISNUMBER($AL$6:$AL$26)),($A$6:$A$26=$A$32)*$AI$6:$AI$26),0) -> 0 | AJ32: =ROUND(SUMPRODUCT(--(ISNUMBER($AL$6:$AL$26)),($A$6:$A$26=$A$32)*$AJ$6:$AJ$26),0) -> 0 | AK32: =ROUND(SUMPRODUCT(--(ISNUMBER($AL$6:$AL$26)),($A$6:$A$26=$A$32)*$AK$6:$AK$26),0) -> 0 | AL32: =ROUND(SUMPRODUCT(--(ISNUMBER($AL$6:$AL$26)),($A$6:$A$26=$A$32)*$AL$6:$AL$26),0) -> 0
A33: ='Fringe Rates (Federal)'!H1 -> S&W TA & GA | E33: =HLOOKUP(A33,'Fringe Rates (Federal)'!$F$1:$S$2,2,FALSE) -> 50050 | F33: =ROUND(SUMPRODUCT(--(ISNUMBER($AL$6:$AL$26)),($A$6:$A$26=$A$33)*$F$6:$F$26),0) -> 0 | G33: =ROUND(SUMPRODUCT(--(ISNUMBER($AL$6:$AL$26)),($A$6:$A$26=$A$33)*$G$6:$G$26),0) -> 0 | H33: =ROUND(SUMPRODUCT(--(ISNUMBER($AL$6:$AL$26)),($A$6:$A$26=$A$33)*$H$6:$H$26),0) -> 0 | I33: =ROUND(SUMPRODUCT(--(ISNUMBER($AL$6:$AL$26)),($A$6:$A$26=$A$33)*$I$6:$I$26),0) -> 0 | J33: =ROUND(SUMPRODUCT(--(ISNUMBER($AL$6:$AL$26)),($A$6:$A$26=$A$33)*$J$6:$J$26),0) -> 0 | K33: =ROUND(SUMPRODUCT(--(ISNUMBER($AL$6:$AL$26)),($A$6:$A$26=$A$33)*$K$6:$K$26),0) -> 0 | L33: =ROUND(SUMPRODUCT(--(ISNUMBER($AL$6:$AL$26)),($A$6:$A$26=$A$33)*$L$6:$L$26),0) -> 0 | M33: =ROUND(SUMPRODUCT(--(ISNUMBER($AL$6:$AL$26)),($A$6:$A$26=$A$33)*$M$6:$M$26),0) -> 0 | N33: =ROUND(SUMPRODUCT(--(ISNUMBER($AL$6:$AL$26)),($A$6:$A$26=$A$33)*$N$6:$N$26),0) -> 0 | O33: =ROUND(SUMPRODUCT(--(ISNUMBER($AL$6:$AL$26)),($A$6:$A$26=$A$33)*$O$6:$O$26),0) -> 0 | P33: =ROUND(SUMPRODUCT(--(ISNUMBER($AL$6:$AL$26)),($A$6:$A$26=$A$33)*$P$6:$P$26),0) -> 0 | Q33: =ROUND(SUMPRODUCT(--(ISNUMBER($AL$6:$AL$26)),($A$6:$A$26=$A$33)*$Q$6:$Q$26),0) -> 0 | R33: =ROUND(SUMPRODUCT(--(ISNUMBER($AL$6:$AL$26)),($A$6:$A$26=$A$33)*$R$6:$R$26),0) -> 0 | S33: =ROUND(SUMPRODUCT(--(ISNUMBER($AL$6:$AL$26)),($A$6:$A$26=$A$33)*$S$6:$S$26),0) -> 0 | T33: =ROUND(SUMPRODUCT(--(ISNUMBER($AL$6:$AL$26)),($A$6:$A$26=$A$33)*$T$6:$T$26),0) -> 0 | U33: =ROUND(SUMPRODUCT(--(ISNUMBER($AL$6:$AL$26)),($A$6:$A$26=$A$33)*$U$6:$U$26),0) -> 0 | V33: =ROUND(SUMPRODUCT(--(ISNUMBER($AL$6:$AL$26)),($A$6:$A$26=$A$33)*$V$6:$V$26),0) -> 0 | W33: =ROUND(SUMPRODUCT(--(ISNUMBER($AL$6:$AL$26)),($A$6:$A$26=$A$33)*$W$6:$W$26),0) -> 0 | X33: =ROUND(SUMPRODUCT(--(ISNUMBER($AL$6:$AL$26)),($A$6:$A$26=$A$33)*$X$6:$X$26),0) -> 0 | Y33: =ROUND(SUMPRODUCT(--(ISNUMBER($AL$6:$AL$26)),($A$6:$A$26=$A$33)*$Y$6:$Y$26),0) -> 0 | Z33: =ROUND(SUMPRODUCT(--(ISNUMBER($AL$6:$AL$26)),($A$6:$A$26=$A$33)*$Z$6:$Z$26),0) -> 0 | AA33: =ROUND(SUMPRODUCT(--(ISNUMBER($AL$6:$AL$26)),($A$6:$A$26=$A$33)*$AA$6:$AA$26),0) -> 0 | AB33: =ROUND(SUMPRODUCT(--(ISNUMBER($AL$6:$AL$26)),($A$6:$A$26=$A$33)*$AB$6:$AB$26),0) -> 0 | AC33: =ROUND(SUMPRODUCT(--(ISNUMBER($AL$6:$AL$26)),($A$6:$A$26=$A$33)*$AC$6:$AC$26),0) -> 0 | AD33: =ROUND(SUMPRODUCT(--(ISNUMBER($AL$6:$AL$26)),($A$6:$A$26=$A$33)*$AD$6:$AD$26),0) -> 0 | AE33: =ROUND(SUMPRODUCT(--(ISNUMBER($AL$6:$AL$26)),($A$6:$A$26=$A$33)*$AE$6:$AE$26),0) -> 0 | AF33: =ROUND(SUMPRODUCT(--(ISNUMBER($AL$6:$AL$26)),($A$6:$A$26=$A$33)*$AF$6:$AF$26),0) -> 0 | AG33: =ROUND(SUMPRODUCT(--(ISNUMBER($AL$6:$AL$26)),($A$6:$A$26=$A$33)*$AG$6:$AG$26),0) -> 0 | AH33: =ROUND(SUMPRODUCT(--(ISNUMBER($AL$6:$AL$26)),($A$6:$A$26=$A$33)*$AH$6:$AH$26),0) -> 0 | AI33: =ROUND(SUMPRODUCT(--(ISNUMBER($AL$6:$AL$26)),($A$6:$A$26=$A$33)*$AI$6:$AI$26),0) -> 0 | AJ33: =ROUND(SUMPRODUCT(--(ISNUMBER($AL$6:$AL$26)),($A$6:$A$26=$A$33)*$AJ$6:$AJ$26),0) -> 0 | AK33: =ROUND(SUMPRODUCT(--(ISNUMBER($AL$6:$AL$26)),($A$6:$A$26=$A$33)*$AK$6:$AK$26),0) -> 0 | AL33: =ROUND(SUMPRODUCT(--(ISNUMBER($AL$6:$AL$26)),($A$6:$A$26=$A$33)*$AL$6:$AL$26),0) -> 0
A34: ='Fringe Rates (Federal)'!I1 -> S&W Post Doctorate & Associates | E34: =HLOOKUP(A34,'Fringe Rates (Federal)'!$F$1:$S$2,2,FALSE) -> 50060 | F34: =ROUND(SUMPRODUCT(--(ISNUMBER($AL$6:$AL$26)),($A$6:$A$26=$A$34)*$F$6:$F$26),0) -> 0 | G34: =ROUND(SUMPRODUCT(--(ISNUMBER($AL$6:$AL$26)),($A$6:$A$26=$A$34)*$G$6:$G$26),0) -> 0 | H34: =ROUND(SUMPRODUCT(--(ISNUMBER($AL$6:$AL$26)),($A$6:$A$26=$A$34)*$H$6:$H$26),0) -> 0 | I34: =ROUND(SUMPRODUCT(--(ISNUMBER($AL$6:$AL$26)),($A$6:$A$26=$A$34)*$I$6:$I$26),0) -> 0 | J34: =ROUND(SUMPRODUCT(--(ISNUMBER($AL$6:$AL$26)),($A$6:$A$26=$A$34)*$J$6:$J$26),0) -> 0 | K34: =ROUND(SUMPRODUCT(--(ISNUMBER($AL$6:$AL$26)),($A$6:$A$26=$A$34)*$K$6:$K$26),0) -> 0 | L34: =ROUND(SUMPRODUCT(--(ISNUMBER($AL$6:$AL$26)),($A$6:$A$26=$A$34)*$L$6:$L$26),0) -> 0 | M34: =ROUND(SUMPRODUCT(--(ISNUMBER($AL$6:$AL$26)),($A$6:$A$26=$A$34)*$M$6:$M$26),0) -> 0 | N34: =ROUND(SUMPRODUCT(--(ISNUMBER($AL$6:$AL$26)),($A$6:$A$26=$A$34)*$N$6:$N$26),0) -> 0 | O34: =ROUND(SUMPRODUCT(--(ISNUMBER($AL$6:$AL$26)),($A$6:$A$26=$A$34)*$O$6:$O$26),0) -> 0 | P34: =ROUND(SUMPRODUCT(--(ISNUMBER($AL$6:$AL$26)),($A$6:$A$26=$A$34)*$P$6:$P$26),0) -> 0 | Q34: =ROUND(SUMPRODUCT(--(ISNUMBER($AL$6:$AL$26)),($A$6:$A$26=$A$34)*$Q$6:$Q$26),0) -> 0 | R34: =ROUND(SUMPRODUCT(--(ISNUMBER($AL$6:$AL$26)),($A$6:$A$26=$A$34)*$R$6:$R$26),0) -> 0 | S34: =ROUND(SUMPRODUCT(--(ISNUMBER($AL$6:$AL$26)),($A$6:$A$26=$A$34)*$S$6:$S$26),0) -> 0 | T34: =ROUND(SUMPRODUCT(--(ISNUMBER($AL$6:$AL$26)),($A$6:$A$26=$A$34)*$T$6:$T$26),0) -> 0 | U34: =ROUND(SUMPRODUCT(--(ISNUMBER($AL$6:$AL$26)),($A$6:$A$26=$A$34)*$U$6:$U$26),0) -> 0 | V34: =ROUND(SUMPRODUCT(--(ISNUMBER($AL$6:$AL$26)),($A$6:$A$26=$A$34)*$V$6:$V$26),0) -> 0 | W34: =ROUND(SUMPRODUCT(--(ISNUMBER($AL$6:$AL$26)),($A$6:$A$26=$A$34)*$W$6:$W$26),0) -> 0 | X34: =ROUND(SUMPRODUCT(--(ISNUMBER($AL$6:$AL$26)),($A$6:$A$26=$A$34)*$X$6:$X$26),0) -> 0 | Y34: =ROUND(SUMPRODUCT(--(ISNUMBER($AL$6:$AL$26)),($A$6:$A$26=$A$34)*$Y$6:$Y$26),0) -> 0 | Z34: =ROUND(SUMPRODUCT(--(ISNUMBER($AL$6:$AL$26)),($A$6:$A$26=$A$34)*$Z$6:$Z$26),0) -> 0 | AA34: =ROUND(SUMPRODUCT(--(ISNUMBER($AL$6:$AL$26)),($A$6:$A$26=$A$34)*$AA$6:$AA$26),0) -> 0 | AB34: =ROUND(SUMPRODUCT(--(ISNUMBER($AL$6:$AL$26)),($A$6:$A$26=$A$34)*$AB$6:$AB$26),0) -> 0 | AC34: =ROUND(SUMPRODUCT(--(ISNUMBER($AL$6:$AL$26)),($A$6:$A$26=$A$34)*$AC$6:$AC$26),0) -> 0 | AD34: =ROUND(SUMPRODUCT(--(ISNUMBER($AL$6:$AL$26)),($A$6:$A$26=$A$34)*$AD$6:$AD$26),0) -> 0 | AE34: =ROUND(SUMPRODUCT(--(ISNUMBER($AL$6:$AL$26)),($A$6:$A$26=$A$34)*$AE$6:$AE$26),0) -> 0 | AF34: =ROUND(SUMPRODUCT(--(ISNUMBER($AL$6:$AL$26)),($A$6:$A$26=$A$34)*$AF$6:$AF$26),0) -> 0 | AG34: =ROUND(SUMPRODUCT(--(ISNUMBER($AL$6:$AL$26)),($A$6:$A$26=$A$34)*$AG$6:$AG$26),0) -> 0 | AH34: =ROUND(SUMPRODUCT(--(ISNUMBER($AL$6:$AL$26)),($A$6:$A$26=$A$34)*$AH$6:$AH$26),0) -> 0 | AI34: =ROUND(SUMPRODUCT(--(ISNUMBER($AL$6:$AL$26)),($A$6:$A$26=$A$34)*$AI$6:$AI$26),0) -> 0 | AJ34: =ROUND(SUMPRODUCT(--(ISNUMBER($AL$6:$AL$26)),($A$6:$A$26=$A$34)*$AJ$6:$AJ$26),0) -> 0 | AK34: =ROUND(SUMPRODUCT(--(ISNUMBER($AL$6:$AL$26)),($A$6:$A$26=$A$34)*$AK$6:$AK$26),0) -> 0 | AL34: =ROUND(SUMPRODUCT(--(ISNUMBER($AL$6:$AL$26)),($A$6:$A$26=$A$34)*$AL$6:$AL$26),0) -> 0
A35: ='Fringe Rates (Federal)'!J1 -> S&W Housestaff | E35: =HLOOKUP(A35,'Fringe Rates (Federal)'!$F$1:$S$2,2,FALSE) -> 50070 | F35: =ROUND(SUMPRODUCT(--(ISNUMBER($AL$6:$AL$26)),($A$6:$A$26=$A$35)*$F$6:$F$26),0) -> 0 | G35: =ROUND(SUMPRODUCT(--(ISNUMBER($AL$6:$AL$26)),($A$6:$A$26=$A$35)*$G$6:$G$26),0) -> 0 | H35: =ROUND(SUMPRODUCT(--(ISNUMBER($AL$6:$AL$26)),($A$6:$A$26=$A$35)*$H$6:$H$26),0) -> 0 | I35: =ROUND(SUMPRODUCT(--(ISNUMBER($AL$6:$AL$26)),($A$6:$A$26=$A$35)*$I$6:$I$26),0) -> 0 | J35: =ROUND(SUMPRODUCT(--(ISNUMBER($AL$6:$AL$26)),($A$6:$A$26=$A$35)*$J$6:$J$26),0) -> 0 | K35: =ROUND(SUMPRODUCT(--(ISNUMBER($AL$6:$AL$26)),($A$6:$A$26=$A$35)*$K$6:$K$26),0) -> 0 | L35: =ROUND(SUMPRODUCT(--(ISNUMBER($AL$6:$AL$26)),($A$6:$A$26=$A$35)*$L$6:$L$26),0) -> 0 | M35: =ROUND(SUMPRODUCT(--(ISNUMBER($AL$6:$AL$26)),($A$6:$A$26=$A$35)*$M$6:$M$26),0) -> 0 | N35: =ROUND(SUMPRODUCT(--(ISNUMBER($AL$6:$AL$26)),($A$6:$A$26=$A$35)*$N$6:$N$26),0) -> 0 | O35: =ROUND(SUMPRODUCT(--(ISNUMBER($AL$6:$AL$26)),($A$6:$A$26=$A$35)*$O$6:$O$26),0) -> 0 | P35: =ROUND(SUMPRODUCT(--(ISNUMBER($AL$6:$AL$26)),($A$6:$A$26=$A$35)*$P$6:$P$26),0) -> 0 | Q35: =ROUND(SUMPRODUCT(--(ISNUMBER($AL$6:$AL$26)),($A$6:$A$26=$A$35)*$Q$6:$Q$26),0) -> 0 | R35: =ROUND(SUMPRODUCT(--(ISNUMBER($AL$6:$AL$26)),($A$6:$A$26=$A$35)*$R$6:$R$26),0) -> 0 | S35: =ROUND(SUMPRODUCT(--(ISNUMBER($AL$6:$AL$26)),($A$6:$A$26=$A$35)*$S$6:$S$26),0) -> 0 | T35: =ROUND(SUMPRODUCT(--(ISNUMBER($AL$6:$AL$26)),($A$6:$A$26=$A$35)*$T$6:$T$26),0) -> 0 | U35: =ROUND(SUMPRODUCT(--(ISNUMBER($AL$6:$AL$26)),($A$6:$A$26=$A$35)*$U$6:$U$26),0) -> 0 | V35: =ROUND(SUMPRODUCT(--(ISNUMBER($AL$6:$AL$26)),($A$6:$A$26=$A$35)*$V$6:$V$26),0) -> 0 | W35: =ROUND(SUMPRODUCT(--(ISNUMBER($AL$6:$AL$26)),($A$6:$A$26=$A$35)*$W$6:$W$26),0) -> 0 | X35: =ROUND(SUMPRODUCT(--(ISNUMBER($AL$6:$AL$26)),($A$6:$A$26=$A$35)*$X$6:$X$26),0) -> 0 | Y35: =ROUND(SUMPRODUCT(--(ISNUMBER($AL$6:$AL$26)),($A$6:$A$26=$A$35)*$Y$6:$Y$26),0) -> 0 | Z35: =ROUND(SUMPRODUCT(--(ISNUMBER($AL$6:$AL$26)),($A$6:$A$26=$A$35)*$Z$6:$Z$26),0) -> 0 | AA35: =ROUND(SUMPRODUCT(--(ISNUMBER($AL$6:$AL$26)),($A$6:$A$26=$A$35)*$AA$6:$AA$26),0) -> 0 | AB35: =ROUND(SUMPRODUCT(--(ISNUMBER($AL$6:$AL$26)),($A$6:$A$26=$A$35)*$AB$6:$AB$26),0) -> 0 | AC35: =ROUND(SUMPRODUCT(--(ISNUMBER($AL$6:$AL$26)),($A$6:$A$26=$A$35)*$AC$6:$AC$26),0) -> 0 | AD35: =ROUND(SUMPRODUCT(--(ISNUMBER($AL$6:$AL$26)),($A$6:$A$26=$A$35)*$AD$6:$AD$26),0) -> 0 | AE35: =ROUND(SUMPRODUCT(--(ISNUMBER($AL$6:$AL$26)),($A$6:$A$26=$A$35)*$AE$6:$AE$26),0) -> 0 | AF35: =ROUND(SUMPRODUCT(--(ISNUMBER($AL$6:$AL$26)),($A$6:$A$26=$A$35)*$AF$6:$AF$26),0) -> 0 | AG35: =ROUND(SUMPRODUCT(--(ISNUMBER($AL$6:$AL$26)),($A$6:$A$26=$A$35)*$AG$6:$AG$26),0) -> 0 | AH35: =ROUND(SUMPRODUCT(--(ISNUMBER($AL$6:$AL$26)),($A$6:$A$26=$A$35)*$AH$6:$AH$26),0) -> 0 | AI35: =ROUND(SUMPRODUCT(--(ISNUMBER($AL$6:$AL$26)),($A$6:$A$26=$A$35)*$AI$6:$AI$26),0) -> 0 | AJ35: =ROUND(SUMPRODUCT(--(ISNUMBER($AL$6:$AL$26)),($A$6:$A$26=$A$35)*$AJ$6:$AJ$26),0) -> 0 | AK35: =ROUND(SUMPRODUCT(--(ISNUMBER($AL$6:$AL$26)),($A$6:$A$26=$A$35)*$AK$6:$AK$26),0) -> 0 | AL35: =ROUND(SUMPRODUCT(--(ISNUMBER($AL$6:$AL$26)),($A$6:$A$26=$A$35)*$AL$6:$AL$26),0) -> 0
A36: ='Fringe Rates (Federal)'!K1 -> S&W NonInstructional (Summer Salary) | E36: =HLOOKUP(A36,'Fringe Rates (Federal)'!$F$1:$S$2,2,FALSE) -> 50080 | F36: =ROUND(SUMPRODUCT(--(ISNUMBER($AL$6:$AL$26)),($A$6:$A$26=$A$36)*$F$6:$F$26),0) -> 0 | G36: =ROUND(SUMPRODUCT(--(ISNUMBER($AL$6:$AL$26)),($A$6:$A$26=$A$36)*$G$6:$G$26),0) -> 0 | H36: =ROUND(SUMPRODUCT(--(ISNUMBER($AL$6:$AL$26)),($A$6:$A$26=$A$36)*$H$6:$H$26),0) -> 0 | I36: =ROUND(SUMPRODUCT(--(ISNUMBER($AL$6:$AL$26)),($A$6:$A$26=$A$36)*$I$6:$I$26),0) -> 0 | J36: =ROUND(SUMPRODUCT(--(ISNUMBER($AL$6:$AL$26)),($A$6:$A$26=$A$36)*$J$6:$J$26),0) -> 0 | K36: =ROUND(SUMPRODUCT(--(ISNUMBER($AL$6:$AL$26)),($A$6:$A$26=$A$36)*$K$6:$K$26),0) -> 0 | L36: =ROUND(SUMPRODUCT(--(ISNUMBER($AL$6:$AL$26)),($A$6:$A$26=$A$36)*$L$6:$L$26),0) -> 0 | M36: =ROUND(SUMPRODUCT(--(ISNUMBER($AL$6:$AL$26)),($A$6:$A$26=$A$36)*$M$6:$M$26),0) -> 0 | N36: =ROUND(SUMPRODUCT(--(ISNUMBER($AL$6:$AL$26)),($A$6:$A$26=$A$36)*$N$6:$N$26),0) -> 0 | O36: =ROUND(SUMPRODUCT(--(ISNUMBER($AL$6:$AL$26)),($A$6:$A$26=$A$36)*$O$6:$O$26),0) -> 0 | P36: =ROUND(SUMPRODUCT(--(ISNUMBER($AL$6:$AL$26)),($A$6:$A$26=$A$36)*$P$6:$P$26),0) -> 0 | Q36: =ROUND(SUMPRODUCT(--(ISNUMBER($AL$6:$AL$26)),($A$6:$A$26=$A$36)*$Q$6:$Q$26),0) -> 0 | R36: =ROUND(SUMPRODUCT(--(ISNUMBER($AL$6:$AL$26)),($A$6:$A$26=$A$36)*$R$6:$R$26),0) -> 0 | S36: =ROUND(SUMPRODUCT(--(ISNUMBER($AL$6:$AL$26)),($A$6:$A$26=$A$36)*$S$6:$S$26),0) -> 0 | T36: =ROUND(SUMPRODUCT(--(ISNUMBER($AL$6:$AL$26)),($A$6:$A$26=$A$36)*$T$6:$T$26),0) -> 0 | U36: =ROUND(SUMPRODUCT(--(ISNUMBER($AL$6:$AL$26)),($A$6:$A$26=$A$36)*$U$6:$U$26),0) -> 0 | V36: =ROUND(SUMPRODUCT(--(ISNUMBER($AL$6:$AL$26)),($A$6:$A$26=$A$36)*$V$6:$V$26),0) -> 0 | W36: =ROUND(SUMPRODUCT(--(ISNUMBER($AL$6:$AL$26)),($A$6:$A$26=$A$36)*$W$6:$W$26),0) -> 0 | X36: =ROUND(SUMPRODUCT(--(ISNUMBER($AL$6:$AL$26)),($A$6:$A$26=$A$36)*$X$6:$X$26),0) -> 0 | Y36: =ROUND(SUMPRODUCT(--(ISNUMBER($AL$6:$AL$26)),($A$6:$A$26=$A$36)*$Y$6:$Y$26),0) -> 0 | Z36: =ROUND(SUMPRODUCT(--(ISNUMBER($AL$6:$AL$26)),($A$6:$A$26=$A$36)*$Z$6:$Z$26),0) -> 0 | AA36: =ROUND(SUMPRODUCT(--(ISNUMBER($AL$6:$AL$26)),($A$6:$A$26=$A$36)*$AA$6:$AA$26),0) -> 0 | AB36: =ROUND(SUMPRODUCT(--(ISNUMBER($AL$6:$AL$26)),($A$6:$A$26=$A$36)*$AB$6:$AB$26),0) -> 0 | AC36: =ROUND(SUMPRODUCT(--(ISNUMBER($AL$6:$AL$26)),($A$6:$A$26=$A$36)*$AC$6:$AC$26),0) -> 0 | AD36: =ROUND(SUMPRODUCT(--(ISNUMBER($AL$6:$AL$26)),($A$6:$A$26=$A$36)*$AD$6:$AD$26),0) -> 0 | AE36: =ROUND(SUMPRODUCT(--(ISNUMBER($AL$6:$AL$26)),($A$6:$A$26=$A$36)*$AE$6:$AE$26),0) -> 0 | AF36: =ROUND(SUMPRODUCT(--(ISNUMBER($AL$6:$AL$26)),($A$6:$A$26=$A$36)*$AF$6:$AF$26),0) -> 0 | AG36: =ROUND(SUMPRODUCT(--(ISNUMBER($AL$6:$AL$26)),($A$6:$A$26=$A$36)*$AG$6:$AG$26),0) -> 0 | AH36: =ROUND(SUMPRODUCT(--(ISNUMBER($AL$6:$AL$26)),($A$6:$A$26=$A$36)*$AH$6:$AH$26),0) -> 0 | AI36: =ROUND(SUMPRODUCT(--(ISNUMBER($AL$6:$AL$26)),($A$6:$A$26=$A$36)*$AI$6:$AI$26),0) -> 0 | AJ36: =ROUND(SUMPRODUCT(--(ISNUMBER($AL$6:$AL$26)),($A$6:$A$26=$A$36)*$AJ$6:$AJ$26),0) -> 0 | AK36: =ROUND(SUMPRODUCT(--(ISNUMBER($AL$6:$AL$26)),($A$6:$A$26=$A$36)*$AK$6:$AK$26),0) -> 0 | AL36: =ROUND(SUMPRODUCT(--(ISNUMBER($AL$6:$AL$26)),($A$6:$A$26=$A$36)*$AL$6:$AL$26),0) -> 0
A37: ='Fringe Rates (Federal)'!L1 -> S&W Lecturer | E37: =HLOOKUP(A37,'Fringe Rates (Federal)'!$F$1:$S$2,2,FALSE) -> 50081 | F37: =ROUND(SUMPRODUCT(--(ISNUMBER($AL$6:$AL$26)),($A$6:$A$26=$A$37)*$F$6:$F$26),0) -> 0 | G37: =ROUND(SUMPRODUCT(--(ISNUMBER($AL$6:$AL$26)),($A$6:$A$26=$A$37)*$G$6:$G$26),0) -> 0 | H37: =ROUND(SUMPRODUCT(--(ISNUMBER($AL$6:$AL$26)),($A$6:$A$26=$A$37)*$H$6:$H$26),0) -> 0 | I37: =ROUND(SUMPRODUCT(--(ISNUMBER($AL$6:$AL$26)),($A$6:$A$26=$A$37)*$I$6:$I$26),0) -> 0 | J37: =ROUND(SUMPRODUCT(--(ISNUMBER($AL$6:$AL$26)),($A$6:$A$26=$A$37)*$J$6:$J$26),0) -> 0 | K37: =ROUND(SUMPRODUCT(--(ISNUMBER($AL$6:$AL$26)),($A$6:$A$26=$A$37)*$K$6:$K$26),0) -> 0 | L37: =ROUND(SUMPRODUCT(--(ISNUMBER($AL$6:$AL$26)),($A$6:$A$26=$A$37)*$L$6:$L$26),0) -> 0 | M37: =ROUND(SUMPRODUCT(--(ISNUMBER($AL$6:$AL$26)),($A$6:$A$26=$A$37)*$M$6:$M$26),0) -> 0 | N37: =ROUND(SUMPRODUCT(--(ISNUMBER($AL$6:$AL$26)),($A$6:$A$26=$A$37)*$N$6:$N$26),0) -> 0 | O37: =ROUND(SUMPRODUCT(--(ISNUMBER($AL$6:$AL$26)),($A$6:$A$26=$A$37)*$O$6:$O$26),0) -> 0 | P37: =ROUND(SUMPRODUCT(--(ISNUMBER($AL$6:$AL$26)),($A$6:$A$26=$A$37)*$P$6:$P$26),0) -> 0 | Q37: =ROUND(SUMPRODUCT(--(ISNUMBER($AL$6:$AL$26)),($A$6:$A$26=$A$37)*$Q$6:$Q$26),0) -> 0 | R37: =ROUND(SUMPRODUCT(--(ISNUMBER($AL$6:$AL$26)),($A$6:$A$26=$A$37)*$R$6:$R$26),0) -> 0 | S37: =ROUND(SUMPRODUCT(--(ISNUMBER($AL$6:$AL$26)),($A$6:$A$26=$A$37)*$S$6:$S$26),0) -> 0 | T37: =ROUND(SUMPRODUCT(--(ISNUMBER($AL$6:$AL$26)),($A$6:$A$26=$A$37)*$T$6:$T$26),0) -> 0 | U37: =ROUND(SUMPRODUCT(--(ISNUMBER($AL$6:$AL$26)),($A$6:$A$26=$A$37)*$U$6:$U$26),0) -> 0 | V37: =ROUND(SUMPRODUCT(--(ISNUMBER($AL$6:$AL$26)),($A$6:$A$26=$A$37)*$V$6:$V$26),0) -> 0 | W37: =ROUND(SUMPRODUCT(--(ISNUMBER($AL$6:$AL$26)),($A$6:$A$26=$A$37)*$W$6:$W$26),0) -> 0 | X37: =ROUND(SUMPRODUCT(--(ISNUMBER($AL$6:$AL$26)),($A$6:$A$26=$A$37)*$X$6:$X$26),0) -> 0 | Y37: =ROUND(SUMPRODUCT(--(ISNUMBER($AL$6:$AL$26)),($A$6:$A$26=$A$37)*$Y$6:$Y$26),0) -> 0 | Z37: =ROUND(SUMPRODUCT(--(ISNUMBER($AL$6:$AL$26)),($A$6:$A$26=$A$37)*$Z$6:$Z$26),0) -> 0 | AA37: =ROUND(SUMPRODUCT(--(ISNUMBER($AL$6:$AL$26)),($A$6:$A$26=$A$37)*$AA$6:$AA$26),0) -> 0 | AB37: =ROUND(SUMPRODUCT(--(ISNUMBER($AL$6:$AL$26)),($A$6:$A$26=$A$37)*$AB$6:$AB$26),0) -> 0 | AC37: =ROUND(SUMPRODUCT(--(ISNUMBER($AL$6:$AL$26)),($A$6:$A$26=$A$37)*$AC$6:$AC$26),0) -> 0 | AD37: =ROUND(SUMPRODUCT(--(ISNUMBER($AL$6:$AL$26)),($A$6:$A$26=$A$37)*$AD$6:$AD$26),0) -> 0 | AE37: =ROUND(SUMPRODUCT(--(ISNUMBER($AL$6:$AL$26)),($A$6:$A$26=$A$37)*$AE$6:$AE$26),0) -> 0 | AF37: =ROUND(SUMPRODUCT(--(ISNUMBER($AL$6:$AL$26)),($A$6:$A$26=$A$37)*$AF$6:$AF$26),0) -> 0 | AG37: =ROUND(SUMPRODUCT(--(ISNUMBER($AL$6:$AL$26)),($A$6:$A$26=$A$37)*$AG$6:$AG$26),0) -> 0 | AH37: =ROUND(SUMPRODUCT(--(ISNUMBER($AL$6:$AL$26)),($A$6:$A$26=$A$37)*$AH$6:$AH$26),0) -> 0 | AI37: =ROUND(SUMPRODUCT(--(ISNUMBER($AL$6:$AL$26)),($A$6:$A$26=$A$37)*$AI$6:$AI$26),0) -> 0 | AJ37: =ROUND(SUMPRODUCT(--(ISNUMBER($AL$6:$AL$26)),($A$6:$A$26=$A$37)*$AJ$6:$AJ$26),0) -> 0 | AK37: =ROUND(SUMPRODUCT(--(ISNUMBER($AL$6:$AL$26)),($A$6:$A$26=$A$37)*$AK$6:$AK$26),0) -> 0 | AL37: =ROUND(SUMPRODUCT(--(ISNUMBER($AL$6:$AL$26)),($A$6:$A$26=$A$37)*$AL$6:$AL$26),0) -> 0
A38: ='Fringe Rates (Federal)'!M1 -> S&W Student Employment | E38: =HLOOKUP(A38,'Fringe Rates (Federal)'!$F$1:$S$2,2,FALSE) -> 50090 | F38: =ROUND(SUMPRODUCT(--(ISNUMBER($AL$6:$AL$26)),($A$6:$A$26=$A$38)*$F$6:$F$26),0) -> 0 | G38: =ROUND(SUMPRODUCT(--(ISNUMBER($AL$6:$AL$26)),($A$6:$A$26=$A$38)*$G$6:$G$26),0) -> 0 | H38: =ROUND(SUMPRODUCT(--(ISNUMBER($AL$6:$AL$26)),($A$6:$A$26=$A$38)*$H$6:$H$26),0) -> 0 | I38: =ROUND(SUMPRODUCT(--(ISNUMBER($AL$6:$AL$26)),($A$6:$A$26=$A$38)*$I$6:$I$26),0) -> 0 | J38: =ROUND(SUMPRODUCT(--(ISNUMBER($AL$6:$AL$26)),($A$6:$A$26=$A$38)*$J$6:$J$26),0) -> 0 | K38: =ROUND(SUMPRODUCT(--(ISNUMBER($AL$6:$AL$26)),($A$6:$A$26=$A$38)*$K$6:$K$26),0) -> 0 | L38: =ROUND(SUMPRODUCT(--(ISNUMBER($AL$6:$AL$26)),($A$6:$A$26=$A$38)*$L$6:$L$26),0) -> 0 | M38: =ROUND(SUMPRODUCT(--(ISNUMBER($AL$6:$AL$26)),($A$6:$A$26=$A$38)*$M$6:$M$26),0) -> 0 | N38: =ROUND(SUMPRODUCT(--(ISNUMBER($AL$6:$AL$26)),($A$6:$A$26=$A$38)*$N$6:$N$26),0) -> 0 | O38: =ROUND(SUMPRODUCT(--(ISNUMBER($AL$6:$AL$26)),($A$6:$A$26=$A$38)*$O$6:$O$26),0) -> 0 | P38: =ROUND(SUMPRODUCT(--(ISNUMBER($AL$6:$AL$26)),($A$6:$A$26=$A$38)*$P$6:$P$26),0) -> 0 | Q38: =ROUND(SUMPRODUCT(--(ISNUMBER($AL$6:$AL$26)),($A$6:$A$26=$A$38)*$Q$6:$Q$26),0) -> 0 | R38: =ROUND(SUMPRODUCT(--(ISNUMBER($AL$6:$AL$26)),($A$6:$A$26=$A$38)*$R$6:$R$26),0) -> 0 | S38: =ROUND(SUMPRODUCT(--(ISNUMBER($AL$6:$AL$26)),($A$6:$A$26=$A$38)*$S$6:$S$26),0) -> 0 | T38: =ROUND(SUMPRODUCT(--(ISNUMBER($AL$6:$AL$26)),($A$6:$A$26=$A$38)*$T$6:$T$26),0) -> 0 | U38: =ROUND(SUMPRODUCT(--(ISNUMBER($AL$6:$AL$26)),($A$6:$A$26=$A$38)*$U$6:$U$26),0) -> 0 | V38: =ROUND(SUMPRODUCT(--(ISNUMBER($AL$6:$AL$26)),($A$6:$A$26=$A$38)*$V$6:$V$26),0) -> 0 | W38: =ROUND(SUMPRODUCT(--(ISNUMBER($AL$6:$AL$26)),($A$6:$A$26=$A$38)*$W$6:$W$26),0) -> 0 | X38: =ROUND(SUMPRODUCT(--(ISNUMBER($AL$6:$AL$26)),($A$6:$A$26=$A$38)*$X$6:$X$26),0) -> 0 | Y38: =ROUND(SUMPRODUCT(--(ISNUMBER($AL$6:$AL$26)),($A$6:$A$26=$A$38)*$Y$6:$Y$26),0) -> 0 | Z38: =ROUND(SUMPRODUCT(--(ISNUMBER($AL$6:$AL$26)),($A$6:$A$26=$A$38)*$Z$6:$Z$26),0) -> 0 | AA38: =ROUND(SUMPRODUCT(--(ISNUMBER($AL$6:$AL$26)),($A$6:$A$26=$A$38)*$AA$6:$AA$26),0) -> 0 | AB38: =ROUND(SUMPRODUCT(--(ISNUMBER($AL$6:$AL$26)),($A$6:$A$26=$A$38)*$AB$6:$AB$26),0) -> 0 | AC38: =ROUND(SUMPRODUCT(--(ISNUMBER($AL$6:$AL$26)),($A$6:$A$26=$A$38)*$AC$6:$AC$26),0) -> 0 | AD38: =ROUND(SUMPRODUCT(--(ISNUMBER($AL$6:$AL$26)),($A$6:$A$26=$A$38)*$AD$6:$AD$26),0) -> 0 | AE38: =ROUND(SUMPRODUCT(--(ISNUMBER($AL$6:$AL$26)),($A$6:$A$26=$A$38)*$AE$6:$AE$26),0) -> 0 | AF38: =ROUND(SUMPRODUCT(--(ISNUMBER($AL$6:$AL$26)),($A$6:$A$26=$A$38)*$AF$6:$AF$26),0) -> 0 | AG38: =ROUND(SUMPRODUCT(--(ISNUMBER($AL$6:$AL$26)),($A$6:$A$26=$A$38)*$AG$6:$AG$26),0) -> 0 | AH38: =ROUND(SUMPRODUCT(--(ISNUMBER($AL$6:$AL$26)),($A$6:$A$26=$A$38)*$AH$6:$AH$26),0) -> 0 | AI38: =ROUND(SUMPRODUCT(--(ISNUMBER($AL$6:$AL$26)),($A$6:$A$26=$A$38)*$AI$6:$AI$26),0) -> 0 | AJ38: =ROUND(SUMPRODUCT(--(ISNUMBER($AL$6:$AL$26)),($A$6:$A$26=$A$38)*$AJ$6:$AJ$26),0) -> 0 | AK38: =ROUND(SUMPRODUCT(--(ISNUMBER($AL$6:$AL$26)),($A$6:$A$26=$A$38)*$AK$6:$AK$26),0) -> 0 | AL38: =ROUND(SUMPRODUCT(--(ISNUMBER($AL$6:$AL$26)),($A$6:$A$26=$A$38)*$AL$6:$AL$26),0) -> 0
A39: ='Fringe Rates (Federal)'!N1 -> S&W Contracted | E39: =HLOOKUP(A39,'Fringe Rates (Federal)'!$F$1:$S$2,2,FALSE) -> 50100 | F39: =ROUND(SUMPRODUCT(--(ISNUMBER($AL$6:$AL$26)),($A$6:$A$26=$A$39)*$F$6:$F$26),0) -> 0 | G39: =ROUND(SUMPRODUCT(--(ISNUMBER($AL$6:$AL$26)),($A$6:$A$26=$A$39)*$G$6:$G$26),0) -> 0 | H39: =ROUND(SUMPRODUCT(--(ISNUMBER($AL$6:$AL$26)),($A$6:$A$26=$A$39)*$H$6:$H$26),0) -> 0 | I39: =ROUND(SUMPRODUCT(--(ISNUMBER($AL$6:$AL$26)),($A$6:$A$26=$A$39)*$I$6:$I$26),0) -> 0 | J39: =ROUND(SUMPRODUCT(--(ISNUMBER($AL$6:$AL$26)),($A$6:$A$26=$A$39)*$J$6:$J$26),0) -> 0 | K39: =ROUND(SUMPRODUCT(--(ISNUMBER($AL$6:$AL$26)),($A$6:$A$26=$A$39)*$K$6:$K$26),0) -> 0 | L39: =ROUND(SUMPRODUCT(--(ISNUMBER($AL$6:$AL$26)),($A$6:$A$26=$A$39)*$L$6:$L$26),0) -> 0 | M39: =ROUND(SUMPRODUCT(--(ISNUMBER($AL$6:$AL$26)),($A$6:$A$26=$A$39)*$M$6:$M$26),0) -> 0 | N39: =ROUND(SUMPRODUCT(--(ISNUMBER($AL$6:$AL$26)),($A$6:$A$26=$A$39)*$N$6:$N$26),0) -> 0 | O39: =ROUND(SUMPRODUCT(--(ISNUMBER($AL$6:$AL$26)),($A$6:$A$26=$A$39)*$O$6:$O$26),0) -> 0 | P39: =ROUND(SUMPRODUCT(--(ISNUMBER($AL$6:$AL$26)),($A$6:$A$26=$A$39)*$P$6:$P$26),0) -> 0 | Q39: =ROUND(SUMPRODUCT(--(ISNUMBER($AL$6:$AL$26)),($A$6:$A$26=$A$39)*$Q$6:$Q$26),0) -> 0 | R39: =ROUND(SUMPRODUCT(--(ISNUMBER($AL$6:$AL$26)),($A$6:$A$26=$A$39)*$R$6:$R$26),0) -> 0 | S39: =ROUND(SUMPRODUCT(--(ISNUMBER($AL$6:$AL$26)),($A$6:$A$26=$A$39)*$S$6:$S$26),0) -> 0 | T39: =ROUND(SUMPRODUCT(--(ISNUMBER($AL$6:$AL$26)),($A$6:$A$26=$A$39)*$T$6:$T$26),0) -> 0 | U39: =ROUND(SUMPRODUCT(--(ISNUMBER($AL$6:$AL$26)),($A$6:$A$26=$A$39)*$U$6:$U$26),0) -> 0 | V39: =ROUND(SUMPRODUCT(--(ISNUMBER($AL$6:$AL$26)),($A$6:$A$26=$A$39)*$V$6:$V$26),0) -> 0 | W39: =ROUND(SUMPRODUCT(--(ISNUMBER($AL$6:$AL$26)),($A$6:$A$26=$A$39)*$W$6:$W$26),0) -> 0 | X39: =ROUND(SUMPRODUCT(--(ISNUMBER($AL$6:$AL$26)),($A$6:$A$26=$A$39)*$X$6:$X$26),0) -> 0 | Y39: =ROUND(SUMPRODUCT(--(ISNUMBER($AL$6:$AL$26)),($A$6:$A$26=$A$39)*$Y$6:$Y$26),0) -> 0 | Z39: =ROUND(SUMPRODUCT(--(ISNUMBER($AL$6:$AL$26)),($A$6:$A$26=$A$39)*$Z$6:$Z$26),0) -> 0 | AA39: =ROUND(SUMPRODUCT(--(ISNUMBER($AL$6:$AL$26)),($A$6:$A$26=$A$39)*$AA$6:$AA$26),0) -> 0 | AB39: =ROUND(SUMPRODUCT(--(ISNUMBER($AL$6:$AL$26)),($A$6:$A$26=$A$39)*$AB$6:$AB$26),0) -> 0 | AC39: =ROUND(SUMPRODUCT(--(ISNUMBER($AL$6:$AL$26)),($A$6:$A$26=$A$39)*$AC$6:$AC$26),0) -> 0 | AD39: =ROUND(SUMPRODUCT(--(ISNUMBER($AL$6:$AL$26)),($A$6:$A$26=$A$39)*$AD$6:$AD$26),0) -> 0 | AE39: =ROUND(SUMPRODUCT(--(ISNUMBER($AL$6:$AL$26)),($A$6:$A$26=$A$39)*$AE$6:$AE$26),0) -> 0 | AF39: =ROUND(SUMPRODUCT(--(ISNUMBER($AL$6:$AL$26)),($A$6:$A$26=$A$39)*$AF$6:$AF$26),0) -> 0 | AG39: =ROUND(SUMPRODUCT(--(ISNUMBER($AL$6:$AL$26)),($A$6:$A$26=$A$39)*$AG$6:$AG$26),0) -> 0 | AH39: =ROUND(SUMPRODUCT(--(ISNUMBER($AL$6:$AL$26)),($A$6:$A$26=$A$39)*$AH$6:$AH$26),0) -> 0 | AI39: =ROUND(SUMPRODUCT(--(ISNUMBER($AL$6:$AL$26)),($A$6:$A$26=$A$39)*$AI$6:$AI$26),0) -> 0 | AJ39: =ROUND(SUMPRODUCT(--(ISNUMBER($AL$6:$AL$26)),($A$6:$A$26=$A$39)*$AJ$6:$AJ$26),0) -> 0 | AK39: =ROUND(SUMPRODUCT(--(ISNUMBER($AL$6:$AL$26)),($A$6:$A$26=$A$39)*$AK$6:$AK$26),0) -> 0 | AL39: =ROUND(SUMPRODUCT(--(ISNUMBER($AL$6:$AL$26)),($A$6:$A$26=$A$39)*$AL$6:$AL$26),0) -> 0
A40: ='Fringe Rates (Federal)'!O1 -> S&W Student Researcher Stipend | E40: =HLOOKUP(A40,'Fringe Rates (Federal)'!$F$1:$S$2,2,FALSE) -> 50110 | F40: =ROUND(SUMPRODUCT(--(ISNUMBER($AL$6:$AL$26)),($A$6:$A$26=$A$40)*$F$6:$F$26),0) -> 0 | G40: =ROUND(SUMPRODUCT(--(ISNUMBER($AL$6:$AL$26)),($A$6:$A$26=$A$40)*$G$6:$G$26),0) -> 0 | H40: =ROUND(SUMPRODUCT(--(ISNUMBER($AL$6:$AL$26)),($A$6:$A$26=$A$40)*$H$6:$H$26),0) -> 0 | I40: =ROUND(SUMPRODUCT(--(ISNUMBER($AL$6:$AL$26)),($A$6:$A$26=$A$40)*$I$6:$I$26),0) -> 0 | J40: =ROUND(SUMPRODUCT(--(ISNUMBER($AL$6:$AL$26)),($A$6:$A$26=$A$40)*$J$6:$J$26),0) -> 0 | K40: =ROUND(SUMPRODUCT(--(ISNUMBER($AL$6:$AL$26)),($A$6:$A$26=$A$40)*$K$6:$K$26),0) -> 0 | L40: =ROUND(SUMPRODUCT(--(ISNUMBER($AL$6:$AL$26)),($A$6:$A$26=$A$40)*$L$6:$L$26),0) -> 0 | M40: =ROUND(SUMPRODUCT(--(ISNUMBER($AL$6:$AL$26)),($A$6:$A$26=$A$40)*$M$6:$M$26),0) -> 0 | N40: =ROUND(SUMPRODUCT(--(ISNUMBER($AL$6:$AL$26)),($A$6:$A$26=$A$40)*$N$6:$N$26),0) -> 0 | O40: =ROUND(SUMPRODUCT(--(ISNUMBER($AL$6:$AL$26)),($A$6:$A$26=$A$40)*$O$6:$O$26),0) -> 0 | P40: =ROUND(SUMPRODUCT(--(ISNUMBER($AL$6:$AL$26)),($A$6:$A$26=$A$40)*$P$6:$P$26),0) -> 0 | Q40: =ROUND(SUMPRODUCT(--(ISNUMBER($AL$6:$AL$26)),($A$6:$A$26=$A$40)*$Q$6:$Q$26),0) -> 0 | R40: =ROUND(SUMPRODUCT(--(ISNUMBER($AL$6:$AL$26)),($A$6:$A$26=$A$40)*$R$6:$R$26),0) -> 0 | S40: =ROUND(SUMPRODUCT(--(ISNUMBER($AL$6:$AL$26)),($A$6:$A$26=$A$40)*$S$6:$S$26),0) -> 0 | T40: =ROUND(SUMPRODUCT(--(ISNUMBER($AL$6:$AL$26)),($A$6:$A$26=$A$40)*$T$6:$T$26),0) -> 0 | U40: =ROUND(SUMPRODUCT(--(ISNUMBER($AL$6:$AL$26)),($A$6:$A$26=$A$40)*$U$6:$U$26),0) -> 0 | V40: =ROUND(SUMPRODUCT(--(ISNUMBER($AL$6:$AL$26)),($A$6:$A$26=$A$40)*$V$6:$V$26),0) -> 0 | W40: =ROUND(SUMPRODUCT(--(ISNUMBER($AL$6:$AL$26)),($A$6:$A$26=$A$40)*$W$6:$W$26),0) -> 0 | X40: =ROUND(SUMPRODUCT(--(ISNUMBER($AL$6:$AL$26)),($A$6:$A$26=$A$40)*$X$6:$X$26),0) -> 0 | Y40: =ROUND(SUMPRODUCT(--(ISNUMBER($AL$6:$AL$26)),($A$6:$A$26=$A$40)*$Y$6:$Y$26),0) -> 0 | Z40: =ROUND(SUMPRODUCT(--(ISNUMBER($AL$6:$AL$26)),($A$6:$A$26=$A$40)*$Z$6:$Z$26),0) -> 0 | AA40: =ROUND(SUMPRODUCT(--(ISNUMBER($AL$6:$AL$26)),($A$6:$A$26=$A$40)*$AA$6:$AA$26),0) -> 0 | AB40: =ROUND(SUMPRODUCT(--(ISNUMBER($AL$6:$AL$26)),($A$6:$A$26=$A$40)*$AB$6:$AB$26),0) -> 0 | AC40: =ROUND(SUMPRODUCT(--(ISNUMBER($AL$6:$AL$26)),($A$6:$A$26=$A$40)*$AC$6:$AC$26),0) -> 0 | AD40: =ROUND(SUMPRODUCT(--(ISNUMBER($AL$6:$AL$26)),($A$6:$A$26=$A$40)*$AD$6:$AD$26),0) -> 0 | AE40: =ROUND(SUMPRODUCT(--(ISNUMBER($AL$6:$AL$26)),($A$6:$A$26=$A$40)*$AE$6:$AE$26),0) -> 0 | AF40: =ROUND(SUMPRODUCT(--(ISNUMBER($AL$6:$AL$26)),($A$6:$A$26=$A$40)*$AF$6:$AF$26),0) -> 0 | AG40: =ROUND(SUMPRODUCT(--(ISNUMBER($AL$6:$AL$26)),($A$6:$A$26=$A$40)*$AG$6:$AG$26),0) -> 0 | AH40: =ROUND(SUMPRODUCT(--(ISNUMBER($AL$6:$AL$26)),($A$6:$A$26=$A$40)*$AH$6:$AH$26),0) -> 0 | AI40: =ROUND(SUMPRODUCT(--(ISNUMBER($AL$6:$AL$26)),($A$6:$A$26=$A$40)*$AI$6:$AI$26),0) -> 0 | AJ40: =ROUND(SUMPRODUCT(--(ISNUMBER($AL$6:$AL$26)),($A$6:$A$26=$A$40)*$AJ$6:$AJ$26),0) -> 0 | AK40: =ROUND(SUMPRODUCT(--(ISNUMBER($AL$6:$AL$26)),($A$6:$A$26=$A$40)*$AK$6:$AK$26),0) -> 0 | AL40: =ROUND(SUMPRODUCT(--(ISNUMBER($AL$6:$AL$26)),($A$6:$A$26=$A$40)*$AL$6:$AL$26),0) -> 0
A41: ='Fringe Rates (Federal)'!P1 -> S&W Pre & Post Doctoral Employee | E41: =HLOOKUP(A41,'Fringe Rates (Federal)'!$F$1:$S$2,2,FALSE) -> 50115 | F41: =ROUND(SUMPRODUCT(--(ISNUMBER($AL$6:$AL$26)),($A$6:$A$26=$A$41)*$F$6:$F$26),0) -> 0 | G41: =ROUND(SUMPRODUCT(--(ISNUMBER($AL$6:$AL$26)),($A$6:$A$26=$A$41)*$G$6:$G$26),0) -> 0 | H41: =ROUND(SUMPRODUCT(--(ISNUMBER($AL$6:$AL$26)),($A$6:$A$26=$A$41)*$H$6:$H$26),0) -> 0 | I41: =ROUND(SUMPRODUCT(--(ISNUMBER($AL$6:$AL$26)),($A$6:$A$26=$A$41)*$I$6:$I$26),0) -> 0 | J41: =ROUND(SUMPRODUCT(--(ISNUMBER($AL$6:$AL$26)),($A$6:$A$26=$A$41)*$J$6:$J$26),0) -> 0 | K41: =ROUND(SUMPRODUCT(--(ISNUMBER($AL$6:$AL$26)),($A$6:$A$26=$A$41)*$K$6:$K$26),0) -> 0 | L41: =ROUND(SUMPRODUCT(--(ISNUMBER($AL$6:$AL$26)),($A$6:$A$26=$A$41)*$L$6:$L$26),0) -> 0 | M41: =ROUND(SUMPRODUCT(--(ISNUMBER($AL$6:$AL$26)),($A$6:$A$26=$A$41)*$M$6:$M$26),0) -> 0 | N41: =ROUND(SUMPRODUCT(--(ISNUMBER($AL$6:$AL$26)),($A$6:$A$26=$A$41)*$N$6:$N$26),0) -> 0 | O41: =ROUND(SUMPRODUCT(--(ISNUMBER($AL$6:$AL$26)),($A$6:$A$26=$A$41)*$O$6:$O$26),0) -> 0 | P41: =ROUND(SUMPRODUCT(--(ISNUMBER($AL$6:$AL$26)),($A$6:$A$26=$A$41)*$P$6:$P$26),0) -> 0 | Q41: =ROUND(SUMPRODUCT(--(ISNUMBER($AL$6:$AL$26)),($A$6:$A$26=$A$41)*$Q$6:$Q$26),0) -> 0 | R41: =ROUND(SUMPRODUCT(--(ISNUMBER($AL$6:$AL$26)),($A$6:$A$26=$A$41)*$R$6:$R$26),0) -> 0 | S41: =ROUND(SUMPRODUCT(--(ISNUMBER($AL$6:$AL$26)),($A$6:$A$26=$A$41)*$S$6:$S$26),0) -> 0 | T41: =ROUND(SUMPRODUCT(--(ISNUMBER($AL$6:$AL$26)),($A$6:$A$26=$A$41)*$T$6:$T$26),0) -> 0 | U41: =ROUND(SUMPRODUCT(--(ISNUMBER($AL$6:$AL$26)),($A$6:$A$26=$A$41)*$U$6:$U$26),0) -> 0 | V41: =ROUND(SUMPRODUCT(--(ISNUMBER($AL$6:$AL$26)),($A$6:$A$26=$A$41)*$V$6:$V$26),0) -> 0 | W41: =ROUND(SUMPRODUCT(--(ISNUMBER($AL$6:$AL$26)),($A$6:$A$26=$A$41)*$W$6:$W$26),0) -> 0 | X41: =ROUND(SUMPRODUCT(--(ISNUMBER($AL$6:$AL$26)),($A$6:$A$26=$A$41)*$X$6:$X$26),0) -> 0 | Y41: =ROUND(SUMPRODUCT(--(ISNUMBER($AL$6:$AL$26)),($A$6:$A$26=$A$41)*$Y$6:$Y$26),0) -> 0 | Z41: =ROUND(SUMPRODUCT(--(ISNUMBER($AL$6:$AL$26)),($A$6:$A$26=$A$41)*$Z$6:$Z$26),0) -> 0 | AA41: =ROUND(SUMPRODUCT(--(ISNUMBER($AL$6:$AL$26)),($A$6:$A$26=$A$41)*$AA$6:$AA$26),0) -> 0 | AB41: =ROUND(SUMPRODUCT(--(ISNUMBER($AL$6:$AL$26)),($A$6:$A$26=$A$41)*$AB$6:$AB$26),0) -> 0 | AC41: =ROUND(SUMPRODUCT(--(ISNUMBER($AL$6:$AL$26)),($A$6:$A$26=$A$41)*$AC$6:$AC$26),0) -> 0 | AD41: =ROUND(SUMPRODUCT(--(ISNUMBER($AL$6:$AL$26)),($A$6:$A$26=$A$41)*$AD$6:$AD$26),0) -> 0 | AE41: =ROUND(SUMPRODUCT(--(ISNUMBER($AL$6:$AL$26)),($A$6:$A$26=$A$41)*$AE$6:$AE$26),0) -> 0 | AF41: =ROUND(SUMPRODUCT(--(ISNUMBER($AL$6:$AL$26)),($A$6:$A$26=$A$41)*$AF$6:$AF$26),0) -> 0 | AG41: =ROUND(SUMPRODUCT(--(ISNUMBER($AL$6:$AL$26)),($A$6:$A$26=$A$41)*$AG$6:$AG$26),0) -> 0 | AH41: =ROUND(SUMPRODUCT(--(ISNUMBER($AL$6:$AL$26)),($A$6:$A$26=$A$41)*$AH$6:$AH$26),0) -> 0 | AI41: =ROUND(SUMPRODUCT(--(ISNUMBER($AL$6:$AL$26)),($A$6:$A$26=$A$41)*$AI$6:$AI$26),0) -> 0 | AJ41: =ROUND(SUMPRODUCT(--(ISNUMBER($AL$6:$AL$26)),($A$6:$A$26=$A$41)*$AJ$6:$AJ$26),0) -> 0 | AK41: =ROUND(SUMPRODUCT(--(ISNUMBER($AL$6:$AL$26)),($A$6:$A$26=$A$41)*$AK$6:$AK$26),0) -> 0 | AL41: =ROUND(SUMPRODUCT(--(ISNUMBER($AL$6:$AL$26)),($A$6:$A$26=$A$41)*$AL$6:$AL$26),0) -> 0
A42: ='Fringe Rates (Federal)'!Q1 -> S&W Hourly Employees | E42: =HLOOKUP(A42,'Fringe Rates (Federal)'!$F$1:$S$2,2,FALSE) -> 50120 | F42: =ROUND(SUMPRODUCT(--(ISNUMBER($AL$6:$AL$26)),($A$6:$A$26=$A$42)*$F$6:$F$26),0) -> 0 | G42: =ROUND(SUMPRODUCT(--(ISNUMBER($AL$6:$AL$26)),($A$6:$A$26=$A$42)*$G$6:$G$26),0) -> 0 | H42: =ROUND(SUMPRODUCT(--(ISNUMBER($AL$6:$AL$26)),($A$6:$A$26=$A$42)*$H$6:$H$26),0) -> 0 | I42: =ROUND(SUMPRODUCT(--(ISNUMBER($AL$6:$AL$26)),($A$6:$A$26=$A$42)*$I$6:$I$26),0) -> 0 | J42: =ROUND(SUMPRODUCT(--(ISNUMBER($AL$6:$AL$26)),($A$6:$A$26=$A$42)*$J$6:$J$26),0) -> 0 | K42: =ROUND(SUMPRODUCT(--(ISNUMBER($AL$6:$AL$26)),($A$6:$A$26=$A$42)*$K$6:$K$26),0) -> 0 | L42: =ROUND(SUMPRODUCT(--(ISNUMBER($AL$6:$AL$26)),($A$6:$A$26=$A$42)*$L$6:$L$26),0) -> 0 | M42: =ROUND(SUMPRODUCT(--(ISNUMBER($AL$6:$AL$26)),($A$6:$A$26=$A$42)*$M$6:$M$26),0) -> 0 | N42: =ROUND(SUMPRODUCT(--(ISNUMBER($AL$6:$AL$26)),($A$6:$A$26=$A$42)*$N$6:$N$26),0) -> 0 | O42: =ROUND(SUMPRODUCT(--(ISNUMBER($AL$6:$AL$26)),($A$6:$A$26=$A$42)*$O$6:$O$26),0) -> 0 | P42: =ROUND(SUMPRODUCT(--(ISNUMBER($AL$6:$AL$26)),($A$6:$A$26=$A$42)*$P$6:$P$26),0) -> 0 | Q42: =ROUND(SUMPRODUCT(--(ISNUMBER($AL$6:$AL$26)),($A$6:$A$26=$A$42)*$Q$6:$Q$26),0) -> 0 | R42: =ROUND(SUMPRODUCT(--(ISNUMBER($AL$6:$AL$26)),($A$6:$A$26=$A$42)*$R$6:$R$26),0) -> 0 | S42: =ROUND(SUMPRODUCT(--(ISNUMBER($AL$6:$AL$26)),($A$6:$A$26=$A$42)*$S$6:$S$26),0) -> 0 | T42: =ROUND(SUMPRODUCT(--(ISNUMBER($AL$6:$AL$26)),($A$6:$A$26=$A$42)*$T$6:$T$26),0) -> 0 | U42: =ROUND(SUMPRODUCT(--(ISNUMBER($AL$6:$AL$26)),($A$6:$A$26=$A$42)*$U$6:$U$26),0) -> 0 | V42: =ROUND(SUMPRODUCT(--(ISNUMBER($AL$6:$AL$26)),($A$6:$A$26=$A$42)*$V$6:$V$26),0) -> 0 | W42: =ROUND(SUMPRODUCT(--(ISNUMBER($AL$6:$AL$26)),($A$6:$A$26=$A$42)*$W$6:$W$26),0) -> 0 | X42: =ROUND(SUMPRODUCT(--(ISNUMBER($AL$6:$AL$26)),($A$6:$A$26=$A$42)*$X$6:$X$26),0) -> 0 | Y42: =ROUND(SUMPRODUCT(--(ISNUMBER($AL$6:$AL$26)),($A$6:$A$26=$A$42)*$Y$6:$Y$26),0) -> 0 | Z42: =ROUND(SUMPRODUCT(--(ISNUMBER($AL$6:$AL$26)),($A$6:$A$26=$A$42)*$Z$6:$Z$26),0) -> 0 | AA42: =ROUND(SUMPRODUCT(--(ISNUMBER($AL$6:$AL$26)),($A$6:$A$26=$A$42)*$AA$6:$AA$26),0) -> 0 | AB42: =ROUND(SUMPRODUCT(--(ISNUMBER($AL$6:$AL$26)),($A$6:$A$26=$A$42)*$AB$6:$AB$26),0) -> 0 | AC42: =ROUND(SUMPRODUCT(--(ISNUMBER($AL$6:$AL$26)),($A$6:$A$26=$A$42)*$AC$6:$AC$26),0) -> 0 | AD42: =ROUND(SUMPRODUCT(--(ISNUMBER($AL$6:$AL$26)),($A$6:$A$26=$A$42)*$AD$6:$AD$26),0) -> 0 | AE42: =ROUND(SUMPRODUCT(--(ISNUMBER($AL$6:$AL$26)),($A$6:$A$26=$A$42)*$AE$6:$AE$26),0) -> 0 | AF42: =ROUND(SUMPRODUCT(--(ISNUMBER($AL$6:$AL$26)),($A$6:$A$26=$A$42)*$AF$6:$AF$26),0) -> 0 | AG42: =ROUND(SUMPRODUCT(--(ISNUMBER($AL$6:$AL$26)),($A$6:$A$26=$A$42)*$AG$6:$AG$26),0) -> 0 | AH42: =ROUND(SUMPRODUCT(--(ISNUMBER($AL$6:$AL$26)),($A$6:$A$26=$A$42)*$AH$6:$AH$26),0) -> 0 | AI42: =ROUND(SUMPRODUCT(--(ISNUMBER($AL$6:$AL$26)),($A$6:$A$26=$A$42)*$AI$6:$AI$26),0) -> 0 | AJ42: =ROUND(SUMPRODUCT(--(ISNUMBER($AL$6:$AL$26)),($A$6:$A$26=$A$42)*$AJ$6:$AJ$26),0) -> 0 | AK42: =ROUND(SUMPRODUCT(--(ISNUMBER($AL$6:$AL$26)),($A$6:$A$26=$A$42)*$AK$6:$AK$26),0) -> 0 | AL42: =ROUND(SUMPRODUCT(--(ISNUMBER($AL$6:$AL$26)),($A$6:$A$26=$A$42)*$AL$6:$AL$26),0) -> 0
A43: ='Fringe Rates (Federal)'!R1 -> S&W (No Fringe) | E43: =HLOOKUP(A43,'Fringe Rates (Federal)'!$F$1:$S$2,2,FALSE) -> N/A | F43: =ROUND(SUMPRODUCT(--(ISNUMBER($AL$6:$AL$26)),($A$6:$A$26=$A$43)*$F$6:$F$26),0) -> 0 | G43: =ROUND(SUMPRODUCT(--(ISNUMBER($AL$6:$AL$26)),($A$6:$A$26=$A$43)*$G$6:$G$26),0) -> 0 | H43: =ROUND(SUMPRODUCT(--(ISNUMBER($AL$6:$AL$26)),($A$6:$A$26=$A$43)*$H$6:$H$26),0) -> 0 | I43: =ROUND(SUMPRODUCT(--(ISNUMBER($AL$6:$AL$26)),($A$6:$A$26=$A$43)*$I$6:$I$26),0) -> 0 | J43: =ROUND(SUMPRODUCT(--(ISNUMBER($AL$6:$AL$26)),($A$6:$A$26=$A$43)*$J$6:$J$26),0) -> 0 | K43: =ROUND(SUMPRODUCT(--(ISNUMBER($AL$6:$AL$26)),($A$6:$A$26=$A$43)*$K$6:$K$26),0) -> 0 | L43: =ROUND(SUMPRODUCT(--(ISNUMBER($AL$6:$AL$26)),($A$6:$A$26=$A$43)*$L$6:$L$26),0) -> 0 | M43: =ROUND(SUMPRODUCT(--(ISNUMBER($AL$6:$AL$26)),($A$6:$A$26=$A$43)*$M$6:$M$26),0) -> 0 | N43: =ROUND(SUMPRODUCT(--(ISNUMBER($AL$6:$AL$26)),($A$6:$A$26=$A$43)*$N$6:$N$26),0) -> 0 | O43: =ROUND(SUMPRODUCT(--(ISNUMBER($AL$6:$AL$26)),($A$6:$A$26=$A$43)*$O$6:$O$26),0) -> 0 | P43: =ROUND(SUMPRODUCT(--(ISNUMBER($AL$6:$AL$26)),($A$6:$A$26=$A$43)*$P$6:$P$26),0) -> 0 | Q43: =ROUND(SUMPRODUCT(--(ISNUMBER($AL$6:$AL$26)),($A$6:$A$26=$A$43)*$Q$6:$Q$26),0) -> 0 | R43: =ROUND(SUMPRODUCT(--(ISNUMBER($AL$6:$AL$26)),($A$6:$A$26=$A$43)*$R$6:$R$26),0) -> 0 | S43: =ROUND(SUMPRODUCT(--(ISNUMBER($AL$6:$AL$26)),($A$6:$A$26=$A$43)*$S$6:$S$26),0) -> 0 | T43: =ROUND(SUMPRODUCT(--(ISNUMBER($AL$6:$AL$26)),($A$6:$A$26=$A$43)*$T$6:$T$26),0) -> 0 | U43: =ROUND(SUMPRODUCT(--(ISNUMBER($AL$6:$AL$26)),($A$6:$A$26=$A$43)*$U$6:$U$26),0) -> 0 | V43: =ROUND(SUMPRODUCT(--(ISNUMBER($AL$6:$AL$26)),($A$6:$A$26=$A$43)*$V$6:$V$26),0) -> 0 | W43: =ROUND(SUMPRODUCT(--(ISNUMBER($AL$6:$AL$26)),($A$6:$A$26=$A$43)*$W$6:$W$26),0) -> 0 | X43: =ROUND(SUMPRODUCT(--(ISNUMBER($AL$6:$AL$26)),($A$6:$A$26=$A$43)*$X$6:$X$26),0) -> 0 | Y43: =ROUND(SUMPRODUCT(--(ISNUMBER($AL$6:$AL$26)),($A$6:$A$26=$A$43)*$Y$6:$Y$26),0) -> 0 | Z43: =ROUND(SUMPRODUCT(--(ISNUMBER($AL$6:$AL$26)),($A$6:$A$26=$A$43)*$Z$6:$Z$26),0) -> 0 | AA43: =ROUND(SUMPRODUCT(--(ISNUMBER($AL$6:$AL$26)),($A$6:$A$26=$A$43)*$AA$6:$AA$26),0) -> 0 | AB43: =ROUND(SUMPRODUCT(--(ISNUMBER($AL$6:$AL$26)),($A$6:$A$26=$A$43)*$AB$6:$AB$26),0) -> 0 | AC43: =ROUND(SUMPRODUCT(--(ISNUMBER($AL$6:$AL$26)),($A$6:$A$26=$A$43)*$AC$6:$AC$26),0) -> 0 | AD43: =ROUND(SUMPRODUCT(--(ISNUMBER($AL$6:$AL$26)),($A$6:$A$26=$A$43)*$AD$6:$AD$26),0) -> 0 | AE43: =ROUND(SUMPRODUCT(--(ISNUMBER($AL$6:$AL$26)),($A$6:$A$26=$A$43)*$AE$6:$AE$26),0) -> 0 | AF43: =ROUND(SUMPRODUCT(--(ISNUMBER($AL$6:$AL$26)),($A$6:$A$26=$A$43)*$AF$6:$AF$26),0) -> 0 | AG43: =ROUND(SUMPRODUCT(--(ISNUMBER($AL$6:$AL$26)),($A$6:$A$26=$A$43)*$AG$6:$AG$26),0) -> 0 | AH43: =ROUND(SUMPRODUCT(--(ISNUMBER($AL$6:$AL$26)),($A$6:$A$26=$A$43)*$AH$6:$AH$26),0) -> 0 | AI43: =ROUND(SUMPRODUCT(--(ISNUMBER($AL$6:$AL$26)),($A$6:$A$26=$A$43)*$AI$6:$AI$26),0) -> 0 | AJ43: =ROUND(SUMPRODUCT(--(ISNUMBER($AL$6:$AL$26)),($A$6:$A$26=$A$43)*$AJ$6:$AJ$26),0) -> 0 | AK43: =ROUND(SUMPRODUCT(--(ISNUMBER($AL$6:$AL$26)),($A$6:$A$26=$A$43)*$AK$6:$AK$26),0) -> 0 | AL43: =ROUND(SUMPRODUCT(--(ISNUMBER($AL$6:$AL$26)),($A$6:$A$26=$A$43)*$AL$6:$AL$26),0) -> 0
A44: ='Fringe Rates (Federal)'!S1 -> S&W (Custom Fringe Rate) | E44: =HLOOKUP(A44,'Fringe Rates (Federal)'!$F$1:$S$2,2,FALSE) -> N/A | F44: =ROUND(SUMPRODUCT(--(ISNUMBER($AL$6:$AL$26)),($A$6:$A$26=$A$44)*$F$6:$F$26),0) -> 0 | G44: =ROUND(SUMPRODUCT(--(ISNUMBER($AL$6:$AL$26)),($A$6:$A$26=$A$44)*$G$6:$G$26),0) -> 0 | H44: =ROUND(SUMPRODUCT(--(ISNUMBER($AL$6:$AL$26)),($A$6:$A$26=$A$44)*$H$6:$H$26),0) -> 0 | I44: =ROUND(SUMPRODUCT(--(ISNUMBER($AL$6:$AL$26)),($A$6:$A$26=$A$44)*$I$6:$I$26),0) -> 0 | J44: =ROUND(SUMPRODUCT(--(ISNUMBER($AL$6:$AL$26)),($A$6:$A$26=$A$44)*$J$6:$J$26),0) -> 0 | K44: =ROUND(SUMPRODUCT(--(ISNUMBER($AL$6:$AL$26)),($A$6:$A$26=$A$44)*$K$6:$K$26),0) -> 0 | L44: =ROUND(SUMPRODUCT(--(ISNUMBER($AL$6:$AL$26)),($A$6:$A$26=$A$44)*$L$6:$L$26),0) -> 0 | M44: =ROUND(SUMPRODUCT(--(ISNUMBER($AL$6:$AL$26)),($A$6:$A$26=$A$44)*$M$6:$M$26),0) -> 0 | N44: =ROUND(SUMPRODUCT(--(ISNUMBER($AL$6:$AL$26)),($A$6:$A$26=$A$44)*$N$6:$N$26),0) -> 0 | O44: =ROUND(SUMPRODUCT(--(ISNUMBER($AL$6:$AL$26)),($A$6:$A$26=$A$44)*$O$6:$O$26),0) -> 0 | P44: =ROUND(SUMPRODUCT(--(ISNUMBER($AL$6:$AL$26)),($A$6:$A$26=$A$44)*$P$6:$P$26),0) -> 0 | Q44: =ROUND(SUMPRODUCT(--(ISNUMBER($AL$6:$AL$26)),($A$6:$A$26=$A$44)*$Q$6:$Q$26),0) -> 0 | R44: =ROUND(SUMPRODUCT(--(ISNUMBER($AL$6:$AL$26)),($A$6:$A$26=$A$44)*$R$6:$R$26),0) -> 0 | S44: =ROUND(SUMPRODUCT(--(ISNUMBER($AL$6:$AL$26)),($A$6:$A$26=$A$44)*$S$6:$S$26),0) -> 0 | T44: =ROUND(SUMPRODUCT(--(ISNUMBER($AL$6:$AL$26)),($A$6:$A$26=$A$44)*$T$6:$T$26),0) -> 0 | U44: =ROUND(SUMPRODUCT(--(ISNUMBER($AL$6:$AL$26)),($A$6:$A$26=$A$44)*$U$6:$U$26),0) -> 0 | V44: =ROUND(SUMPRODUCT(--(ISNUMBER($AL$6:$AL$26)),($A$6:$A$26=$A$44)*$V$6:$V$26),0) -> 0 | W44: =ROUND(SUMPRODUCT(--(ISNUMBER($AL$6:$AL$26)),($A$6:$A$26=$A$44)*$W$6:$W$26),0) -> 0 | X44: =ROUND(SUMPRODUCT(--(ISNUMBER($AL$6:$AL$26)),($A$6:$A$26=$A$44)*$X$6:$X$26),0) -> 0 | Y44: =ROUND(SUMPRODUCT(--(ISNUMBER($AL$6:$AL$26)),($A$6:$A$26=$A$44)*$Y$6:$Y$26),0) -> 0 | Z44: =ROUND(SUMPRODUCT(--(ISNUMBER($AL$6:$AL$26)),($A$6:$A$26=$A$44)*$Z$6:$Z$26),0) -> 0 | AA44: =ROUND(SUMPRODUCT(--(ISNUMBER($AL$6:$AL$26)),($A$6:$A$26=$A$44)*$AA$6:$AA$26),0) -> 0 | AB44: =ROUND(SUMPRODUCT(--(ISNUMBER($AL$6:$AL$26)),($A$6:$A$26=$A$44)*$AB$6:$AB$26),0) -> 0 | AC44: =ROUND(SUMPRODUCT(--(ISNUMBER($AL$6:$AL$26)),($A$6:$A$26=$A$44)*$AC$6:$AC$26),0) -> 0 | AD44: =ROUND(SUMPRODUCT(--(ISNUMBER($AL$6:$AL$26)),($A$6:$A$26=$A$44)*$AD$6:$AD$26),0) -> 0 | AE44: =ROUND(SUMPRODUCT(--(ISNUMBER($AL$6:$AL$26)),($A$6:$A$26=$A$44)*$AE$6:$AE$26),0) -> 0 | AF44: =ROUND(SUMPRODUCT(--(ISNUMBER($AL$6:$AL$26)),($A$6:$A$26=$A$44)*$AF$6:$AF$26),0) -> 0 | AG44: =ROUND(SUMPRODUCT(--(ISNUMBER($AL$6:$AL$26)),($A$6:$A$26=$A$44)*$AG$6:$AG$26),0) -> 0 | AH44: =ROUND(SUMPRODUCT(--(ISNUMBER($AL$6:$AL$26)),($A$6:$A$26=$A$44)*$AH$6:$AH$26),0) -> 0 | AI44: =ROUND(SUMPRODUCT(--(ISNUMBER($AL$6:$AL$26)),($A$6:$A$26=$A$44)*$AI$6:$AI$26),0) -> 0 | AJ44: =ROUND(SUMPRODUCT(--(ISNUMBER($AL$6:$AL$26)),($A$6:$A$26=$A$44)*$AJ$6:$AJ$26),0) -> 0 | AK44: =ROUND(SUMPRODUCT(--(ISNUMBER($AL$6:$AL$26)),($A$6:$A$26=$A$44)*$AK$6:$AK$26),0) -> 0 | AL44: =ROUND(SUMPRODUCT(--(ISNUMBER($AL$6:$AL$26)),($A$6:$A$26=$A$44)*$AL$6:$AL$26),0) -> 0
E45: Total Salaries & Wages | F45: =ROUND(SUM(F31:F44),0) -> 0 | G45: =ROUND(SUM(G31:G44),0) -> 0 | H45: 0 | I45: 0 | J45: 0 | K45: 0 | L45: 0 | M45: 0 | N45: 0 | O45: 0 | P45: 0 | Q45: 0 | R45: 0 | S45: 0 | T45: 0 | U45: 0 | V45: 0 | W45: 0 | X45: 0 | Y45: 0 | Z45: 0 | AA45: 0 | AB45: 0 | AC45: 0 | AD45: 0 | AE45: 0 | AF45: 0 | AG45: 0 | AH45: 0 | AI45: 0 | AJ45: 0 | AK45: 0 | AL45: 0

Sheet Personnel (Basic)
A1: Personnel Worksheet (Basic) | F1: ** You are advised to build salary increases of 3% into future year budgets
A2: =Welcome!B13 -> Make a selection | F2: ** FICA and Medicare may apply to certain GAs and TAs based on appointment.
A3: =Welcome!B14 -> 0 | E3: =Welcome!A56 -> Budget Period 1 | H3: =Welcome!A57 -> Budget Period 2 | K3: =Welcome!A58 -> Budget Period 3 | N3: =Welcome!A59 -> Budget Period 4 | Q3: =Welcome!A60 -> Budget Period 5 | T3: =Welcome!A61 -> Budget Period 6 | W3: =Welcome!A62 -> Budget Period 7 | Z3: =Welcome!A63 -> Budget Period 8 | AC3: =Welcome!A64 -> Budget Period 9 | AF3: =Welcome!A65 -> Budget Period 10
D4: =Welcome!B56 -> Enter Start Date | E4: =Welcome!C56 -> Enter End Date | F4: =IF(OR(Welcome!D56="N/A",Welcome!E56="N/A"),"N/A",Welcome!D56) -> N/A | G4: =Welcome!B57 -> Enter Start Date | H4: =Welcome!C57 -> Enter End Date | I4: =IF(OR(Welcome!D57="N/A",Welcome!E57="N/A"),"N/A",Welcome!D57) -> N/A | J4: =Welcome!B58 -> Enter Start Date | K4: =Welcome!C58 -> Enter End Date | L4: =IF(OR(Welcome!D58="N/A",Welcome!E58="N/A"),"N/A",Welcome!D58) -> N/A | M4: =Welcome!B59 -> Enter Start Date | N4: =Welcome!C59 -> Enter End Date | O4: =IF(OR(Welcome!D59="N/A",Welcome!E59="N/A"),"N/A",Welcome!D59) -> N/A | P4: =Welcome!B60 -> Enter Start Date | Q4: =Welcome!C60 -> Enter End Date | R4: =IF(OR(Welcome!D60="N/A",Welcome!E60="N/A"),"N/A",Welcome!D60) -> N/A | S4: =Welcome!B61 -> Enter Start Date | T4: =Welcome!C61 -> Enter End Date | U4: =IF(OR(Welcome!D61="N/A",Welcome!E61="N/A"),"N/A",Welcome!D61) -> N/A | V4: =Welcome!B62 -> Enter Start Date | W4: =Welcome!C62 -> Enter End Date | X4: =IF(OR(Welcome!D62="N/A",Welcome!E62="N/A"),"N/A",Welcome!D62) -> N/A | Y4: =Welcome!B63 -> Enter Start Date | Z4: =Welcome!C63 -> Enter End Date | AA4: =IF(OR(Welcome!D63="N/A",Welcome!E63="N/A"),"N/A",Welcome!D63) -> N/A | AB4: =Welcome!B64 -> Enter Start Date | AC4: =Welcome!C64 -> Enter End Date | AD4: =IF(OR(Welcome!D64="N/A",Welcome!E64="N/A"),"N/A",Welcome!D64) -> N/A | AE4: =Welcome!B65 -> Enter Start Date | AF4: =Welcome!C65 -> Enter End Date | AG4: =IF(OR(Welcome!D65="N/A",Welcome!E65="N/A"),"N/A",Welcome!D65) -> N/A | AI4: Grand Total
A5: Select Category from Dropdown | B5: Account Code | C5: Personnel Name | D5: Salary | E5: Fringe | F5: Total | G5: Salary | H5: Fringe | I5: Total | J5: Salary | K5: Fringe | L5: Total | M5: Salary | N5: Fringe | O5: Total | P5: Salary | Q5: Fringe | R5: Total | S5: Salary | T5: Fringe | U5: Total | V5: Salary | W5: Fringe | X5: Total | Y5: Salary | Z5: Fringe | AA5: Total | AB5: Salary | AC5: Fringe | AD5: Total | AE5: Salary | AF5: Fringe | AG5: Total | AH5: Salary | AI5: Fringe | AJ5: Grand Total | AL5: Notes
A6: Select Category | B6: =IF(A6="Select Category","N/A",HLOOKUP(A6,'Fringe Rates (Federal)'!$F$1:$S$2,2,FALSE)) -> N/A | C6: Enter Staff Name | D6: 0 | E6: =IF($A$3=1,ROUND(IF(OR(A6="Select Category",$F$4="N/A"),0,(D6)*INDEX('Fringe Rates (Federal)'!$F$3:$S$19,MATCH($F$4,'Fringe Rates (Federal)'!$A$3:$A$19,0),MATCH(A6,FFR[[#Headers],[S&W Staff]:[S&W (Custom Fringe Rate)]],0))),0),ROUND(IF(OR(A6="Select Category",$F$4="N/A"),0,(D6)*INDEX('Fringe Rates (non-Federal)'!$F$3:$S$19,MATCH($F$4,'Fringe Rates (non-Federal)'!$A$3:$A$19,0),MATCH(A6,NFFR[[#Headers],[S&W Staff]:[S&W (Custom Fringe Rate)]],0))),0)) -> 0 | F6: =IF(OR(A6="Select Category",$F$4="N/A"),0,ROUND(SUM(D6:E6),0)) -> 0 | G6: 0 | H6: =IF($A$3=1,ROUND(IF(OR(A6="Select Category",$I$4="N/A"),0,(G6)*INDEX('Fringe Rates (Federal)'!$F$3:$S$19,MATCH($I$4,'Fringe Rates (Federal)'!$A$3:$A$19,0),MATCH(A6,FFR[[#Headers],[S&W Staff]:[S&W (Custom Fringe Rate)]],0))),0),ROUND(IF(OR(A6="Select Category",$I$4="N/A"),0,(G6)*INDEX('Fringe Rates (non-Federal)'!$F$3:$S$19,MATCH($I$4,'Fringe Rates (non-Federal)'!$A$3:$A$19,0),MATCH(A6,NFFR[[#Headers],[S&W Staff]:[S&W (Custom Fringe Rate)]],0))),0)) -> 0 | I6: =IF(OR(A6="Select Category",$I$4="N/A"),0,ROUND(SUM(G6:H6),0)) -> 0 | J6: 0 | K6: =IF($A$3=1,ROUND(IF(OR(A6="Select Category",$L$4="N/A"),0,(J6)*INDEX('Fringe Rates (Federal)'!$F$3:$S$19,MATCH($L$4,'Fringe Rates (Federal)'!$A$3:$A$19,0),MATCH(A6,FFR[[#Headers],[S&W Staff]:[S&W (Custom Fringe Rate)]],0))),0),ROUND(IF(OR(A6="Select Category",$L$4="N/A"),0,(J6)*INDEX('Fringe Rates (non-Federal)'!$F$3:$S$19,MATCH($L$4,'Fringe Rates (non-Federal)'!$A$3:$A$19,0),MATCH(A6,NFFR[[#Headers],[S&W Staff]:[S&W (Custom Fringe Rate)]],0))),0)) -> 0 | L6: =IF(OR(A6="Select Category",$L$4="N/A"),0,ROUND(SUM(J6:K6),0)) -> 0 | M6: 0 | N6: =IF($A$3=1,ROUND(IF(OR(A6="Select Category",$O$4="N/A"),0,(M6)*INDEX('Fringe Rates (Federal)'!$F$3:$S$19,MATCH($O$4,'Fringe Rates (Federal)'!$A$3:$A$19,0),MATCH(A6,FFR[[#Headers],[S&W Staff]:[S&W (Custom Fringe Rate)]],0))),0),ROUND(IF(OR(A6="Select Category",$O$4="N/A"),0,(M6)*INDEX('Fringe Rates (non-Federal)'!$F$3:$S$19,MATCH($O$4,'Fringe Rates (non-Federal)'!$A$3:$A$19,0),MATCH(A6,NFFR[[#Headers],[S&W Staff]:[S&W (Custom Fringe Rate)]],0))),0)) -> 0 | O6: =IF(OR(A6="Select Category",$O$4="N/A"),0,ROUND(SUM(M6:N6),0)) -> 0 | P6: 0 | Q6: =IF($A$3=1,ROUND(IF(OR(A6="Select Category",$R$4="N/A"),0,(P6)*INDEX('Fringe Rates (Federal)'!$F$3:$S$19,MATCH($R$4,'Fringe Rates (Federal)'!$A$3:$A$19,0),MATCH(A6,FFR[[#Headers],[S&W Staff]:[S&W (Custom Fringe Rate)]],0))),0),ROUND(IF(OR(A6="Select Category",$R$4="N/A"),0,(P6)*INDEX('Fringe Rates (non-Federal)'!$F$3:$S$19,MATCH($R$4,'Fringe Rates (non-Federal)'!$A$3:$A$19,0),MATCH(A6,NFFR[[#Headers],[S&W Staff]:[S&W (Custom Fringe Rate)]],0))),0)) -> 0 | R6: =IF(OR(A6="Select Category",$R$4="N/A"),0,ROUND(SUM(P6:Q6),0)) -> 0 | S6: 0 | T6: =IF($A$3=1,ROUND(IF(OR(A6="Select Category",$U$4="N/A"),0,(S6)*INDEX('Fringe Rates (Federal)'!$F$3:$S$19,MATCH($U$4,'Fringe Rates (Federal)'!$A$3:$A$19,0),MATCH(A6,FFR[[#Headers],[S&W Staff]:[S&W (Custom Fringe Rate)]],0))),0),ROUND(IF(OR(A6="Select Category",$U$4="N/A"),0,(S6)*INDEX('Fringe Rates (non-Federal)'!$F$3:$S$19,MATCH($U$4,'Fringe Rates (non-Federal)'!$A$3:$A$19,0),MATCH(A6,NFFR[[#Headers],[S&W Staff]:[S&W (Custom Fringe Rate)]],0))),0)) -> 0 | U6: =IF(OR(A6="Select Category",$U$4="N/A"),0,ROUND(SUM(S6:T6),0)) -> 0 | V6: 0 | W6: =IF($A$3=1,ROUND(IF(OR(A6="Select Category",$X$4="N/A"),0,(V6)*INDEX('Fringe Rates (Federal)'!$F$3:$S$19,MATCH($X$4,'Fringe Rates (Federal)'!$A$3:$A$19,0),MATCH(A6,FFR[[#Headers],[S&W Staff]:[S&W (Custom Fringe Rate)]],0))),0),ROUND(IF(OR(A6="Select Category",$X$4="N/A"),0,(V6)*INDEX('Fringe Rates (non-Federal)'!$F$3:$S$19,MATCH($X$4,'Fringe Rates (non-Federal)'!$A$3:$A$19,0),MATCH(A6,NFFR[[#Headers],[S&W Staff]:[S&W (Custom Fringe Rate)]],0))),0)) -> 0 | X6: =IF(OR(A6="Select Category",$X$4="N/A"),0,ROUND(SUM(V6:W6),0)) -> 0 | Y6: 0 | Z6: =IF($A$3=1,ROUND(IF(OR(A6="Select Category",$AA$4="N/A"),0,(Y6)*INDEX('Fringe Rates (Federal)'!$F$3:$S$19,MATCH($AA$4,'Fringe Rates (Federal)'!$A$3:$A$19,0),MATCH(A6,FFR[[#Headers],[S&W Staff]:[S&W (Custom Fringe Rate)]],0))),0),ROUND(IF(OR(A6="Select Category",$AA$4="N/A"),0,(Y6)*INDEX('Fringe Rates (non-Federal)'!$F$3:$S$19,MATCH($AA$4,'Fringe Rates (non-Federal)'!$A$3:$A$19,0),MATCH(A6,NFFR[[#Headers],[S&W Staff]:[S&W (Custom Fringe Rate)]],0))),0)) -> 0 | AA6: =IF(OR(A6="Select Category",$AA$4="N/A"),0,ROUND(SUM(Y6:Z6),0)) -> 0 | AB6: 0 | AC6: =IF($A$3=1,ROUND(IF(OR(A6="Select Category",$AD$4="N/A"),0,(AB6)*INDEX('Fringe Rates (Federal)'!$F$3:$S$19,MATCH($AD$4,'Fringe Rates (Federal)'!$A$3:$A$19,0),MATCH(A6,FFR[[#Headers],[S&W Staff]:[S&W (Custom Fringe Rate)]],0))),0),ROUND(IF(OR(A6="Select Category",$AD$4="N/A"),0,(AB6)*INDEX('Fringe Rates (non-Federal)'!$F$3:$S$19,MATCH($AD$4,'Fringe Rates (non-Federal)'!$A$3:$A$19,0),MATCH(A6,NFFR[[#Headers],[S&W Staff]:[S&W (Custom Fringe Rate)]],0))),0)) -> 0 | AD6: =IF(OR(A6="Select Category",$AD$4="N/A"),0,ROUND(SUM(AB6:AC6),0)) -> 0 | AE6: 0 | AF6: =IF($A$3=1,ROUND(IF(OR(A6="Select Category",$AG$4="N/A"),0,(AE6)*INDEX('Fringe Rates (Federal)'!$F$3:$S$19,MATCH($AG$4,'Fringe Rates (Federal)'!$A$3:$A$19,0),MATCH(A6,FFR[[#Headers],[S&W Staff]:[S&W (Custom Fringe Rate)]],0))),0),ROUND(IF(OR(A6="Select Category",$AG$4="N/A"),0,(AE6)*INDEX('Fringe Rates (non-Federal)'!$F$3:$S$19,MATCH($AG$4,'Fringe Rates (non-Federal)'!$A$3:$A$19,0),MATCH(A6,NFFR[[#Headers],[S&W Staff]:[S&W (Custom Fringe Rate)]],0))),0)) -> 0 | AG6: =IF(OR(A6="Select Category",$AG$4="N/A"),0,ROUND(SUM(AE6:AF6),0)) -> 0 | AH6: =ROUND(SUM(D6,G6,J6,M6,P6,S6,V6,Y6,AB6,AE6),0) -> 0 | AI6: =ROUND(SUM(E6,H6,K6,N6,Q6,T6,W6,Z6,AC6,AF6),0) -> 0 | AJ6: =ROUND(SUM(AH6:AI6),0) -> 0
A7: Select Category | B7: =IF(A7="Select Category","N/A",HLOOKUP(A7,'Fringe Rates (Federal)'!$F$1:$S$2,2,FALSE)) -> N/A | C7: Enter Staff Name | D7: 0 | E7: =IF($A$3=1,ROUND(IF(OR(A7="Select Category",$F$4="N/A"),0,(D7)*INDEX('Fringe Rates (Federal)'!$F$3:$S$19,MATCH($F$4,'Fringe Rates (Federal)'!$A$3:$A$19,0),MATCH(A7,FFR[[#Headers],[S&W Staff]:[S&W (Custom Fringe Rate)]],0))),0),ROUND(IF(OR(A7="Select Category",$F$4="N/A"),0,(D7)*INDEX('Fringe Rates (non-Federal)'!$F$3:$S$19,MATCH($F$4,'Fringe Rates (non-Federal)'!$A$3:$A$19,0),MATCH(A7,NFFR[[#Headers],[S&W Staff]:[S&W (Custom Fringe Rate)]],0))),0)) -> 0 | F7: 0 | G7: 0 | H7: =IF($A$3=1,ROUND(IF(OR(A7="Select Category",$I$4="N/A"),0,(G7)*INDEX('Fringe Rates (Federal)'!$F$3:$S$19,MATCH($I$4,'Fringe Rates (Federal)'!$A$3:$A$19,0),MATCH(A7,FFR[[#Headers],[S&W Staff]:[S&W (Custom Fringe Rate)]],0))),0),ROUND(IF(OR(A7="Select Category",$I$4="N/A"),0,(G7)*INDEX('Fringe Rates (non-Federal)'!$F$3:$S$19,MATCH($I$4,'Fringe Rates (non-Federal)'!$A$3:$A$19,0),MATCH(A7,NFFR[[#Headers],[S&W Staff]:[S&W (Custom Fringe Rate)]],0))),0)) -> 0 | I7: =IF(OR(A7="Select Category",$I$4="N/A"),0,ROUND(SUM(G7:H7),0)) -> 0 | J7: 0 | K7: =IF($A$3=1,ROUND(IF(OR(A7="Select Category",$L$4="N/A"),0,(J7)*INDEX('Fringe Rates (Federal)'!$F$3:$S$19,MATCH($L$4,'Fringe Rates (Federal)'!$A$3:$A$19,0),MATCH(A7,FFR[[#Headers],[S&W Staff]:[S&W (Custom Fringe Rate)]],0))),0),ROUND(IF(OR(A7="Select Category",$L$4="N/A"),0,(J7)*INDEX('Fringe Rates (non-Federal)'!$F$3:$S$19,MATCH($L$4,'Fringe Rates (non-Federal)'!$A$3:$A$19,0),MATCH(A7,NFFR[[#Headers],[S&W Staff]:[S&W (Custom Fringe Rate)]],0))),0)) -> 0 | L7: =IF(OR(A7="Select Category",$L$4="N/A"),0,ROUND(SUM(J7:K7),0)) -> 0 | M7: 0 | N7: =IF($A$3=1,ROUND(IF(OR(A7="Select Category",$O$4="N/A"),0,(M7)*INDEX('Fringe Rates (Federal)'!$F$3:$S$19,MATCH($O$4,'Fringe Rates (Federal)'!$A$3:$A$19,0),MATCH(A7,FFR[[#Headers],[S&W Staff]:[S&W (Custom Fringe Rate)]],0))),0),ROUND(IF(OR(A7="Select Category",$O$4="N/A"),0,(M7)*INDEX('Fringe Rates (non-Federal)'!$F$3:$S$19,MATCH($O$4,'Fringe Rates (non-Federal)'!$A$3:$A$19,0),MATCH(A7,NFFR[[#Headers],[S&W Staff]:[S&W (Custom Fringe Rate)]],0))),0)) -> 0 | O7: =IF(OR(A7="Select Category",$O$4="N/A"),0,ROUND(SUM(M7:N7),0)) -> 0 | P7: 0 | Q7: =IF($A$3=1,ROUND(IF(OR(A7="Select Category",$R$4="N/A"),0,(P7)*INDEX('Fringe Rates (Federal)'!$F$3:$S$19,MATCH($R$4,'Fringe Rates (Federal)'!$A$3:$A$19,0),MATCH(A7,FFR[[#Headers],[S&W Staff]:[S&W (Custom Fringe Rate)]],0))),0),ROUND(IF(OR(A7="Select Category",$R$4="N/A"),0,(P7)*INDEX('Fringe Rates (non-Federal)'!$F$3:$S$19,MATCH($R$4,'Fringe Rates (non-Federal)'!$A$3:$A$19,0),MATCH(A7,NFFR[[#Headers],[S&W Staff]:[S&W (Custom Fringe Rate)]],0))),0)) -> 0 | R7: =IF(OR(A7="Select Category",$R$4="N/A"),0,ROUND(SUM(P7:Q7),0)) -> 0 | S7: 0 | T7: =IF($A$3=1,ROUND(IF(OR(A7="Select Category",$U$4="N/A"),0,(S7)*INDEX('Fringe Rates (Federal)'!$F$3:$S$19,MATCH($U$4,'Fringe Rates (Federal)'!$A$3:$A$19,0),MATCH(A7,FFR[[#Headers],[S&W Staff]:[S&W (Custom Fringe Rate)]],0))),0),ROUND(IF(OR(A7="Select Category",$U$4="N/A"),0,(S7)*INDEX('Fringe Rates (non-Federal)'!$F$3:$S$19,MATCH($U$4,'Fringe Rates (non-Federal)'!$A$3:$A$19,0),MATCH(A7,NFFR[[#Headers],[S&W Staff]:[S&W (Custom Fringe Rate)]],0))),0)) -> 0 | U7: 0 | V7: 0 | W7: =IF($A$3=1,ROUND(IF(OR(A7="Select Category",$X$4="N/A"),0,(V7)*INDEX('Fringe Rates (Federal)'!$F$3:$S$19,MATCH($X$4,'Fringe Rates (Federal)'!$A$3:$A$19,0),MATCH(A7,FFR[[#Headers],[S&W Staff]:[S&W (Custom Fringe Rate)]],0))),0),ROUND(IF(OR(A7="Select Category",$X$4="N/A"),0,(V7)*INDEX('Fringe Rates (non-Federal)'!$F$3:$S$19,MATCH($X$4,'Fringe Rates (non-Federal)'!$A$3:$A$19,0),MATCH(A7,NFFR[[#Headers],[S&W Staff]:[S&W (Custom Fringe Rate)]],0))),0)) -> 0 | X7: 0 | Y7: 0 | Z7: =IF($A$3=1,ROUND(IF(OR(A7="Select Category",$AA$4="N/A"),0,(Y7)*INDEX('Fringe Rates (Federal)'!$F$3:$S$19,MATCH($AA$4,'Fringe Rates (Federal)'!$A$3:$A$19,0),MATCH(A7,FFR[[#Headers],[S&W Staff]:[S&W (Custom Fringe Rate)]],0))),0),ROUND(IF(OR(A7="Select Category",$AA$4="N/A"),0,(Y7)*INDEX('Fringe Rates (non-Federal)'!$F$3:$S$19,MATCH($AA$4,'Fringe Rates (non-Federal)'!$A$3:$A$19,0),MATCH(A7,NFFR[[#Headers],[S&W Staff]:[S&W (Custom Fringe Rate)]],0))),0)) -> 0 | AA7: 0 | AB7: 0 | AC7: =IF($A$3=1,ROUND(IF(OR(A7="Select Category",$AD$4="N/A"),0,(AB7)*INDEX('Fringe Rates (Federal)'!$F$3:$S$19,MATCH($AD$4,'Fringe Rates (Federal)'!$A$3:$A$19,0),MATCH(A7,FFR[[#Headers],[S&W Staff]:[S&W (Custom Fringe Rate)]],0))),0),ROUND(IF(OR(A7="Select Category",$AD$4="N/A"),0,(AB7)*INDEX('Fringe Rates (non-Federal)'!$F$3:$S$19,MATCH($AD$4,'Fringe Rates (non-Federal)'!$A$3:$A$19,0),MATCH(A7,NFFR[[#Headers],[S&W Staff]:[S&W (Custom Fringe Rate)]],0))),0)) -> 0 | AD7: 0 | AE7: 0 | AF7: =IF($A$3=1,ROUND(IF(OR(A7="Select Category",$AG$4="N/A"),0,(AE7)*INDEX('Fringe Rates (Federal)'!$F$3:$S$19,MATCH($AG$4,'Fringe Rates (Federal)'!$A$3:$A$19,0),MATCH(A7,FFR[[#Headers],[S&W Staff]:[S&W (Custom Fringe Rate)]],0))),0),ROUND(IF(OR(A7="Select Category",$AG$4="N/A"),0,(AE7)*INDEX('Fringe Rates (non-Federal)'!$F$3:$S$19,MATCH($AG$4,'Fringe Rates (non-Federal)'!$A$3:$A$19,0),MATCH(A7,NFFR[[#Headers],[S&W Staff]:[S&W (Custom Fringe Rate)]],0))),0)) -> 0 | AG7: =IF(OR(A7="Select Category",$AG$4="N/A"),0,ROUND(SUM(AE7:AF7),0)) -> 0 | AH7: =ROUND(SUM(D7,G7,J7,M7,P7,S7,V7,Y7,AB7,AE7),0) -> 0 | AI7: 0 | AJ7: =ROUND(SUM(AH7:AI7),0) -> 0
A8: Select Category | B8: =IF(A8="Select Category","N/A",HLOOKUP(A8,'Fringe Rates (Federal)'!$F$1:$S$2,2,FALSE)) -> N/A | C8: Enter Staff Name | D8: 0 | E8: =IF($A$3=1,ROUND(IF(OR(A8="Select Category",$F$4="N/A"),0,(D8)*INDEX('Fringe Rates (Federal)'!$F$3:$S$19,MATCH($F$4,'Fringe Rates (Federal)'!$A$3:$A$19,0),MATCH(A8,FFR[[#Headers],[S&W Staff]:[S&W (Custom Fringe Rate)]],0))),0),ROUND(IF(OR(A8="Select Category",$F$4="N/A"),0,(D8)*INDEX('Fringe Rates (non-Federal)'!$F$3:$S$19,MATCH($F$4,'Fringe Rates (non-Federal)'!$A$3:$A$19,0),MATCH(A8,NFFR[[#Headers],[S&W Staff]:[S&W (Custom Fringe Rate)]],0))),0)) -> 0 | F8: 0 | G8: 0 | H8: =IF($A$3=1,ROUND(IF(OR(A8="Select Category",$I$4="N/A"),0,(G8)*INDEX('Fringe Rates (Federal)'!$F$3:$S$19,MATCH($I$4,'Fringe Rates (Federal)'!$A$3:$A$19,0),MATCH(A8,FFR[[#Headers],[S&W Staff]:[S&W (Custom Fringe Rate)]],0))),0),ROUND(IF(OR(A8="Select Category",$I$4="N/A"),0,(G8)*INDEX('Fringe Rates (non-Federal)'!$F$3:$S$19,MATCH($I$4,'Fringe Rates (non-Federal)'!$A$3:$A$19,0),MATCH(A8,NFFR[[#Headers],[S&W Staff]:[S&W (Custom Fringe Rate)]],0))),0)) -> 0 | I8: 0 | J8: 0 | K8: =IF($A$3=1,ROUND(IF(OR(A8="Select Category",$L$4="N/A"),0,(J8)*INDEX('Fringe Rates (Federal)'!$F$3:$S$19,MATCH($L$4,'Fringe Rates (Federal)'!$A$3:$A$19,0),MATCH(A8,FFR[[#Headers],[S&W Staff]:[S&W (Custom Fringe Rate)]],0))),0),ROUND(IF(OR(A8="Select Category",$L$4="N/A"),0,(J8)*INDEX('Fringe Rates (non-Federal)'!$F$3:$S$19,MATCH($L$4,'Fringe Rates (non-Federal)'!$A$3:$A$19,0),MATCH(A8,NFFR[[#Headers],[S&W Staff]:[S&W (Custom Fringe Rate)]],0))),0)) -> 0 | L8: 0 | M8: 0 | N8: =IF($A$3=1,ROUND(IF(OR(A8="Select Category",$O$4="N/A"),0,(M8)*INDEX('Fringe Rates (Federal)'!$F$3:$S$19,MATCH($O$4,'Fringe Rates (Federal)'!$A$3:$A$19,0),MATCH(A8,FFR[[#Headers],[S&W Staff]:[S&W (Custom Fringe Rate)]],0))),0),ROUND(IF(OR(A8="Select Category",$O$4="N/A"),0,(M8)*INDEX('Fringe Rates (non-Federal)'!$F$3:$S$19,MATCH($O$4,'Fringe Rates (non-Federal)'!$A$3:$A$19,0),MATCH(A8,NFFR[[#Headers],[S&W Staff]:[S&W (Custom Fringe Rate)]],0))),0)) -> 0 | O8: 0 | P8: 0 | Q8: =IF($A$3=1,ROUND(IF(OR(A8="Select Category",$R$4="N/A"),0,(P8)*INDEX('Fringe Rates (Federal)'!$F$3:$S$19,MATCH($R$4,'Fringe Rates (Federal)'!$A$3:$A$19,0),MATCH(A8,FFR[[#Headers],[S&W Staff]:[S&W (Custom Fringe Rate)]],0))),0),ROUND(IF(OR(A8="Select Category",$R$4="N/A"),0,(P8)*INDEX('Fringe Rates (non-Federal)'!$F$3:$S$19,MATCH($R$4,'Fringe Rates (non-Federal)'!$A$3:$A$19,0),MATCH(A8,NFFR[[#Headers],[S&W Staff]:[S&W (Custom Fringe Rate)]],0))),0)) -> 0 | R8: 0 | S8: 0 | T8: =IF($A$3=1,ROUND(IF(OR(A8="Select Category",$U$4="N/A"),0,(S8)*INDEX('Fringe Rates (Federal)'!$F$3:$S$19,MATCH($U$4,'Fringe Rates (Federal)'!$A$3:$A$19,0),MATCH(A8,FFR[[#Headers],[S&W Staff]:[S&W (Custom Fringe Rate)]],0))),0),ROUND(IF(OR(A8="Select Category",$U$4="N/A"),0,(S8)*INDEX('Fringe Rates (non-Federal)'!$F$3:$S$19,MATCH($U$4,'Fringe Rates (non-Federal)'!$A$3:$A$19,0),MATCH(A8,NFFR[[#Headers],[S&W Staff]:[S&W (Custom Fringe Rate)]],0))),0)) -> 0 | U8: 0 | V8: 0 | W8: =IF($A$3=1,ROUND(IF(OR(A8="Select Category",$X$4="N/A"),0,(V8)*INDEX('Fringe Rates (Federal)'!$F$3:$S$19,MATCH($X$4,'Fringe Rates (Federal)'!$A$3:$A$19,0),MATCH(A8,FFR[[#Headers],[S&W Staff]:[S&W (Custom Fringe Rate)]],0))),0),ROUND(IF(OR(A8="Select Category",$X$4="N/A"),0,(V8)*INDEX('Fringe Rates (non-Federal)'!$F$3:$S$19,MATCH($X$4,'Fringe Rates (non-Federal)'!$A$3:$A$19,0),MATCH(A8,NFFR[[#Headers],[S&W Staff]:[S&W (Custom Fringe Rate)]],0))),0)) -> 0 | X8: 0 | Y8: 0 | Z8: =IF($A$3=1,ROUND(IF(OR(A8="Select Category",$AA$4="N/A"),0,(Y8)*INDEX('Fringe Rates (Federal)'!$F$3:$S$19,MATCH($AA$4,'Fringe Rates (Federal)'!$A$3:$A$19,0),MATCH(A8,FFR[[#Headers],[S&W Staff]:[S&W (Custom Fringe Rate)]],0))),0),ROUND(IF(OR(A8="Select Category",$AA$4="N/A"),0,(Y8)*INDEX('Fringe Rates (non-Federal)'!$F$3:$S$19,MATCH($AA$4,'Fringe Rates (non-Federal)'!$A$3:$A$19,0),MATCH(A8,NFFR[[#Headers],[S&W Staff]:[S&W (Custom Fringe Rate)]],0))),0)) -> 0 | AA8: 0 | AB8: 0 | AC8: =IF($A$3=1,ROUND(IF(OR(A8="Select Category",$AD$4="N/A"),0,(AB8)*INDEX('Fringe Rates (Federal)'!$F$3:$S$19,MATCH($AD$4,'Fringe Rates (Federal)'!$A$3:$A$19,0),MATCH(A8,FFR[[#Headers],[S&W Staff]:[S&W (Custom Fringe Rate)]],0))),0),ROUND(IF(OR(A8="Select Category",$AD$4="N/A"),0,(AB8)*INDEX('Fringe Rates (non-Federal)'!$F$3:$S$19,MATCH($AD$4,'Fringe Rates (non-Federal)'!$A$3:$A$19,0),MATCH(A8,NFFR[[#Headers],[S&W Staff]:[S&W (Custom Fringe Rate)]],0))),0)) -> 0 | AD8: 0 | AE8: 0 | AF8: =IF($A$3=1,ROUND(IF(OR(A8="Select Category",$AG$4="N/A"),0,(AE8)*INDEX('Fringe Rates (Federal)'!$F$3:$S$19,MATCH($AG$4,'Fringe Rates (Federal)'!$A$3:$A$19,0),MATCH(A8,FFR[[#Headers],[S&W Staff]:[S&W (Custom Fringe Rate)]],0))),0),ROUND(IF(OR(A8="Select Category",$AG$4="N/A"),0,(AE8)*INDEX('Fringe Rates (non-Federal)'!$F$3:$S$19,MATCH($AG$4,'Fringe Rates (non-Federal)'!$A$3:$A$19,0),MATCH(A8,NFFR[[#Headers],[S&W Staff]:[S&W (Custom Fringe Rate)]],0))),0)) -> 0 | AG8: =IF(OR(A8="Select Category",$AG$4="N/A"),0,ROUND(SUM(AE8:AF8),0)) -> 0 | AH8: 0 | AI8: 0 | AJ8: 0
A9: Select Category | B9: =IF(A9="Select Category","N/A",HLOOKUP(A9,'Fringe Rates (Federal)'!$F$1:$S$2,2,FALSE)) -> N/A | C9: Enter Staff Name | D9: 0 | E9: =IF($A$3=1,ROUND(IF(OR(A9="Select Category",$F$4="N/A"),0,(D9)*INDEX('Fringe Rates (Federal)'!$F$3:$S$19,MATCH($F$4,'Fringe Rates (Federal)'!$A$3:$A$19,0),MATCH(A9,FFR[[#Headers],[S&W Staff]:[S&W (Custom Fringe Rate)]],0))),0),ROUND(IF(OR(A9="Select Category",$F$4="N/A"),0,(D9)*INDEX('Fringe Rates (non-Federal)'!$F$3:$S$19,MATCH($F$4,'Fringe Rates (non-Federal)'!$A$3:$A$19,0),MATCH(A9,NFFR[[#Headers],[S&W Staff]:[S&W (Custom Fringe Rate)]],0))),0)) -> 0 | F9: 0 | G9: 0 | H9: =IF($A$3=1,ROUND(IF(OR(A9="Select Category",$I$4="N/A"),0,(G9)*INDEX('Fringe Rates (Federal)'!$F$3:$S$19,MATCH($I$4,'Fringe Rates (Federal)'!$A$3:$A$19,0),MATCH(A9,FFR[[#Headers],[S&W Staff]:[S&W (Custom Fringe Rate)]],0))),0),ROUND(IF(OR(A9="Select Category",$I$4="N/A"),0,(G9)*INDEX('Fringe Rates (non-Federal)'!$F$3:$S$19,MATCH($I$4,'Fringe Rates (non-Federal)'!$A$3:$A$19,0),MATCH(A9,NFFR[[#Headers],[S&W Staff]:[S&W (Custom Fringe Rate)]],0))),0)) -> 0 | I9: 0 | J9: 0 | K9: =IF($A$3=1,ROUND(IF(OR(A9="Select Category",$L$4="N/A"),0,(J9)*INDEX('Fringe Rates (Federal)'!$F$3:$S$19,MATCH($L$4,'Fringe Rates (Federal)'!$A$3:$A$19,0),MATCH(A9,FFR[[#Headers],[S&W Staff]:[S&W (Custom Fringe Rate)]],0))),0),ROUND(IF(OR(A9="Select Category",$L$4="N/A"),0,(J9)*INDEX('Fringe Rates (non-Federal)'!$F$3:$S$19,MATCH($L$4,'Fringe Rates (non-Federal)'!$A$3:$A$19,0),MATCH(A9,NFFR[[#Headers],[S&W Staff]:[S&W (Custom Fringe Rate)]],0))),0)) -> 0 | L9: 0 | M9: 0 | N9: =IF($A$3=1,ROUND(IF(OR(A9="Select Category",$O$4="N/A"),0,(M9)*INDEX('Fringe Rates (Federal)'!$F$3:$S$19,MATCH($O$4,'Fringe Rates (Federal)'!$A$3:$A$19,0),MATCH(A9,FFR[[#Headers],[S&W Staff]:[S&W (Custom Fringe Rate)]],0))),0),ROUND(IF(OR(A9="Select Category",$O$4="N/A"),0,(M9)*INDEX('Fringe Rates (non-Federal)'!$F$3:$S$19,MATCH($O$4,'Fringe Rates (non-Federal)'!$A$3:$A$19,0),MATCH(A9,NFFR[[#Headers],[S&W Staff]:[S&W (Custom Fringe Rate)]],0))),0)) -> 0 | O9: 0 | P9: 0 | Q9: =IF($A$3=1,ROUND(IF(OR(A9="Select Category",$R$4="N/A"),0,(P9)*INDEX('Fringe Rates (Federal)'!$F$3:$S$19,MATCH($R$4,'Fringe Rates (Federal)'!$A$3:$A$19,0),MATCH(A9,FFR[[#Headers],[S&W Staff]:[S&W (Custom Fringe Rate)]],0))),0),ROUND(IF(OR(A9="Select Category",$R$4="N/A"),0,(P9)*INDEX('Fringe Rates (non-Federal)'!$F$3:$S$19,MATCH($R$4,'Fringe Rates (non-Federal)'!$A$3:$A$19,0),MATCH(A9,NFFR[[#Headers],[S&W Staff]:[S&W (Custom Fringe Rate)]],0))),0)) -> 0 | R9: 0 | S9: 0 | T9: =IF($A$3=1,ROUND(IF(OR(A9="Select Category",$U$4="N/A"),0,(S9)*INDEX('Fringe Rates (Federal)'!$F$3:$S$19,MATCH($U$4,'Fringe Rates (Federal)'!$A$3:$A$19,0),MATCH(A9,FFR[[#Headers],[S&W Staff]:[S&W (Custom Fringe Rate)]],0))),0),ROUND(IF(OR(A9="Select Category",$U$4="N/A"),0,(S9)*INDEX('Fringe Rates (non-Federal)'!$F$3:$S$19,MATCH($U$4,'Fringe Rates (non-Federal)'!$A$3:$A$19,0),MATCH(A9,NFFR[[#Headers],[S&W Staff]:[S&W (Custom Fringe Rate)]],0))),0)) -> 0 | U9: 0 | V9: 0 | W9: =IF($A$3=1,ROUND(IF(OR(A9="Select Category",$X$4="N/A"),0,(V9)*INDEX('Fringe Rates (Federal)'!$F$3:$S$19,MATCH($X$4,'Fringe Rates (Federal)'!$A$3:$A$19,0),MATCH(A9,FFR[[#Headers],[S&W Staff]:[S&W (Custom Fringe Rate)]],0))),0),ROUND(IF(OR(A9="Select Category",$X$4="N/A"),0,(V9)*INDEX('Fringe Rates (non-Federal)'!$F$3:$S$19,MATCH($X$4,'Fringe Rates (non-Federal)'!$A$3:$A$19,0),MATCH(A9,NFFR[[#Headers],[S&W Staff]:[S&W (Custom Fringe Rate)]],0))),0)) -> 0 | X9: 0 | Y9: 0 | Z9: =IF($A$3=1,ROUND(IF(OR(A9="Select Category",$AA$4="N/A"),0,(Y9)*INDEX('Fringe Rates (Federal)'!$F$3:$S$19,MATCH($AA$4,'Fringe Rates (Federal)'!$A$3:$A$19,0),MATCH(A9,FFR[[#Headers],[S&W Staff]:[S&W (Custom Fringe Rate)]],0))),0),ROUND(IF(OR(A9="Select Category",$AA$4="N/A"),0,(Y9)*INDEX('Fringe Rates (non-Federal)'!$F$3:$S$19,MATCH($AA$4,'Fringe Rates (non-Federal)'!$A$3:$A$19,0),MATCH(A9,NFFR[[#Headers],[S&W Staff]:[S&W (Custom Fringe Rate)]],0))),0)) -> 0 | AA9: 0 | AB9: 0 | AC9: =IF($A$3=1,ROUND(IF(OR(A9="Select Category",$AD$4="N/A"),0,(AB9)*INDEX('Fringe Rates (Federal)'!$F$3:$S$19,MATCH($AD$4,'Fringe Rates (Federal)'!$A$3:$A$19,0),MATCH(A9,FFR[[#Headers],[S&W Staff]:[S&W (Custom Fringe Rate)]],0))),0),ROUND(IF(OR(A9="Select Category",$AD$4="N/A"),0,(AB9)*INDEX('Fringe Rates (non-Federal)'!$F$3:$S$19,MATCH($AD$4,'Fringe Rates (non-Federal)'!$A$3:$A$19,0),MATCH(A9,NFFR[[#Headers],[S&W Staff]:[S&W (Custom Fringe Rate)]],0))),0)) -> 0 | AD9: 0 | AE9: 0 | AF9: =IF($A$3=1,ROUND(IF(OR(A9="Select Category",$AG$4="N/A"),0,(AE9)*INDEX('Fringe Rates (Federal)'!$F$3:$S$19,MATCH($AG$4,'Fringe Rates (Federal)'!$A$3:$A$19,0),MATCH(A9,FFR[[#Headers],[S&W Staff]:[S&W (Custom Fringe Rate)]],0))),0),ROUND(IF(OR(A9="Select Category",$AG$4="N/A"),0,(AE9)*INDEX('Fringe Rates (non-Federal)'!$F$3:$S$19,MATCH($AG$4,'Fringe Rates (non-Federal)'!$A$3:$A$19,0),MATCH(A9,NFFR[[#Headers],[S&W Staff]:[S&W (Custom Fringe Rate)]],0))),0)) -> 0 | AG9: =IF(OR(M9="Select Category",$U$4="N/A"),0,ROUND(SUM(AE9:AF9),0)) -> 0 | AH9: 0 | AI9: 0 | AJ9: 0
A10: Select Category | B10: =IF(A10="Select Category","N/A",HLOOKUP(A10,'Fringe Rates (Federal)'!$F$1:$S$2,2,FALSE)) -> N/A | C10: Enter Staff Name | D10: 0 | E10: =IF($A$3=1,ROUND(IF(OR(A10="Select Category",$F$4="N/A"),0,(D10)*INDEX('Fringe Rates (Federal)'!$F$3:$S$19,MATCH($F$4,'Fringe Rates (Federal)'!$A$3:$A$19,0),MATCH(A10,FFR[[#Headers],[S&W Staff]:[S&W (Custom Fringe Rate)]],0))),0),ROUND(IF(OR(A10="Select Category",$F$4="N/A"),0,(D10)*INDEX('Fringe Rates (non-Federal)'!$F$3:$S$19,MATCH($F$4,'Fringe Rates (non-Federal)'!$A$3:$A$19,0),MATCH(A10,NFFR[[#Headers],[S&W Staff]:[S&W (Custom Fringe Rate)]],0))),0)) -> 0 | F10: 0 | G10: 0 | H10: =IF($A$3=1,ROUND(IF(OR(A10="Select Category",$I$4="N/A"),0,(G10)*INDEX('Fringe Rates (Federal)'!$F$3:$S$19,MATCH($I$4,'Fringe Rates (Federal)'!$A$3:$A$19,0),MATCH(A10,FFR[[#Headers],[S&W Staff]:[S&W (Custom Fringe Rate)]],0))),0),ROUND(IF(OR(A10="Select Category",$I$4="N/A"),0,(G10)*INDEX('Fringe Rates (non-Federal)'!$F$3:$S$19,MATCH($I$4,'Fringe Rates (non-Federal)'!$A$3:$A$19,0),MATCH(A10,NFFR[[#Headers],[S&W Staff]:[S&W (Custom Fringe Rate)]],0))),0)) -> 0 | I10: 0 | J10: 0 | K10: =IF($A$3=1,ROUND(IF(OR(A10="Select Category",$L$4="N/A"),0,(J10)*INDEX('Fringe Rates (Federal)'!$F$3:$S$19,MATCH($L$4,'Fringe Rates (Federal)'!$A$3:$A$19,0),MATCH(A10,FFR[[#Headers],[S&W Staff]:[S&W (Custom Fringe Rate)]],0))),0),ROUND(IF(OR(A10="Select Category",$L$4="N/A"),0,(J10)*INDEX('Fringe Rates (non-Federal)'!$F$3:$S$19,MATCH($L$4,'Fringe Rates (non-Federal)'!$A$3:$A$19,0),MATCH(A10,NFFR[[#Headers],[S&W Staff]:[S&W (Custom Fringe Rate)]],0))),0)) -> 0 | L10: 0 | M10: 0 | N10: =IF($A$3=1,ROUND(IF(OR(A10="Select Category",$O$4="N/A"),0,(M10)*INDEX('Fringe Rates (Federal)'!$F$3:$S$19,MATCH($O$4,'Fringe Rates (Federal)'!$A$3:$A$19,0),MATCH(A10,FFR[[#Headers],[S&W Staff]:[S&W (Custom Fringe Rate)]],0))),0),ROUND(IF(OR(A10="Select Category",$O$4="N/A"),0,(M10)*INDEX('Fringe Rates (non-Federal)'!$F$3:$S$19,MATCH($O$4,'Fringe Rates (non-Federal)'!$A$3:$A$19,0),MATCH(A10,NFFR[[#Headers],[S&W Staff]:[S&W (Custom Fringe Rate)]],0))),0)) -> 0 | O10: 0 | P10: 0 | Q10: =IF($A$3=1,ROUND(IF(OR(A10="Select Category",$R$4="N/A"),0,(P10)*INDEX('Fringe Rates (Federal)'!$F$3:$S$19,MATCH($R$4,'Fringe Rates (Federal)'!$A$3:$A$19,0),MATCH(A10,FFR[[#Headers],[S&W Staff]:[S&W (Custom Fringe Rate)]],0))),0),ROUND(IF(OR(A10="Select Category",$R$4="N/A"),0,(P10)*INDEX('Fringe Rates (non-Federal)'!$F$3:$S$19,MATCH($R$4,'Fringe Rates (non-Federal)'!$A$3:$A$19,0),MATCH(A10,NFFR[[#Headers],[S&W Staff]:[S&W (Custom Fringe Rate)]],0))),0)) -> 0 | R10: 0 | S10: 0 | T10: =IF($A$3=1,ROUND(IF(OR(A10="Select Category",$U$4="N/A"),0,(S10)*INDEX('Fringe Rates (Federal)'!$F$3:$S$19,MATCH($U$4,'Fringe Rates (Federal)'!$A$3:$A$19,0),MATCH(A10,FFR[[#Headers],[S&W Staff]:[S&W (Custom Fringe Rate)]],0))),0),ROUND(IF(OR(A10="Select Category",$U$4="N/A"),0,(S10)*INDEX('Fringe Rates (non-Federal)'!$F$3:$S$19,MATCH($U$4,'Fringe Rates (non-Federal)'!$A$3:$A$19,0),MATCH(A10,NFFR[[#Headers],[S&W Staff]:[S&W (Custom Fringe Rate)]],0))),0)) -> 0 | U10: 0 | V10: 0 | W10: =IF($A$3=1,ROUND(IF(OR(A10="Select Category",$X$4="N/A"),0,(V10)*INDEX('Fringe Rates (Federal)'!$F$3:$S$19,MATCH($X$4,'Fringe Rates (Federal)'!$A$3:$A$19,0),MATCH(A10,FFR[[#Headers],[S&W Staff]:[S&W (Custom Fringe Rate)]],0))),0),ROUND(IF(OR(A10="Select Category",$X$4="N/A"),0,(V10)*INDEX('Fringe Rates (non-Federal)'!$F$3:$S$19,MATCH($X$4,'Fringe Rates (non-Federal)'!$A$3:$A$19,0),MATCH(A10,NFFR[[#Headers],[S&W Staff]:[S&W (Custom Fringe Rate)]],0))),0)) -> 0 | X10: 0 | Y10: 0 | Z10: =IF($A$3=1,ROUND(IF(OR(A10="Select Category",$AA$4="N/A"),0,(Y10)*INDEX('Fringe Rates (Federal)'!$F$3:$S$19,MATCH($AA$4,'Fringe Rates (Federal)'!$A$3:$A$19,0),MATCH(A10,FFR[[#Headers],[S&W Staff]:[S&W (Custom Fringe Rate)]],0))),0),ROUND(IF(OR(A10="Select Category",$AA$4="N/A"),0,(Y10)*INDEX('Fringe Rates (non-Federal)'!$F$3:$S$19,MATCH($AA$4,'Fringe Rates (non-Federal)'!$A$3:$A$19,0),MATCH(A10,NFFR[[#Headers],[S&W Staff]:[S&W (Custom Fringe Rate)]],0))),0)) -> 0 | AA10: 0 | AB10: 0 | AC10: =IF($A$3=1,ROUND(IF(OR(A10="Select Category",$AD$4="N/A"),0,(AB10)*INDEX('Fringe Rates (Federal)'!$F$3:$S$19,MATCH($AD$4,'Fringe Rates (Federal)'!$A$3:$A$19,0),MATCH(A10,FFR[[#Headers],[S&W Staff]:[S&W (Custom Fringe Rate)]],0))),0),ROUND(IF(OR(A10="Select Category",$AD$4="N/A"),0,(AB10)*INDEX('Fringe Rates (non-Federal)'!$F$3:$S$19,MATCH($AD$4,'Fringe Rates (non-Federal)'!$A$3:$A$19,0),MATCH(A10,NFFR[[#Headers],[S&W Staff]:[S&W (Custom Fringe Rate)]],0))),0)) -> 0 | AD10: 0 | AE10: 0 | AF10: =IF($A$3=1,ROUND(IF(OR(A10="Select Category",$AG$4="N/A"),0,(AE10)*INDEX('Fringe Rates (Federal)'!$F$3:$S$19,MATCH($AG$4,'Fringe Rates (Federal)'!$A$3:$A$19,0),MATCH(A10,FFR[[#Headers],[S&W Staff]:[S&W (Custom Fringe Rate)]],0))),0),ROUND(IF(OR(A10="Select Category",$AG$4="N/A"),0,(AE10)*INDEX('Fringe Rates (non-Federal)'!$F$3:$S$19,MATCH($AG$4,'Fringe Rates (non-Federal)'!$A$3:$A$19,0),MATCH(A10,NFFR[[#Headers],[S&W Staff]:[S&W (Custom Fringe Rate)]],0))),0)) -> 0 | AG10: =IF(OR(A10="Select Category",$AG$4="N/A"),0,ROUND(SUM(AE10:AF10),0)) -> 0 | AH10: 0 | AI10: 0 | AJ10: 0
A11: =ROW() -> 11
C12: Total Salaries & Wages | D12: =IF($F$4="N/A",0,ROUND(SUMPRODUCT(--(ISNUMBER($AJ$6:$AJ$11)),D6:D11),0)) -> 0 | E12: =IF($F$4="N/A",0,ROUND(SUMPRODUCT(--(ISNUMBER($AJ$6:$AJ$11)),E6:E11),0)) -> 0 | F12: =IF($F$4="N/A",0,ROUND(SUMPRODUCT(--(ISNUMBER($AJ$6:$AJ$11)),F6:F11),0)) -> 0 | G12: =IF($I$4="N/A",0,ROUND(SUMPRODUCT(--(ISNUMBER($AJ$6:$AJ$11)),G6:G11),0)) -> 0 | H12: =IF($I$4="N/A",0,ROUND(SUMPRODUCT(--(ISNUMBER($AJ$6:$AJ$11)),H6:H11),0)) -> 0 | I12: =IF($I$4="N/A",0,ROUND(SUMPRODUCT(--(ISNUMBER($AJ$6:$AJ$11)),I6:I11),0)) -> 0 | J12: =IF($L$4="N/A",0,ROUND(SUMPRODUCT(--(ISNUMBER($AJ$6:$AJ$11)),J6:J11),0)) -> 0 | K12: =IF($L$4="N/A",0,ROUND(SUMPRODUCT(--(ISNUMBER($AJ$6:$AJ$11)),K6:K11),0)) -> 0 | L12: =IF($L$4="N/A",0,ROUND(SUMPRODUCT(--(ISNUMBER($AJ$6:$AJ$11)),L6:L11),0)) -> 0 | M12: =IF($O$4="N/A",0,ROUND(SUMPRODUCT(--(ISNUMBER($AJ$6:$AJ$11)),M6:M11),0)) -> 0 | N12: =IF($O$4="N/A",0,ROUND(SUMPRODUCT(--(ISNUMBER($AJ$6:$AJ$11)),N6:N11),0)) -> 0 | O12: =IF($O$4="N/A",0,ROUND(SUMPRODUCT(--(ISNUMBER($AJ$6:$AJ$11)),O6:O11),0)) -> 0 | P12: =IF($R$4="N/A",0,ROUND(SUMPRODUCT(--(ISNUMBER($AJ$6:$AJ$11)),P6:P11),0)) -> 0 | Q12: =IF($R$4="N/A",0,ROUND(SUMPRODUCT(--(ISNUMBER($AJ$6:$AJ$11)),Q6:Q11),0)) -> 0 | R12: =IF($R$4="N/A",0,ROUND(SUMPRODUCT(--(ISNUMBER($AJ$6:$AJ$11)),R6:R11),0)) -> 0 | S12: =IF($U$4="N/A",0,ROUND(SUMPRODUCT(--(ISNUMBER($AJ$6:$AJ$11)),S6:S11),0)) -> 0 | T12: =IF($U$4="N/A",0,ROUND(SUMPRODUCT(--(ISNUMBER($AJ$6:$AJ$11)),T6:T11),0)) -> 0 | U12: =IF($U$4="N/A",0,ROUND(SUMPRODUCT(--(ISNUMBER($AJ$6:$AJ$11)),U6:U11),0)) -> 0 | V12: =IF($X$4="N/A",0,ROUND(SUMPRODUCT(--(ISNUMBER($AJ$6:$AJ$11)),V6:V11),0)) -> 0 | W12: =IF($X$4="N/A",0,ROUND(SUMPRODUCT(--(ISNUMBER($AJ$6:$AJ$11)),W6:W11),0)) -> 0 | X12: =IF($X$4="N/A",0,ROUND(SUMPRODUCT(--(ISNUMBER($AJ$6:$AJ$11)),X6:X11),0)) -> 0 | Y12: =IF($AA$4="N/A",0,ROUND(SUMPRODUCT(--(ISNUMBER($AJ$6:$AJ$11)),Y6:Y11),0)) -> 0 | Z12: =IF($AA$4="N/A",0,ROUND(SUMPRODUCT(--(ISNUMBER($AJ$6:$AJ$11)),Z6:Z11),0)) -> 0 | AA12: =IF($AA$4="N/A",0,ROUND(SUMPRODUCT(--(ISNUMBER($AJ$6:$AJ$11)),AA6:AA11),0)) -> 0 | AB12: =IF($AD$4="N/A",0,ROUND(SUMPRODUCT(--(ISNUMBER($AJ$6:$AJ$11)),AB6:AB11),0)) -> 0 | AC12: =IF($AD$4="N/A",0,ROUND(SUMPRODUCT(--(ISNUMBER($AJ$6:$AJ$11)),AC6:AC11),0)) -> 0 | AD12: =IF($AD$4="N/A",0,ROUND(SUMPRODUCT(--(ISNUMBER($AJ$6:$AJ$11)),AD6:AD11),0)) -> 0 | AE12: =IF($AG$4="N/A",0,ROUND(SUMPRODUCT(--(ISNUMBER($AJ$6:$AJ$11)),AE6:AE11),0)) -> 0 | AF12: =IF($AG$4="N/A",0,ROUND(SUMPRODUCT(--(ISNUMBER($AJ$6:$AJ$11)),AF6:AF11),0)) -> 0 | AG12: =IF($AG$4="N/A",0,ROUND(SUMPRODUCT(--(ISNUMBER($AJ$6:$AJ$11)),AG6:AG11),0)) -> 0 | AH12: =ROUND(SUM(AH6:AH11),0) -> 0 | AI12: =ROUND(SUM(AI6:AI11),0) -> 0 | AJ12: =ROUND(SUM(AJ6:AJ11),0) -> 0
E14: =E3 -> Budget Period 1 | H14: =H3 -> Budget Period 2 | K14: =K3 -> Budget Period 3 | N14: =N3 -> Budget Period 4 | Q14: =Q3 -> Budget Period 5 | T14: =T3 -> Budget Period 6 | W14: =W3 -> Budget Period 7 | Z14: =Z3 -> Budget Period 8 | AC14: =AC3 -> Budget Period 9 | AF14: =AF3 -> Budget Period 10
D15: Salary | E15: Fringe | F15: Total | G15: Salary | H15: Fringe | I15: Total | J15: Salary | K15: Fringe | L15: Total | M15: Salary | N15: Fringe | O15: Total | P15: Salary | Q15: Fringe | R15: Total | S15: Salary | T15: Fringe | U15: Total | V15: Salary | W15: Fringe | X15: Total | Y15: Salary | Z15: Fringe | AA15: Total | AB15: Salary | AC15: Fringe | AD15: Total | AE15: Salary | AF15: Fringe | AG15: Total | AH15: Salary | AI15: Fringe | AJ15: Grand Total
A16: ='Fringe Rates (Federal)'!F1 -> S&W Staff | B16: =HLOOKUP(A16,'Fringe Rates (Federal)'!$F$1:$S$2,2,FALSE) -> 50010 | D16: =ROUND(SUMPRODUCT(--(ISNUMBER($AJ$6:$AJ$11)),($A$6:$A$11=$A$16)*$D$6:$D$11),0) -> 0 | E16: =ROUND(SUMPRODUCT(--(ISNUMBER($AJ$6:$AJ$11)),($A$6:$A$11=$A$16)*$E$6:$E$11),0) -> 0 | F16: =ROUND(SUMPRODUCT(--(ISNUMBER($AJ$6:$AJ$11)),($A$6:$A$11=$A$16)*$F$6:$F$11),0) -> 0 | G16: =ROUND(SUMPRODUCT(--(ISNUMBER($AJ$6:$AJ$11)),($A$6:$A$11=$A$16)*$G$6:$G$11),0) -> 0 | H16: =ROUND(SUMPRODUCT(--(ISNUMBER($AJ$6:$AJ$11)),($A$6:$A$11=$A$16)*$H$6:$H$11),0) -> 0 | I16: =ROUND(SUMPRODUCT(--(ISNUMBER($AJ$6:$AJ$11)),($A$6:$A$11=$A$16)*$I$6:$I$11),0) -> 0 | J16: =ROUND(SUMPRODUCT(--(ISNUMBER($AJ$6:$AJ$11)),($A$6:$A$11=$A$16)*$J$6:$J$11),0) -> 0 | K16: =ROUND(SUMPRODUCT(--(ISNUMBER($AJ$6:$AJ$11)),($A$6:$A$11=$A$16)*$K$6:$K$11),0) -> 0 | L16: =ROUND(SUMPRODUCT(--(ISNUMBER($AJ$6:$AJ$11)),($A$6:$A$11=$A$16)*$L$6:$L$11),0) -> 0 | M16: =ROUND(SUMPRODUCT(--(ISNUMBER($AJ$6:$AJ$11)),($A$6:$A$11=$A$16)*$M$6:$M$11),0) -> 0 | N16: =ROUND(SUMPRODUCT(--(ISNUMBER($AJ$6:$AJ$11)),($A$6:$A$11=$A$16)*$N$6:$N$11),0) -> 0 | O16: =ROUND(SUMPRODUCT(--(ISNUMBER($AJ$6:$AJ$11)),($A$6:$A$11=$A$16)*$O$6:$O$11),0) -> 0 | P16: =ROUND(SUMPRODUCT(--(ISNUMBER($AJ$6:$AJ$11)),($A$6:$A$11=$A$16)*$P$6:$P$11),0) -> 0 | Q16: =ROUND(SUMPRODUCT(--(ISNUMBER($AJ$6:$AJ$11)),($A$6:$A$11=$A$16)*$Q$6:$Q$11),0) -> 0 | R16: =ROUND(SUMPRODUCT(--(ISNUMBER($AJ$6:$AJ$11)),($A$6:$A$11=$A$16)*$R$6:$R$11),0) -> 0 | S16: =ROUND(SUMPRODUCT(--(ISNUMBER($AJ$6:$AJ$11)),($A$6:$A$11=$A$16)*$S$6:$S$11),0) -> 0 | T16: =ROUND(SUMPRODUCT(--(ISNUMBER($AJ$6:$AJ$11)),($A$6:$A$11=$A$16)*$T$6:$T$11),0) -> 0 | U16: =ROUND(SUMPRODUCT(--(ISNUMBER($AJ$6:$AJ$11)),($A$6:$A$11=$A$16)*$U$6:$U$11),0) -> 0 | V16: =ROUND(SUMPRODUCT(--(ISNUMBER($AJ$6:$AJ$11)),($A$6:$A$11=$A$16)*$V$6:$V$11),0) -> 0 | W16: =ROUND(SUMPRODUCT(--(ISNUMBER($AJ$6:$AJ$11)),($A$6:$A$11=$A$16)*$W$6:$W$11),0) -> 0 | X16: =ROUND(SUMPRODUCT(--(ISNUMBER($AJ$6:$AJ$11)),($A$6:$A$11=$A$16)*$X$6:$X$11),0) -> 0 | Y16: =ROUND(SUMPRODUCT(--(ISNUMBER($AJ$6:$AJ$11)),($A$6:$A$11=$A$16)*$Y$6:$Y$11),0) -> 0 | Z16: =ROUND(SUMPRODUCT(--(ISNUMBER($AJ$6:$AJ$11)),($A$6:$A$11=$A$16)*$Z$6:$Z$11),0) -> 0 | AA16: =ROUND(SUMPRODUCT(--(ISNUMBER($AJ$6:$AJ$11)),($A$6:$A$11=$A$16)*$AA$6:$AA$11),0) -> 0 | AB16: =ROUND(SUMPRODUCT(--(ISNUMBER($AJ$6:$AJ$11)),($A$6:$A$11=$A$16)*$AB$6:$AB$11),0) -> 0 | AC16: =ROUND(SUMPRODUCT(--(ISNUMBER($AJ$6:$AJ$11)),($A$6:$A$11=$A$16)*$AC$6:$AC$11),0) -> 0 | AD16: =ROUND(SUMPRODUCT(--(ISNUMBER($AJ$6:$AJ$11)),($A$6:$A$11=$A$16)*$AD$6:$AD$11),0) -> 0 | AE16: =ROUND(SUMPRODUCT(--(ISNUMBER($AJ$6:$AJ$11)),($A$6:$A$11=$A$16)*$AE$6:$AE$11),0) -> 0 | AF16: =ROUND(SUMPRODUCT(--(ISNUMBER($AJ$6:$AJ$11)),($A$6:$A$11=$A$16)*$AF$6:$AF$11),0) -> 0 | AG16: =ROUND(SUMPRODUCT(--(ISNUMBER($AJ$6:$AJ$11)),($A$6:$A$11=$A$16)*$AG$6:$AG$11),0) -> 0 | AH16: =ROUND(SUMPRODUCT(--(ISNUMBER($AJ$6:$AJ$11)),($A$6:$A$11=$A$16)*$AH$6:$AH$11),0) -> 0 | AI16: =ROUND(SUMPRODUCT(--(ISNUMBER($AJ$6:$AJ$11)),($A$6:$A$11=$A$16)*$AI$6:$AI$11),0) -> 0 | AJ16: =ROUND(SUMPRODUCT(--(ISNUMBER($AJ$6:$AJ$11)),($A$6:$A$11=$A$16)*$AJ$6:$AJ$11),0) -> 0
A17: ='Fringe Rates (Federal)'!G1 -> S&W Faculty | B17: =HLOOKUP(A17,'Fringe Rates (Federal)'!$F$1:$S$2,2,FALSE) -> 50020 | D17: =ROUND(SUMPRODUCT(--(ISNUMBER($AJ$6:$AJ$11)),($A$6:$A$11=$A$17)*$D$6:$D$11),0) -> 0 | E17: =ROUND(SUMPRODUCT(--(ISNUMBER($AJ$6:$AJ$11)),($A$6:$A$11=$A$17)*$E$6:$E$11),0) -> 0 | F17: =ROUND(SUMPRODUCT(--(ISNUMBER($AJ$6:$AJ$11)),($A$6:$A$11=$A$17)*$F$6:$F$11),0) -> 0 | G17: =ROUND(SUMPRODUCT(--(ISNUMBER($AJ$6:$AJ$11)),($A$6:$A$11=$A$17)*$G$6:$G$11),0) -> 0 | H17: =ROUND(SUMPRODUCT(--(ISNUMBER($AJ$6:$AJ$11)),($A$6:$A$11=$A$17)*$H$6:$H$11),0) -> 0 | I17: =ROUND(SUMPRODUCT(--(ISNUMBER($AJ$6:$AJ$11)),($A$6:$A$11=$A$17)*$I$6:$I$11),0) -> 0 | J17: =ROUND(SUMPRODUCT(--(ISNUMBER($AJ$6:$AJ$11)),($A$6:$A$11=$A$17)*$J$6:$J$11),0) -> 0 | K17: =ROUND(SUMPRODUCT(--(ISNUMBER($AJ$6:$AJ$11)),($A$6:$A$11=$A$17)*$K$6:$K$11),0) -> 0 | L17: =ROUND(SUMPRODUCT(--(ISNUMBER($AJ$6:$AJ$11)),($A$6:$A$11=$A$17)*$L$6:$L$11),0) -> 0 | M17: =ROUND(SUMPRODUCT(--(ISNUMBER($AJ$6:$AJ$11)),($A$6:$A$11=$A$17)*$M$6:$M$11),0) -> 0 | N17: =ROUND(SUMPRODUCT(--(ISNUMBER($AJ$6:$AJ$11)),($A$6:$A$11=$A$17)*$N$6:$N$11),0) -> 0 | O17: =ROUND(SUMPRODUCT(--(ISNUMBER($AJ$6:$AJ$11)),($A$6:$A$11=$A$17)*$O$6:$O$11),0) -> 0 | P17: =ROUND(SUMPRODUCT(--(ISNUMBER($AJ$6:$AJ$11)),($A$6:$A$11=$A$17)*$P$6:$P$11),0) -> 0 | Q17: =ROUND(SUMPRODUCT(--(ISNUMBER($AJ$6:$AJ$11)),($A$6:$A$11=$A$17)*$Q$6:$Q$11),0) -> 0 | R17: =ROUND(SUMPRODUCT(--(ISNUMBER($AJ$6:$AJ$11)),($A$6:$A$11=$A$17)*$R$6:$R$11),0) -> 0 | S17: =ROUND(SUMPRODUCT(--(ISNUMBER($AJ$6:$AJ$11)),($A$6:$A$11=$A$17)*$S$6:$S$11),0) -> 0 | T17: =ROUND(SUMPRODUCT(--(ISNUMBER($AJ$6:$AJ$11)),($A$6:$A$11=$A$17)*$T$6:$T$11),0) -> 0 | U17: =ROUND(SUMPRODUCT(--(ISNUMBER($AJ$6:$AJ$11)),($A$6:$A$11=$A$17)*$U$6:$U$11),0) -> 0 | V17: =ROUND(SUMPRODUCT(--(ISNUMBER($AJ$6:$AJ$11)),($A$6:$A$11=$A$17)*$V$6:$V$11),0) -> 0 | W17: =ROUND(SUMPRODUCT(--(ISNUMBER($AJ$6:$AJ$11)),($A$6:$A$11=$A$17)*$W$6:$W$11),0) -> 0 | X17: =ROUND(SUMPRODUCT(--(ISNUMBER($AJ$6:$AJ$11)),($A$6:$A$11=$A$17)*$X$6:$X$11),0) -> 0 | Y17: =ROUND(SUMPRODUCT(--(ISNUMBER($AJ$6:$AJ$11)),($A$6:$A$11=$A$17)*$Y$6:$Y$11),0) -> 0 | Z17: =ROUND(SUMPRODUCT(--(ISNUMBER($AJ$6:$AJ$11)),($A$6:$A$11=$A$17)*$Z$6:$Z$11),0) -> 0 | AA17: =ROUND(SUMPRODUCT(--(ISNUMBER($AJ$6:$AJ$11)),($A$6:$A$11=$A$17)*$AA$6:$AA$11),0) -> 0 | AB17: =ROUND(SUMPRODUCT(--(ISNUMBER($AJ$6:$AJ$11)),($A$6:$A$11=$A$17)*$AB$6:$AB$11),0) -> 0 | AC17: =ROUND(SUMPRODUCT(--(ISNUMBER($AJ$6:$AJ$11)),($A$6:$A$11=$A$17)*$AC$6:$AC$11),0) -> 0 | AD17: =ROUND(SUMPRODUCT(--(ISNUMBER($AJ$6:$AJ$11)),($A$6:$A$11=$A$17)*$AD$6:$AD$11),0) -> 0 | AE17: =ROUND(SUMPRODUCT(--(ISNUMBER($AJ$6:$AJ$11)),($A$6:$A$11=$A$17)*$AE$6:$AE$11),0) -> 0 | AF17: =ROUND(SUMPRODUCT(--(ISNUMBER($AJ$6:$AJ$11)),($A$6:$A$11=$A$17)*$AF$6:$AF$11),0) -> 0 | AG17: =ROUND(SUMPRODUCT(--(ISNUMBER($AJ$6:$AJ$11)),($A$6:$A$11=$A$17)*$AG$6:$AG$11),0) -> 0 | AH17: =ROUND(SUMPRODUCT(--(ISNUMBER($AJ$6:$AJ$11)),($A$6:$A$11=$A$17)*$AH$6:$AH$11),0) -> 0 | AI17: =ROUND(SUMPRODUCT(--(ISNUMBER($AJ$6:$AJ$11)),($A$6:$A$11=$A$17)*$AI$6:$AI$11),0) -> 0 | AJ17: =ROUND(SUMPRODUCT(--(ISNUMBER($AJ$6:$AJ$11)),($A$6:$A$11=$A$17)*$AJ$6:$AJ$11),0) -> 0
A18: ='Fringe Rates (Federal)'!H1 -> S&W TA & GA | B18: =HLOOKUP(A18,'Fringe Rates (Federal)'!$F$1:$S$2,2,FALSE) -> 50050 | D18: =ROUND(SUMPRODUCT(--(ISNUMBER($AJ$6:$AJ$11)),($A$6:$A$11=$A$18)*$D$6:$D$11),0) -> 0 | E18: =ROUND(SUMPRODUCT(--(ISNUMBER($AJ$6:$AJ$11)),($A$6:$A$11=$A$18)*$E$6:$E$11),0) -> 0 | F18: =ROUND(SUMPRODUCT(--(ISNUMBER($AJ$6:$AJ$11)),($A$6:$A$11=$A$18)*$F$6:$F$11),0) -> 0 | G18: =ROUND(SUMPRODUCT(--(ISNUMBER($AJ$6:$AJ$11)),($A$6:$A$11=$A$18)*$G$6:$G$11),0) -> 0 | H18: =ROUND(SUMPRODUCT(--(ISNUMBER($AJ$6:$AJ$11)),($A$6:$A$11=$A$18)*$H$6:$H$11),0) -> 0 | I18: =ROUND(SUMPRODUCT(--(ISNUMBER($AJ$6:$AJ$11)),($A$6:$A$11=$A$18)*$I$6:$I$11),0) -> 0 | J18: =ROUND(SUMPRODUCT(--(ISNUMBER($AJ$6:$AJ$11)),($A$6:$A$11=$A$18)*$J$6:$J$11),0) -> 0 | K18: =ROUND(SUMPRODUCT(--(ISNUMBER($AJ$6:$AJ$11)),($A$6:$A$11=$A$18)*$K$6:$K$11),0) -> 0 | L18: =ROUND(SUMPRODUCT(--(ISNUMBER($AJ$6:$AJ$11)),($A$6:$A$11=$A$18)*$L$6:$L$11),0) -> 0 | M18: =ROUND(SUMPRODUCT(--(ISNUMBER($AJ$6:$AJ$11)),($A$6:$A$11=$A$18)*$M$6:$M$11),0) -> 0 | N18: =ROUND(SUMPRODUCT(--(ISNUMBER($AJ$6:$AJ$11)),($A$6:$A$11=$A$18)*$N$6:$N$11),0) -> 0 | O18: =ROUND(SUMPRODUCT(--(ISNUMBER($AJ$6:$AJ$11)),($A$6:$A$11=$A$18)*$O$6:$O$11),0) -> 0 | P18: =ROUND(SUMPRODUCT(--(ISNUMBER($AJ$6:$AJ$11)),($A$6:$A$11=$A$18)*$P$6:$P$11),0) -> 0 | Q18: =ROUND(SUMPRODUCT(--(ISNUMBER($AJ$6:$AJ$11)),($A$6:$A$11=$A$18)*$Q$6:$Q$11),0) -> 0 | R18: =ROUND(SUMPRODUCT(--(ISNUMBER($AJ$6:$AJ$11)),($A$6:$A$11=$A$18)*$R$6:$R$11),0) -> 0 | S18: =ROUND(SUMPRODUCT(--(ISNUMBER($AJ$6:$AJ$11)),($A$6:$A$11=$A$18)*$S$6:$S$11),0) -> 0 | T18: =ROUND(SUMPRODUCT(--(ISNUMBER($AJ$6:$AJ$11)),($A$6:$A$11=$A$18)*$T$6:$T$11),0) -> 0 | U18: =ROUND(SUMPRODUCT(--(ISNUMBER($AJ$6:$AJ$11)),($A$6:$A$11=$A$18)*$U$6:$U$11),0) -> 0 | V18: =ROUND(SUMPRODUCT(--(ISNUMBER($AJ$6:$AJ$11)),($A$6:$A$11=$A$18)*$V$6:$V$11),0) -> 0 | W18: =ROUND(SUMPRODUCT(--(ISNUMBER($AJ$6:$AJ$11)),($A$6:$A$11=$A$18)*$W$6:$W$11),0) -> 0 | X18: =ROUND(SUMPRODUCT(--(ISNUMBER($AJ$6:$AJ$11)),($A$6:$A$11=$A$18)*$X$6:$X$11),0) -> 0 | Y18: =ROUND(SUMPRODUCT(--(ISNUMBER($AJ$6:$AJ$11)),($A$6:$A$11=$A$18)*$Y$6:$Y$11),0) -> 0 | Z18: =ROUND(SUMPRODUCT(--(ISNUMBER($AJ$6:$AJ$11)),($A$6:$A$11=$A$18)*$Z$6:$Z$11),0) -> 0 | AA18: =ROUND(SUMPRODUCT(--(ISNUMBER($AJ$6:$AJ$11)),($A$6:$A$11=$A$18)*$AA$6:$AA$11),0) -> 0 | AB18: =ROUND(SUMPRODUCT(--(ISNUMBER($AJ$6:$AJ$11)),($A$6:$A$11=$A$18)*$AB$6:$AB$11),0) -> 0 | AC18: =ROUND(SUMPRODUCT(--(ISNUMBER($AJ$6:$AJ$11)),($A$6:$A$11=$A$18)*$AC$6:$AC$11),0) -> 0 | AD18: =ROUND(SUMPRODUCT(--(ISNUMBER($AJ$6:$AJ$11)),($A$6:$A$11=$A$18)*$AD$6:$AD$11),0) -> 0 | AE18: =ROUND(SUMPRODUCT(--(ISNUMBER($AJ$6:$AJ$11)),($A$6:$A$11=$A$18)*$AE$6:$AE$11),0) -> 0 | AF18: =ROUND(SUMPRODUCT(--(ISNUMBER($AJ$6:$AJ$11)),($A$6:$A$11=$A$18)*$AF$6:$AF$11),0) -> 0 | AG18: =ROUND(SUMPRODUCT(--(ISNUMBER($AJ$6:$AJ$11)),($A$6:$A$11=$A$18)*$AG$6:$AG$11),0) -> 0 | AH18: =ROUND(SUMPRODUCT(--(ISNUMBER($AJ$6:$AJ$11)),($A$6:$A$11=$A$18)*$AH$6:$AH$11),0) -> 0 | AI18: =ROUND(SUMPRODUCT(--(ISNUMBER($AJ$6:$AJ$11)),($A$6:$A$11=$A$18)*$AI$6:$AI$11),0) -> 0 | AJ18: =ROUND(SUMPRODUCT(--(ISNUMBER($AJ$6:$AJ$11)),($A$6:$A$11=$A$18)*$AJ$6:$AJ$11),0) -> 0
A19: ='Fringe Rates (Federal)'!I1 -> S&W Post Doctorate & Associates | B19: =HLOOKUP(A19,'Fringe Rates (Federal)'!$F$1:$S$2,2,FALSE) -> 50060 | D19: =ROUND(SUMPRODUCT(--(ISNUMBER($AJ$6:$AJ$11)),($A$6:$A$11=$A$19)*$D$6:$D$11),0) -> 0 | E19: =ROUND(SUMPRODUCT(--(ISNUMBER($AJ$6:$AJ$11)),($A$6:$A$11=$A$19)*$E$6:$E$11),0) -> 0 | F19: =ROUND(SUMPRODUCT(--(ISNUMBER($AJ$6:$AJ$11)),($A$6:$A$11=$A$19)*$F$6:$F$11),0) -> 0 | G19: =ROUND(SUMPRODUCT(--(ISNUMBER($AJ$6:$AJ$11)),($A$6:$A$11=$A$19)*$G$6:$G$11),0) -> 0 | H19: =ROUND(SUMPRODUCT(--(ISNUMBER($AJ$6:$AJ$11)),($A$6:$A$11=$A$19)*$H$6:$H$11),0) -> 0 | I19: =ROUND(SUMPRODUCT(--(ISNUMBER($AJ$6:$AJ$11)),($A$6:$A$11=$A$19)*$I$6:$I$11),0) -> 0 | J19: =ROUND(SUMPRODUCT(--(ISNUMBER($AJ$6:$AJ$11)),($A$6:$A$11=$A$19)*$J$6:$J$11),0) -> 0 | K19: =ROUND(SUMPRODUCT(--(ISNUMBER($AJ$6:$AJ$11)),($A$6:$A$11=$A$19)*$K$6:$K$11),0) -> 0 | L19: =ROUND(SUMPRODUCT(--(ISNUMBER($AJ$6:$AJ$11)),($A$6:$A$11=$A$19)*$L$6:$L$11),0) -> 0 | M19: =ROUND(SUMPRODUCT(--(ISNUMBER($AJ$6:$AJ$11)),($A$6:$A$11=$A$19)*$M$6:$M$11),0) -> 0 | N19: =ROUND(SUMPRODUCT(--(ISNUMBER($AJ$6:$AJ$11)),($A$6:$A$11=$A$19)*$N$6:$N$11),0) -> 0 | O19: =ROUND(SUMPRODUCT(--(ISNUMBER($AJ$6:$AJ$11)),($A$6:$A$11=$A$19)*$O$6:$O$11),0) -> 0 | P19: =ROUND(SUMPRODUCT(--(ISNUMBER($AJ$6:$AJ$11)),($A$6:$A$11=$A$19)*$P$6:$P$11),0) -> 0 | Q19: =ROUND(SUMPRODUCT(--(ISNUMBER($AJ$6:$AJ$11)),($A$6:$A$11=$A$19)*$Q$6:$Q$11),0) -> 0 | R19: =ROUND(SUMPRODUCT(--(ISNUMBER($AJ$6:$AJ$11)),($A$6:$A$11=$A$19)*$R$6:$R$11),0) -> 0 | S19: =ROUND(SUMPRODUCT(--(ISNUMBER($AJ$6:$AJ$11)),($A$6:$A$11=$A$19)*$S$6:$S$11),0) -> 0 | T19: =ROUND(SUMPRODUCT(--(ISNUMBER($AJ$6:$AJ$11)),($A$6:$A$11=$A$19)*$T$6:$T$11),0) -> 0 | U19: =ROUND(SUMPRODUCT(--(ISNUMBER($AJ$6:$AJ$11)),($A$6:$A$11=$A$19)*$U$6:$U$11),0) -> 0 | V19: =ROUND(SUMPRODUCT(--(ISNUMBER($AJ$6:$AJ$11)),($A$6:$A$11=$A$19)*$V$6:$V$11),0) -> 0 | W19: =ROUND(SUMPRODUCT(--(ISNUMBER($AJ$6:$AJ$11)),($A$6:$A$11=$A$19)*$W$6:$W$11),0) -> 0 | X19: =ROUND(SUMPRODUCT(--(ISNUMBER($AJ$6:$AJ$11)),($A$6:$A$11=$A$19)*$X$6:$X$11),0) -> 0 | Y19: =ROUND(SUMPRODUCT(--(ISNUMBER($AJ$6:$AJ$11)),($A$6:$A$11=$A$19)*$Y$6:$Y$11),0) -> 0 | Z19: =ROUND(SUMPRODUCT(--(ISNUMBER($AJ$6:$AJ$11)),($A$6:$A$11=$A$19)*$Z$6:$Z$11),0) -> 0 | AA19: =ROUND(SUMPRODUCT(--(ISNUMBER($AJ$6:$AJ$11)),($A$6:$A$11=$A$19)*$AA$6:$AA$11),0) -> 0 | AB19: =ROUND(SUMPRODUCT(--(ISNUMBER($AJ$6:$AJ$11)),($A$6:$A$11=$A$19)*$AB$6:$AB$11),0) -> 0 | AC19: =ROUND(SUMPRODUCT(--(ISNUMBER($AJ$6:$AJ$11)),($A$6:$A$11=$A$19)*$AC$6:$AC$11),0) -> 0 | AD19: =ROUND(SUMPRODUCT(--(ISNUMBER($AJ$6:$AJ$11)),($A$6:$A$11=$A$19)*$AD$6:$AD$11),0) -> 0 | AE19: =ROUND(SUMPRODUCT(--(ISNUMBER($AJ$6:$AJ$11)),($A$6:$A$11=$A$19)*$AE$6:$AE$11),0) -> 0 | AF19: =ROUND(SUMPRODUCT(--(ISNUMBER($AJ$6:$AJ$11)),($A$6:$A$11=$A$19)*$AF$6:$AF$11),0) -> 0 | AG19: =ROUND(SUMPRODUCT(--(ISNUMBER($AJ$6:$AJ$11)),($A$6:$A$11=$A$19)*$AG$6:$AG$11),0) -> 0 | AH19: =ROUND(SUMPRODUCT(--(ISNUMBER($AJ$6:$AJ$11)),($A$6:$A$11=$A$19)*$AH$6:$AH$11),0) -> 0 | AI19: =ROUND(SUMPRODUCT(--(ISNUMBER($AJ$6:$AJ$11)),($A$6:$A$11=$A$19)*$AI$6:$AI$11),0) -> 0 | AJ19: =ROUND(SUMPRODUCT(--(ISNUMBER($AJ$6:$AJ$11)),($A$6:$A$11=$A$19)*$AJ$6:$AJ$11),0) -> 0
A20: ='Fringe Rates (Federal)'!J1 -> S&W Housestaff | B20: =HLOOKUP(A20,'Fringe Rates (Federal)'!$F$1:$S$2,2,FALSE) -> 50070 | D20: =ROUND(SUMPRODUCT(--(ISNUMBER($AJ$6:$AJ$11)),($A$6:$A$11=$A$20)*$D$6:$D$11),0) -> 0 | E20: =ROUND(SUMPRODUCT(--(ISNUMBER($AJ$6:$AJ$11)),($A$6:$A$11=$A$20)*$E$6:$E$11),0) -> 0 | F20: =ROUND(SUMPRODUCT(--(ISNUMBER($AJ$6:$AJ$11)),($A$6:$A$11=$A$20)*$F$6:$F$11),0) -> 0 | G20: =ROUND(SUMPRODUCT(--(ISNUMBER($AJ$6:$AJ$11)),($A$6:$A$11=$A$20)*$G$6:$G$11),0) -> 0 | H20: =ROUND(SUMPRODUCT(--(ISNUMBER($AJ$6:$AJ$11)),($A$6:$A$11=$A$20)*$H$6:$H$11),0) -> 0 | I20: =ROUND(SUMPRODUCT(--(ISNUMBER($AJ$6:$AJ$11)),($A$6:$A$11=$A$20)*$I$6:$I$11),0) -> 0 | J20: =ROUND(SUMPRODUCT(--(ISNUMBER($AJ$6:$AJ$11)),($A$6:$A$11=$A$20)*$J$6:$J$11),0) -> 0 | K20: =ROUND(SUMPRODUCT(--(ISNUMBER($AJ$6:$AJ$11)),($A$6:$A$11=$A$20)*$K$6:$K$11),0) -> 0 | L20: =ROUND(SUMPRODUCT(--(ISNUMBER($AJ$6:$AJ$11)),($A$6:$A$11=$A$20)*$L$6:$L$11),0) -> 0 | M20: =ROUND(SUMPRODUCT(--(ISNUMBER($AJ$6:$AJ$11)),($A$6:$A$11=$A$20)*$M$6:$M$11),0) -> 0 | N20: =ROUND(SUMPRODUCT(--(ISNUMBER($AJ$6:$AJ$11)),($A$6:$A$11=$A$20)*$N$6:$N$11),0) -> 0 | O20: =ROUND(SUMPRODUCT(--(ISNUMBER($AJ$6:$AJ$11)),($A$6:$A$11=$A$20)*$O$6:$O$11),0) -> 0 | P20: =ROUND(SUMPRODUCT(--(ISNUMBER($AJ$6:$AJ$11)),($A$6:$A$11=$A$20)*$P$6:$P$11),0) -> 0 | Q20: =ROUND(SUMPRODUCT(--(ISNUMBER($AJ$6:$AJ$11)),($A$6:$A$11=$A$20)*$Q$6:$Q$11),0) -> 0 | R20: =ROUND(SUMPRODUCT(--(ISNUMBER($AJ$6:$AJ$11)),($A$6:$A$11=$A$20)*$R$6:$R$11),0) -> 0 | S20: =ROUND(SUMPRODUCT(--(ISNUMBER($AJ$6:$AJ$11)),($A$6:$A$11=$A$20)*$S$6:$S$11),0) -> 0 | T20: =ROUND(SUMPRODUCT(--(ISNUMBER($AJ$6:$AJ$11)),($A$6:$A$11=$A$20)*$T$6:$T$11),0) -> 0 | U20: =ROUND(SUMPRODUCT(--(ISNUMBER($AJ$6:$AJ$11)),($A$6:$A$11=$A$20)*$U$6:$U$11),0) -> 0 | V20: =ROUND(SUMPRODUCT(--(ISNUMBER($AJ$6:$AJ$11)),($A$6:$A$11=$A$20)*$V$6:$V$11),0) -> 0 | W20: =ROUND(SUMPRODUCT(--(ISNUMBER($AJ$6:$AJ$11)),($A$6:$A$11=$A$20)*$W$6:$W$11),0) -> 0 | X20: =ROUND(SUMPRODUCT(--(ISNUMBER($AJ$6:$AJ$11)),($A$6:$A$11=$A$20)*$X$6:$X$11),0) -> 0 | Y20: =ROUND(SUMPRODUCT(--(ISNUMBER($AJ$6:$AJ$11)),($A$6:$A$11=$A$20)*$Y$6:$Y$11),0) -> 0 | Z20: =ROUND(SUMPRODUCT(--(ISNUMBER($AJ$6:$AJ$11)),($A$6:$A$11=$A$20)*$Z$6:$Z$11),0) -> 0 | AA20: =ROUND(SUMPRODUCT(--(ISNUMBER($AJ$6:$AJ$11)),($A$6:$A$11=$A$20)*$AA$6:$AA$11),0) -> 0 | AB20: =ROUND(SUMPRODUCT(--(ISNUMBER($AJ$6:$AJ$11)),($A$6:$A$11=$A$20)*$AB$6:$AB$11),0) -> 0 | AC20: =ROUND(SUMPRODUCT(--(ISNUMBER($AJ$6:$AJ$11)),($A$6:$A$11=$A$20)*$AC$6:$AC$11),0) -> 0 | AD20: =ROUND(SUMPRODUCT(--(ISNUMBER($AJ$6:$AJ$11)),($A$6:$A$11=$A$20)*$AD$6:$AD$11),0) -> 0 | AE20: =ROUND(SUMPRODUCT(--(ISNUMBER($AJ$6:$AJ$11)),($A$6:$A$11=$A$20)*$AE$6:$AE$11),0) -> 0 | AF20: =ROUND(SUMPRODUCT(--(ISNUMBER($AJ$6:$AJ$11)),($A$6:$A$11=$A$20)*$AF$6:$AF$11),0) -> 0 | AG20: =ROUND(SUMPRODUCT(--(ISNUMBER($AJ$6:$AJ$11)),($A$6:$A$11=$A$20)*$AG$6:$AG$11),0) -> 0 | AH20: =ROUND(SUMPRODUCT(--(ISNUMBER($AJ$6:$AJ$11)),($A$6:$A$11=$A$20)*$AH$6:$AH$11),0) -> 0 | AI20: =ROUND(SUMPRODUCT(--(ISNUMBER($AJ$6:$AJ$11)),($A$6:$A$11=$A$20)*$AI$6:$AI$11),0) -> 0 | AJ20: =ROUND(SUMPRODUCT(--(ISNUMBER($AJ$6:$AJ$11)),($A$6:$A$11=$A$20)*$AJ$6:$AJ$11),0) -> 0
A21: ='Fringe Rates (Federal)'!K1 -> S&W NonInstructional (Summer Salary) | B21: =HLOOKUP(A21,'Fringe Rates (Federal)'!$F$1:$S$2,2,FALSE) -> 50080 | D21: =ROUND(SUMPRODUCT(--(ISNUMBER($AJ$6:$AJ$11)),($A$6:$A$11=$A$21)*$D$6:$D$11),0) -> 0 | E21: =ROUND(SUMPRODUCT(--(ISNUMBER($AJ$6:$AJ$11)),($A$6:$A$11=$A$21)*$E$6:$E$11),0) -> 0 | F21: =ROUND(SUMPRODUCT(--(ISNUMBER($AJ$6:$AJ$11)),($A$6:$A$11=$A$21)*$F$6:$F$11),0) -> 0 | G21: =ROUND(SUMPRODUCT(--(ISNUMBER($AJ$6:$AJ$11)),($A$6:$A$11=$A$21)*$G$6:$G$11),0) -> 0 | H21: =ROUND(SUMPRODUCT(--(ISNUMBER($AJ$6:$AJ$11)),($A$6:$A$11=$A$21)*$H$6:$H$11),0) -> 0 | I21: =ROUND(SUMPRODUCT(--(ISNUMBER($AJ$6:$AJ$11)),($A$6:$A$11=$A$21)*$I$6:$I$11),0) -> 0 | J21: =ROUND(SUMPRODUCT(--(ISNUMBER($AJ$6:$AJ$11)),($A$6:$A$11=$A$21)*$J$6:$J$11),0) -> 0 | K21: =ROUND(SUMPRODUCT(--(ISNUMBER($AJ$6:$AJ$11)),($A$6:$A$11=$A$21)*$K$6:$K$11),0) -> 0 | L21: =ROUND(SUMPRODUCT(--(ISNUMBER($AJ$6:$AJ$11)),($A$6:$A$11=$A$21)*$L$6:$L$11),0) -> 0 | M21: =ROUND(SUMPRODUCT(--(ISNUMBER($AJ$6:$AJ$11)),($A$6:$A$11=$A$21)*$M$6:$M$11),0) -> 0 | N21: =ROUND(SUMPRODUCT(--(ISNUMBER($AJ$6:$AJ$11)),($A$6:$A$11=$A$21)*$N$6:$N$11),0) -> 0 | O21: =ROUND(SUMPRODUCT(--(ISNUMBER($AJ$6:$AJ$11)),($A$6:$A$11=$A$21)*$O$6:$O$11),0) -> 0 | P21: =ROUND(SUMPRODUCT(--(ISNUMBER($AJ$6:$AJ$11)),($A$6:$A$11=$A$21)*$P$6:$P$11),0) -> 0 | Q21: =ROUND(SUMPRODUCT(--(ISNUMBER($AJ$6:$AJ$11)),($A$6:$A$11=$A$21)*$Q$6:$Q$11),0) -> 0 | R21: =ROUND(SUMPRODUCT(--(ISNUMBER($AJ$6:$AJ$11)),($A$6:$A$11=$A$21)*$R$6:$R$11),0) -> 0 | S21: =ROUND(SUMPRODUCT(--(ISNUMBER($AJ$6:$AJ$11)),($A$6:$A$11=$A$21)*$S$6:$S$11),0) -> 0 | T21: =ROUND(SUMPRODUCT(--(ISNUMBER($AJ$6:$AJ$11)),($A$6:$A$11=$A$21)*$T$6:$T$11),0) -> 0 | U21: =ROUND(SUMPRODUCT(--(ISNUMBER($AJ$6:$AJ$11)),($A$6:$A$11=$A$21)*$U$6:$U$11),0) -> 0 | V21: =ROUND(SUMPRODUCT(--(ISNUMBER($AJ$6:$AJ$11)),($A$6:$A$11=$A$21)*$V$6:$V$11),0) -> 0 | W21: =ROUND(SUMPRODUCT(--(ISNUMBER($AJ$6:$AJ$11)),($A$6:$A$11=$A$21)*$W$6:$W$11),0) -> 0 | X21: =ROUND(SUMPRODUCT(--(ISNUMBER($AJ$6:$AJ$11)),($A$6:$A$11=$A$21)*$X$6:$X$11),0) -> 0 | Y21: =ROUND(SUMPRODUCT(--(ISNUMBER($AJ$6:$AJ$11)),($A$6:$A$11=$A$21)*$Y$6:$Y$11),0) -> 0 | Z21: =ROUND(SUMPRODUCT(--(ISNUMBER($AJ$6:$AJ$11)),($A$6:$A$11=$A$21)*$Z$6:$Z$11),0) -> 0 | AA21: =ROUND(SUMPRODUCT(--(ISNUMBER($AJ$6:$AJ$11)),($A$6:$A$11=$A$21)*$AA$6:$AA$11),0) -> 0 | AB21: =ROUND(SUMPRODUCT(--(ISNUMBER($AJ$6:$AJ$11)),($A$6:$A$11=$A$21)*$AB$6:$AB$11),0) -> 0 | AC21: =ROUND(SUMPRODUCT(--(ISNUMBER($AJ$6:$AJ$11)),($A$6:$A$11=$A$21)*$AC$6:$AC$11),0) -> 0 | AD21: =ROUND(SUMPRODUCT(--(ISNUMBER($AJ$6:$AJ$11)),($A$6:$A$11=$A$21)*$AD$6:$AD$11),0) -> 0 | AE21: =ROUND(SUMPRODUCT(--(ISNUMBER($AJ$6:$AJ$11)),($A$6:$A$11=$A$21)*$AE$6:$AE$11),0) -> 0 | AF21: =ROUND(SUMPRODUCT(--(ISNUMBER($AJ$6:$AJ$11)),($A$6:$A$11=$A$21)*$AF$6:$AF$11),0) -> 0 | AG21: =ROUND(SUMPRODUCT(--(ISNUMBER($AJ$6:$AJ$11)),($A$6:$A$11=$A$21)*$AG$6:$AG$11),0) -> 0 | AH21: =ROUND(SUMPRODUCT(--(ISNUMBER($AJ$6:$AJ$11)),($A$6:$A$11=$A$21)*$AH$6:$AH$11),0) -> 0 | AI21: =ROUND(SUMPRODUCT(--(ISNUMBER($AJ$6:$AJ$11)),($A$6:$A$11=$A$21)*$AI$6:$AI$11),0) -> 0 | AJ21: =ROUND(SUMPRODUCT(--(ISNUMBER($AJ$6:$AJ$11)),($A$6:$A$11=$A$21)*$AJ$6:$AJ$11),0) -> 0
A22: ='Fringe Rates (Federal)'!L1 -> S&W Lecturer | B22: =HLOOKUP(A22,'Fringe Rates (Federal)'!$F$1:$S$2,2,FALSE) -> 50081 | D22: =ROUND(SUMPRODUCT(--(ISNUMBER($AJ$6:$AJ$11)),($A$6:$A$11=$A$22)*$D$6:$D$11),0) -> 0 | E22: =ROUND(SUMPRODUCT(--(ISNUMBER($AJ$6:$AJ$11)),($A$6:$A$11=$A$22)*$E$6:$E$11),0) -> 0 | F22: =ROUND(SUMPRODUCT(--(ISNUMBER($AJ$6:$AJ$11)),($A$6:$A$11=$A$22)*$F$6:$F$11),0) -> 0 | G22: =ROUND(SUMPRODUCT(--(ISNUMBER($AJ$6:$AJ$11)),($A$6:$A$11=$A$22)*$G$6:$G$11),0) -> 0 | H22: =ROUND(SUMPRODUCT(--(ISNUMBER($AJ$6:$AJ$11)),($A$6:$A$11=$A$22)*$H$6:$H$11),0) -> 0 | I22: =ROUND(SUMPRODUCT(--(ISNUMBER($AJ$6:$AJ$11)),($A$6:$A$11=$A$22)*$I$6:$I$11),0) -> 0 | J22: =ROUND(SUMPRODUCT(--(ISNUMBER($AJ$6:$AJ$11)),($A$6:$A$11=$A$22)*$J$6:$J$11),0) -> 0 | K22: =ROUND(SUMPRODUCT(--(ISNUMBER($AJ$6:$AJ$11)),($A$6:$A$11=$A$22)*$K$6:$K$11),0) -> 0 | L22: =ROUND(SUMPRODUCT(--(ISNUMBER($AJ$6:$AJ$11)),($A$6:$A$11=$A$22)*$L$6:$L$11),0) -> 0 | M22: =ROUND(SUMPRODUCT(--(ISNUMBER($AJ$6:$AJ$11)),($A$6:$A$11=$A$22)*$M$6:$M$11),0) -> 0 | N22: =ROUND(SUMPRODUCT(--(ISNUMBER($AJ$6:$AJ$11)),($A$6:$A$11=$A$22)*$N$6:$N$11),0) -> 0 | O22: =ROUND(SUMPRODUCT(--(ISNUMBER($AJ$6:$AJ$11)),($A$6:$A$11=$A$22)*$O$6:$O$11),0) -> 0 | P22: =ROUND(SUMPRODUCT(--(ISNUMBER($AJ$6:$AJ$11)),($A$6:$A$11=$A$22)*$P$6:$P$11),0) -> 0 | Q22: =ROUND(SUMPRODUCT(--(ISNUMBER($AJ$6:$AJ$11)),($A$6:$A$11=$A$22)*$Q$6:$Q$11),0) -> 0 | R22: =ROUND(SUMPRODUCT(--(ISNUMBER($AJ$6:$AJ$11)),($A$6:$A$11=$A$22)*$R$6:$R$11),0) -> 0 | S22: =ROUND(SUMPRODUCT(--(ISNUMBER($AJ$6:$AJ$11)),($A$6:$A$11=$A$22)*$S$6:$S$11),0) -> 0 | T22: =ROUND(SUMPRODUCT(--(ISNUMBER($AJ$6:$AJ$11)),($A$6:$A$11=$A$22)*$T$6:$T$11),0) -> 0 | U22: =ROUND(SUMPRODUCT(--(ISNUMBER($AJ$6:$AJ$11)),($A$6:$A$11=$A$22)*$U$6:$U$11),0) -> 0 | V22: =ROUND(SUMPRODUCT(--(ISNUMBER($AJ$6:$AJ$11)),($A$6:$A$11=$A$22)*$V$6:$V$11),0) -> 0 | W22: =ROUND(SUMPRODUCT(--(ISNUMBER($AJ$6:$AJ$11)),($A$6:$A$11=$A$22)*$W$6:$W$11),0) -> 0 | X22: =ROUND(SUMPRODUCT(--(ISNUMBER($AJ$6:$AJ$11)),($A$6:$A$11=$A$22)*$X$6:$X$11),0) -> 0 | Y22: =ROUND(SUMPRODUCT(--(ISNUMBER($AJ$6:$AJ$11)),($A$6:$A$11=$A$22)*$Y$6:$Y$11),0) -> 0 | Z22: =ROUND(SUMPRODUCT(--(ISNUMBER($AJ$6:$AJ$11)),($A$6:$A$11=$A$22)*$Z$6:$Z$11),0) -> 0 | AA22: =ROUND(SUMPRODUCT(--(ISNUMBER($AJ$6:$AJ$11)),($A$6:$A$11=$A$22)*$AA$6:$AA$11),0) -> 0 | AB22: =ROUND(SUMPRODUCT(--(ISNUMBER($AJ$6:$AJ$11)),($A$6:$A$11=$A$22)*$AB$6:$AB$11),0) -> 0 | AC22: =ROUND(SUMPRODUCT(--(ISNUMBER($AJ$6:$AJ$11)),($A$6:$A$11=$A$22)*$AC$6:$AC$11),0) -> 0 | AD22: =ROUND(SUMPRODUCT(--(ISNUMBER($AJ$6:$AJ$11)),($A$6:$A$11=$A$22)*$AD$6:$AD$11),0) -> 0 | AE22: =ROUND(SUMPRODUCT(--(ISNUMBER($AJ$6:$AJ$11)),($A$6:$A$11=$A$22)*$AE$6:$AE$11),0) -> 0 | AF22: =ROUND(SUMPRODUCT(--(ISNUMBER($AJ$6:$AJ$11)),($A$6:$A$11=$A$22)*$AF$6:$AF$11),0) -> 0 | AG22: =ROUND(SUMPRODUCT(--(ISNUMBER($AJ$6:$AJ$11)),($A$6:$A$11=$A$22)*$AG$6:$AG$11),0) -> 0 | AH22: =ROUND(SUMPRODUCT(--(ISNUMBER($AJ$6:$AJ$11)),($A$6:$A$11=$A$22)*$AH$6:$AH$11),0) -> 0 | AI22: =ROUND(SUMPRODUCT(--(ISNUMBER($AJ$6:$AJ$11)),($A$6:$A$11=$A$22)*$AI$6:$AI$11),0) -> 0 | AJ22: =ROUND(SUMPRODUCT(--(ISNUMBER($AJ$6:$AJ$11)),($A$6:$A$11=$A$22)*$AJ$6:$AJ$11),0) -> 0
A23: ='Fringe Rates (Federal)'!M1 -> S&W Student Employment | B23: =HLOOKUP(A23,'Fringe Rates (Federal)'!$F$1:$S$2,2,FALSE) -> 50090 | D23: =ROUND(SUMPRODUCT(--(ISNUMBER($AJ$6:$AJ$11)),($A$6:$A$11=$A$23)*$D$6:$D$11),0) -> 0 | E23: =ROUND(SUMPRODUCT(--(ISNUMBER($AJ$6:$AJ$11)),($A$6:$A$11=$A$23)*$E$6:$E$11),0) -> 0 | F23: =ROUND(SUMPRODUCT(--(ISNUMBER($AJ$6:$AJ$11)),($A$6:$A$11=$A$23)*$F$6:$F$11),0) -> 0 | G23: =ROUND(SUMPRODUCT(--(ISNUMBER($AJ$6:$AJ$11)),($A$6:$A$11=$A$23)*$G$6:$G$11),0) -> 0 | H23: =ROUND(SUMPRODUCT(--(ISNUMBER($AJ$6:$AJ$11)),($A$6:$A$11=$A$23)*$H$6:$H$11),0) -> 0 | I23: =ROUND(SUMPRODUCT(--(ISNUMBER($AJ$6:$AJ$11)),($A$6:$A$11=$A$23)*$I$6:$I$11),0) -> 0 | J23: =ROUND(SUMPRODUCT(--(ISNUMBER($AJ$6:$AJ$11)),($A$6:$A$11=$A$23)*$J$6:$J$11),0) -> 0 | K23: =ROUND(SUMPRODUCT(--(ISNUMBER($AJ$6:$AJ$11)),($A$6:$A$11=$A$23)*$K$6:$K$11),0) -> 0 | L23: =ROUND(SUMPRODUCT(--(ISNUMBER($AJ$6:$AJ$11)),($A$6:$A$11=$A$23)*$L$6:$L$11),0) -> 0 | M23: =ROUND(SUMPRODUCT(--(ISNUMBER($AJ$6:$AJ$11)),($A$6:$A$11=$A$23)*$M$6:$M$11),0) -> 0 | N23: =ROUND(SUMPRODUCT(--(ISNUMBER($AJ$6:$AJ$11)),($A$6:$A$11=$A$23)*$N$6:$N$11),0) -> 0 | O23: =ROUND(SUMPRODUCT(--(ISNUMBER($AJ$6:$AJ$11)),($A$6:$A$11=$A$23)*$O$6:$O$11),0) -> 0 | P23: =ROUND(SUMPRODUCT(--(ISNUMBER($AJ$6:$AJ$11)),($A$6:$A$11=$A$23)*$P$6:$P$11),0) -> 0 | Q23: =ROUND(SUMPRODUCT(--(ISNUMBER($AJ$6:$AJ$11)),($A$6:$A$11=$A$23)*$Q$6:$Q$11),0) -> 0 | R23: =ROUND(SUMPRODUCT(--(ISNUMBER($AJ$6:$AJ$11)),($A$6:$A$11=$A$23)*$R$6:$R$11),0) -> 0 | S23: =ROUND(SUMPRODUCT(--(ISNUMBER($AJ$6:$AJ$11)),($A$6:$A$11=$A$23)*$S$6:$S$11),0) -> 0 | T23: =ROUND(SUMPRODUCT(--(ISNUMBER($AJ$6:$AJ$11)),($A$6:$A$11=$A$23)*$T$6:$T$11),0) -> 0 | U23: =ROUND(SUMPRODUCT(--(ISNUMBER($AJ$6:$AJ$11)),($A$6:$A$11=$A$23)*$U$6:$U$11),0) -> 0 | V23: =ROUND(SUMPRODUCT(--(ISNUMBER($AJ$6:$AJ$11)),($A$6:$A$11=$A$23)*$V$6:$V$11),0) -> 0 | W23: =ROUND(SUMPRODUCT(--(ISNUMBER($AJ$6:$AJ$11)),($A$6:$A$11=$A$23)*$W$6:$W$11),0) -> 0 | X23: =ROUND(SUMPRODUCT(--(ISNUMBER($AJ$6:$AJ$11)),($A$6:$A$11=$A$23)*$X$6:$X$11),0) -> 0 | Y23: =ROUND(SUMPRODUCT(--(ISNUMBER($AJ$6:$AJ$11)),($A$6:$A$11=$A$23)*$Y$6:$Y$11),0) -> 0 | Z23: =ROUND(SUMPRODUCT(--(ISNUMBER($AJ$6:$AJ$11)),($A$6:$A$11=$A$23)*$Z$6:$Z$11),0) -> 0 | AA23: =ROUND(SUMPRODUCT(--(ISNUMBER($AJ$6:$AJ$11)),($A$6:$A$11=$A$23)*$AA$6:$AA$11),0) -> 0 | AB23: =ROUND(SUMPRODUCT(--(ISNUMBER($AJ$6:$AJ$11)),($A$6:$A$11=$A$23)*$AB$6:$AB$11),0) -> 0 | AC23: =ROUND(SUMPRODUCT(--(ISNUMBER($AJ$6:$AJ$11)),($A$6:$A$11=$A$23)*$AC$6:$AC$11),0) -> 0 | AD23: =ROUND(SUMPRODUCT(--(ISNUMBER($AJ$6:$AJ$11)),($A$6:$A$11=$A$23)*$AD$6:$AD$11),0) -> 0 | AE23: =ROUND(SUMPRODUCT(--(ISNUMBER($AJ$6:$AJ$11)),($A$6:$A$11=$A$23)*$AE$6:$AE$11),0) -> 0 | AF23: =ROUND(SUMPRODUCT(--(ISNUMBER($AJ$6:$AJ$11)),($A$6:$A$11=$A$23)*$AF$6:$AF$11),0) -> 0 | AG23: =ROUND(SUMPRODUCT(--(ISNUMBER($AJ$6:$AJ$11)),($A$6:$A$11=$A$23)*$AG$6:$AG$11),0) -> 0 | AH23: =ROUND(SUMPRODUCT(--(ISNUMBER($AJ$6:$AJ$11)),($A$6:$A$11=$A$23)*$AH$6:$AH$11),0) -> 0 | AI23: =ROUND(SUMPRODUCT(--(ISNUMBER($AJ$6:$AJ$11)),($A$6:$A$11=$A$23)*$AI$6:$AI$11),0) -> 0 | AJ23: =ROUND(SUMPRODUCT(--(ISNUMBER($AJ$6:$AJ$11)),($A$6:$A$11=$A$23)*$AJ$6:$AJ$11),0) -> 0
A24: ='Fringe Rates (Federal)'!N1 -> S&W Contracted | B24: =HLOOKUP(A24,'Fringe Rates (Federal)'!$F$1:$S$2,2,FALSE) -> 50100 | D24: =ROUND(SUMPRODUCT(--(ISNUMBER($AJ$6:$AJ$11)),($A$6:$A$11=$A$24)*$D$6:$D$11),0) -> 0 | E24: =ROUND(SUMPRODUCT(--(ISNUMBER($AJ$6:$AJ$11)),($A$6:$A$11=$A$24)*$E$6:$E$11),0) -> 0 | F24: =ROUND(SUMPRODUCT(--(ISNUMBER($AJ$6:$AJ$11)),($A$6:$A$11=$A$24)*$F$6:$F$11),0) -> 0 | G24: =ROUND(SUMPRODUCT(--(ISNUMBER($AJ$6:$AJ$11)),($A$6:$A$11=$A$24)*$G$6:$G$11),0) -> 0 | H24: =ROUND(SUMPRODUCT(--(ISNUMBER($AJ$6:$AJ$11)),($A$6:$A$11=$A$24)*$H$6:$H$11),0) -> 0 | I24: =ROUND(SUMPRODUCT(--(ISNUMBER($AJ$6:$AJ$11)),($A$6:$A$11=$A$24)*$I$6:$I$11),0) -> 0 | J24: =ROUND(SUMPRODUCT(--(ISNUMBER($AJ$6:$AJ$11)),($A$6:$A$11=$A$24)*$J$6:$J$11),0) -> 0 | K24: =ROUND(SUMPRODUCT(--(ISNUMBER($AJ$6:$AJ$11)),($A$6:$A$11=$A$24)*$K$6:$K$11),0) -> 0 | L24: =ROUND(SUMPRODUCT(--(ISNUMBER($AJ$6:$AJ$11)),($A$6:$A$11=$A$24)*$L$6:$L$11),0) -> 0 | M24: =ROUND(SUMPRODUCT(--(ISNUMBER($AJ$6:$AJ$11)),($A$6:$A$11=$A$24)*$M$6:$M$11),0) -> 0 | N24: =ROUND(SUMPRODUCT(--(ISNUMBER($AJ$6:$AJ$11)),($A$6:$A$11=$A$24)*$N$6:$N$11),0) -> 0 | O24: =ROUND(SUMPRODUCT(--(ISNUMBER($AJ$6:$AJ$11)),($A$6:$A$11=$A$24)*$O$6:$O$11),0) -> 0 | P24: =ROUND(SUMPRODUCT(--(ISNUMBER($AJ$6:$AJ$11)),($A$6:$A$11=$A$24)*$P$6:$P$11),0) -> 0 | Q24: =ROUND(SUMPRODUCT(--(ISNUMBER($AJ$6:$AJ$11)),($A$6:$A$11=$A$24)*$Q$6:$Q$11),0) -> 0 | R24: =ROUND(SUMPRODUCT(--(ISNUMBER($AJ$6:$AJ$11)),($A$6:$A$11=$A$24)*$R$6:$R$11),0) -> 0 | S24: =ROUND(SUMPRODUCT(--(ISNUMBER($AJ$6:$AJ$11)),($A$6:$A$11=$A$24)*$S$6:$S$11),0) -> 0 | T24: =ROUND(SUMPRODUCT(--(ISNUMBER($AJ$6:$AJ$11)),($A$6:$A$11=$A$24)*$T$6:$T$11),0) -> 0 | U24: =ROUND(SUMPRODUCT(--(ISNUMBER($AJ$6:$AJ$11)),($A$6:$A$11=$A$24)*$U$6:$U$11),0) -> 0 | V24: =ROUND(SUMPRODUCT(--(ISNUMBER($AJ$6:$AJ$11)),($A$6:$A$11=$A$24)*$V$6:$V$11),0) -> 0 | W24: =ROUND(SUMPRODUCT(--(ISNUMBER($AJ$6:$AJ$11)),($A$6:$A$11=$A$24)*$W$6:$W$11),0) -> 0 | X24: =ROUND(SUMPRODUCT(--(ISNUMBER($AJ$6:$AJ$11)),($A$6:$A$11=$A$24)*$X$6:$X$11),0) -> 0 | Y24: =ROUND(SUMPRODUCT(--(ISNUMBER($AJ$6:$AJ$11)),($A$6:$A$11=$A$24)*$Y$6:$Y$11),0) -> 0 | Z24: =ROUND(SUMPRODUCT(--(ISNUMBER($AJ$6:$AJ$11)),($A$6:$A$11=$A$24)*$Z$6:$Z$11),0) -> 0 | AA24: =ROUND(SUMPRODUCT(--(ISNUMBER($AJ$6:$AJ$11)),($A$6:$A$11=$A$24)*$AA$6:$AA$11),0) -> 0 | AB24: =ROUND(SUMPRODUCT(--(ISNUMBER($AJ$6:$AJ$11)),($A$6:$A$11=$A$24)*$AB$6:$AB$11),0) -> 0 | AC24: =ROUND(SUMPRODUCT(--(ISNUMBER($AJ$6:$AJ$11)),($A$6:$A$11=$A$24)*$AC$6:$AC$11),0) -> 0 | AD24: =ROUND(SUMPRODUCT(--(ISNUMBER($AJ$6:$AJ$11)),($A$6:$A$11=$A$24)*$AD$6:$AD$11),0) -> 0 | AE24: =ROUND(SUMPRODUCT(--(ISNUMBER($AJ$6:$AJ$11)),($A$6:$A$11=$A$24)*$AE$6:$AE$11),0) -> 0 | AF24: =ROUND(SUMPRODUCT(--(ISNUMBER($AJ$6:$AJ$11)),($A$6:$A$11=$A$24)*$AF$6:$AF$11),0) -> 0 | AG24: =ROUND(SUMPRODUCT(--(ISNUMBER($AJ$6:$AJ$11)),($A$6:$A$11=$A$24)*$AG$6:$AG$11),0) -> 0 | AH24: =ROUND(SUMPRODUCT(--(ISNUMBER($AJ$6:$AJ$11)),($A$6:$A$11=$A$24)*$AH$6:$AH$11),0) -> 0 | AI24: =ROUND(SUMPRODUCT(--(ISNUMBER($AJ$6:$AJ$11)),($A$6:$A$11=$A$24)*$AI$6:$AI$11),0) -> 0 | AJ24: =ROUND(SUMPRODUCT(--(ISNUMBER($AJ$6:$AJ$11)),($A$6:$A$11=$A$24)*$AJ$6:$AJ$11),0) -> 0
A25: ='Fringe Rates (Federal)'!O1 -> S&W Student Researcher Stipend | B25: =HLOOKUP(A25,'Fringe Rates (Federal)'!$F$1:$S$2,2,FALSE) -> 50110 | D25: =ROUND(SUMPRODUCT(--(ISNUMBER($AJ$6:$AJ$11)),($A$6:$A$11=$A$25)*$D$6:$D$11),0) -> 0 | E25: =ROUND(SUMPRODUCT(--(ISNUMBER($AJ$6:$AJ$11)),($A$6:$A$11=$A$25)*$E$6:$E$11),0) -> 0 | F25: =ROUND(SUMPRODUCT(--(ISNUMBER($AJ$6:$AJ$11)),($A$6:$A$11=$A$25)*$F$6:$F$11),0) -> 0 | G25: =ROUND(SUMPRODUCT(--(ISNUMBER($AJ$6:$AJ$11)),($A$6:$A$11=$A$25)*$G$6:$G$11),0) -> 0 | H25: =ROUND(SUMPRODUCT(--(ISNUMBER($AJ$6:$AJ$11)),($A$6:$A$11=$A$25)*$H$6:$H$11),0) -> 0 | I25: =ROUND(SUMPRODUCT(--(ISNUMBER($AJ$6:$AJ$11)),($A$6:$A$11=$A$25)*$I$6:$I$11),0) -> 0 | J25: =ROUND(SUMPRODUCT(--(ISNUMBER($AJ$6:$AJ$11)),($A$6:$A$11=$A$25)*$J$6:$J$11),0) -> 0 | K25: =ROUND(SUMPRODUCT(--(ISNUMBER($AJ$6:$AJ$11)),($A$6:$A$11=$A$25)*$K$6:$K$11),0) -> 0 | L25: =ROUND(SUMPRODUCT(--(ISNUMBER($AJ$6:$AJ$11)),($A$6:$A$11=$A$25)*$L$6:$L$11),0) -> 0 | M25: =ROUND(SUMPRODUCT(--(ISNUMBER($AJ$6:$AJ$11)),($A$6:$A$11=$A$25)*$M$6:$M$11),0) -> 0 | N25: =ROUND(SUMPRODUCT(--(ISNUMBER($AJ$6:$AJ$11)),($A$6:$A$11=$A$25)*$N$6:$N$11),0) -> 0 | O25: =ROUND(SUMPRODUCT(--(ISNUMBER($AJ$6:$AJ$11)),($A$6:$A$11=$A$25)*$O$6:$O$11),0) -> 0 | P25: =ROUND(SUMPRODUCT(--(ISNUMBER($AJ$6:$AJ$11)),($A$6:$A$11=$A$25)*$P$6:$P$11),0) -> 0 | Q25: =ROUND(SUMPRODUCT(--(ISNUMBER($AJ$6:$AJ$11)),($A$6:$A$11=$A$25)*$Q$6:$Q$11),0) -> 0 | R25: =ROUND(SUMPRODUCT(--(ISNUMBER($AJ$6:$AJ$11)),($A$6:$A$11=$A$25)*$R$6:$R$11),0) -> 0 | S25: =ROUND(SUMPRODUCT(--(ISNUMBER($AJ$6:$AJ$11)),($A$6:$A$11=$A$25)*$S$6:$S$11),0) -> 0 | T25: =ROUND(SUMPRODUCT(--(ISNUMBER($AJ$6:$AJ$11)),($A$6:$A$11=$A$25)*$T$6:$T$11),0) -> 0 | U25: =ROUND(SUMPRODUCT(--(ISNUMBER($AJ$6:$AJ$11)),($A$6:$A$11=$A$25)*$U$6:$U$11),0) -> 0 | V25: =ROUND(SUMPRODUCT(--(ISNUMBER($AJ$6:$AJ$11)),($A$6:$A$11=$A$25)*$V$6:$V$11),0) -> 0 | W25: =ROUND(SUMPRODUCT(--(ISNUMBER($AJ$6:$AJ$11)),($A$6:$A$11=$A$25)*$W$6:$W$11),0) -> 0 | X25: =ROUND(SUMPRODUCT(--(ISNUMBER($AJ$6:$AJ$11)),($A$6:$A$11=$A$25)*$X$6:$X$11),0) -> 0 | Y25: =ROUND(SUMPRODUCT(--(ISNUMBER($AJ$6:$AJ$11)),($A$6:$A$11=$A$25)*$Y$6:$Y$11),0) -> 0 | Z25: =ROUND(SUMPRODUCT(--(ISNUMBER($AJ$6:$AJ$11)),($A$6:$A$11=$A$25)*$Z$6:$Z$11),0) -> 0 | AA25: =ROUND(SUMPRODUCT(--(ISNUMBER($AJ$6:$AJ$11)),($A$6:$A$11=$A$25)*$AA$6:$AA$11),0) -> 0 | AB25: =ROUND(SUMPRODUCT(--(ISNUMBER($AJ$6:$AJ$11)),($A$6:$A$11=$A$25)*$AB$6:$AB$11),0) -> 0 | AC25: =ROUND(SUMPRODUCT(--(ISNUMBER($AJ$6:$AJ$11)),($A$6:$A$11=$A$25)*$AC$6:$AC$11),0) -> 0 | AD25: =ROUND(SUMPRODUCT(--(ISNUMBER($AJ$6:$AJ$11)),($A$6:$A$11=$A$25)*$AD$6:$AD$11),0) -> 0 | AE25: =ROUND(SUMPRODUCT(--(ISNUMBER($AJ$6:$AJ$11)),($A$6:$A$11=$A$25)*$AE$6:$AE$11),0) -> 0 | AF25: =ROUND(SUMPRODUCT(--(ISNUMBER($AJ$6:$AJ$11)),($A$6:$A$11=$A$25)*$AF$6:$AF$11),0) -> 0 | AG25: =ROUND(SUMPRODUCT(--(ISNUMBER($AJ$6:$AJ$11)),($A$6:$A$11=$A$25)*$AG$6:$AG$11),0) -> 0 | AH25: =ROUND(SUMPRODUCT(--(ISNUMBER($AJ$6:$AJ$11)),($A$6:$A$11=$A$25)*$AH$6:$AH$11),0) -> 0 | AI25: =ROUND(SUMPRODUCT(--(ISNUMBER($AJ$6:$AJ$11)),($A$6:$A$11=$A$25)*$AI$6:$AI$11),0) -> 0 | AJ25: =ROUND(SUMPRODUCT(--(ISNUMBER($AJ$6:$AJ$11)),($A$6:$A$11=$A$25)*$AJ$6:$AJ$11),0) -> 0
A26: ='Fringe Rates (Federal)'!P1 -> S&W Pre & Post Doctoral Employee | B26: =HLOOKUP(A26,'Fringe Rates (Federal)'!$F$1:$S$2,2,FALSE) -> 50115 | D26: =ROUND(SUMPRODUCT(--(ISNUMBER($AJ$6:$AJ$11)),($A$6:$A$11=$A$26)*$D$6:$D$11),0) -> 0 | E26: =ROUND(SUMPRODUCT(--(ISNUMBER($AJ$6:$AJ$11)),($A$6:$A$11=$A$26)*$E$6:$E$11),0) -> 0 | F26: =ROUND(SUMPRODUCT(--(ISNUMBER($AJ$6:$AJ$11)),($A$6:$A$11=$A$26)*$F$6:$F$11),0) -> 0 | G26: =ROUND(SUMPRODUCT(--(ISNUMBER($AJ$6:$AJ$11)),($A$6:$A$11=$A$26)*$G$6:$G$11),0) -> 0 | H26: =ROUND(SUMPRODUCT(--(ISNUMBER($AJ$6:$AJ$11)),($A$6:$A$11=$A$26)*$H$6:$H$11),0) -> 0 | I26: =ROUND(SUMPRODUCT(--(ISNUMBER($AJ$6:$AJ$11)),($A$6:$A$11=$A$26)*$I$6:$I$11),0) -> 0 | J26: =ROUND(SUMPRODUCT(--(ISNUMBER($AJ$6:$AJ$11)),($A$6:$A$11=$A$26)*$J$6:$J$11),0) -> 0 | K26: =ROUND(SUMPRODUCT(--(ISNUMBER($AJ$6:$AJ$11)),($A$6:$A$11=$A$26)*$K$6:$K$11),0) -> 0 | L26: =ROUND(SUMPRODUCT(--(ISNUMBER($AJ$6:$AJ$11)),($A$6:$A$11=$A$26)*$L$6:$L$11),0) -> 0 | M26: =ROUND(SUMPRODUCT(--(ISNUMBER($AJ$6:$AJ$11)),($A$6:$A$11=$A$26)*$M$6:$M$11),0) -> 0 | N26: =ROUND(SUMPRODUCT(--(ISNUMBER($AJ$6:$AJ$11)),($A$6:$A$11=$A$26)*$N$6:$N$11),0) -> 0 | O26: =ROUND(SUMPRODUCT(--(ISNUMBER($AJ$6:$AJ$11)),($A$6:$A$11=$A$26)*$O$6:$O$11),0) -> 0 | P26: =ROUND(SUMPRODUCT(--(ISNUMBER($AJ$6:$AJ$11)),($A$6:$A$11=$A$26)*$P$6:$P$11),0) -> 0 | Q26: =ROUND(SUMPRODUCT(--(ISNUMBER($AJ$6:$AJ$11)),($A$6:$A$11=$A$26)*$Q$6:$Q$11),0) -> 0 | R26: =ROUND(SUMPRODUCT(--(ISNUMBER($AJ$6:$AJ$11)),($A$6:$A$11=$A$26)*$R$6:$R$11),0) -> 0 | S26: =ROUND(SUMPRODUCT(--(ISNUMBER($AJ$6:$AJ$11)),($A$6:$A$11=$A$26)*$S$6:$S$11),0) -> 0 | T26: =ROUND(SUMPRODUCT(--(ISNUMBER($AJ$6:$AJ$11)),($A$6:$A$11=$A$26)*$T$6:$T$11),0) -> 0 | U26: =ROUND(SUMPRODUCT(--(ISNUMBER($AJ$6:$AJ$11)),($A$6:$A$11=$A$26)*$U$6:$U$11),0) -> 0 | V26: =ROUND(SUMPRODUCT(--(ISNUMBER($AJ$6:$AJ$11)),($A$6:$A$11=$A$26)*$V$6:$V$11),0) -> 0 | W26: =ROUND(SUMPRODUCT(--(ISNUMBER($AJ$6:$AJ$11)),($A$6:$A$11=$A$26)*$W$6:$W$11),0) -> 0 | X26: =ROUND(SUMPRODUCT(--(ISNUMBER($AJ$6:$AJ$11)),($A$6:$A$11=$A$26)*$X$6:$X$11),0) -> 0 | Y26: =ROUND(SUMPRODUCT(--(ISNUMBER($AJ$6:$AJ$11)),($A$6:$A$11=$A$26)*$Y$6:$Y$11),0) -> 0 | Z26: =ROUND(SUMPRODUCT(--(ISNUMBER($AJ$6:$AJ$11)),($A$6:$A$11=$A$26)*$Z$6:$Z$11),0) -> 0 | AA26: =ROUND(SUMPRODUCT(--(ISNUMBER($AJ$6:$AJ$11)),($A$6:$A$11=$A$26)*$AA$6:$AA$11),0) -> 0 | AB26: =ROUND(SUMPRODUCT(--(ISNUMBER($AJ$6:$AJ$11)),($A$6:$A$11=$A$26)*$AB$6:$AB$11),0) -> 0 | AC26: =ROUND(SUMPRODUCT(--(ISNUMBER($AJ$6:$AJ$11)),($A$6:$A$11=$A$26)*$AC$6:$AC$11),0) -> 0 | AD26: =ROUND(SUMPRODUCT(--(ISNUMBER($AJ$6:$AJ$11)),($A$6:$A$11=$A$26)*$AD$6:$AD$11),0) -> 0 | AE26: =ROUND(SUMPRODUCT(--(ISNUMBER($AJ$6:$AJ$11)),($A$6:$A$11=$A$26)*$AE$6:$AE$11),0) -> 0 | AF26: =ROUND(SUMPRODUCT(--(ISNUMBER($AJ$6:$AJ$11)),($A$6:$A$11=$A$26)*$AF$6:$AF$11),0) -> 0 | AG26: =ROUND(SUMPRODUCT(--(ISNUMBER($AJ$6:$AJ$11)),($A$6:$A$11=$A$26)*$AG$6:$AG$11),0) -> 0 | AH26: =ROUND(SUMPRODUCT(--(ISNUMBER($AJ$6:$AJ$11)),($A$6:$A$11=$A$26)*$AH$6:$AH$11),0) -> 0 | AI26: =ROUND(SUMPRODUCT(--(ISNUMBER($AJ$6:$AJ$11)),($A$6:$A$11=$A$26)*$AI$6:$AI$11),0) -> 0 | AJ26: =ROUND(SUMPRODUCT(--(ISNUMBER($AJ$6:$AJ$11)),($A$6:$A$11=$A$26)*$AJ$6:$AJ$11),0) -> 0
A27: ='Fringe Rates (Federal)'!Q1 -> S&W Hourly Employees | B27: =HLOOKUP(A27,'Fringe Rates (Federal)'!$F$1:$S$2,2,FALSE) -> 50120 | D27: =ROUND(SUMPRODUCT(--(ISNUMBER($AJ$6:$AJ$11)),($A$6:$A$11=$A$27)*$D$6:$D$11),0) -> 0 | E27: =ROUND(SUMPRODUCT(--(ISNUMBER($AJ$6:$AJ$11)),($A$6:$A$11=$A$27)*$E$6:$E$11),0) -> 0 | F27: =ROUND(SUMPRODUCT(--(ISNUMBER($AJ$6:$AJ$11)),($A$6:$A$11=$A$27)*$F$6:$F$11),0) -> 0 | G27: =ROUND(SUMPRODUCT(--(ISNUMBER($AJ$6:$AJ$11)),($A$6:$A$11=$A$27)*$G$6:$G$11),0) -> 0 | H27: =ROUND(SUMPRODUCT(--(ISNUMBER($AJ$6:$AJ$11)),($A$6:$A$11=$A$27)*$H$6:$H$11),0) -> 0 | I27: =ROUND(SUMPRODUCT(--(ISNUMBER($AJ$6:$AJ$11)),($A$6:$A$11=$A$27)*$I$6:$I$11),0) -> 0 | J27: =ROUND(SUMPRODUCT(--(ISNUMBER($AJ$6:$AJ$11)),($A$6:$A$11=$A$27)*$J$6:$J$11),0) -> 0 | K27: =ROUND(SUMPRODUCT(--(ISNUMBER($AJ$6:$AJ$11)),($A$6:$A$11=$A$27)*$K$6:$K$11),0) -> 0 | L27: =ROUND(SUMPRODUCT(--(ISNUMBER($AJ$6:$AJ$11)),($A$6:$A$11=$A$27)*$L$6:$L$11),0) -> 0 | M27: =ROUND(SUMPRODUCT(--(ISNUMBER($AJ$6:$AJ$11)),($A$6:$A$11=$A$27)*$M$6:$M$11),0) -> 0 | N27: =ROUND(SUMPRODUCT(--(ISNUMBER($AJ$6:$AJ$11)),($A$6:$A$11=$A$27)*$N$6:$N$11),0) -> 0 | O27: =ROUND(SUMPRODUCT(--(ISNUMBER($AJ$6:$AJ$11)),($A$6:$A$11=$A$27)*$O$6:$O$11),0) -> 0 | P27: =ROUND(SUMPRODUCT(--(ISNUMBER($AJ$6:$AJ$11)),($A$6:$A$11=$A$27)*$P$6:$P$11),0) -> 0 | Q27: =ROUND(SUMPRODUCT(--(ISNUMBER($AJ$6:$AJ$11)),($A$6:$A$11=$A$27)*$Q$6:$Q$11),0) -> 0 | R27: =ROUND(SUMPRODUCT(--(ISNUMBER($AJ$6:$AJ$11)),($A$6:$A$11=$A$27)*$R$6:$R$11),0) -> 0 | S27: =ROUND(SUMPRODUCT(--(ISNUMBER($AJ$6:$AJ$11)),($A$6:$A$11=$A$27)*$S$6:$S$11),0) -> 0 | T27: =ROUND(SUMPRODUCT(--(ISNUMBER($AJ$6:$AJ$11)),($A$6:$A$11=$A$27)*$T$6:$T$11),0) -> 0 | U27: =ROUND(SUMPRODUCT(--(ISNUMBER($AJ$6:$AJ$11)),($A$6:$A$11=$A$27)*$U$6:$U$11),0) -> 0 | V27: =ROUND(SUMPRODUCT(--(ISNUMBER($AJ$6:$AJ$11)),($A$6:$A$11=$A$27)*$V$6:$V$11),0) -> 0 | W27: =ROUND(SUMPRODUCT(--(ISNUMBER($AJ$6:$AJ$11)),($A$6:$A$11=$A$27)*$W$6:$W$11),0) -> 0 | X27: =ROUND(SUMPRODUCT(--(ISNUMBER($AJ$6:$AJ$11)),($A$6:$A$11=$A$27)*$X$6:$X$11),0) -> 0 | Y27: =ROUND(SUMPRODUCT(--(ISNUMBER($AJ$6:$AJ$11)),($A$6:$A$11=$A$27)*$Y$6:$Y$11),0) -> 0 | Z27: =ROUND(SUMPRODUCT(--(ISNUMBER($AJ$6:$AJ$11)),($A$6:$A$11=$A$27)*$Z$6:$Z$11),0) -> 0 | AA27: =ROUND(SUMPRODUCT(--(ISNUMBER($AJ$6:$AJ$11)),($A$6:$A$11=$A$27)*$AA$6:$AA$11),0) -> 0 | AB27: =ROUND(SUMPRODUCT(--(ISNUMBER($AJ$6:$AJ$11)),($A$6:$A$11=$A$27)*$AB$6:$AB$11),0) -> 0 | AC27: =ROUND(SUMPRODUCT(--(ISNUMBER($AJ$6:$AJ$11)),($A$6:$A$11=$A$27)*$AC$6:$AC$11),0) -> 0 | AD27: =ROUND(SUMPRODUCT(--(ISNUMBER($AJ$6:$AJ$11)),($A$6:$A$11=$A$27)*$AD$6:$AD$11),0) -> 0 | AE27: =ROUND(SUMPRODUCT(--(ISNUMBER($AJ$6:$AJ$11)),($A$6:$A$11=$A$27)*$AE$6:$AE$11),0) -> 0 | AF27: =ROUND(SUMPRODUCT(--(ISNUMBER($AJ$6:$AJ$11)),($A$6:$A$11=$A$27)*$AF$6:$AF$11),0) -> 0 | AG27: =ROUND(SUMPRODUCT(--(ISNUMBER($AJ$6:$AJ$11)),($A$6:$A$11=$A$27)*$AG$6:$AG$11),0) -> 0 | AH27: =ROUND(SUMPRODUCT(--(ISNUMBER($AJ$6:$AJ$11)),($A$6:$A$11=$A$27)*$AH$6:$AH$11),0) -> 0 | AI27: =ROUND(SUMPRODUCT(--(ISNUMBER($AJ$6:$AJ$11)),($A$6:$A$11=$A$27)*$AI$6:$AI$11),0) -> 0 | AJ27: =ROUND(SUMPRODUCT(--(ISNUMBER($AJ$6:$AJ$11)),($A$6:$A$11=$A$27)*$AJ$6:$AJ$11),0) -> 0
A28: ='Fringe Rates (Federal)'!R1 -> S&W (No Fringe) | B28: =HLOOKUP(A28,'Fringe Rates (Federal)'!$F$1:$S$2,2,FALSE) -> N/A | D28: =ROUND(SUMPRODUCT(--(ISNUMBER($AJ$6:$AJ$11)),($A$6:$A$11=$A$28)*$D$6:$D$11),0) -> 0 | E28: =ROUND(SUMPRODUCT(--(ISNUMBER($AJ$6:$AJ$11)),($A$6:$A$11=$A$28)*$E$6:$E$11),0) -> 0 | F28: =ROUND(SUMPRODUCT(--(ISNUMBER($AJ$6:$AJ$11)),($A$6:$A$11=$A$28)*$F$6:$F$11),0) -> 0 | G28: =ROUND(SUMPRODUCT(--(ISNUMBER($AJ$6:$AJ$11)),($A$6:$A$11=$A$28)*$G$6:$G$11),0) -> 0 | H28: =ROUND(SUMPRODUCT(--(ISNUMBER($AJ$6:$AJ$11)),($A$6:$A$11=$A$28)*$H$6:$H$11),0) -> 0 | I28: =ROUND(SUMPRODUCT(--(ISNUMBER($AJ$6:$AJ$11)),($A$6:$A$11=$A$28)*$I$6:$I$11),0) -> 0 | J28: =ROUND(SUMPRODUCT(--(ISNUMBER($AJ$6:$AJ$11)),($A$6:$A$11=$A$28)*$J$6:$J$11),0) -> 0 | K28: =ROUND(SUMPRODUCT(--(ISNUMBER($AJ$6:$AJ$11)),($A$6:$A$11=$A$28)*$K$6:$K$11),0) -> 0 | L28: =ROUND(SUMPRODUCT(--(ISNUMBER($AJ$6:$AJ$11)),($A$6:$A$11=$A$28)*$L$6:$L$11),0) -> 0 | M28: =ROUND(SUMPRODUCT(--(ISNUMBER($AJ$6:$AJ$11)),($A$6:$A$11=$A$28)*$M$6:$M$11),0) -> 0 | N28: =ROUND(SUMPRODUCT(--(ISNUMBER($AJ$6:$AJ$11)),($A$6:$A$11=$A$28)*$N$6:$N$11),0) -> 0 | O28: =ROUND(SUMPRODUCT(--(ISNUMBER($AJ$6:$AJ$11)),($A$6:$A$11=$A$28)*$O$6:$O$11),0) -> 0 | P28: =ROUND(SUMPRODUCT(--(ISNUMBER($AJ$6:$AJ$11)),($A$6:$A$11=$A$28)*$P$6:$P$11),0) -> 0 | Q28: =ROUND(SUMPRODUCT(--(ISNUMBER($AJ$6:$AJ$11)),($A$6:$A$11=$A$28)*$Q$6:$Q$11),0) -> 0 | R28: =ROUND(SUMPRODUCT(--(ISNUMBER($AJ$6:$AJ$11)),($A$6:$A$11=$A$28)*$R$6:$R$11),0) -> 0 | S28: =ROUND(SUMPRODUCT(--(ISNUMBER($AJ$6:$AJ$11)),($A$6:$A$11=$A$28)*$S$6:$S$11),0) -> 0 | T28: =ROUND(SUMPRODUCT(--(ISNUMBER($AJ$6:$AJ$11)),($A$6:$A$11=$A$28)*$T$6:$T$11),0) -> 0 | U28: =ROUND(SUMPRODUCT(--(ISNUMBER($AJ$6:$AJ$11)),($A$6:$A$11=$A$28)*$U$6:$U$11),0) -> 0 | V28: =ROUND(SUMPRODUCT(--(ISNUMBER($AJ$6:$AJ$11)),($A$6:$A$11=$A$28)*$V$6:$V$11),0) -> 0 | W28: =ROUND(SUMPRODUCT(--(ISNUMBER($AJ$6:$AJ$11)),($A$6:$A$11=$A$28)*$W$6:$W$11),0) -> 0 | X28: =ROUND(SUMPRODUCT(--(ISNUMBER($AJ$6:$AJ$11)),($A$6:$A$11=$A$28)*$X$6:$X$11),0) -> 0 | Y28: =ROUND(SUMPRODUCT(--(ISNUMBER($AJ$6:$AJ$11)),($A$6:$A$11=$A$28)*$Y$6:$Y$11),0) -> 0 | Z28: =ROUND(SUMPRODUCT(--(ISNUMBER($AJ$6:$AJ$11)),($A$6:$A$11=$A$28)*$Z$6:$Z$11),0) -> 0 | AA28: =ROUND(SUMPRODUCT(--(ISNUMBER($AJ$6:$AJ$11)),($A$6:$A$11=$A$28)*$AA$6:$AA$11),0) -> 0 | AB28: =ROUND(SUMPRODUCT(--(ISNUMBER($AJ$6:$AJ$11)),($A$6:$A$11=$A$28)*$AB$6:$AB$11),0) -> 0 | AC28: =ROUND(SUMPRODUCT(--(ISNUMBER($AJ$6:$AJ$11)),($A$6:$A$11=$A$28)*$AC$6:$AC$11),0) -> 0 | AD28: =ROUND(SUMPRODUCT(--(ISNUMBER($AJ$6:$AJ$11)),($A$6:$A$11=$A$28)*$AD$6:$AD$11),0) -> 0 | AE28: =ROUND(SUMPRODUCT(--(ISNUMBER($AJ$6:$AJ$11)),($A$6:$A$11=$A$28)*$AE$6:$AE$11),0) -> 0 | AF28: =ROUND(SUMPRODUCT(--(ISNUMBER($AJ$6:$AJ$11)),($A$6:$A$11=$A$28)*$AF$6:$AF$11),0) -> 0 | AG28: =ROUND(SUMPRODUCT(--(ISNUMBER($AJ$6:$AJ$11)),($A$6:$A$11=$A$28)*$AG$6:$AG$11),0) -> 0 | AH28: =ROUND(SUMPRODUCT(--(ISNUMBER($AJ$6:$AJ$11)),($A$6:$A$11=$A$28)*$AH$6:$AH$11),0) -> 0 | AI28: =ROUND(SUMPRODUCT(--(ISNUMBER($AJ$6:$AJ$11)),($A$6:$A$11=$A$28)*$AI$6:$AI$11),0) -> 0 | AJ28: =ROUND(SUMPRODUCT(--(ISNUMBER($AJ$6:$AJ$11)),($A$6:$A$11=$A$28)*$AJ$6:$AJ$11),0) -> 0
A29: ='Fringe Rates (Federal)'!S1 -> S&W (Custom Fringe Rate) | B29: =HLOOKUP(A29,'Fringe Rates (Federal)'!$F$1:$S$2,2,FALSE) -> N/A | D29: =ROUND(SUMPRODUCT(--(ISNUMBER($AJ$6:$AJ$11)),($A$6:$A$11=$A$29)*$D$6:$D$11),0) -> 0 | E29: =ROUND(SUMPRODUCT(--(ISNUMBER($AJ$6:$AJ$11)),($A$6:$A$11=$A$29)*$E$6:$E$11),0) -> 0 | F29: =ROUND(SUMPRODUCT(--(ISNUMBER($AJ$6:$AJ$11)),($A$6:$A$11=$A$29)*$F$6:$F$11),0) -> 0 | G29: =ROUND(SUMPRODUCT(--(ISNUMBER($AJ$6:$AJ$11)),($A$6:$A$11=$A$29)*$G$6:$G$11),0) -> 0 | H29: =ROUND(SUMPRODUCT(--(ISNUMBER($AJ$6:$AJ$11)),($A$6:$A$11=$A$29)*$H$6:$H$11),0) -> 0 | I29: =ROUND(SUMPRODUCT(--(ISNUMBER($AJ$6:$AJ$11)),($A$6:$A$11=$A$29)*$I$6:$I$11),0) -> 0 | J29: =ROUND(SUMPRODUCT(--(ISNUMBER($AJ$6:$AJ$11)),($A$6:$A$11=$A$29)*$J$6:$J$11),0) -> 0 | K29: =ROUND(SUMPRODUCT(--(ISNUMBER($AJ$6:$AJ$11)),($A$6:$A$11=$A$29)*$K$6:$K$11),0) -> 0 | L29: =ROUND(SUMPRODUCT(--(ISNUMBER($AJ$6:$AJ$11)),($A$6:$A$11=$A$29)*$L$6:$L$11),0) -> 0 | M29: =ROUND(SUMPRODUCT(--(ISNUMBER($AJ$6:$AJ$11)),($A$6:$A$11=$A$29)*$M$6:$M$11),0) -> 0 | N29: =ROUND(SUMPRODUCT(--(ISNUMBER($AJ$6:$AJ$11)),($A$6:$A$11=$A$29)*$N$6:$N$11),0) -> 0 | O29: =ROUND(SUMPRODUCT(--(ISNUMBER($AJ$6:$AJ$11)),($A$6:$A$11=$A$29)*$O$6:$O$11),0) -> 0 | P29: =ROUND(SUMPRODUCT(--(ISNUMBER($AJ$6:$AJ$11)),($A$6:$A$11=$A$29)*$P$6:$P$11),0) -> 0 | Q29: =ROUND(SUMPRODUCT(--(ISNUMBER($AJ$6:$AJ$11)),($A$6:$A$11=$A$29)*$Q$6:$Q$11),0) -> 0 | R29: =ROUND(SUMPRODUCT(--(ISNUMBER($AJ$6:$AJ$11)),($A$6:$A$11=$A$29)*$R$6:$R$11),0) -> 0 | S29: =ROUND(SUMPRODUCT(--(ISNUMBER($AJ$6:$AJ$11)),($A$6:$A$11=$A$29)*$S$6:$S$11),0) -> 0 | T29: =ROUND(SUMPRODUCT(--(ISNUMBER($AJ$6:$AJ$11)),($A$6:$A$11=$A$29)*$T$6:$T$11),0) -> 0 | U29: =ROUND(SUMPRODUCT(--(ISNUMBER($AJ$6:$AJ$11)),($A$6:$A$11=$A$29)*$U$6:$U$11),0) -> 0 | V29: =ROUND(SUMPRODUCT(--(ISNUMBER($AJ$6:$AJ$11)),($A$6:$A$11=$A$29)*$V$6:$V$11),0) -> 0 | W29: =ROUND(SUMPRODUCT(--(ISNUMBER($AJ$6:$AJ$11)),($A$6:$A$11=$A$29)*$W$6:$W$11),0) -> 0 | X29: =ROUND(SUMPRODUCT(--(ISNUMBER($AJ$6:$AJ$11)),($A$6:$A$11=$A$29)*$X$6:$X$11),0) -> 0 | Y29: =ROUND(SUMPRODUCT(--(ISNUMBER($AJ$6:$AJ$11)),($A$6:$A$11=$A$29)*$Y$6:$Y$11),0) -> 0 | Z29: =ROUND(SUMPRODUCT(--(ISNUMBER($AJ$6:$AJ$11)),($A$6:$A$11=$A$29)*$Z$6:$Z$11),0) -> 0 | AA29: =ROUND(SUMPRODUCT(--(ISNUMBER($AJ$6:$AJ$11)),($A$6:$A$11=$A$29)*$AA$6:$AA$11),0) -> 0 | AB29: =ROUND(SUMPRODUCT(--(ISNUMBER($AJ$6:$AJ$11)),($A$6:$A$11=$A$29)*$AB$6:$AB$11),0) -> 0 | AC29: =ROUND(SUMPRODUCT(--(ISNUMBER($AJ$6:$AJ$11)),($A$6:$A$11=$A$29)*$AC$6:$AC$11),0) -> 0 | AD29: =ROUND(SUMPRODUCT(--(ISNUMBER($AJ$6:$AJ$11)),($A$6:$A$11=$A$29)*$AD$6:$AD$11),0) -> 0 | AE29: =ROUND(SUMPRODUCT(--(ISNUMBER($AJ$6:$AJ$11)),($A$6:$A$11=$A$29)*$AE$6:$AE$11),0) -> 0 | AF29: =ROUND(SUMPRODUCT(--(ISNUMBER($AJ$6:$AJ$11)),($A$6:$A$11=$A$29)*$AF$6:$AF$11),0) -> 0 | AG29: =ROUND(SUMPRODUCT(--(ISNUMBER($AJ$6:$AJ$11)),($A$6:$A$11=$A$29)*$AG$6:$AG$11),0) -> 0 | AH29: =ROUND(SUMPRODUCT(--(ISNUMBER($AJ$6:$AJ$11)),($A$6:$A$11=$A$29)*$AH$6:$AH$11),0) -> 0 | AI29: =ROUND(SUMPRODUCT(--(ISNUMBER($AJ$6:$AJ$11)),($A$6:$A$11=$A$29)*$AI$6:$AI$11),0) -> 0 | AJ29: =ROUND(SUMPRODUCT(--(ISNUMBER($AJ$6:$AJ$11)),($A$6:$A$11=$A$29)*$AJ$6:$AJ$11),0) -> 0
B30: Total Salaries & Wages | D30: =ROUND(SUM(D16:D29),0) -> 0 | E30: =ROUND(SUM(E16:E29),0) -> 0 | F30: =ROUND(SUM(F16:F29),0) -> 0 | G30: =ROUND(SUM(G16:G29),0) -> 0 | H30: =ROUND(SUM(H16:H29),0) -> 0 | I30: =ROUND(SUM(I16:I29),0) -> 0 | J30: 0 | K30: 0 | L30: =ROUND(SUM(L16:L29),0) -> 0 | M30: =ROUND(SUM(M16:M29),0) -> 0 | N30: 0 | O30: 0 | P30: 0 | Q30: 0 | R30: 0 | S30: =ROUND(SUM(S16:S29),0) -> 0 | T30: 0 | U30: =ROUND(SUM(U16:U29),0) -> 0 | V30: =ROUND(SUM(V16:V29),0) -> 0 | W30: =ROUND(SUM(W16:W29),0) -> 0 | X30: =ROUND(SUM(X16:X29),0) -> 0 | Y30: =ROUND(SUM(Y16:Y29),0) -> 0 | Z30: =ROUND(SUM(Z16:Z29),0) -> 0 | AA30: =ROUND(SUM(AA16:AA29),0) -> 0 | AB30: =ROUND(SUM(AB16:AB29),0) -> 0 | AC30: =ROUND(SUM(AC16:AC29),0) -> 0 | AD30: =ROUND(SUM(AD16:AD29),0) -> 0 | AE30: =ROUND(SUM(AE16:AE29),0) -> 0 | AF30: =ROUND(SUM(AF16:AF29),0) -> 0 | AG30: =ROUND(SUM(AG16:AG29),0) -> 0 | AH30: =ROUND(SUM(AH16:AH29),0) -> 0 | AI30: =ROUND(SUM(AI16:AI29),0) -> 0 | AJ30: =ROUND(SUM(AJ16:AJ29),0) -> 0

Sheet Personnel Cost Sharing (Adv) (hidden)
A1: Personnel Cost Sharing Worksheet (Advanced) | H1: ** You are advised to build salary increases of 3% into future year budgets
A2: =Welcome!B25 -> Fringe Rates (non-Federal) | H2: ** FICA and Medicare may apply to certain GAs and TAs based on appointment.
A3: =Welcome!B26 -> 2 | G3: =Welcome!A56 -> Budget Period 1 | J3: =Welcome!A57 -> Budget Period 2 | M3: =Welcome!A58 -> Budget Period 3 | P3: =Welcome!A59 -> Budget Period 4 | S3: =Welcome!A60 -> Budget Period 5 | V3: =Welcome!A61 -> Budget Period 6 | Y3: =Welcome!A62 -> Budget Period 7 | AB3: =Welcome!A63 -> Budget Period 8 | AE3: =Welcome!A64 -> Budget Period 9 | AH3: =Welcome!A65 -> Budget Period 10
F4: =Welcome!B56 -> Enter Start Date | G4: =Welcome!C56 -> Enter End Date | H4: =IF(OR(Welcome!D56="N/A",Welcome!E56="N/A"),"N/A",Welcome!D56) -> N/A | I4: =Welcome!B57 -> Enter Start Date | J4: =Welcome!C57 -> Enter End Date | K4: =IF(OR(Welcome!D57="N/A",Welcome!E57="N/A"),"N/A",Welcome!D57) -> N/A | L4: =Welcome!B58 -> Enter Start Date | M4: =Welcome!C58 -> Enter End Date | N4: =IF(OR(Welcome!D58="N/A",Welcome!E58="N/A"),"N/A",Welcome!D58) -> N/A | O4: =Welcome!B59 -> Enter Start Date | P4: =Welcome!C59 -> Enter End Date | Q4: =IF(OR(Welcome!D59="N/A",Welcome!E59="N/A"),"N/A",Welcome!D59) -> N/A | R4: =Welcome!B60 -> Enter Start Date | S4: =Welcome!C60 -> Enter End Date | T4: =IF(OR(Welcome!D60="N/A",Welcome!E60="N/A"),"N/A",Welcome!D60) -> N/A | U4: =Welcome!B61 -> Enter Start Date | V4: =Welcome!C61 -> Enter End Date | W4: =IF(OR(Welcome!D61="N/A",Welcome!E61="N/A"),"N/A",Welcome!D61) -> N/A | X4: =Welcome!B62 -> Enter Start Date | Y4: =Welcome!C62 -> Enter End Date | Z4: =IF(OR(Welcome!D62="N/A",Welcome!E62="N/A"),"N/A",Welcome!D62) -> N/A | AA4: =Welcome!B63 -> Enter Start Date | AB4: =Welcome!C63 -> Enter End Date | AC4: =IF(OR(Welcome!D63="N/A",Welcome!E63="N/A"),"N/A",Welcome!D63) -> N/A | AD4: =Welcome!B64 -> Enter Start Date | AE4: =Welcome!C64 -> Enter End Date | AF4: =IF(OR(Welcome!D64="N/A",Welcome!E64="N/A"),"N/A",Welcome!D64) -> N/A | AG4: =Welcome!B65 -> Enter Start Date | AH4: =Welcome!C65 -> Enter End Date | AI4: =IF(OR(Welcome!D65="N/A",Welcome!E65="N/A"),"N/A",Welcome!D65) -> N/A | AK4: Grand Total
A5: Select category from dropdown | E5: Base Salary | F5: Salary | G5: Fringe | H5: Total | I5: Salary | J5: Fringe | K5: Total | L5: Salary | M5: Fringe | N5: Total | O5: Salary | P5: Fringe | Q5: Total | R5: Salary | S5: Fringe | T5: Total | U5: Salary | V5: Fringe | W5: Total | X5: Salary | Y5: Fringe | Z5: Total | AA5: Salary | AB5: Fringe | AC5: Total | AD5: Salary | AE5: Fringe | AF5: Total | AG5: Salary | AH5: Fringe | AI5: Total | AJ5: Salary | AK5: Fringe | AL5: Grand Total | AN5: Notes
A6: Select Category | B6: =IF(A6="Select Category","N/A",HLOOKUP(A6,'Fringe Rates (Federal)'!$F$1:$S$2,2,FALSE)) -> N/A | C6: Enter Staff Name | D6: Select Appointment Type | E6: 0 | F6: =ROUND(IF(OR(A6="Select Category",D6="Select Appointment Type",$H$4="N/A"),0,IF(ISNUMBER(E6),(E6*H8/VLOOKUP(D6,'Effort Calculator'!$A$8:$C$14,3,FALSE)*(1+H9)),0)),0) -> 0 | G6: =IF($A$3=1,ROUND(IF(OR(A6="Select Category",D6="Select Appointment Type",$H$4="N/A"),0,(F6)*INDEX('Fringe Rates (Federal)'!$F$3:$S$19,MATCH($H$4,'Fringe Rates (Federal)'!$A$3:$A$19,0),MATCH(A6,FFR[[#Headers],[S&W Staff]:[S&W (Custom Fringe Rate)]],0))),0),ROUND(IF(OR(A6="Select Category",D6="Select Appointment Type",$H$4="N/A"),0,(F6)*INDEX('Fringe Rates (non-Federal)'!$F$3:$S$19,MATCH($H$4,'Fringe Rates (non-Federal)'!$A$3:$A$19,0),MATCH(A6,NFFR[[#Headers],[S&W Staff]:[S&W (Custom Fringe Rate)]],0))),0)) -> 0 | H6: =ROUND(SUM(F6:G6),0) -> 0 | I6: =ROUND(IF(OR(A6="Select Category",D6="Select Appointment Type",$K$4="N/A"),0,IF(ISNUMBER(E6),(E6*K8/VLOOKUP(D6,'Effort Calculator'!$A$8:$C$14,3,FALSE)*(1+H9)*(1+K9)),0)),0) -> 0 | J6: =IF($A$3=1,ROUND(IF(OR(A6="Select Category",D6="Select Appointment Type",$K$4="N/A"),0,(I6)*INDEX('Fringe Rates (Federal)'!$F$3:$S$19,MATCH($K$4,'Fringe Rates (Federal)'!$A$3:$A$19,0),MATCH(A6,FFR[[#Headers],[S&W Staff]:[S&W (Custom Fringe Rate)]],0))),0),ROUND(IF(OR(A6="Select Category",D6="Select Appointment Type",$K$4="N/A"),0,(I6)*INDEX('Fringe Rates (non-Federal)'!$F$3:$S$19,MATCH($K$4,'Fringe Rates (non-Federal)'!$A$3:$A$19,0),MATCH(A6,NFFR[[#Headers],[S&W Staff]:[S&W (Custom Fringe Rate)]],0))),0)) -> 0 | K6: =ROUND(SUM(I6:J6),0) -> 0 | L6: =ROUND(IF(OR(A6="Select Category",D6="Select Appointment Type",$N$4="N/A"),0,IF(ISNUMBER(E6),(E6*N8/VLOOKUP(D6,'Effort Calculator'!$A$8:$C$14,3,FALSE)*(1+H9)*(1+K9)*(1+N9)),0)),0) -> 0 | M6: =IF($A$3=1,ROUND(IF(OR(A6="Select Category",D6="Select Appointment Type",$N$4="N/A"),0,(L6)*INDEX('Fringe Rates (Federal)'!$F$3:$S$19,MATCH($N$4,'Fringe Rates (Federal)'!$A$3:$A$19,0),MATCH(A6,FFR[[#Headers],[S&W Staff]:[S&W (Custom Fringe Rate)]],0))),0),ROUND(IF(OR(A6="Select Category",D6="Select Appointment Type",$N$4="N/A"),0,(L6)*INDEX('Fringe Rates (non-Federal)'!$F$3:$S$19,MATCH($N$4,'Fringe Rates (non-Federal)'!$A$3:$A$19,0),MATCH(A6,NFFR[[#Headers],[S&W Staff]:[S&W (Custom Fringe Rate)]],0))),0)) -> 0 | N6: =ROUND(SUM(L6:M6),0) -> 0 | O6: =ROUND(IF(OR(A6="Select Category",D6="Select Appointment Type",$Q$4="N/A"),0,IF(ISNUMBER(E6),(E6*Q8/VLOOKUP(D6,'Effort Calculator'!$A$8:$C$14,3,FALSE)*(1+H9)*(1+K9)*(1+N9)*(1+Q9)),0)),0) -> 0 | P6: =IF($A$3=1,ROUND(IF(OR(A6="Select Category",D6="Select Appointment Type",$Q$4="N/A"),0,(O6)*INDEX('Fringe Rates (Federal)'!$F$3:$S$19,MATCH($Q$4,'Fringe Rates (Federal)'!$A$3:$A$19,0),MATCH(A6,FFR[[#Headers],[S&W Staff]:[S&W (Custom Fringe Rate)]],0))),0),ROUND(IF(OR(A6="Select Category",D6="Select Appointment Type",$Q$4="N/A"),0,(O6)*INDEX('Fringe Rates (non-Federal)'!$F$3:$S$19,MATCH($Q$4,'Fringe Rates (non-Federal)'!$A$3:$A$19,0),MATCH(A6,NFFR[[#Headers],[S&W Staff]:[S&W (Custom Fringe Rate)]],0))),0)) -> 0 | Q6: =ROUND(SUM(O6:P6),0) -> 0 | R6: =ROUND(IF(OR(A6="Select Category",D6="Select Appointment Type",$T$4="N/A"),0,IF(ISNUMBER(E6),(E6*T8/VLOOKUP(D6,'Effort Calculator'!$A$8:$C$14,3,FALSE)*(1+H9)*(1+K9)*(1+N9)*(1+Q9)*(1+T9)),0)),0) -> 0 | S6: =IF($A$3=1,ROUND(IF(OR(A6="Select Category",D6="Select Appointment Type",$T$4="N/A"),0,(R6)*INDEX('Fringe Rates (Federal)'!$F$3:$S$19,MATCH($T$4,'Fringe Rates (Federal)'!$A$3:$A$19,0),MATCH(A6,FFR[[#Headers],[S&W Staff]:[S&W (Custom Fringe Rate)]],0))),0),ROUND(IF(OR(A6="Select Category",D6="Select Appointment Type",$T$4="N/A"),0,(R6)*INDEX('Fringe Rates (non-Federal)'!$F$3:$S$19,MATCH($T$4,'Fringe Rates (non-Federal)'!$A$3:$A$19,0),MATCH(A6,NFFR[[#Headers],[S&W Staff]:[S&W (Custom Fringe Rate)]],0))),0)) -> 0 | T6: =ROUND(SUM(R6:S6),0) -> 0 | U6: =ROUND(IF(OR(A6="Select Category",D6="Select Appointment Type",$W$4="N/A"),0,IF(ISNUMBER(E6),(E6*W8/VLOOKUP(D6,'Effort Calculator'!$A$8:$C$14,3,FALSE)*(1+H9)*(1+K9)*(1+N9)*(1+Q9)*(1+T9)*(1+W9)),0)),0) -> 0 | V6: =IF($A$3=1,ROUND(IF(OR(A6="Select Category",D6="Select Appointment Type",$W$4="N/A"),0,(U6)*INDEX('Fringe Rates (Federal)'!$F$3:$S$19,MATCH($W$4,'Fringe Rates (Federal)'!$A$3:$A$19,0),MATCH(A6,FFR[[#Headers],[S&W Staff]:[S&W (Custom Fringe Rate)]],0))),0),ROUND(IF(OR(A6="Select Category",D6="Select Appointment Type",$W$4="N/A"),0,(U6)*INDEX('Fringe Rates (non-Federal)'!$F$3:$S$19,MATCH($W$4,'Fringe Rates (non-Federal)'!$A$3:$A$19,0),MATCH(A6,NFFR[[#Headers],[S&W Staff]:[S&W (Custom Fringe Rate)]],0))),0)) -> 0 | W6: =ROUND(SUM(U6:V6),0) -> 0 | X6: =ROUND(IF(OR(A6="Select Category",D6="Select Appointment Type",$Z$4="N/A"),0,IF(ISNUMBER(E6),(E6*Z8/VLOOKUP(D6,'Effort Calculator'!$A$8:$C$14,3,FALSE)*(1+H9)*(1+K9)*(1+N9)*(1+Q9)*(1+T9)*(1+W9)*(1+Z9)),0)),0) -> 0 | Y6: =IF($A$3=1,ROUND(IF(OR(A6="Select Category",D6="Select Appointment Type",$Z$4="N/A"),0,(X6)*INDEX('Fringe Rates (Federal)'!$F$3:$S$19,MATCH($Z$4,'Fringe Rates (Federal)'!$A$3:$A$19,0),MATCH(A6,FFR[[#Headers],[S&W Staff]:[S&W (Custom Fringe Rate)]],0))),0),ROUND(IF(OR(A6="Select Category",D6="Select Appointment Type",$Z$4="N/A"),0,(X6)*INDEX('Fringe Rates (non-Federal)'!$F$3:$S$19,MATCH($Z$4,'Fringe Rates (non-Federal)'!$A$3:$A$19,0),MATCH(A6,NFFR[[#Headers],[S&W Staff]:[S&W (Custom Fringe Rate)]],0))),0)) -> 0 | Z6: =ROUND(SUM(X6:Y6),0) -> 0 | AA6: =ROUND(IF(OR(A6="Select Category",D6="Select Appointment Type",$AC$4="N/A"),0,IF(ISNUMBER(E6),(E6*AC8/VLOOKUP(D6,'Effort Calculator'!$A$8:$C$14,3,FALSE)*(1+H9)*(1+K9)*(1+N9)*(1+Q9)*(1+T9)*(1+W9)*(1+Z9)*(1+AC9)),0)),0) -> 0 | AB6: =IF($A$3=1,ROUND(IF(OR(A6="Select Category",D6="Select Appointment Type",$AC$4="N/A"),0,(AA6)*INDEX('Fringe Rates (Federal)'!$F$3:$S$19,MATCH($AC$4,'Fringe Rates (Federal)'!$A$3:$A$19,0),MATCH(A6,FFR[[#Headers],[S&W Staff]:[S&W (Custom Fringe Rate)]],0))),0),ROUND(IF(OR(A6="Select Category",D6="Select Appointment Type",$AC$4="N/A"),0,(AA6)*INDEX('Fringe Rates (non-Federal)'!$F$3:$S$19,MATCH($AC$4,'Fringe Rates (non-Federal)'!$A$3:$A$19,0),MATCH(A6,NFFR[[#Headers],[S&W Staff]:[S&W (Custom Fringe Rate)]],0))),0)) -> 0 | AC6: =ROUND(SUM(AA6:AB6),0) -> 0 | AD6: =ROUND(IF(OR(A6="Select Category",D6="Select Appointment Type",$AF$4="N/A"),0,IF(ISNUMBER(E6),(E6*AF8/VLOOKUP(D6,'Effort Calculator'!$A$8:$C$14,3,FALSE)*(1+H9)*(1+K9)*(1+N9)*(1+Q9)*(1+T9)*(1+W9)*(1+Z9)*(1+AC9)*(1+AF9)),0)),0) -> 0 | AE6: =IF($A$3=1,ROUND(IF(OR(A6="Select Category",D6="Select Appointment Type",$AF$4="N/A"),0,(AD6)*INDEX('Fringe Rates (Federal)'!$F$3:$S$19,MATCH($AF$4,'Fringe Rates (Federal)'!$A$3:$A$19,0),MATCH(A6,FFR[[#Headers],[S&W Staff]:[S&W (Custom Fringe Rate)]],0))),0),ROUND(IF(OR(A6="Select Category",D6="Select Appointment Type",$AF$4="N/A"),0,(AD6)*INDEX('Fringe Rates (non-Federal)'!$F$3:$S$19,MATCH($AF$4,'Fringe Rates (non-Federal)'!$A$3:$A$19,0),MATCH(A6,NFFR[[#Headers],[S&W Staff]:[S&W (Custom Fringe Rate)]],0))),0)) -> 0 | AF6: =ROUND(SUM(AD6:AE6),0) -> 0 | AG6: =ROUND(IF(OR(A6="Select Category",D6="Select Appointment Type",$AI$4="N/A"),0,IF(ISNUMBER(E6),(E6*AI8/VLOOKUP(D6,'Effort Calculator'!$A$8:$C$14,3,FALSE)*(1+H9)*(1+K9)*(1+N9)*(1+Q9)*(1+T9)*(1+W9)*(1+Z9)*(1+AC9)*(1+AF9)*(1+AI9)),0)),0) -> 0 | AH6: =IF($A$3=1,ROUND(IF(OR(A6="Select Category",D6="Select Appointment Type",$AI$4="N/A"),0,(AG6)*INDEX('Fringe Rates (Federal)'!$F$3:$S$19,MATCH($AI$4,'Fringe Rates (Federal)'!$A$3:$A$19,0),MATCH(A6,FFR[[#Headers],[S&W Staff]:[S&W (Custom Fringe Rate)]],0))),0),ROUND(IF(OR(A6="Select Category",D6="Select Appointment Type",$AI$4="N/A"),0,(AG6)*INDEX('Fringe Rates (non-Federal)'!$F$3:$S$19,MATCH($AI$4,'Fringe Rates (non-Federal)'!$A$3:$A$19,0),MATCH(A6,NFFR[[#Headers],[S&W Staff]:[S&W (Custom Fringe Rate)]],0))),0)) -> 0 | AI6: =ROUND(SUM(AG6:AH6),0) -> 0 | AJ6: =ROUND(SUM(F6,I6,L6,O6,R6,U6,X6,AA6,AD6,AG6),0) -> 0 | AK6: =ROUND(SUM(G6,J6,M6,P6,S6,V6,Y6,AB6,AE6,AH6),0) -> 0 | AL6: =ROUND(SUM(AJ6:AK6),0) -> 0
E7: Effort | H7: 0 | K7: 0 | N7: 0 | Q7: 0 | T7: 0 | W7: 0 | Z7: 0 | AC7: 0 | AF7: 0 | AI7: 0
E8: Person Months | H8: =IF(D6="Select Appointment Type",0,VLOOKUP(D6,'Effort Calculator'!$A$8:$C$13,2,FALSE)*H7) -> 0 | K8: =IF(D6="Select Appointment Type",0,VLOOKUP(D6,'Effort Calculator'!$A$8:$C$13,2,FALSE)*K7) -> 0 | N8: =IF(D6="Select Appointment Type",0,VLOOKUP(D6,'Effort Calculator'!$A$8:$C$13,2,FALSE)*N7) -> 0 | Q8: =IF(D6="Select Appointment Type",0,VLOOKUP(D6,'Effort Calculator'!$A$8:$C$13,2,FALSE)*Q7) -> 0 | T8: =IF(D6="Select Appointment Type",0,VLOOKUP(D6,'Effort Calculator'!$A$8:$C$13,2,FALSE)*T7) -> 0 | W8: =IF(D6="Select Appointment Type",0,VLOOKUP(D6,'Effort Calculator'!$A$8:$C$13,2,FALSE)*W7) -> 0 | Z8: =IF(D6="Select Appointment Type",0,VLOOKUP(D6,'Effort Calculator'!$A$8:$C$13,2,FALSE)*Z7) -> 0 | AC8: =IF(D6="Select Appointment Type",0,VLOOKUP(D6,'Effort Calculator'!$A$8:$C$13,2,FALSE)*AC7) -> 0 | AF8: =IF(D6="Select Appointment Type",0,VLOOKUP(D6,'Effort Calculator'!$A$8:$C$13,2,FALSE)*AF7) -> 0 | AI8: =IF(D6="Select Appointment Type",0,VLOOKUP(D6,'Effort Calculator'!$A$8:$C$13,2,FALSE)*AI7) -> 0
E9: COLA | H9: 0 | K9: 0 | N9: 0 | Q9: 0 | T9: 0 | W9: 0 | Z9: 0 | AC9: 0 | AF9: 0 | AI9: 0
A10: Select Category | B10: =IF(A10="Select Category","N/A",HLOOKUP(A10,'Fringe Rates (Federal)'!$F$1:$S$2,2,FALSE)) -> N/A | C10: Enter Staff Name | D10: Select Appointment Type | E10: 0 | F10: =ROUND(IF(OR(A10="Select Category",D10="Select Appointment Type",$H$4="N/A"),0,IF(ISNUMBER(E10),(E10*H12/VLOOKUP(D10,'Effort Calculator'!$A$8:$C$14,3,FALSE)*(1+H13)),0)),0) -> 0 | G10: =IF($A$3=1,ROUND(IF(OR(A10="Select Category",D10="Select Appointment Type",$H$4="N/A"),0,(F10)*INDEX('Fringe Rates (Federal)'!$F$3:$S$19,MATCH($H$4,'Fringe Rates (Federal)'!$A$3:$A$19,0),MATCH(A10,FFR[[#Headers],[S&W Staff]:[S&W (Custom Fringe Rate)]],0))),0),ROUND(IF(OR(A10="Select Category",D10="Select Appointment Type",$H$4="N/A"),0,(F10)*INDEX('Fringe Rates (non-Federal)'!$F$3:$S$19,MATCH($H$4,'Fringe Rates (non-Federal)'!$A$3:$A$19,0),MATCH(A10,NFFR[[#Headers],[S&W Staff]:[S&W (Custom Fringe Rate)]],0))),0)) -> 0 | H10: =ROUND(SUM(F10:G10),0) -> 0 | I10: =ROUND(IF(OR(A10="Select Category",D10="Select Appointment Type",$K$4="N/A"),0,IF(ISNUMBER(E10),(E10*K12/VLOOKUP(D10,'Effort Calculator'!$A$8:$C$14,3,FALSE)*(1+H13)*(1+K13)),0)),0) -> 0 | J10: =IF($A$3=1,ROUND(IF(OR(A10="Select Category",D10="Select Appointment Type",$K$4="N/A"),0,(I10)*INDEX('Fringe Rates (Federal)'!$F$3:$S$19,MATCH($K$4,'Fringe Rates (Federal)'!$A$3:$A$19,0),MATCH(A10,FFR[[#Headers],[S&W Staff]:[S&W (Custom Fringe Rate)]],0))),0),ROUND(IF(OR(A10="Select Category",D10="Select Appointment Type",$K$4="N/A"),0,(I10)*INDEX('Fringe Rates (non-Federal)'!$F$3:$S$19,MATCH($K$4,'Fringe Rates (non-Federal)'!$A$3:$A$19,0),MATCH(A10,NFFR[[#Headers],[S&W Staff]:[S&W (Custom Fringe Rate)]],0))),0)) -> 0 | K10: =ROUND(SUM(I10:J10),0) -> 0 | L10: =ROUND(IF(OR(A10="Select Category",D10="Select Appointment Type",$N$4="N/A"),0,IF(ISNUMBER(E10),(E10*N12/VLOOKUP(D10,'Effort Calculator'!$A$8:$C$14,3,FALSE)*(1+H13)*(1+K13)*(1+N13)),0)),0) -> 0 | M10: =IF($A$3=1,ROUND(IF(OR(A10="Select Category",D10="Select Appointment Type",$N$4="N/A"),0,(L10)*INDEX('Fringe Rates (Federal)'!$F$3:$S$19,MATCH($N$4,'Fringe Rates (Federal)'!$A$3:$A$19,0),MATCH(A10,FFR[[#Headers],[S&W Staff]:[S&W (Custom Fringe Rate)]],0))),0),ROUND(IF(OR(A10="Select Category",D10="Select Appointment Type",$N$4="N/A"),0,(L10)*INDEX('Fringe Rates (non-Federal)'!$F$3:$S$19,MATCH($N$4,'Fringe Rates (non-Federal)'!$A$3:$A$19,0),MATCH(A10,NFFR[[#Headers],[S&W Staff]:[S&W (Custom Fringe Rate)]],0))),0)) -> 0 | N10: =ROUND(SUM(L10:M10),0) -> 0 | O10: =ROUND(IF(OR(A10="Select Category",D10="Select Appointment Type",$Q$4="N/A"),0,IF(ISNUMBER(E10),(E10*Q12/VLOOKUP(D10,'Effort Calculator'!$A$8:$C$14,3,FALSE)*(1+H13)*(1+K13)*(1+N13)*(1+Q13)),0)),0) -> 0 | P10: =IF($A$3=1,ROUND(IF(OR(A10="Select Category",D10="Select Appointment Type",$Q$4="N/A"),0,(O10)*INDEX('Fringe Rates (Federal)'!$F$3:$S$19,MATCH($Q$4,'Fringe Rates (Federal)'!$A$3:$A$19,0),MATCH(A10,FFR[[#Headers],[S&W Staff]:[S&W (Custom Fringe Rate)]],0))),0),ROUND(IF(OR(A10="Select Category",D10="Select Appointment Type",$Q$4="N/A"),0,(O10)*INDEX('Fringe Rates (non-Federal)'!$F$3:$S$19,MATCH($Q$4,'Fringe Rates (non-Federal)'!$A$3:$A$19,0),MATCH(A10,NFFR[[#Headers],[S&W Staff]:[S&W (Custom Fringe Rate)]],0))),0)) -> 0 | Q10: =ROUND(SUM(O10:P10),0) -> 0 | R10: =ROUND(IF(OR(A10="Select Category",D10="Select Appointment Type",$T$4="N/A"),0,IF(ISNUMBER(E10),(E10*T12/VLOOKUP(D10,'Effort Calculator'!$A$8:$C$14,3,FALSE)*(1+H13)*(1+K13)*(1+N13)*(1+Q13)*(1+T13)),0)),0) -> 0 | S10: =IF($A$3=1,ROUND(IF(OR(A10="Select Category",D10="Select Appointment Type",$T$4="N/A"),0,(R10)*INDEX('Fringe Rates (Federal)'!$F$3:$S$19,MATCH($T$4,'Fringe Rates (Federal)'!$A$3:$A$19,0),MATCH(A10,FFR[[#Headers],[S&W Staff]:[S&W (Custom Fringe Rate)]],0))),0),ROUND(IF(OR(A10="Select Category",D10="Select Appointment Type",$T$4="N/A"),0,(R10)*INDEX('Fringe Rates (non-Federal)'!$F$3:$S$19,MATCH($T$4,'Fringe Rates (non-Federal)'!$A$3:$A$19,0),MATCH(A10,NFFR[[#Headers],[S&W Staff]:[S&W (Custom Fringe Rate)]],0))),0)) -> 0 | T10: =ROUND(SUM(R10:S10),0) -> 0 | U10: =ROUND(IF(OR(A10="Select Category",D10="Select Appointment Type",$W$4="N/A"),0,IF(ISNUMBER(E10),(E10*W12/VLOOKUP(D10,'Effort Calculator'!$A$8:$C$14,3,FALSE)*(1+H13)*(1+K13)*(1+N13)*(1+Q13)*(1+T13)*(1+W13)),0)),0) -> 0 | V10: =IF($A$3=1,ROUND(IF(OR(A10="Select Category",D10="Select Appointment Type",$W$4="N/A"),0,(U10)*INDEX('Fringe Rates (Federal)'!$F$3:$S$19,MATCH($W$4,'Fringe Rates (Federal)'!$A$3:$A$19,0),MATCH(A10,FFR[[#Headers],[S&W Staff]:[S&W (Custom Fringe Rate)]],0))),0),ROUND(IF(OR(A10="Select Category",D10="Select Appointment Type",$W$4="N/A"),0,(U10)*INDEX('Fringe Rates (non-Federal)'!$F$3:$S$19,MATCH($W$4,'Fringe Rates (non-Federal)'!$A$3:$A$19,0),MATCH(A10,NFFR[[#Headers],[S&W Staff]:[S&W (Custom Fringe Rate)]],0))),0)) -> 0 | W10: =ROUND(SUM(U10:V10),0) -> 0 | X10: =ROUND(IF(OR(A10="Select Category",D10="Select Appointment Type",$Z$4="N/A"),0,IF(ISNUMBER(E10),(E10*Z12/VLOOKUP(D10,'Effort Calculator'!$A$8:$C$14,3,FALSE)*(1+H13)*(1+K13)*(1+N13)*(1+Q13)*(1+T13)*(1+W13)*(1+Z13)),0)),0) -> 0 | Y10: =IF($A$3=1,ROUND(IF(OR(A10="Select Category",D10="Select Appointment Type",$Z$4="N/A"),0,(X10)*INDEX('Fringe Rates (Federal)'!$F$3:$S$19,MATCH($Z$4,'Fringe Rates (Federal)'!$A$3:$A$19,0),MATCH(A10,FFR[[#Headers],[S&W Staff]:[S&W (Custom Fringe Rate)]],0))),0),ROUND(IF(OR(A10="Select Category",D10="Select Appointment Type",$Z$4="N/A"),0,(X10)*INDEX('Fringe Rates (non-Federal)'!$F$3:$S$19,MATCH($Z$4,'Fringe Rates (non-Federal)'!$A$3:$A$19,0),MATCH(A10,NFFR[[#Headers],[S&W Staff]:[S&W (Custom Fringe Rate)]],0))),0)) -> 0 | Z10: =ROUND(SUM(X10:Y10),0) -> 0 | AA10: =ROUND(IF(OR(A10="Select Category",D10="Select Appointment Type",$AC$4="N/A"),0,IF(ISNUMBER(E10),(E10*AC12/VLOOKUP(D10,'Effort Calculator'!$A$8:$C$14,3,FALSE)*(1+H13)*(1+K13)*(1+N13)*(1+Q13)*(1+T13)*(1+W13)*(1+Z13)*(1+AC13)),0)),0) -> 0 | AB10: =IF($A$3=1,ROUND(IF(OR(A10="Select Category",D10="Select Appointment Type",$AC$4="N/A"),0,(AA10)*INDEX('Fringe Rates (Federal)'!$F$3:$S$19,MATCH($AC$4,'Fringe Rates (Federal)'!$A$3:$A$19,0),MATCH(A10,FFR[[#Headers],[S&W Staff]:[S&W (Custom Fringe Rate)]],0))),0),ROUND(IF(OR(A10="Select Category",D10="Select Appointment Type",$AC$4="N/A"),0,(AA10)*INDEX('Fringe Rates (non-Federal)'!$F$3:$S$19,MATCH($AC$4,'Fringe Rates (non-Federal)'!$A$3:$A$19,0),MATCH(A10,NFFR[[#Headers],[S&W Staff]:[S&W (Custom Fringe Rate)]],0))),0)) -> 0 | AC10: =ROUND(SUM(AA10:AB10),0) -> 0 | AD10: =ROUND(IF(OR(A10="Select Category",D10="Select Appointment Type",$AF$4="N/A"),0,IF(ISNUMBER(E10),(E10*AF12/VLOOKUP(D10,'Effort Calculator'!$A$8:$C$14,3,FALSE)*(1+H13)*(1+K13)*(1+N13)*(1+Q13)*(1+T13)*(1+W13)*(1+Z13)*(1+AC13)*(1+AF13)),0)),0) -> 0 | AE10: =IF($A$3=1,ROUND(IF(OR(A10="Select Category",D10="Select Appointment Type",$AF$4="N/A"),0,(AD10)*INDEX('Fringe Rates (Federal)'!$F$3:$S$19,MATCH($AF$4,'Fringe Rates (Federal)'!$A$3:$A$19,0),MATCH(A10,FFR[[#Headers],[S&W Staff]:[S&W (Custom Fringe Rate)]],0))),0),ROUND(IF(OR(A10="Select Category",D10="Select Appointment Type",$AF$4="N/A"),0,(AD10)*INDEX('Fringe Rates (non-Federal)'!$F$3:$S$19,MATCH($AF$4,'Fringe Rates (non-Federal)'!$A$3:$A$19,0),MATCH(A10,NFFR[[#Headers],[S&W Staff]:[S&W (Custom Fringe Rate)]],0))),0)) -> 0 | AF10: =ROUND(SUM(AD10:AE10),0) -> 0 | AG10: =ROUND(IF(OR(A10="Select Category",D10="Select Appointment Type",$AI$4="N/A"),0,IF(ISNUMBER(E10),(E10*AI12/VLOOKUP(D10,'Effort Calculator'!$A$8:$C$14,3,FALSE)*(1+H13)*(1+K13)*(1+N13)*(1+Q13)*(1+T13)*(1+W13)*(1+Z13)*(1+AC13)*(1+AF13)*(1+AI13)),0)),0) -> 0 | AH10: =IF($A$3=1,ROUND(IF(OR(A10="Select Category",D10="Select Appointment Type",$AI$4="N/A"),0,(AG10)*INDEX('Fringe Rates (Federal)'!$F$3:$S$19,MATCH($AI$4,'Fringe Rates (Federal)'!$A$3:$A$19,0),MATCH(A10,FFR[[#Headers],[S&W Staff]:[S&W (Custom Fringe Rate)]],0))),0),ROUND(IF(OR(A10="Select Category",D10="Select Appointment Type",$AI$4="N/A"),0,(AG10)*INDEX('Fringe Rates (non-Federal)'!$F$3:$S$19,MATCH($AI$4,'Fringe Rates (non-Federal)'!$A$3:$A$19,0),MATCH(A10,NFFR[[#Headers],[S&W Staff]:[S&W (Custom Fringe Rate)]],0))),0)) -> 0 | AI10: =ROUND(SUM(AG10:AH10),0) -> 0 | AJ10: =ROUND(SUM(F10,I10,L10,O10,R10,U10,X10,AA10,AD10,AG10),0) -> 0 | AK10: =ROUND(SUM(G10,J10,M10,P10,S10,V10,Y10,AB10,AE10,AH10),0) -> 0 | AL10: =ROUND(SUM(AJ10:AK10),0) -> 0
E11: Effort | H11: 0 | K11: 0 | N11: 0 | Q11: 0 | T11: 0 | W11: 0 | Z11: 0 | AC11: 0 | AF11: 0 | AI11: 0
E12: Person Months | H12: =IF(D10="Select Appointment Type",0,VLOOKUP(D10,'Effort Calculator'!$A$8:$C$13,2,FALSE)*H11) -> 0 | K12: =IF(D10="Select Appointment Type",0,VLOOKUP(D10,'Effort Calculator'!$A$8:$C$13,2,FALSE)*K11) -> 0 | N12: =IF(D10="Select Appointment Type",0,VLOOKUP(D10,'Effort Calculator'!$A$8:$C$13,2,FALSE)*N11) -> 0 | Q12: =IF(D10="Select Appointment Type",0,VLOOKUP(D10,'Effort Calculator'!$A$8:$C$13,2,FALSE)*Q11) -> 0 | T12: =IF(D10="Select Appointment Type",0,VLOOKUP(D10,'Effort Calculator'!$A$8:$C$13,2,FALSE)*T11) -> 0 | W12: =IF(D10="Select Appointment Type",0,VLOOKUP(D10,'Effort Calculator'!$A$8:$C$13,2,FALSE)*W11) -> 0 | Z12: =IF(D10="Select Appointment Type",0,VLOOKUP(D10,'Effort Calculator'!$A$8:$C$13,2,FALSE)*Z11) -> 0 | AC12: =IF(D10="Select Appointment Type",0,VLOOKUP(D10,'Effort Calculator'!$A$8:$C$13,2,FALSE)*AC11) -> 0 | AF12: =IF(D10="Select Appointment Type",0,VLOOKUP(D10,'Effort Calculator'!$A$8:$C$13,2,FALSE)*AF11) -> 0 | AI12: =IF(D10="Select Appointment Type",0,VLOOKUP(D10,'Effort Calculator'!$A$8:$C$13,2,FALSE)*AI11) -> 0
E13: COLA | H13: 0 | K13: 0 | N13: 0 | Q13: 0 | T13: 0 | W13: 0 | Z13: 0 | AC13: 0 | AF13: 0 | AI13: 0
A14: Select Category | B14: =IF(A14="Select Category","N/A",HLOOKUP(A14,'Fringe Rates (Federal)'!$F$1:$S$2,2,FALSE)) -> N/A | C14: Enter Staff Name | D14: Select Appointment Type | E14: 0 | F14: =ROUND(IF(OR(A14="Select Category",D14="Select Appointment Type",$H$4="N/A"),0,IF(ISNUMBER(E14),(E14*H16/VLOOKUP(D14,'Effort Calculator'!$A$8:$C$14,3,FALSE)*(1+H17)),0)),0) -> 0 | G14: =IF($A$3=1,ROUND(IF(OR(A14="Select Category",D14="Select Appointment Type",$H$4="N/A"),0,(F14)*INDEX('Fringe Rates (Federal)'!$F$3:$S$19,MATCH($H$4,'Fringe Rates (Federal)'!$A$3:$A$19,0),MATCH(A14,FFR[[#Headers],[S&W Staff]:[S&W (Custom Fringe Rate)]],0))),0),ROUND(IF(OR(A14="Select Category",D14="Select Appointment Type",$H$4="N/A"),0,(F14)*INDEX('Fringe Rates (non-Federal)'!$F$3:$S$19,MATCH($H$4,'Fringe Rates (non-Federal)'!$A$3:$A$19,0),MATCH(A14,NFFR[[#Headers],[S&W Staff]:[S&W (Custom Fringe Rate)]],0))),0)) -> 0 | H14: =ROUND(SUM(F14:G14),0) -> 0 | I14: =ROUND(IF(OR(A14="Select Category",D14="Select Appointment Type",$K$4="N/A"),0,IF(ISNUMBER(E14),(E14*K16/VLOOKUP(D14,'Effort Calculator'!$A$8:$C$14,3,FALSE)*(1+H17)*(1+K17)),0)),0) -> 0 | J14: =IF($A$3=1,ROUND(IF(OR(A14="Select Category",D14="Select Appointment Type",$K$4="N/A"),0,(I14)*INDEX('Fringe Rates (Federal)'!$F$3:$S$19,MATCH($K$4,'Fringe Rates (Federal)'!$A$3:$A$19,0),MATCH(A14,FFR[[#Headers],[S&W Staff]:[S&W (Custom Fringe Rate)]],0))),0),ROUND(IF(OR(A14="Select Category",D14="Select Appointment Type",$K$4="N/A"),0,(I14)*INDEX('Fringe Rates (non-Federal)'!$F$3:$S$19,MATCH($K$4,'Fringe Rates (non-Federal)'!$A$3:$A$19,0),MATCH(A14,NFFR[[#Headers],[S&W Staff]:[S&W (Custom Fringe Rate)]],0))),0)) -> 0 | K14: =ROUND(SUM(I14:J14),0) -> 0 | L14: =ROUND(IF(OR(A14="Select Category",D14="Select Appointment Type",$N$4="N/A"),0,IF(ISNUMBER(E14),(E14*N16/VLOOKUP(D14,'Effort Calculator'!$A$8:$C$14,3,FALSE)*(1+H17)*(1+K17)*(1+N17)),0)),0) -> 0 | M14: =IF($A$3=1,ROUND(IF(OR(A14="Select Category",D14="Select Appointment Type",$N$4="N/A"),0,(L14)*INDEX('Fringe Rates (Federal)'!$F$3:$S$19,MATCH($N$4,'Fringe Rates (Federal)'!$A$3:$A$19,0),MATCH(A14,FFR[[#Headers],[S&W Staff]:[S&W (Custom Fringe Rate)]],0))),0),ROUND(IF(OR(A14="Select Category",D14="Select Appointment Type",$N$4="N/A"),0,(L14)*INDEX('Fringe Rates (non-Federal)'!$F$3:$S$19,MATCH($N$4,'Fringe Rates (non-Federal)'!$A$3:$A$19,0),MATCH(A14,NFFR[[#Headers],[S&W Staff]:[S&W (Custom Fringe Rate)]],0))),0)) -> 0 | N14: =ROUND(SUM(L14:M14),0) -> 0 | O14: =ROUND(IF(OR(A14="Select Category",D14="Select Appointment Type",$Q$4="N/A"),0,IF(ISNUMBER(E14),(E14*Q16/VLOOKUP(D14,'Effort Calculator'!$A$8:$C$14,3,FALSE)*(1+H17)*(1+K17)*(1+N17)*(1+Q17)),0)),0) -> 0 | P14: =IF($A$3=1,ROUND(IF(OR(A14="Select Category",D14="Select Appointment Type",$Q$4="N/A"),0,(O14)*INDEX('Fringe Rates (Federal)'!$F$3:$S$19,MATCH($Q$4,'Fringe Rates (Federal)'!$A$3:$A$19,0),MATCH(A14,FFR[[#Headers],[S&W Staff]:[S&W (Custom Fringe Rate)]],0))),0),ROUND(IF(OR(A14="Select Category",D14="Select Appointment Type",$Q$4="N/A"),0,(O14)*INDEX('Fringe Rates (non-Federal)'!$F$3:$S$19,MATCH($Q$4,'Fringe Rates (non-Federal)'!$A$3:$A$19,0),MATCH(A14,NFFR[[#Headers],[S&W Staff]:[S&W (Custom Fringe Rate)]],0))),0)) -> 0 | Q14: =ROUND(SUM(O14:P14),0) -> 0 | R14: =ROUND(IF(OR(A14="Select Category",D14="Select Appointment Type",$T$4="N/A"),0,IF(ISNUMBER(E14),(E14*T16/VLOOKUP(D14,'Effort Calculator'!$A$8:$C$14,3,FALSE)*(1+H17)*(1+K17)*(1+N17)*(1+Q17)*(1+T17)),0)),0) -> 0 | S14: =IF($A$3=1,ROUND(IF(OR(A14="Select Category",D14="Select Appointment Type",$T$4="N/A"),0,(R14)*INDEX('Fringe Rates (Federal)'!$F$3:$S$19,MATCH($T$4,'Fringe Rates (Federal)'!$A$3:$A$19,0),MATCH(A14,FFR[[#Headers],[S&W Staff]:[S&W (Custom Fringe Rate)]],0))),0),ROUND(IF(OR(A14="Select Category",D14="Select Appointment Type",$T$4="N/A"),0,(R14)*INDEX('Fringe Rates (non-Federal)'!$F$3:$S$19,MATCH($T$4,'Fringe Rates (non-Federal)'!$A$3:$A$19,0),MATCH(A14,NFFR[[#Headers],[S&W Staff]:[S&W (Custom Fringe Rate)]],0))),0)) -> 0 | T14: =ROUND(SUM(R14:S14),0) -> 0 | U14: =ROUND(IF(OR(A14="Select Category",D14="Select Appointment Type",$W$4="N/A"),0,IF(ISNUMBER(E14),(E14*W16/VLOOKUP(D14,'Effort Calculator'!$A$8:$C$14,3,FALSE)*(1+H17)*(1+K17)*(1+N17)*(1+Q17)*(1+T17)*(1+W17)),0)),0) -> 0 | V14: =IF($A$3=1,ROUND(IF(OR(A14="Select Category",D14="Select Appointment Type",$W$4="N/A"),0,(U14)*INDEX('Fringe Rates (Federal)'!$F$3:$S$19,MATCH($W$4,'Fringe Rates (Federal)'!$A$3:$A$19,0),MATCH(A14,FFR[[#Headers],[S&W Staff]:[S&W (Custom Fringe Rate)]],0))),0),ROUND(IF(OR(A14="Select Category",D14="Select Appointment Type",$W$4="N/A"),0,(U14)*INDEX('Fringe Rates (non-Federal)'!$F$3:$S$19,MATCH($W$4,'Fringe Rates (non-Federal)'!$A$3:$A$19,0),MATCH(A14,NFFR[[#Headers],[S&W Staff]:[S&W (Custom Fringe Rate)]],0))),0)) -> 0 | W14: =ROUND(SUM(U14:V14),0) -> 0 | X14: =ROUND(IF(OR(A14="Select Category",D14="Select Appointment Type",$Z$4="N/A"),0,IF(ISNUMBER(E14),(E14*Z16/VLOOKUP(D14,'Effort Calculator'!$A$8:$C$14,3,FALSE)*(1+H17)*(1+K17)*(1+N17)*(1+Q17)*(1+T17)*(1+W17)*(1+Z17)),0)),0) -> 0 | Y14: =IF($A$3=1,ROUND(IF(OR(A14="Select Category",D14="Select Appointment Type",$Z$4="N/A"),0,(X14)*INDEX('Fringe Rates (Federal)'!$F$3:$S$19,MATCH($Z$4,'Fringe Rates (Federal)'!$A$3:$A$19,0),MATCH(A14,FFR[[#Headers],[S&W Staff]:[S&W (Custom Fringe Rate)]],0))),0),ROUND(IF(OR(A14="Select Category",D14="Select Appointment Type",$Z$4="N/A"),0,(X14)*INDEX('Fringe Rates (non-Federal)'!$F$3:$S$19,MATCH($Z$4,'Fringe Rates (non-Federal)'!$A$3:$A$19,0),MATCH(A14,NFFR[[#Headers],[S&W Staff]:[S&W (Custom Fringe Rate)]],0))),0)) -> 0 | Z14: =ROUND(SUM(X14:Y14),0) -> 0 | AA14: =ROUND(IF(OR(A14="Select Category",D14="Select Appointment Type",$AC$4="N/A"),0,IF(ISNUMBER(E14),(E14*AC16/VLOOKUP(D14,'Effort Calculator'!$A$8:$C$14,3,FALSE)*(1+H17)*(1+K17)*(1+N17)*(1+Q17)*(1+T17)*(1+W17)*(1+Z17)*(1+AC17)),0)),0) -> 0 | AB14: =IF($A$3=1,ROUND(IF(OR(A14="Select Category",D14="Select Appointment Type",$AC$4="N/A"),0,(AA14)*INDEX('Fringe Rates (Federal)'!$F$3:$S$19,MATCH($AC$4,'Fringe Rates (Federal)'!$A$3:$A$19,0),MATCH(A14,FFR[[#Headers],[S&W Staff]:[S&W (Custom Fringe Rate)]],0))),0),ROUND(IF(OR(A14="Select Category",D14="Select Appointment Type",$AC$4="N/A"),0,(AA14)*INDEX('Fringe Rates (non-Federal)'!$F$3:$S$19,MATCH($AC$4,'Fringe Rates (non-Federal)'!$A$3:$A$19,0),MATCH(A14,NFFR[[#Headers],[S&W Staff]:[S&W (Custom Fringe Rate)]],0))),0)) -> 0 | AC14: =ROUND(SUM(AA14:AB14),0) -> 0 | AD14: =ROUND(IF(OR(A14="Select Category",D14="Select Appointment Type",$AF$4="N/A"),0,IF(ISNUMBER(E14),(E14*AF16/VLOOKUP(D14,'Effort Calculator'!$A$8:$C$14,3,FALSE)*(1+H17)*(1+K17)*(1+N17)*(1+Q17)*(1+T17)*(1+W17)*(1+Z17)*(1+AC17)*(1+AF17)),0)),0) -> 0 | AE14: =IF($A$3=1,ROUND(IF(OR(A14="Select Category",D14="Select Appointment Type",$AF$4="N/A"),0,(AD14)*INDEX('Fringe Rates (Federal)'!$F$3:$S$19,MATCH($AF$4,'Fringe Rates (Federal)'!$A$3:$A$19,0),MATCH(A14,FFR[[#Headers],[S&W Staff]:[S&W (Custom Fringe Rate)]],0))),0),ROUND(IF(OR(A14="Select Category",D14="Select Appointment Type",$AF$4="N/A"),0,(AD14)*INDEX('Fringe Rates (non-Federal)'!$F$3:$S$19,MATCH($AF$4,'Fringe Rates (non-Federal)'!$A$3:$A$19,0),MATCH(A14,NFFR[[#Headers],[S&W Staff]:[S&W (Custom Fringe Rate)]],0))),0)) -> 0 | AF14: =ROUND(SUM(AD14:AE14),0) -> 0 | AG14: =ROUND(IF(OR(A14="Select Category",D14="Select Appointment Type",$AI$4="N/A"),0,IF(ISNUMBER(E14),(E14*AI16/VLOOKUP(D14,'Effort Calculator'!$A$8:$C$14,3,FALSE)*(1+H17)*(1+K17)*(1+N17)*(1+Q17)*(1+T17)*(1+W17)*(1+Z17)*(1+AC17)*(1+AF17)*(1+AI17)),0)),0) -> 0 | AH14: =IF($A$3=1,ROUND(IF(OR(A14="Select Category",D14="Select Appointment Type",$AI$4="N/A"),0,(AG14)*INDEX('Fringe Rates (Federal)'!$F$3:$S$19,MATCH($AI$4,'Fringe Rates (Federal)'!$A$3:$A$19,0),MATCH(A14,FFR[[#Headers],[S&W Staff]:[S&W (Custom Fringe Rate)]],0))),0),ROUND(IF(OR(A14="Select Category",D14="Select Appointment Type",$AI$4="N/A"),0,(AG14)*INDEX('Fringe Rates (non-Federal)'!$F$3:$S$19,MATCH($AI$4,'Fringe Rates (non-Federal)'!$A$3:$A$19,0),MATCH(A14,NFFR[[#Headers],[S&W Staff]:[S&W (Custom Fringe Rate)]],0))),0)) -> 0 | AI14: =ROUND(SUM(AG14:AH14),0) -> 0 | AJ14: =ROUND(SUM(F14,I14,L14,O14,R14,U14,X14,AA14,AD14,AG14),0) -> 0 | AK14: =ROUND(SUM(G14,J14,M14,P14,S14,V14,Y14,AB14,AE14,AH14),0) -> 0 | AL14: =ROUND(SUM(AJ14:AK14),0) -> 0
E15: Effort | H15: 0 | K15: 0 | N15: 0 | Q15: 0 | T15: 0 | W15: 0 | Z15: 0 | AC15: 0 | AF15: 0 | AI15: 0
E16: Person Months | H16: =IF(D14="Select Appointment Type",0,VLOOKUP(D14,'Effort Calculator'!$A$8:$C$13,2,FALSE)*H15) -> 0 | K16: =IF(D14="Select Appointment Type",0,VLOOKUP(D14,'Effort Calculator'!$A$8:$C$13,2,FALSE)*K15) -> 0 | N16: =IF(D14="Select Appointment Type",0,VLOOKUP(D14,'Effort Calculator'!$A$8:$C$13,2,FALSE)*N15) -> 0 | Q16: =IF(D14="Select Appointment Type",0,VLOOKUP(D14,'Effort Calculator'!$A$8:$C$13,2,FALSE)*Q15) -> 0 | T16: =IF(D14="Select Appointment Type",0,VLOOKUP(D14,'Effort Calculator'!$A$8:$C$13,2,FALSE)*T15) -> 0 | W16: =IF(D14="Select Appointment Type",0,VLOOKUP(D14,'Effort Calculator'!$A$8:$C$13,2,FALSE)*W15) -> 0 | Z16: =IF(D14="Select Appointment Type",0,VLOOKUP(D14,'Effort Calculator'!$A$8:$C$13,2,FALSE)*Z15) -> 0 | AC16: =IF(D14="Select Appointment Type",0,VLOOKUP(D14,'Effort Calculator'!$A$8:$C$13,2,FALSE)*AC15) -> 0 | AF16: =IF(D14="Select Appointment Type",0,VLOOKUP(D14,'Effort Calculator'!$A$8:$C$13,2,FALSE)*AF15) -> 0 | AI16: =IF(D14="Select Appointment Type",0,VLOOKUP(D14,'Effort Calculator'!$A$8:$C$13,2,FALSE)*AI15) -> 0
E17: COLA | H17: 0 | K17: 0 | N17: 0 | Q17: 0 | T17: 0 | W17: 0 | Z17: 0 | AC17: 0 | AF17: 0 | AI17: 0
A18: Select Category | B18: =IF(A18="Select Category","N/A",HLOOKUP(A18,'Fringe Rates (Federal)'!$F$1:$S$2,2,FALSE)) -> N/A | C18: Enter Staff Name | D18: Select Appointment Type | E18: 0 | F18: =ROUND(IF(OR(A18="Select Category",D18="Select Appointment Type",$H$4="N/A"),0,IF(ISNUMBER(E18),(E18*H20/VLOOKUP(D18,'Effort Calculator'!$A$8:$C$14,3,FALSE)*(1+H21)),0)),0) -> 0 | G18: =IF($A$3=1,ROUND(IF(OR(A18="Select Category",D18="Select Appointment Type",$H$4="N/A"),0,(F18)*INDEX('Fringe Rates (Federal)'!$F$3:$S$19,MATCH($H$4,'Fringe Rates (Federal)'!$A$3:$A$19,0),MATCH(A18,FFR[[#Headers],[S&W Staff]:[S&W (Custom Fringe Rate)]],0))),0),ROUND(IF(OR(A18="Select Category",D18="Select Appointment Type",$H$4="N/A"),0,(F18)*INDEX('Fringe Rates (non-Federal)'!$F$3:$S$19,MATCH($H$4,'Fringe Rates (non-Federal)'!$A$3:$A$19,0),MATCH(A18,NFFR[[#Headers],[S&W Staff]:[S&W (Custom Fringe Rate)]],0))),0)) -> 0 | H18: =ROUND(SUM(F18:G18),0) -> 0 | I18: =ROUND(IF(OR(A18="Select Category",D18="Select Appointment Type",$K$4="N/A"),0,IF(ISNUMBER(E18),(E18*K20/VLOOKUP(D18,'Effort Calculator'!$A$8:$C$14,3,FALSE)*(1+H21)*(1+K21)),0)),0) -> 0 | J18: =IF($A$3=1,ROUND(IF(OR(A18="Select Category",D18="Select Appointment Type",$K$4="N/A"),0,(I18)*INDEX('Fringe Rates (Federal)'!$F$3:$S$19,MATCH($K$4,'Fringe Rates (Federal)'!$A$3:$A$19,0),MATCH(A18,FFR[[#Headers],[S&W Staff]:[S&W (Custom Fringe Rate)]],0))),0),ROUND(IF(OR(A18="Select Category",D18="Select Appointment Type",$K$4="N/A"),0,(I18)*INDEX('Fringe Rates (non-Federal)'!$F$3:$S$19,MATCH($K$4,'Fringe Rates (non-Federal)'!$A$3:$A$19,0),MATCH(A18,NFFR[[#Headers],[S&W Staff]:[S&W (Custom Fringe Rate)]],0))),0)) -> 0 | K18: =ROUND(SUM(I18:J18),0) -> 0 | L18: =ROUND(IF(OR(A18="Select Category",D18="Select Appointment Type",$N$4="N/A"),0,IF(ISNUMBER(E18),(E18*N20/VLOOKUP(D18,'Effort Calculator'!$A$8:$C$14,3,FALSE)*(1+H21)*(1+K21)*(1+N21)),0)),0) -> 0 | M18: =IF($A$3=1,ROUND(IF(OR(A18="Select Category",D18="Select Appointment Type",$N$4="N/A"),0,(L18)*INDEX('Fringe Rates (Federal)'!$F$3:$S$19,MATCH($N$4,'Fringe Rates (Federal)'!$A$3:$A$19,0),MATCH(A18,FFR[[#Headers],[S&W Staff]:[S&W (Custom Fringe Rate)]],0))),0),ROUND(IF(OR(A18="Select Category",D18="Select Appointment Type",$N$4="N/A"),0,(L18)*INDEX('Fringe Rates (non-Federal)'!$F$3:$S$19,MATCH($N$4,'Fringe Rates (non-Federal)'!$A$3:$A$19,0),MATCH(A18,NFFR[[#Headers],[S&W Staff]:[S&W (Custom Fringe Rate)]],0))),0)) -> 0 | N18: =ROUND(SUM(L18:M18),0) -> 0 | O18: =ROUND(IF(OR(A18="Select Category",D18="Select Appointment Type",$Q$4="N/A"),0,IF(ISNUMBER(E18),(E18*Q20/VLOOKUP(D18,'Effort Calculator'!$A$8:$C$14,3,FALSE)*(1+H21)*(1+K21)*(1+N21)*(1+Q21)),0)),0) -> 0 | P18: =IF($A$3=1,ROUND(IF(OR(A18="Select Category",D18="Select Appointment Type",$Q$4="N/A"),0,(O18)*INDEX('Fringe Rates (Federal)'!$F$3:$S$19,MATCH($Q$4,'Fringe Rates (Federal)'!$A$3:$A$19,0),MATCH(A18,FFR[[#Headers],[S&W Staff]:[S&W (Custom Fringe Rate)]],0))),0),ROUND(IF(OR(A18="Select Category",D18="Select Appointment Type",$Q$4="N/A"),0,(O18)*INDEX('Fringe Rates (non-Federal)'!$F$3:$S$19,MATCH($Q$4,'Fringe Rates (non-Federal)'!$A$3:$A$19,0),MATCH(A18,NFFR[[#Headers],[S&W Staff]:[S&W (Custom Fringe Rate)]],0))),0)) -> 0 | Q18: =ROUND(SUM(O18:P18),0) -> 0 | R18: =ROUND(IF(OR(A18="Select Category",D18="Select Appointment Type",$T$4="N/A"),0,IF(ISNUMBER(E18),(E18*T20/VLOOKUP(D18,'Effort Calculator'!$A$8:$C$14,3,FALSE)*(1+H21)*(1+K21)*(1+N21)*(1+Q21)*(1+T21)),0)),0) -> 0 | S18: =IF($A$3=1,ROUND(IF(OR(A18="Select Category",D18="Select Appointment Type",$T$4="N/A"),0,(R18)*INDEX('Fringe Rates (Federal)'!$F$3:$S$19,MATCH($T$4,'Fringe Rates (Federal)'!$A$3:$A$19,0),MATCH(A18,FFR[[#Headers],[S&W Staff]:[S&W (Custom Fringe Rate)]],0))),0),ROUND(IF(OR(A18="Select Category",D18="Select Appointment Type",$T$4="N/A"),0,(R18)*INDEX('Fringe Rates (non-Federal)'!$F$3:$S$19,MATCH($T$4,'Fringe Rates (non-Federal)'!$A$3:$A$19,0),MATCH(A18,NFFR[[#Headers],[S&W Staff]:[S&W (Custom Fringe Rate)]],0))),0)) -> 0 | T18: =ROUND(SUM(R18:S18),0) -> 0 | U18: =ROUND(IF(OR(A18="Select Category",D18="Select Appointment Type",$W$4="N/A"),0,IF(ISNUMBER(E18),(E18*W20/VLOOKUP(D18,'Effort Calculator'!$A$8:$C$14,3,FALSE)*(1+H21)*(1+K21)*(1+N21)*(1+Q21)*(1+T21)*(1+W21)),0)),0) -> 0 | V18: =IF($A$3=1,ROUND(IF(OR(A18="Select Category",D18="Select Appointment Type",$W$4="N/A"),0,(U18)*INDEX('Fringe Rates (Federal)'!$F$3:$S$19,MATCH($W$4,'Fringe Rates (Federal)'!$A$3:$A$19,0),MATCH(A18,FFR[[#Headers],[S&W Staff]:[S&W (Custom Fringe Rate)]],0))),0),ROUND(IF(OR(A18="Select Category",D18="Select Appointment Type",$W$4="N/A"),0,(U18)*INDEX('Fringe Rates (non-Federal)'!$F$3:$S$19,MATCH($W$4,'Fringe Rates (non-Federal)'!$A$3:$A$19,0),MATCH(A18,NFFR[[#Headers],[S&W Staff]:[S&W (Custom Fringe Rate)]],0))),0)) -> 0 | W18: =ROUND(SUM(U18:V18),0) -> 0 | X18: =ROUND(IF(OR(A18="Select Category",D18="Select Appointment Type",$Z$4="N/A"),0,IF(ISNUMBER(E18),(E18*Z20/VLOOKUP(D18,'Effort Calculator'!$A$8:$C$14,3,FALSE)*(1+H21)*(1+K21)*(1+N21)*(1+Q21)*(1+T21)*(1+W21)*(1+Z21)),0)),0) -> 0 | Y18: =IF($A$3=1,ROUND(IF(OR(A18="Select Category",D18="Select Appointment Type",$Z$4="N/A"),0,(X18)*INDEX('Fringe Rates (Federal)'!$F$3:$S$19,MATCH($Z$4,'Fringe Rates (Federal)'!$A$3:$A$19,0),MATCH(A18,FFR[[#Headers],[S&W Staff]:[S&W (Custom Fringe Rate)]],0))),0),ROUND(IF(OR(A18="Select Category",D18="Select Appointment Type",$Z$4="N/A"),0,(X18)*INDEX('Fringe Rates (non-Federal)'!$F$3:$S$19,MATCH($Z$4,'Fringe Rates (non-Federal)'!$A$3:$A$19,0),MATCH(A18,NFFR[[#Headers],[S&W Staff]:[S&W (Custom Fringe Rate)]],0))),0)) -> 0 | Z18: =ROUND(SUM(X18:Y18),0) -> 0 | AA18: =ROUND(IF(OR(A18="Select Category",D18="Select Appointment Type",$AC$4="N/A"),0,IF(ISNUMBER(E18),(E18*AC20/VLOOKUP(D18,'Effort Calculator'!$A$8:$C$14,3,FALSE)*(1+H21)*(1+K21)*(1+N21)*(1+Q21)*(1+T21)*(1+W21)*(1+Z21)*(1+AC21)),0)),0) -> 0 | AB18: =IF($A$3=1,ROUND(IF(OR(A18="Select Category",D18="Select Appointment Type",$AC$4="N/A"),0,(AA18)*INDEX('Fringe Rates (Federal)'!$F$3:$S$19,MATCH($AC$4,'Fringe Rates (Federal)'!$A$3:$A$19,0),MATCH(A18,FFR[[#Headers],[S&W Staff]:[S&W (Custom Fringe Rate)]],0))),0),ROUND(IF(OR(A18="Select Category",D18="Select Appointment Type",$AC$4="N/A"),0,(AA18)*INDEX('Fringe Rates (non-Federal)'!$F$3:$S$19,MATCH($AC$4,'Fringe Rates (non-Federal)'!$A$3:$A$19,0),MATCH(A18,NFFR[[#Headers],[S&W Staff]:[S&W (Custom Fringe Rate)]],0))),0)) -> 0 | AC18: =ROUND(SUM(AA18:AB18),0) -> 0 | AD18: =ROUND(IF(OR(A18="Select Category",D18="Select Appointment Type",$AF$4="N/A"),0,IF(ISNUMBER(E18),(E18*AF20/VLOOKUP(D18,'Effort Calculator'!$A$8:$C$14,3,FALSE)*(1+H21)*(1+K21)*(1+N21)*(1+Q21)*(1+T21)*(1+W21)*(1+Z21)*(1+AC21)*(1+AF21)),0)),0) -> 0 | AE18: =IF($A$3=1,ROUND(IF(OR(A18="Select Category",D18="Select Appointment Type",$AF$4="N/A"),0,(AD18)*INDEX('Fringe Rates (Federal)'!$F$3:$S$19,MATCH($AF$4,'Fringe Rates (Federal)'!$A$3:$A$19,0),MATCH(A18,FFR[[#Headers],[S&W Staff]:[S&W (Custom Fringe Rate)]],0))),0),ROUND(IF(OR(A18="Select Category",D18="Select Appointment Type",$AF$4="N/A"),0,(AD18)*INDEX('Fringe Rates (non-Federal)'!$F$3:$S$19,MATCH($AF$4,'Fringe Rates (non-Federal)'!$A$3:$A$19,0),MATCH(A18,NFFR[[#Headers],[S&W Staff]:[S&W (Custom Fringe Rate)]],0))),0)) -> 0 | AF18: =ROUND(SUM(AD18:AE18),0) -> 0 | AG18: =ROUND(IF(OR(A18="Select Category",D18="Select Appointment Type",$AI$4="N/A"),0,IF(ISNUMBER(E18),(E18*AI20/VLOOKUP(D18,'Effort Calculator'!$A$8:$C$14,3,FALSE)*(1+H21)*(1+K21)*(1+N21)*(1+Q21)*(1+T21)*(1+W21)*(1+Z21)*(1+AC21)*(1+AF21)*(1+AI21)),0)),0) -> 0 | AH18: =IF($A$3=1,ROUND(IF(OR(A18="Select Category",D18="Select Appointment Type",$AI$4="N/A"),0,(AG18)*INDEX('Fringe Rates (Federal)'!$F$3:$S$19,MATCH($AI$4,'Fringe Rates (Federal)'!$A$3:$A$19,0),MATCH(A18,FFR[[#Headers],[S&W Staff]:[S&W (Custom Fringe Rate)]],0))),0),ROUND(IF(OR(A18="Select Category",D18="Select Appointment Type",$AI$4="N/A"),0,(AG18)*INDEX('Fringe Rates (non-Federal)'!$F$3:$S$19,MATCH($AI$4,'Fringe Rates (non-Federal)'!$A$3:$A$19,0),MATCH(A18,NFFR[[#Headers],[S&W Staff]:[S&W (Custom Fringe Rate)]],0))),0)) -> 0 | AI18: =ROUND(SUM(AG18:AH18),0) -> 0 | AJ18: =ROUND(SUM(F18,I18,L18,O18,R18,U18,X18,AA18,AD18,AG18),0) -> 0 | AK18: =ROUND(SUM(G18,J18,M18,P18,S18,V18,Y18,AB18,AE18,AH18),0) -> 0 | AL18: =ROUND(SUM(AJ18:AK18),0) -> 0
E19: Effort | H19: 0 | K19: 0 | N19: 0 | Q19: 0 | T19: 0 | W19: 0 | Z19: 0 | AC19: 0 | AF19: 0 | AI19: 0
E20: Person Months | H20: =IF(D18="Select Appointment Type",0,VLOOKUP(D18,'Effort Calculator'!$A$8:$C$13,2,FALSE)*H19) -> 0 | K20: =IF(D18="Select Appointment Type",0,VLOOKUP(D18,'Effort Calculator'!$A$8:$C$13,2,FALSE)*K19) -> 0 | N20: =IF(D18="Select Appointment Type",0,VLOOKUP(D18,'Effort Calculator'!$A$8:$C$13,2,FALSE)*N19) -> 0 | Q20: =IF(D18="Select Appointment Type",0,VLOOKUP(D18,'Effort Calculator'!$A$8:$C$13,2,FALSE)*Q19) -> 0 | T20: =IF(D18="Select Appointment Type",0,VLOOKUP(D18,'Effort Calculator'!$A$8:$C$13,2,FALSE)*T19) -> 0 | W20: =IF(D18="Select Appointment Type",0,VLOOKUP(D18,'Effort Calculator'!$A$8:$C$13,2,FALSE)*W19) -> 0 | Z20: =IF(D18="Select Appointment Type",0,VLOOKUP(D18,'Effort Calculator'!$A$8:$C$13,2,FALSE)*Z19) -> 0 | AC20: =IF(D18="Select Appointment Type",0,VLOOKUP(D18,'Effort Calculator'!$A$8:$C$13,2,FALSE)*AC19) -> 0 | AF20: =IF(D18="Select Appointment Type",0,VLOOKUP(D18,'Effort Calculator'!$A$8:$C$13,2,FALSE)*AF19) -> 0 | AI20: =IF(D18="Select Appointment Type",0,VLOOKUP(D18,'Effort Calculator'!$A$8:$C$13,2,FALSE)*AI19) -> 0
E21: COLA | H21: 0 | K21: 0 | N21: 0 | Q21: 0 | T21: 0 | W21: 0 | Z21: 0 | AC21: 0 | AF21: 0 | AI21: 0
A22: Select Category | B22: =IF(A22="Select Category","N/A",HLOOKUP(A22,'Fringe Rates (Federal)'!$F$1:$S$2,2,FALSE)) -> N/A | C22: Enter Staff Name | D22: Select Appointment Type | E22: 0 | F22: =ROUND(IF(OR(A22="Select Category",D22="Select Appointment Type",$H$4="N/A"),0,IF(ISNUMBER(E22),(E22*H24/VLOOKUP(D22,'Effort Calculator'!$A$8:$C$14,3,FALSE)*(1+H25)),0)),0) -> 0 | G22: =IF($A$3=1,ROUND(IF(OR(A22="Select Category",D22="Select Appointment Type",$H$4="N/A"),0,(F22)*INDEX('Fringe Rates (Federal)'!$F$3:$S$19,MATCH($H$4,'Fringe Rates (Federal)'!$A$3:$A$19,0),MATCH(A22,FFR[[#Headers],[S&W Staff]:[S&W (Custom Fringe Rate)]],0))),0),ROUND(IF(OR(A22="Select Category",D22="Select Appointment Type",$H$4="N/A"),0,(F22)*INDEX('Fringe Rates (non-Federal)'!$F$3:$S$19,MATCH($H$4,'Fringe Rates (non-Federal)'!$A$3:$A$19,0),MATCH(A22,NFFR[[#Headers],[S&W Staff]:[S&W (Custom Fringe Rate)]],0))),0)) -> 0 | H22: =ROUND(SUM(F22:G22),0) -> 0 | I22: =ROUND(IF(OR(A22="Select Category",D22="Select Appointment Type",$K$4="N/A"),0,IF(ISNUMBER(E22),(E22*K24/VLOOKUP(D22,'Effort Calculator'!$A$8:$C$14,3,FALSE)*(1+H25)*(1+K25)),0)),0) -> 0 | J22: =IF($A$3=1,ROUND(IF(OR(A22="Select Category",D22="Select Appointment Type",$K$4="N/A"),0,(I22)*INDEX('Fringe Rates (Federal)'!$F$3:$S$19,MATCH($K$4,'Fringe Rates (Federal)'!$A$3:$A$19,0),MATCH(A22,FFR[[#Headers],[S&W Staff]:[S&W (Custom Fringe Rate)]],0))),0),ROUND(IF(OR(A22="Select Category",D22="Select Appointment Type",$K$4="N/A"),0,(I22)*INDEX('Fringe Rates (non-Federal)'!$F$3:$S$19,MATCH($K$4,'Fringe Rates (non-Federal)'!$A$3:$A$19,0),MATCH(A22,NFFR[[#Headers],[S&W Staff]:[S&W (Custom Fringe Rate)]],0))),0)) -> 0 | K22: =ROUND(SUM(I22:J22),0) -> 0 | L22: =ROUND(IF(OR(A22="Select Category",D22="Select Appointment Type",$N$4="N/A"),0,IF(ISNUMBER(E22),(E22*N24/VLOOKUP(D22,'Effort Calculator'!$A$8:$C$14,3,FALSE)*(1+H25)*(1+K25)*(1+N25)),0)),0) -> 0 | M22: =IF($A$3=1,ROUND(IF(OR(A22="Select Category",D22="Select Appointment Type",$N$4="N/A"),0,(L22)*INDEX('Fringe Rates (Federal)'!$F$3:$S$19,MATCH($N$4,'Fringe Rates (Federal)'!$A$3:$A$19,0),MATCH(A22,FFR[[#Headers],[S&W Staff]:[S&W (Custom Fringe Rate)]],0))),0),ROUND(IF(OR(A22="Select Category",D22="Select Appointment Type",$N$4="N/A"),0,(L22)*INDEX('Fringe Rates (non-Federal)'!$F$3:$S$19,MATCH($N$4,'Fringe Rates (non-Federal)'!$A$3:$A$19,0),MATCH(A22,NFFR[[#Headers],[S&W Staff]:[S&W (Custom Fringe Rate)]],0))),0)) -> 0 | N22: =ROUND(SUM(L22:M22),0) -> 0 | O22: =ROUND(IF(OR(A22="Select Category",D22="Select Appointment Type",$Q$4="N/A"),0,IF(ISNUMBER(E22),(E22*Q24/VLOOKUP(D22,'Effort Calculator'!$A$8:$C$14,3,FALSE)*(1+H25)*(1+K25)*(1+N25)*(1+Q25)),0)),0) -> 0 | P22: =IF($A$3=1,ROUND(IF(OR(A22="Select Category",D22="Select Appointment Type",$Q$4="N/A"),0,(O22)*INDEX('Fringe Rates (Federal)'!$F$3:$S$19,MATCH($Q$4,'Fringe Rates (Federal)'!$A$3:$A$19,0),MATCH(A22,FFR[[#Headers],[S&W Staff]:[S&W (Custom Fringe Rate)]],0))),0),ROUND(IF(OR(A22="Select Category",D22="Select Appointment Type",$Q$4="N/A"),0,(O22)*INDEX('Fringe Rates (non-Federal)'!$F$3:$S$19,MATCH($Q$4,'Fringe Rates (non-Federal)'!$A$3:$A$19,0),MATCH(A22,NFFR[[#Headers],[S&W Staff]:[S&W (Custom Fringe Rate)]],0))),0)) -> 0 | Q22: =ROUND(SUM(O22:P22),0) -> 0 | R22: =ROUND(IF(OR(A22="Select Category",D22="Select Appointment Type",$T$4="N/A"),0,IF(ISNUMBER(E22),(E22*T24/VLOOKUP(D22,'Effort Calculator'!$A$8:$C$14,3,FALSE)*(1+H25)*(1+K25)*(1+N25)*(1+Q25)*(1+T25)),0)),0) -> 0 | S22: =IF($A$3=1,ROUND(IF(OR(A22="Select Category",D22="Select Appointment Type",$T$4="N/A"),0,(R22)*INDEX('Fringe Rates (Federal)'!$F$3:$S$19,MATCH($T$4,'Fringe Rates (Federal)'!$A$3:$A$19,0),MATCH(A22,FFR[[#Headers],[S&W Staff]:[S&W (Custom Fringe Rate)]],0))),0),ROUND(IF(OR(A22="Select Category",D22="Select Appointment Type",$T$4="N/A"),0,(R22)*INDEX('Fringe Rates (non-Federal)'!$F$3:$S$19,MATCH($T$4,'Fringe Rates (non-Federal)'!$A$3:$A$19,0),MATCH(A22,NFFR[[#Headers],[S&W Staff]:[S&W (Custom Fringe Rate)]],0))),0)) -> 0 | T22: =ROUND(SUM(R22:S22),0) -> 0 | U22: =ROUND(IF(OR(A22="Select Category",D22="Select Appointment Type",$W$4="N/A"),0,IF(ISNUMBER(E22),(E22*W24/VLOOKUP(D22,'Effort Calculator'!$A$8:$C$14,3,FALSE)*(1+H25)*(1+K25)*(1+N25)*(1+Q25)*(1+T25)*(1+W25)),0)),0) -> 0 | V22: =IF($A$3=1,ROUND(IF(OR(A22="Select Category",D22="Select Appointment Type",$W$4="N/A"),0,(U22)*INDEX('Fringe Rates (Federal)'!$F$3:$S$19,MATCH($W$4,'Fringe Rates (Federal)'!$A$3:$A$19,0),MATCH(A22,FFR[[#Headers],[S&W Staff]:[S&W (Custom Fringe Rate)]],0))),0),ROUND(IF(OR(A22="Select Category",D22="Select Appointment Type",$W$4="N/A"),0,(U22)*INDEX('Fringe Rates (non-Federal)'!$F$3:$S$19,MATCH($W$4,'Fringe Rates (non-Federal)'!$A$3:$A$19,0),MATCH(A22,NFFR[[#Headers],[S&W Staff]:[S&W (Custom Fringe Rate)]],0))),0)) -> 0 | W22: =ROUND(SUM(U22:V22),0) -> 0 | X22: =ROUND(IF(OR(A22="Select Category",D22="Select Appointment Type",$Z$4="N/A"),0,IF(ISNUMBER(E22),(E22*Z24/VLOOKUP(D22,'Effort Calculator'!$A$8:$C$14,3,FALSE)*(1+H25)*(1+K25)*(1+N25)*(1+Q25)*(1+T25)*(1+W25)*(1+Z25)),0)),0) -> 0 | Y22: =IF($A$3=1,ROUND(IF(OR(A22="Select Category",D22="Select Appointment Type",$Z$4="N/A"),0,(X22)*INDEX('Fringe Rates (Federal)'!$F$3:$S$19,MATCH($Z$4,'Fringe Rates (Federal)'!$A$3:$A$19,0),MATCH(A22,FFR[[#Headers],[S&W Staff]:[S&W (Custom Fringe Rate)]],0))),0),ROUND(IF(OR(A22="Select Category",D22="Select Appointment Type",$Z$4="N/A"),0,(X22)*INDEX('Fringe Rates (non-Federal)'!$F$3:$S$19,MATCH($Z$4,'Fringe Rates (non-Federal)'!$A$3:$A$19,0),MATCH(A22,NFFR[[#Headers],[S&W Staff]:[S&W (Custom Fringe Rate)]],0))),0)) -> 0 | Z22: =ROUND(SUM(X22:Y22),0) -> 0 | AA22: =ROUND(IF(OR(A22="Select Category",D22="Select Appointment Type",$AC$4="N/A"),0,IF(ISNUMBER(E22),(E22*AC24/VLOOKUP(D22,'Effort Calculator'!$A$8:$C$14,3,FALSE)*(1+H25)*(1+K25)*(1+N25)*(1+Q25)*(1+T25)*(1+W25)*(1+Z25)*(1+AC25)),0)),0) -> 0 | AB22: =IF($A$3=1,ROUND(IF(OR(A22="Select Category",D22="Select Appointment Type",$AC$4="N/A"),0,(AA22)*INDEX('Fringe Rates (Federal)'!$F$3:$S$19,MATCH($AC$4,'Fringe Rates (Federal)'!$A$3:$A$19,0),MATCH(A22,FFR[[#Headers],[S&W Staff]:[S&W (Custom Fringe Rate)]],0))),0),ROUND(IF(OR(A22="Select Category",D22="Select Appointment Type",$AC$4="N/A"),0,(AA22)*INDEX('Fringe Rates (non-Federal)'!$F$3:$S$19,MATCH($AC$4,'Fringe Rates (non-Federal)'!$A$3:$A$19,0),MATCH(A22,NFFR[[#Headers],[S&W Staff]:[S&W (Custom Fringe Rate)]],0))),0)) -> 0 | AC22: =ROUND(SUM(AA22:AB22),0) -> 0 | AD22: =ROUND(IF(OR(A22="Select Category",D22="Select Appointment Type",$AF$4="N/A"),0,IF(ISNUMBER(E22),(E22*AF24/VLOOKUP(D22,'Effort Calculator'!$A$8:$C$14,3,FALSE)*(1+H25)*(1+K25)*(1+N25)*(1+Q25)*(1+T25)*(1+W25)*(1+Z25)*(1+AC25)*(1+AF25)),0)),0) -> 0 | AE22: =IF($A$3=1,ROUND(IF(OR(A22="Select Category",D22="Select Appointment Type",$AF$4="N/A"),0,(AD22)*INDEX('Fringe Rates (Federal)'!$F$3:$S$19,MATCH($AF$4,'Fringe Rates (Federal)'!$A$3:$A$19,0),MATCH(A22,FFR[[#Headers],[S&W Staff]:[S&W (Custom Fringe Rate)]],0))),0),ROUND(IF(OR(A22="Select Category",D22="Select Appointment Type",$AF$4="N/A"),0,(AD22)*INDEX('Fringe Rates (non-Federal)'!$F$3:$S$19,MATCH($AF$4,'Fringe Rates (non-Federal)'!$A$3:$A$19,0),MATCH(A22,NFFR[[#Headers],[S&W Staff]:[S&W (Custom Fringe Rate)]],0))),0)) -> 0 | AF22: =ROUND(SUM(AD22:AE22),0) -> 0 | AG22: =ROUND(IF(OR(A22="Select Category",D22="Select Appointment Type",$AI$4="N/A"),0,IF(ISNUMBER(E22),(E22*AI24/VLOOKUP(D22,'Effort Calculator'!$A$8:$C$14,3,FALSE)*(1+H25)*(1+K25)*(1+N25)*(1+Q25)*(1+T25)*(1+W25)*(1+Z25)*(1+AC25)*(1+AF25)*(1+AI25)),0)),0) -> 0 | AH22: =IF($A$3=1,ROUND(IF(OR(A22="Select Category",D22="Select Appointment Type",$AI$4="N/A"),0,(AG22)*INDEX('Fringe Rates (Federal)'!$F$3:$S$19,MATCH($AI$4,'Fringe Rates (Federal)'!$A$3:$A$19,0),MATCH(A22,FFR[[#Headers],[S&W Staff]:[S&W (Custom Fringe Rate)]],0))),0),ROUND(IF(OR(A22="Select Category",D22="Select Appointment Type",$AI$4="N/A"),0,(AG22)*INDEX('Fringe Rates (non-Federal)'!$F$3:$S$19,MATCH($AI$4,'Fringe Rates (non-Federal)'!$A$3:$A$19,0),MATCH(A22,NFFR[[#Headers],[S&W Staff]:[S&W (Custom Fringe Rate)]],0))),0)) -> 0 | AI22: =ROUND(SUM(AG22:AH22),0) -> 0 | AJ22: =ROUND(SUM(F22,I22,L22,O22,R22,U22,X22,AA22,AD22,AG22),0) -> 0 | AK22: =ROUND(SUM(G22,J22,M22,P22,S22,V22,Y22,AB22,AE22,AH22),0) -> 0 | AL22: =ROUND(SUM(AJ22:AK22),0) -> 0
E23: Effort | H23: 0 | K23: 0 | N23: 0 | Q23: 0 | T23: 0 | W23: 0 | Z23: 0 | AC23: 0 | AF23: 0 | AI23: 0
E24: Person Months | H24: =IF(D22="Select Appointment Type",0,VLOOKUP(D22,'Effort Calculator'!$A$8:$C$13,2,FALSE)*H23) -> 0 | K24: =IF(D22="Select Appointment Type",0,VLOOKUP(D22,'Effort Calculator'!$A$8:$C$13,2,FALSE)*K23) -> 0 | N24: =IF(D22="Select Appointment Type",0,VLOOKUP(D22,'Effort Calculator'!$A$8:$C$13,2,FALSE)*N23) -> 0 | Q24: =IF(D22="Select Appointment Type",0,VLOOKUP(D22,'Effort Calculator'!$A$8:$C$13,2,FALSE)*Q23) -> 0 | T24: =IF(D22="Select Appointment Type",0,VLOOKUP(D22,'Effort Calculator'!$A$8:$C$13,2,FALSE)*T23) -> 0 | W24: =IF(D22="Select Appointment Type",0,VLOOKUP(D22,'Effort Calculator'!$A$8:$C$13,2,FALSE)*W23) -> 0 | Z24: =IF(D22="Select Appointment Type",0,VLOOKUP(D22,'Effort Calculator'!$A$8:$C$13,2,FALSE)*Z23) -> 0 | AC24: =IF(D22="Select Appointment Type",0,VLOOKUP(D22,'Effort Calculator'!$A$8:$C$13,2,FALSE)*AC23) -> 0 | AF24: =IF(D22="Select Appointment Type",0,VLOOKUP(D22,'Effort Calculator'!$A$8:$C$13,2,FALSE)*AF23) -> 0 | AI24: =IF(D22="Select Appointment Type",0,VLOOKUP(D22,'Effort Calculator'!$A$8:$C$13,2,FALSE)*AI23) -> 0
E25: COLA | H25: 0 | K25: 0 | N25: 0 | Q25: 0 | T25: 0 | W25: 0 | Z25: 0 | AC25: 0 | AF25: 0 | AI25: 0
A26: =ROW() -> 26
D27: Total Salaries & Wages | F27: =IF($H$4="N/A",0,ROUND(SUMPRODUCT(--(ISNUMBER($AL$6:$AL$26)),F6:F26),0)) -> 0 | G27: =IF($H$4="N/A",0,ROUND(SUMPRODUCT(--(ISNUMBER($AL$6:$AL$26)),G6:G26),0)) -> 0 | H27: =IF($H$4="N/A",0,ROUND(SUMPRODUCT(--(ISNUMBER($AL$6:$AL$26)),H6:H26),0)) -> 0 | I27: =IF($K$4="N/A",0,ROUND(SUMPRODUCT(--(ISNUMBER($AL$6:$AL$26)),I6:I26),0)) -> 0 | J27: =IF($K$4="N/A",0,ROUND(SUMPRODUCT(--(ISNUMBER($AL$6:$AL$26)),J6:J26),0)) -> 0 | K27: =IF($K$4="N/A",0,ROUND(SUMPRODUCT(--(ISNUMBER($AL$6:$AL$26)),K6:K26),0)) -> 0 | L27: =IF($N$4="N/A",0,ROUND(SUMPRODUCT(--(ISNUMBER($AL$6:$AL$26)),L6:L26),0)) -> 0 | M27: =IF($N$4="N/A",0,ROUND(SUMPRODUCT(--(ISNUMBER($AL$6:$AL$26)),M6:M26),0)) -> 0 | N27: =IF($N$4="N/A",0,ROUND(SUMPRODUCT(--(ISNUMBER($AL$6:$AL$26)),N6:N26),0)) -> 0 | O27: =IF($Q$4="N/A",0,ROUND(SUMPRODUCT(--(ISNUMBER($AL$6:$AL$26)),O6:O26),0)) -> 0 | P27: =IF($Q$4="N/A",0,ROUND(SUMPRODUCT(--(ISNUMBER($AL$6:$AL$26)),P6:P26),0)) -> 0 | Q27: =IF($Q$4="N/A",0,ROUND(SUMPRODUCT(--(ISNUMBER($AL$6:$AL$26)),Q6:Q26),0)) -> 0 | R27: =IF($T$4="N/A",0,ROUND(SUMPRODUCT(--(ISNUMBER($AL$6:$AL$26)),R6:R26),0)) -> 0 | S27: =IF($T$4="N/A",0,ROUND(SUMPRODUCT(--(ISNUMBER($AL$6:$AL$26)),S6:S26),0)) -> 0 | T27: =IF($T$4="N/A",0,ROUND(SUMPRODUCT(--(ISNUMBER($AL$6:$AL$26)),T6:T26),0)) -> 0 | U27: =IF($W$4="N/A",0,ROUND(SUMPRODUCT(--(ISNUMBER($AL$6:$AL$26)),U6:U26),0)) -> 0 | V27: =IF($W$4="N/A",0,ROUND(SUMPRODUCT(--(ISNUMBER($AL$6:$AL$26)),V6:V26),0)) -> 0 | W27: =IF($W$4="N/A",0,ROUND(SUMPRODUCT(--(ISNUMBER($AL$6:$AL$26)),W6:W26),0)) -> 0 | X27: =IF($Z$4="N/A",0,ROUND(SUMPRODUCT(--(ISNUMBER($AL$6:$AL$26)),X6:X26),0)) -> 0 | Y27: =IF($Z$4="N/A",0,ROUND(SUMPRODUCT(--(ISNUMBER($AL$6:$AL$26)),Y6:Y26),0)) -> 0 | Z27: =IF($Z$4="N/A",0,ROUND(SUMPRODUCT(--(ISNUMBER($AL$6:$AL$26)),Z6:Z26),0)) -> 0 | AA27: =IF($AC$4="N/A",0,ROUND(SUMPRODUCT(--(ISNUMBER($AL$6:$AL$26)),AA6:AA26),0)) -> 0 | AB27: =IF($AC$4="N/A",0,ROUND(SUMPRODUCT(--(ISNUMBER($AL$6:$AL$26)),AB6:AB26),0)) -> 0 | AC27: =IF($AC$4="N/A",0,ROUND(SUMPRODUCT(--(ISNUMBER($AL$6:$AL$26)),AC6:AC26),0)) -> 0 | AD27: =IF($AF$4="N/A",0,ROUND(SUMPRODUCT(--(ISNUMBER($AL$6:$AL$26)),AD6:AD26),0)) -> 0 | AE27: =IF($AF$4="N/A",0,ROUND(SUMPRODUCT(--(ISNUMBER($AL$6:$AL$26)),AE6:AE26),0)) -> 0 | AF27: =IF($AF$4="N/A",0,ROUND(SUMPRODUCT(--(ISNUMBER($AL$6:$AL$26)),AF6:AF26),0)) -> 0 | AG27: =IF($AI$4="N/A",0,ROUND(SUMPRODUCT(--(ISNUMBER($AL$6:$AL$26)),AG6:AG26),0)) -> 0 | AH27: =IF($AI$4="N/A",0,ROUND(SUMPRODUCT(--(ISNUMBER($AL$6:$AL$26)),AH6:AH26),0)) -> 0 | AI27: =IF($AI$4="N/A",0,ROUND(SUMPRODUCT(--(ISNUMBER($AL$6:$AL$26)),AI6:AI26),0)) -> 0 | AJ27: =ROUND(SUMPRODUCT(--(ISNUMBER($AL$6:$AL$26)),AJ6:AJ26),0) -> 0 | AK27: =ROUND(SUMPRODUCT(--(ISNUMBER($AL$6:$AL$26)),AK6:AK26),0) -> 0 | AL27: =ROUND(SUMPRODUCT(--(ISNUMBER($AL$6:$AL$26)),AL6:AL26),0) -> 0
G29: =G3 -> Budget Period 1 | J29: =J3 -> Budget Period 2 | M29: =M3 -> Budget Period 3 | P29: =P3 -> Budget Period 4 | S29: =S3 -> Budget Period 5 | V29: =V3 -> Budget Period 6 | Y29: =Y3 -> Budget Period 7 | AB29: =AB3 -> Budget Period 8 | AE29: =AE3 -> Budget Period 9 | AH29: =AH3 -> Budget Period 10 | AK29: =AK4 -> Grand Total
F30: =F5 -> Salary | G30: =G5 -> Fringe | H30: =H5 -> Total | I30: =I5 -> Salary | J30: =J5 -> Fringe | K30: Total | L30: =L5 -> Salary | M30: Fringe | N30: Total | O30: Salary | P30: Fringe | Q30: Total | R30: Salary | S30: Fringe | T30: Total | U30: Salary | V30: Fringe | W30: Total | X30: Salary | Y30: Fringe | Z30: Total | AA30: Salary | AB30: Fringe | AC30: Total | AD30: Salary | AE30: Fringe | AF30: Total | AG30: Salary | AH30: Fringe | AI30: Total | AJ30: Salary | AK30: =AK5 -> Fringe | AL30: =AL5 -> Grand Total
A31: ='Fringe Rates (Federal)'!F1 -> S&W Staff | E31: =HLOOKUP(A31,'Fringe Rates (Federal)'!$F$1:$R$2,2,FALSE) -> 50010 | F31: =ROUND(SUMPRODUCT(--(ISNUMBER($AL$6:$AL$26)),($A$6:$A$26=$A$31)*$F$6:$F$26),0) -> 0 | G31: =ROUND(SUMPRODUCT(--(ISNUMBER($AL$6:$AL$26)),($A$6:$A$26=$A$31)*$G$6:$G$26),0) -> 0 | H31: =ROUND(SUMPRODUCT(--(ISNUMBER($AL$6:$AL$26)),($A$6:$A$26=$A$31)*$H$6:$H$26),0) -> 0 | I31: =ROUND(SUMPRODUCT(--(ISNUMBER($AL$6:$AL$26)),($A$6:$A$26=$A$31)*$I$6:$I$26),0) -> 0 | J31: =ROUND(SUMPRODUCT(--(ISNUMBER($AL$6:$AL$26)),($A$6:$A$26=$A$31)*$J$6:$J$26),0) -> 0 | K31: =ROUND(SUMPRODUCT(--(ISNUMBER($AL$6:$AL$26)),($A$6:$A$26=$A$31)*$K$6:$K$26),0) -> 0 | L31: =ROUND(SUMPRODUCT(--(ISNUMBER($AL$6:$AL$26)),($A$6:$A$26=$A$31)*$L$6:$L$26),0) -> 0 | M31: =ROUND(SUMPRODUCT(--(ISNUMBER($AL$6:$AL$26)),($A$6:$A$26=$A$31)*$M$6:$M$26),0) -> 0 | N31: =ROUND(SUMPRODUCT(--(ISNUMBER($AL$6:$AL$26)),($A$6:$A$26=$A$31)*$N$6:$N$26),0) -> 0 | O31: =ROUND(SUMPRODUCT(--(ISNUMBER($AL$6:$AL$26)),($A$6:$A$26=$A$31)*$O$6:$O$26),0) -> 0 | P31: =ROUND(SUMPRODUCT(--(ISNUMBER($AL$6:$AL$26)),($A$6:$A$26=$A$31)*$P$6:$P$26),0) -> 0 | Q31: =ROUND(SUMPRODUCT(--(ISNUMBER($AL$6:$AL$26)),($A$6:$A$26=$A$31)*$Q$6:$Q$26),0) -> 0 | R31: =ROUND(SUMPRODUCT(--(ISNUMBER($AL$6:$AL$26)),($A$6:$A$26=$A$31)*$R$6:$R$26),0) -> 0 | S31: =ROUND(SUMPRODUCT(--(ISNUMBER($AL$6:$AL$26)),($A$6:$A$26=$A$31)*$S$6:$S$26),0) -> 0 | T31: =ROUND(SUMPRODUCT(--(ISNUMBER($AL$6:$AL$26)),($A$6:$A$26=$A$31)*$T$6:$T$26),0) -> 0 | U31: =ROUND(SUMPRODUCT(--(ISNUMBER($AL$6:$AL$26)),($A$6:$A$26=$A$31)*$U$6:$U$26),0) -> 0 | V31: =ROUND(SUMPRODUCT(--(ISNUMBER($AL$6:$AL$26)),($A$6:$A$26=$A$31)*$V$6:$V$26),0) -> 0 | W31: =ROUND(SUMPRODUCT(--(ISNUMBER($AL$6:$AL$26)),($A$6:$A$26=$A$31)*$W$6:$W$26),0) -> 0 | X31: =ROUND(SUMPRODUCT(--(ISNUMBER($AL$6:$AL$26)),($A$6:$A$26=$A$31)*$X$6:$X$26),0) -> 0 | Y31: =ROUND(SUMPRODUCT(--(ISNUMBER($AL$6:$AL$26)),($A$6:$A$26=$A$31)*$Y$6:$Y$26),0) -> 0 | Z31: =ROUND(SUMPRODUCT(--(ISNUMBER($AL$6:$AL$26)),($A$6:$A$26=$A$31)*$Z$6:$Z$26),0) -> 0 | AA31: =ROUND(SUMPRODUCT(--(ISNUMBER($AL$6:$AL$26)),($A$6:$A$26=$A$31)*$AA$6:$AA$26),0) -> 0 | AB31: =ROUND(SUMPRODUCT(--(ISNUMBER($AL$6:$AL$26)),($A$6:$A$26=$A$31)*$AB$6:$AB$26),0) -> 0 | AC31: =ROUND(SUMPRODUCT(--(ISNUMBER($AL$6:$AL$26)),($A$6:$A$26=$A$31)*$AC$6:$AC$26),0) -> 0 | AD31: =ROUND(SUMPRODUCT(--(ISNUMBER($AL$6:$AL$26)),($A$6:$A$26=$A$31)*$AD$6:$AD$26),0) -> 0 | AE31: =ROUND(SUMPRODUCT(--(ISNUMBER($AL$6:$AL$26)),($A$6:$A$26=$A$31)*$AE$6:$AE$26),0) -> 0 | AF31: =ROUND(SUMPRODUCT(--(ISNUMBER($AL$6:$AL$26)),($A$6:$A$26=$A$31)*$AF$6:$AF$26),0) -> 0 | AG31: =ROUND(SUMPRODUCT(--(ISNUMBER($AL$6:$AL$26)),($A$6:$A$26=$A$31)*$AG$6:$AG$26),0) -> 0 | AH31: =ROUND(SUMPRODUCT(--(ISNUMBER($AL$6:$AL$26)),($A$6:$A$26=$A$31)*$AH$6:$AH$26),0) -> 0 | AI31: =ROUND(SUMPRODUCT(--(ISNUMBER($AL$6:$AL$26)),($A$6:$A$26=$A$31)*$AI$6:$AI$26),0) -> 0 | AJ31: =ROUND(SUMPRODUCT(--(ISNUMBER($AL$6:$AL$26)),($A$6:$A$26=$A$31)*$AJ$6:$AJ$26),0) -> 0 | AK31: =ROUND(SUMPRODUCT(--(ISNUMBER($AL$6:$AL$26)),($A$6:$A$26=$A$31)*$AK$6:$AK$26),0) -> 0 | AL31: =ROUND(SUMPRODUCT(--(ISNUMBER($AL$6:$AL$26)),($A$6:$A$26=$A$31)*$AL$6:$AL$26),0) -> 0
A32: ='Fringe Rates (Federal)'!G1 -> S&W Faculty | E32: =HLOOKUP(A32,'Fringe Rates (Federal)'!$F$1:$R$2,2,FALSE) -> 50020 | F32: =ROUND(SUMPRODUCT(--(ISNUMBER($AL$6:$AL$26)),($A$6:$A$26=$A$32)*$F$6:$F$26),0) -> 0 | G32: =ROUND(SUMPRODUCT(--(ISNUMBER($AL$6:$AL$26)),($A$6:$A$26=$A$32)*$G$6:$G$26),0) -> 0 | H32: =ROUND(SUMPRODUCT(--(ISNUMBER($AL$6:$AL$26)),($A$6:$A$26=$A$32)*$H$6:$H$26),0) -> 0 | I32: =ROUND(SUMPRODUCT(--(ISNUMBER($AL$6:$AL$26)),($A$6:$A$26=$A$32)*$I$6:$I$26),0) -> 0 | J32: =ROUND(SUMPRODUCT(--(ISNUMBER($AL$6:$AL$26)),($A$6:$A$26=$A$32)*$J$6:$J$26),0) -> 0 | K32: =ROUND(SUMPRODUCT(--(ISNUMBER($AL$6:$AL$26)),($A$6:$A$26=$A$32)*$K$6:$K$26),0) -> 0 | L32: =ROUND(SUMPRODUCT(--(ISNUMBER($AL$6:$AL$26)),($A$6:$A$26=$A$32)*$L$6:$L$26),0) -> 0 | M32: =ROUND(SUMPRODUCT(--(ISNUMBER($AL$6:$AL$26)),($A$6:$A$26=$A$32)*$M$6:$M$26),0) -> 0 | N32: =ROUND(SUMPRODUCT(--(ISNUMBER($AL$6:$AL$26)),($A$6:$A$26=$A$32)*$N$6:$N$26),0) -> 0 | O32: =ROUND(SUMPRODUCT(--(ISNUMBER($AL$6:$AL$26)),($A$6:$A$26=$A$32)*$O$6:$O$26),0) -> 0 | P32: =ROUND(SUMPRODUCT(--(ISNUMBER($AL$6:$AL$26)),($A$6:$A$26=$A$32)*$P$6:$P$26),0) -> 0 | Q32: =ROUND(SUMPRODUCT(--(ISNUMBER($AL$6:$AL$26)),($A$6:$A$26=$A$32)*$Q$6:$Q$26),0) -> 0 | R32: =ROUND(SUMPRODUCT(--(ISNUMBER($AL$6:$AL$26)),($A$6:$A$26=$A$32)*$R$6:$R$26),0) -> 0 | S32: =ROUND(SUMPRODUCT(--(ISNUMBER($AL$6:$AL$26)),($A$6:$A$26=$A$32)*$S$6:$S$26),0) -> 0 | T32: =ROUND(SUMPRODUCT(--(ISNUMBER($AL$6:$AL$26)),($A$6:$A$26=$A$32)*$T$6:$T$26),0) -> 0 | U32: =ROUND(SUMPRODUCT(--(ISNUMBER($AL$6:$AL$26)),($A$6:$A$26=$A$32)*$U$6:$U$26),0) -> 0 | V32: =ROUND(SUMPRODUCT(--(ISNUMBER($AL$6:$AL$26)),($A$6:$A$26=$A$32)*$V$6:$V$26),0) -> 0 | W32: =ROUND(SUMPRODUCT(--(ISNUMBER($AL$6:$AL$26)),($A$6:$A$26=$A$32)*$W$6:$W$26),0) -> 0 | X32: =ROUND(SUMPRODUCT(--(ISNUMBER($AL$6:$AL$26)),($A$6:$A$26=$A$32)*$X$6:$X$26),0) -> 0 | Y32: =ROUND(SUMPRODUCT(--(ISNUMBER($AL$6:$AL$26)),($A$6:$A$26=$A$32)*$Y$6:$Y$26),0) -> 0 | Z32: =ROUND(SUMPRODUCT(--(ISNUMBER($AL$6:$AL$26)),($A$6:$A$26=$A$32)*$Z$6:$Z$26),0) -> 0 | AA32: =ROUND(SUMPRODUCT(--(ISNUMBER($AL$6:$AL$26)),($A$6:$A$26=$A$32)*$AA$6:$AA$26),0) -> 0 | AB32: =ROUND(SUMPRODUCT(--(ISNUMBER($AL$6:$AL$26)),($A$6:$A$26=$A$32)*$AB$6:$AB$26),0) -> 0 | AC32: =ROUND(SUMPRODUCT(--(ISNUMBER($AL$6:$AL$26)),($A$6:$A$26=$A$32)*$AC$6:$AC$26),0) -> 0 | AD32: =ROUND(SUMPRODUCT(--(ISNUMBER($AL$6:$AL$26)),($A$6:$A$26=$A$32)*$AD$6:$AD$26),0) -> 0 | AE32: =ROUND(SUMPRODUCT(--(ISNUMBER($AL$6:$AL$26)),($A$6:$A$26=$A$32)*$AE$6:$AE$26),0) -> 0 | AF32: =ROUND(SUMPRODUCT(--(ISNUMBER($AL$6:$AL$26)),($A$6:$A$26=$A$32)*$AF$6:$AF$26),0) -> 0 | AG32: =ROUND(SUMPRODUCT(--(ISNUMBER($AL$6:$AL$26)),($A$6:$A$26=$A$32)*$AG$6:$AG$26),0) -> 0 | AH32: =ROUND(SUMPRODUCT(--(ISNUMBER($AL$6:$AL$26)),($A$6:$A$26=$A$32)*$AH$6:$AH$26),0) -> 0 | AI32: =ROUND(SUMPRODUCT(--(ISNUMBER($AL$6:$AL$26)),($A$6:$A$26=$A$32)*$AI$6:$AI$26),0) -> 0 | AJ32: =ROUND(SUMPRODUCT(--(ISNUMBER($AL$6:$AL$26)),($A$6:$A$26=$A$32)*$AJ$6:$AJ$26),0) -> 0 | AK32: =ROUND(SUMPRODUCT(--(ISNUMBER($AL$6:$AL$26)),($A$6:$A$26=$A$32)*$AK$6:$AK$26),0) -> 0 | AL32: =ROUND(SUMPRODUCT(--(ISNUMBER($AL$6:$AL$26)),($A$6:$A$26=$A$32)*$AL$6:$AL$26),0) -> 0
A33: ='Fringe Rates (Federal)'!H1 -> S&W TA & GA | E33: =HLOOKUP(A33,'Fringe Rates (Federal)'!$F$1:$R$2,2,FALSE) -> 50050 | F33: =ROUND(SUMPRODUCT(--(ISNUMBER($AL$6:$AL$26)),($A$6:$A$26=$A$33)*$F$6:$F$26),0) -> 0 | G33: =ROUND(SUMPRODUCT(--(ISNUMBER($AL$6:$AL$26)),($A$6:$A$26=$A$33)*$G$6:$G$26),0) -> 0 | H33: =ROUND(SUMPRODUCT(--(ISNUMBER($AL$6:$AL$26)),($A$6:$A$26=$A$33)*$H$6:$H$26),0) -> 0 | I33: =ROUND(SUMPRODUCT(--(ISNUMBER($AL$6:$AL$26)),($A$6:$A$26=$A$33)*$I$6:$I$26),0) -> 0 | J33: =ROUND(SUMPRODUCT(--(ISNUMBER($AL$6:$AL$26)),($A$6:$A$26=$A$33)*$J$6:$J$26),0) -> 0 | K33: =ROUND(SUMPRODUCT(--(ISNUMBER($AL$6:$AL$26)),($A$6:$A$26=$A$33)*$K$6:$K$26),0) -> 0 | L33: =ROUND(SUMPRODUCT(--(ISNUMBER($AL$6:$AL$26)),($A$6:$A$26=$A$33)*$L$6:$L$26),0) -> 0 | M33: =ROUND(SUMPRODUCT(--(ISNUMBER($AL$6:$AL$26)),($A$6:$A$26=$A$33)*$M$6:$M$26),0) -> 0 | N33: =ROUND(SUMPRODUCT(--(ISNUMBER($AL$6:$AL$26)),($A$6:$A$26=$A$33)*$N$6:$N$26),0) -> 0 | O33: =ROUND(SUMPRODUCT(--(ISNUMBER($AL$6:$AL$26)),($A$6:$A$26=$A$33)*$O$6:$O$26),0) -> 0 | P33: =ROUND(SUMPRODUCT(--(ISNUMBER($AL$6:$AL$26)),($A$6:$A$26=$A$33)*$P$6:$P$26),0) -> 0 | Q33: =ROUND(SUMPRODUCT(--(ISNUMBER($AL$6:$AL$26)),($A$6:$A$26=$A$33)*$Q$6:$Q$26),0) -> 0 | R33: =ROUND(SUMPRODUCT(--(ISNUMBER($AL$6:$AL$26)),($A$6:$A$26=$A$33)*$R$6:$R$26),0) -> 0 | S33: =ROUND(SUMPRODUCT(--(ISNUMBER($AL$6:$AL$26)),($A$6:$A$26=$A$33)*$S$6:$S$26),0) -> 0 | T33: =ROUND(SUMPRODUCT(--(ISNUMBER($AL$6:$AL$26)),($A$6:$A$26=$A$33)*$T$6:$T$26),0) -> 0 | U33: =ROUND(SUMPRODUCT(--(ISNUMBER($AL$6:$AL$26)),($A$6:$A$26=$A$33)*$U$6:$U$26),0) -> 0 | V33: =ROUND(SUMPRODUCT(--(ISNUMBER($AL$6:$AL$26)),($A$6:$A$26=$A$33)*$V$6:$V$26),0) -> 0 | W33: =ROUND(SUMPRODUCT(--(ISNUMBER($AL$6:$AL$26)),($A$6:$A$26=$A$33)*$W$6:$W$26),0) -> 0 | X33: =ROUND(SUMPRODUCT(--(ISNUMBER($AL$6:$AL$26)),($A$6:$A$26=$A$33)*$X$6:$X$26),0) -> 0 | Y33: =ROUND(SUMPRODUCT(--(ISNUMBER($AL$6:$AL$26)),($A$6:$A$26=$A$33)*$Y$6:$Y$26),0) -> 0 | Z33: =ROUND(SUMPRODUCT(--(ISNUMBER($AL$6:$AL$26)),($A$6:$A$26=$A$33)*$Z$6:$Z$26),0) -> 0 | AA33: =ROUND(SUMPRODUCT(--(ISNUMBER($AL$6:$AL$26)),($A$6:$A$26=$A$33)*$AA$6:$AA$26),0) -> 0 | AB33: =ROUND(SUMPRODUCT(--(ISNUMBER($AL$6:$AL$26)),($A$6:$A$26=$A$33)*$AB$6:$AB$26),0) -> 0 | AC33: =ROUND(SUMPRODUCT(--(ISNUMBER($AL$6:$AL$26)),($A$6:$A$26=$A$33)*$AC$6:$AC$26),0) -> 0 | AD33: =ROUND(SUMPRODUCT(--(ISNUMBER($AL$6:$AL$26)),($A$6:$A$26=$A$33)*$AD$6:$AD$26),0) -> 0 | AE33: =ROUND(SUMPRODUCT(--(ISNUMBER($AL$6:$AL$26)),($A$6:$A$26=$A$33)*$AE$6:$AE$26),0) -> 0 | AF33: =ROUND(SUMPRODUCT(--(ISNUMBER($AL$6:$AL$26)),($A$6:$A$26=$A$33)*$AF$6:$AF$26),0) -> 0 | AG33: =ROUND(SUMPRODUCT(--(ISNUMBER($AL$6:$AL$26)),($A$6:$A$26=$A$33)*$AG$6:$AG$26),0) -> 0 | AH33: =ROUND(SUMPRODUCT(--(ISNUMBER($AL$6:$AL$26)),($A$6:$A$26=$A$33)*$AH$6:$AH$26),0) -> 0 | AI33: =ROUND(SUMPRODUCT(--(ISNUMBER($AL$6:$AL$26)),($A$6:$A$26=$A$33)*$AI$6:$AI$26),0) -> 0 | AJ33: =ROUND(SUMPRODUCT(--(ISNUMBER($AL$6:$AL$26)),($A$6:$A$26=$A$33)*$AJ$6:$AJ$26),0) -> 0 | AK33: =ROUND(SUMPRODUCT(--(ISNUMBER($AL$6:$AL$26)),($A$6:$A$26=$A$33)*$AK$6:$AK$26),0) -> 0 | AL33: =ROUND(SUMPRODUCT(--(ISNUMBER($AL$6:$AL$26)),($A$6:$A$26=$A$33)*$AL$6:$AL$26),0) -> 0
A34: ='Fringe Rates (Federal)'!I1 -> S&W Post Doctorate & Associates | E34: =HLOOKUP(A34,'Fringe Rates (Federal)'!$F$1:$R$2,2,FALSE) -> 50060 | F34: =ROUND(SUMPRODUCT(--(ISNUMBER($AL$6:$AL$26)),($A$6:$A$26=$A$34)*$F$6:$F$26),0) -> 0 | G34: =ROUND(SUMPRODUCT(--(ISNUMBER($AL$6:$AL$26)),($A$6:$A$26=$A$34)*$G$6:$G$26),0) -> 0 | H34: =ROUND(SUMPRODUCT(--(ISNUMBER($AL$6:$AL$26)),($A$6:$A$26=$A$34)*$H$6:$H$26),0) -> 0 | I34: =ROUND(SUMPRODUCT(--(ISNUMBER($AL$6:$AL$26)),($A$6:$A$26=$A$34)*$I$6:$I$26),0) -> 0 | J34: =ROUND(SUMPRODUCT(--(ISNUMBER($AL$6:$AL$26)),($A$6:$A$26=$A$34)*$J$6:$J$26),0) -> 0 | K34: =ROUND(SUMPRODUCT(--(ISNUMBER($AL$6:$AL$26)),($A$6:$A$26=$A$34)*$K$6:$K$26),0) -> 0 | L34: =ROUND(SUMPRODUCT(--(ISNUMBER($AL$6:$AL$26)),($A$6:$A$26=$A$34)*$L$6:$L$26),0) -> 0 | M34: =ROUND(SUMPRODUCT(--(ISNUMBER($AL$6:$AL$26)),($A$6:$A$26=$A$34)*$M$6:$M$26),0) -> 0 | N34: =ROUND(SUMPRODUCT(--(ISNUMBER($AL$6:$AL$26)),($A$6:$A$26=$A$34)*$N$6:$N$26),0) -> 0 | O34: =ROUND(SUMPRODUCT(--(ISNUMBER($AL$6:$AL$26)),($A$6:$A$26=$A$34)*$O$6:$O$26),0) -> 0 | P34: =ROUND(SUMPRODUCT(--(ISNUMBER($AL$6:$AL$26)),($A$6:$A$26=$A$34)*$P$6:$P$26),0) -> 0 | Q34: =ROUND(SUMPRODUCT(--(ISNUMBER($AL$6:$AL$26)),($A$6:$A$26=$A$34)*$Q$6:$Q$26),0) -> 0 | R34: =ROUND(SUMPRODUCT(--(ISNUMBER($AL$6:$AL$26)),($A$6:$A$26=$A$34)*$R$6:$R$26),0) -> 0 | S34: =ROUND(SUMPRODUCT(--(ISNUMBER($AL$6:$AL$26)),($A$6:$A$26=$A$34)*$S$6:$S$26),0) -> 0 | T34: =ROUND(SUMPRODUCT(--(ISNUMBER($AL$6:$AL$26)),($A$6:$A$26=$A$34)*$T$6:$T$26),0) -> 0 | U34: =ROUND(SUMPRODUCT(--(ISNUMBER($AL$6:$AL$26)),($A$6:$A$26=$A$34)*$U$6:$U$26),0) -> 0 | V34: =ROUND(SUMPRODUCT(--(ISNUMBER($AL$6:$AL$26)),($A$6:$A$26=$A$34)*$V$6:$V$26),0) -> 0 | W34: =ROUND(SUMPRODUCT(--(ISNUMBER($AL$6:$AL$26)),($A$6:$A$26=$A$34)*$W$6:$W$26),0) -> 0 | X34: =ROUND(SUMPRODUCT(--(ISNUMBER($AL$6:$AL$26)),($A$6:$A$26=$A$34)*$X$6:$X$26),0) -> 0 | Y34: =ROUND(SUMPRODUCT(--(ISNUMBER($AL$6:$AL$26)),($A$6:$A$26=$A$34)*$Y$6:$Y$26),0) -> 0 | Z34: =ROUND(SUMPRODUCT(--(ISNUMBER($AL$6:$AL$26)),($A$6:$A$26=$A$34)*$Z$6:$Z$26),0) -> 0 | AA34: =ROUND(SUMPRODUCT(--(ISNUMBER($AL$6:$AL$26)),($A$6:$A$26=$A$34)*$AA$6:$AA$26),0) -> 0 | AB34: =ROUND(SUMPRODUCT(--(ISNUMBER($AL$6:$AL$26)),($A$6:$A$26=$A$34)*$AB$6:$AB$26),0) -> 0 | AC34: =ROUND(SUMPRODUCT(--(ISNUMBER($AL$6:$AL$26)),($A$6:$A$26=$A$34)*$AC$6:$AC$26),0) -> 0 | AD34: =ROUND(SUMPRODUCT(--(ISNUMBER($AL$6:$AL$26)),($A$6:$A$26=$A$34)*$AD$6:$AD$26),0) -> 0 | AE34: =ROUND(SUMPRODUCT(--(ISNUMBER($AL$6:$AL$26)),($A$6:$A$26=$A$34)*$AE$6:$AE$26),0) -> 0 | AF34: =ROUND(SUMPRODUCT(--(ISNUMBER($AL$6:$AL$26)),($A$6:$A$26=$A$34)*$AF$6:$AF$26),0) -> 0 | AG34: =ROUND(SUMPRODUCT(--(ISNUMBER($AL$6:$AL$26)),($A$6:$A$26=$A$34)*$AG$6:$AG$26),0) -> 0 | AH34: =ROUND(SUMPRODUCT(--(ISNUMBER($AL$6:$AL$26)),($A$6:$A$26=$A$34)*$AH$6:$AH$26),0) -> 0 | AI34: =ROUND(SUMPRODUCT(--(ISNUMBER($AL$6:$AL$26)),($A$6:$A$26=$A$34)*$AI$6:$AI$26),0) -> 0 | AJ34: =ROUND(SUMPRODUCT(--(ISNUMBER($AL$6:$AL$26)),($A$6:$A$26=$A$34)*$AJ$6:$AJ$26),0) -> 0 | AK34: =ROUND(SUMPRODUCT(--(ISNUMBER($AL$6:$AL$26)),($A$6:$A$26=$A$34)*$AK$6:$AK$26),0) -> 0 | AL34: =ROUND(SUMPRODUCT(--(ISNUMBER($AL$6:$AL$26)),($A$6:$A$26=$A$34)*$AL$6:$AL$26),0) -> 0
A35: ='Fringe Rates (Federal)'!J1 -> S&W Housestaff | E35: =HLOOKUP(A35,'Fringe Rates (Federal)'!$F$1:$R$2,2,FALSE) -> 50070 | F35: =ROUND(SUMPRODUCT(--(ISNUMBER($AL$6:$AL$26)),($A$6:$A$26=$A$35)*$F$6:$F$26),0) -> 0 | G35: =ROUND(SUMPRODUCT(--(ISNUMBER($AL$6:$AL$26)),($A$6:$A$26=$A$35)*$G$6:$G$26),0) -> 0 | H35: =ROUND(SUMPRODUCT(--(ISNUMBER($AL$6:$AL$26)),($A$6:$A$26=$A$35)*$H$6:$H$26),0) -> 0 | I35: =ROUND(SUMPRODUCT(--(ISNUMBER($AL$6:$AL$26)),($A$6:$A$26=$A$35)*$I$6:$I$26),0) -> 0 | J35: =ROUND(SUMPRODUCT(--(ISNUMBER($AL$6:$AL$26)),($A$6:$A$26=$A$35)*$J$6:$J$26),0) -> 0 | K35: =ROUND(SUMPRODUCT(--(ISNUMBER($AL$6:$AL$26)),($A$6:$A$26=$A$35)*$K$6:$K$26),0) -> 0 | L35: =ROUND(SUMPRODUCT(--(ISNUMBER($AL$6:$AL$26)),($A$6:$A$26=$A$35)*$L$6:$L$26),0) -> 0 | M35: =ROUND(SUMPRODUCT(--(ISNUMBER($AL$6:$AL$26)),($A$6:$A$26=$A$35)*$M$6:$M$26),0) -> 0 | N35: =ROUND(SUMPRODUCT(--(ISNUMBER($AL$6:$AL$26)),($A$6:$A$26=$A$35)*$N$6:$N$26),0) -> 0 | O35: =ROUND(SUMPRODUCT(--(ISNUMBER($AL$6:$AL$26)),($A$6:$A$26=$A$35)*$O$6:$O$26),0) -> 0 | P35: =ROUND(SUMPRODUCT(--(ISNUMBER($AL$6:$AL$26)),($A$6:$A$26=$A$35)*$P$6:$P$26),0) -> 0 | Q35: =ROUND(SUMPRODUCT(--(ISNUMBER($AL$6:$AL$26)),($A$6:$A$26=$A$35)*$Q$6:$Q$26),0) -> 0 | R35: =ROUND(SUMPRODUCT(--(ISNUMBER($AL$6:$AL$26)),($A$6:$A$26=$A$35)*$R$6:$R$26),0) -> 0 | S35: =ROUND(SUMPRODUCT(--(ISNUMBER($AL$6:$AL$26)),($A$6:$A$26=$A$35)*$S$6:$S$26),0) -> 0 | T35: =ROUND(SUMPRODUCT(--(ISNUMBER($AL$6:$AL$26)),($A$6:$A$26=$A$35)*$T$6:$T$26),0) -> 0 | U35: =ROUND(SUMPRODUCT(--(ISNUMBER($AL$6:$AL$26)),($A$6:$A$26=$A$35)*$U$6:$U$26),0) -> 0 | V35: =ROUND(SUMPRODUCT(--(ISNUMBER($AL$6:$AL$26)),($A$6:$A$26=$A$35)*$V$6:$V$26),0) -> 0 | W35: =ROUND(SUMPRODUCT(--(ISNUMBER($AL$6:$AL$26)),($A$6:$A$26=$A$35)*$W$6:$W$26),0) -> 0 | X35: =ROUND(SUMPRODUCT(--(ISNUMBER($AL$6:$AL$26)),($A$6:$A$26=$A$35)*$X$6:$X$26),0) -> 0 | Y35: =ROUND(SUMPRODUCT(--(ISNUMBER($AL$6:$AL$26)),($A$6:$A$26=$A$35)*$Y$6:$Y$26),0) -> 0 | Z35: =ROUND(SUMPRODUCT(--(ISNUMBER($AL$6:$AL$26)),($A$6:$A$26=$A$35)*$Z$6:$Z$26),0) -> 0 | AA35: =ROUND(SUMPRODUCT(--(ISNUMBER($AL$6:$AL$26)),($A$6:$A$26=$A$35)*$AA$6:$AA$26),0) -> 0 | AB35: =ROUND(SUMPRODUCT(--(ISNUMBER($AL$6:$AL$26)),($A$6:$A$26=$A$35)*$AB$6:$AB$26),0) -> 0 | AC35: =ROUND(SUMPRODUCT(--(ISNUMBER($AL$6:$AL$26)),($A$6:$A$26=$A$35)*$AC$6:$AC$26),0) -> 0 | AD35: =ROUND(SUMPRODUCT(--(ISNUMBER($AL$6:$AL$26)),($A$6:$A$26=$A$35)*$AD$6:$AD$26),0) -> 0 | AE35: =ROUND(SUMPRODUCT(--(ISNUMBER($AL$6:$AL$26)),($A$6:$A$26=$A$35)*$AE$6:$AE$26),0) -> 0 | AF35: =ROUND(SUMPRODUCT(--(ISNUMBER($AL$6:$AL$26)),($A$6:$A$26=$A$35)*$AF$6:$AF$26),0) -> 0 | AG35: =ROUND(SUMPRODUCT(--(ISNUMBER($AL$6:$AL$26)),($A$6:$A$26=$A$35)*$AG$6:$AG$26),0) -> 0 | AH35: =ROUND(SUMPRODUCT(--(ISNUMBER($AL$6:$AL$26)),($A$6:$A$26=$A$35)*$AH$6:$AH$26),0) -> 0 | AI35: =ROUND(SUMPRODUCT(--(ISNUMBER($AL$6:$AL$26)),($A$6:$A$26=$A$35)*$AI$6:$AI$26),0) -> 0 | AJ35: =ROUND(SUMPRODUCT(--(ISNUMBER($AL$6:$AL$26)),($A$6:$A$26=$A$35)*$AJ$6:$AJ$26),0) -> 0 | AK35: =ROUND(SUMPRODUCT(--(ISNUMBER($AL$6:$AL$26)),($A$6:$A$26=$A$35)*$AK$6:$AK$26),0) -> 0 | AL35: =ROUND(SUMPRODUCT(--(ISNUMBER($AL$6:$AL$26)),($A$6:$A$26=$A$35)*$AL$6:$AL$26),0) -> 0
A36: ='Fringe Rates (Federal)'!K1 -> S&W NonInstructional (Summer Salary) | E36: =HLOOKUP(A36,'Fringe Rates (Federal)'!$F$1:$R$2,2,FALSE) -> 50080 | F36: =ROUND(SUMPRODUCT(--(ISNUMBER($AL$6:$AL$26)),($A$6:$A$26=$A$36)*$F$6:$F$26),0) -> 0 | G36: =ROUND(SUMPRODUCT(--(ISNUMBER($AL$6:$AL$26)),($A$6:$A$26=$A$36)*$G$6:$G$26),0) -> 0 | H36: =ROUND(SUMPRODUCT(--(ISNUMBER($AL$6:$AL$26)),($A$6:$A$26=$A$36)*$H$6:$H$26),0) -> 0 | I36: =ROUND(SUMPRODUCT(--(ISNUMBER($AL$6:$AL$26)),($A$6:$A$26=$A$36)*$I$6:$I$26),0) -> 0 | J36: =ROUND(SUMPRODUCT(--(ISNUMBER($AL$6:$AL$26)),($A$6:$A$26=$A$36)*$J$6:$J$26),0) -> 0 | K36: =ROUND(SUMPRODUCT(--(ISNUMBER($AL$6:$AL$26)),($A$6:$A$26=$A$36)*$K$6:$K$26),0) -> 0 | L36: =ROUND(SUMPRODUCT(--(ISNUMBER($AL$6:$AL$26)),($A$6:$A$26=$A$36)*$L$6:$L$26),0) -> 0 | M36: =ROUND(SUMPRODUCT(--(ISNUMBER($AL$6:$AL$26)),($A$6:$A$26=$A$36)*$M$6:$M$26),0) -> 0 | N36: =ROUND(SUMPRODUCT(--(ISNUMBER($AL$6:$AL$26)),($A$6:$A$26=$A$36)*$N$6:$N$26),0) -> 0 | O36: =ROUND(SUMPRODUCT(--(ISNUMBER($AL$6:$AL$26)),($A$6:$A$26=$A$36)*$O$6:$O$26),0) -> 0 | P36: =ROUND(SUMPRODUCT(--(ISNUMBER($AL$6:$AL$26)),($A$6:$A$26=$A$36)*$P$6:$P$26),0) -> 0 | Q36: =ROUND(SUMPRODUCT(--(ISNUMBER($AL$6:$AL$26)),($A$6:$A$26=$A$36)*$Q$6:$Q$26),0) -> 0 | R36: =ROUND(SUMPRODUCT(--(ISNUMBER($AL$6:$AL$26)),($A$6:$A$26=$A$36)*$R$6:$R$26),0) -> 0 | S36: =ROUND(SUMPRODUCT(--(ISNUMBER($AL$6:$AL$26)),($A$6:$A$26=$A$36)*$S$6:$S$26),0) -> 0 | T36: =ROUND(SUMPRODUCT(--(ISNUMBER($AL$6:$AL$26)),($A$6:$A$26=$A$36)*$T$6:$T$26),0) -> 0 | U36: =ROUND(SUMPRODUCT(--(ISNUMBER($AL$6:$AL$26)),($A$6:$A$26=$A$36)*$U$6:$U$26),0) -> 0 | V36: =ROUND(SUMPRODUCT(--(ISNUMBER($AL$6:$AL$26)),($A$6:$A$26=$A$36)*$V$6:$V$26),0) -> 0 | W36: =ROUND(SUMPRODUCT(--(ISNUMBER($AL$6:$AL$26)),($A$6:$A$26=$A$36)*$W$6:$W$26),0) -> 0 | X36: =ROUND(SUMPRODUCT(--(ISNUMBER($AL$6:$AL$26)),($A$6:$A$26=$A$36)*$X$6:$X$26),0) -> 0 | Y36: =ROUND(SUMPRODUCT(--(ISNUMBER($AL$6:$AL$26)),($A$6:$A$26=$A$36)*$Y$6:$Y$26),0) -> 0 | Z36: =ROUND(SUMPRODUCT(--(ISNUMBER($AL$6:$AL$26)),($A$6:$A$26=$A$36)*$Z$6:$Z$26),0) -> 0 | AA36: =ROUND(SUMPRODUCT(--(ISNUMBER($AL$6:$AL$26)),($A$6:$A$26=$A$36)*$AA$6:$AA$26),0) -> 0 | AB36: =ROUND(SUMPRODUCT(--(ISNUMBER($AL$6:$AL$26)),($A$6:$A$26=$A$36)*$AB$6:$AB$26),0) -> 0 | AC36: =ROUND(SUMPRODUCT(--(ISNUMBER($AL$6:$AL$26)),($A$6:$A$26=$A$36)*$AC$6:$AC$26),0) -> 0 | AD36: =ROUND(SUMPRODUCT(--(ISNUMBER($AL$6:$AL$26)),($A$6:$A$26=$A$36)*$AD$6:$AD$26),0) -> 0 | AE36: =ROUND(SUMPRODUCT(--(ISNUMBER($AL$6:$AL$26)),($A$6:$A$26=$A$36)*$AE$6:$AE$26),0) -> 0 | AF36: =ROUND(SUMPRODUCT(--(ISNUMBER($AL$6:$AL$26)),($A$6:$A$26=$A$36)*$AF$6:$AF$26),0) -> 0 | AG36: =ROUND(SUMPRODUCT(--(ISNUMBER($AL$6:$AL$26)),($A$6:$A$26=$A$36)*$AG$6:$AG$26),0) -> 0 | AH36: =ROUND(SUMPRODUCT(--(ISNUMBER($AL$6:$AL$26)),($A$6:$A$26=$A$36)*$AH$6:$AH$26),0) -> 0 | AI36: =ROUND(SUMPRODUCT(--(ISNUMBER($AL$6:$AL$26)),($A$6:$A$26=$A$36)*$AI$6:$AI$26),0) -> 0 | AJ36: =ROUND(SUMPRODUCT(--(ISNUMBER($AL$6:$AL$26)),($A$6:$A$26=$A$36)*$AJ$6:$AJ$26),0) -> 0 | AK36: =ROUND(SUMPRODUCT(--(ISNUMBER($AL$6:$AL$26)),($A$6:$A$26=$A$36)*$AK$6:$AK$26),0) -> 0 | AL36: =ROUND(SUMPRODUCT(--(ISNUMBER($AL$6:$AL$26)),($A$6:$A$26=$A$36)*$AL$6:$AL$26),0) -> 0
A37: ='Fringe Rates (Federal)'!L1 -> S&W Lecturer | E37: =HLOOKUP(A37,'Fringe Rates (Federal)'!$F$1:$R$2,2,FALSE) -> 50081 | F37: =ROUND(SUMPRODUCT(--(ISNUMBER($AL$6:$AL$26)),($A$6:$A$26=$A$37)*$F$6:$F$26),0) -> 0 | G37: =ROUND(SUMPRODUCT(--(ISNUMBER($AL$6:$AL$26)),($A$6:$A$26=$A$37)*$G$6:$G$26),0) -> 0 | H37: =ROUND(SUMPRODUCT(--(ISNUMBER($AL$6:$AL$26)),($A$6:$A$26=$A$37)*$H$6:$H$26),0) -> 0 | I37: =ROUND(SUMPRODUCT(--(ISNUMBER($AL$6:$AL$26)),($A$6:$A$26=$A$37)*$I$6:$I$26),0) -> 0 | J37: =ROUND(SUMPRODUCT(--(ISNUMBER($AL$6:$AL$26)),($A$6:$A$26=$A$37)*$J$6:$J$26),0) -> 0 | K37: =ROUND(SUMPRODUCT(--(ISNUMBER($AL$6:$AL$26)),($A$6:$A$26=$A$37)*$K$6:$K$26),0) -> 0 | L37: =ROUND(SUMPRODUCT(--(ISNUMBER($AL$6:$AL$26)),($A$6:$A$26=$A$37)*$L$6:$L$26),0) -> 0 | M37: =ROUND(SUMPRODUCT(--(ISNUMBER($AL$6:$AL$26)),($A$6:$A$26=$A$37)*$M$6:$M$26),0) -> 0 | N37: =ROUND(SUMPRODUCT(--(ISNUMBER($AL$6:$AL$26)),($A$6:$A$26=$A$37)*$N$6:$N$26),0) -> 0 | O37: =ROUND(SUMPRODUCT(--(ISNUMBER($AL$6:$AL$26)),($A$6:$A$26=$A$37)*$O$6:$O$26),0) -> 0 | P37: =ROUND(SUMPRODUCT(--(ISNUMBER($AL$6:$AL$26)),($A$6:$A$26=$A$37)*$P$6:$P$26),0) -> 0 | Q37: =ROUND(SUMPRODUCT(--(ISNUMBER($AL$6:$AL$26)),($A$6:$A$26=$A$37)*$Q$6:$Q$26),0) -> 0 | R37: =ROUND(SUMPRODUCT(--(ISNUMBER($AL$6:$AL$26)),($A$6:$A$26=$A$37)*$R$6:$R$26),0) -> 0 | S37: =ROUND(SUMPRODUCT(--(ISNUMBER($AL$6:$AL$26)),($A$6:$A$26=$A$37)*$S$6:$S$26),0) -> 0 | T37: =ROUND(SUMPRODUCT(--(ISNUMBER($AL$6:$AL$26)),($A$6:$A$26=$A$37)*$T$6:$T$26),0) -> 0 | U37: =ROUND(SUMPRODUCT(--(ISNUMBER($AL$6:$AL$26)),($A$6:$A$26=$A$37)*$U$6:$U$26),0) -> 0 | V37: =ROUND(SUMPRODUCT(--(ISNUMBER($AL$6:$AL$26)),($A$6:$A$26=$A$37)*$V$6:$V$26),0) -> 0 | W37: =ROUND(SUMPRODUCT(--(ISNUMBER($AL$6:$AL$26)),($A$6:$A$26=$A$37)*$W$6:$W$26),0) -> 0 | X37: =ROUND(SUMPRODUCT(--(ISNUMBER($AL$6:$AL$26)),($A$6:$A$26=$A$37)*$X$6:$X$26),0) -> 0 | Y37: =ROUND(SUMPRODUCT(--(ISNUMBER($AL$6:$AL$26)),($A$6:$A$26=$A$37)*$Y$6:$Y$26),0) -> 0 | Z37: =ROUND(SUMPRODUCT(--(ISNUMBER($AL$6:$AL$26)),($A$6:$A$26=$A$37)*$Z$6:$Z$26),0) -> 0 | AA37: =ROUND(SUMPRODUCT(--(ISNUMBER($AL$6:$AL$26)),($A$6:$A$26=$A$37)*$AA$6:$AA$26),0) -> 0 | AB37: =ROUND(SUMPRODUCT(--(ISNUMBER($AL$6:$AL$26)),($A$6:$A$26=$A$37)*$AB$6:$AB$26),0) -> 0 | AC37: =ROUND(SUMPRODUCT(--(ISNUMBER($AL$6:$AL$26)),($A$6:$A$26=$A$37)*$AC$6:$AC$26),0) -> 0 | AD37: =ROUND(SUMPRODUCT(--(ISNUMBER($AL$6:$AL$26)),($A$6:$A$26=$A$37)*$AD$6:$AD$26),0) -> 0 | AE37: =ROUND(SUMPRODUCT(--(ISNUMBER($AL$6:$AL$26)),($A$6:$A$26=$A$37)*$AE$6:$AE$26),0) -> 0 | AF37: =ROUND(SUMPRODUCT(--(ISNUMBER($AL$6:$AL$26)),($A$6:$A$26=$A$37)*$AF$6:$AF$26),0) -> 0 | AG37: =ROUND(SUMPRODUCT(--(ISNUMBER($AL$6:$AL$26)),($A$6:$A$26=$A$37)*$AG$6:$AG$26),0) -> 0 | AH37: =ROUND(SUMPRODUCT(--(ISNUMBER($AL$6:$AL$26)),($A$6:$A$26=$A$37)*$AH$6:$AH$26),0) -> 0 | AI37: =ROUND(SUMPRODUCT(--(ISNUMBER($AL$6:$AL$26)),($A$6:$A$26=$A$37)*$AI$6:$AI$26),0) -> 0 | AJ37: =ROUND(SUMPRODUCT(--(ISNUMBER($AL$6:$AL$26)),($A$6:$A$26=$A$37)*$AJ$6:$AJ$26),0) -> 0 | AK37: =ROUND(SUMPRODUCT(--(ISNUMBER($AL$6:$AL$26)),($A$6:$A$26=$A$37)*$AK$6:$AK$26),0) -> 0 | AL37: =ROUND(SUMPRODUCT(--(ISNUMBER($AL$6:$AL$26)),($A$6:$A$26=$A$37)*$AL$6:$AL$26),0) -> 0
A38: ='Fringe Rates (Federal)'!M1 -> S&W Student Employment | E38: =HLOOKUP(A38,'Fringe Rates (Federal)'!$F$1:$R$2,2,FALSE) -> 50090 | F38: =ROUND(SUMPRODUCT(--(ISNUMBER($AL$6:$AL$26)),($A$6:$A$26=$A$38)*$F$6:$F$26),0) -> 0 | G38: =ROUND(SUMPRODUCT(--(ISNUMBER($AL$6:$AL$26)),($A$6:$A$26=$A$38)*$G$6:$G$26),0) -> 0 | H38: =ROUND(SUMPRODUCT(--(ISNUMBER($AL$6:$AL$26)),($A$6:$A$26=$A$38)*$H$6:$H$26),0) -> 0 | I38: =ROUND(SUMPRODUCT(--(ISNUMBER($AL$6:$AL$26)),($A$6:$A$26=$A$38)*$I$6:$I$26),0) -> 0 | J38: =ROUND(SUMPRODUCT(--(ISNUMBER($AL$6:$AL$26)),($A$6:$A$26=$A$38)*$J$6:$J$26),0) -> 0 | K38: =ROUND(SUMPRODUCT(--(ISNUMBER($AL$6:$AL$26)),($A$6:$A$26=$A$38)*$K$6:$K$26),0) -> 0 | L38: =ROUND(SUMPRODUCT(--(ISNUMBER($AL$6:$AL$26)),($A$6:$A$26=$A$38)*$L$6:$L$26),0) -> 0 | M38: =ROUND(SUMPRODUCT(--(ISNUMBER($AL$6:$AL$26)),($A$6:$A$26=$A$38)*$M$6:$M$26),0) -> 0 | N38: =ROUND(SUMPRODUCT(--(ISNUMBER($AL$6:$AL$26)),($A$6:$A$26=$A$38)*$N$6:$N$26),0) -> 0 | O38: =ROUND(SUMPRODUCT(--(ISNUMBER($AL$6:$AL$26)),($A$6:$A$26=$A$38)*$O$6:$O$26),0) -> 0 | P38: =ROUND(SUMPRODUCT(--(ISNUMBER($AL$6:$AL$26)),($A$6:$A$26=$A$38)*$P$6:$P$26),0) -> 0 | Q38: =ROUND(SUMPRODUCT(--(ISNUMBER($AL$6:$AL$26)),($A$6:$A$26=$A$38)*$Q$6:$Q$26),0) -> 0 | R38: =ROUND(SUMPRODUCT(--(ISNUMBER($AL$6:$AL$26)),($A$6:$A$26=$A$38)*$R$6:$R$26),0) -> 0 | S38: =ROUND(SUMPRODUCT(--(ISNUMBER($AL$6:$AL$26)),($A$6:$A$26=$A$38)*$S$6:$S$26),0) -> 0 | T38: =ROUND(SUMPRODUCT(--(ISNUMBER($AL$6:$AL$26)),($A$6:$A$26=$A$38)*$T$6:$T$26),0) -> 0 | U38: =ROUND(SUMPRODUCT(--(ISNUMBER($AL$6:$AL$26)),($A$6:$A$26=$A$38)*$U$6:$U$26),0) -> 0 | V38: =ROUND(SUMPRODUCT(--(ISNUMBER($AL$6:$AL$26)),($A$6:$A$26=$A$38)*$V$6:$V$26),0) -> 0 | W38: =ROUND(SUMPRODUCT(--(ISNUMBER($AL$6:$AL$26)),($A$6:$A$26=$A$38)*$W$6:$W$26),0) -> 0 | X38: =ROUND(SUMPRODUCT(--(ISNUMBER($AL$6:$AL$26)),($A$6:$A$26=$A$38)*$X$6:$X$26),0) -> 0 | Y38: =ROUND(SUMPRODUCT(--(ISNUMBER($AL$6:$AL$26)),($A$6:$A$26=$A$38)*$Y$6:$Y$26),0) -> 0 | Z38: =ROUND(SUMPRODUCT(--(ISNUMBER($AL$6:$AL$26)),($A$6:$A$26=$A$38)*$Z$6:$Z$26),0) -> 0 | AA38: =ROUND(SUMPRODUCT(--(ISNUMBER($AL$6:$AL$26)),($A$6:$A$26=$A$38)*$AA$6:$AA$26),0) -> 0 | AB38: =ROUND(SUMPRODUCT(--(ISNUMBER($AL$6:$AL$26)),($A$6:$A$26=$A$38)*$AB$6:$AB$26),0) -> 0 | AC38: =ROUND(SUMPRODUCT(--(ISNUMBER($AL$6:$AL$26)),($A$6:$A$26=$A$38)*$AC$6:$AC$26),0) -> 0 | AD38: =ROUND(SUMPRODUCT(--(ISNUMBER($AL$6:$AL$26)),($A$6:$A$26=$A$38)*$AD$6:$AD$26),0) -> 0 | AE38: =ROUND(SUMPRODUCT(--(ISNUMBER($AL$6:$AL$26)),($A$6:$A$26=$A$38)*$AE$6:$AE$26),0) -> 0 | AF38: =ROUND(SUMPRODUCT(--(ISNUMBER($AL$6:$AL$26)),($A$6:$A$26=$A$38)*$AF$6:$AF$26),0) -> 0 | AG38: =ROUND(SUMPRODUCT(--(ISNUMBER($AL$6:$AL$26)),($A$6:$A$26=$A$38)*$AG$6:$AG$26),0) -> 0 | AH38: =ROUND(SUMPRODUCT(--(ISNUMBER($AL$6:$AL$26)),($A$6:$A$26=$A$38)*$AH$6:$AH$26),0) -> 0 | AI38: =ROUND(SUMPRODUCT(--(ISNUMBER($AL$6:$AL$26)),($A$6:$A$26=$A$38)*$AI$6:$AI$26),0) -> 0 | AJ38: =ROUND(SUMPRODUCT(--(ISNUMBER($AL$6:$AL$26)),($A$6:$A$26=$A$38)*$AJ$6:$AJ$26),0) -> 0 | AK38: =ROUND(SUMPRODUCT(--(ISNUMBER($AL$6:$AL$26)),($A$6:$A$26=$A$38)*$AK$6:$AK$26),0) -> 0 | AL38: =ROUND(SUMPRODUCT(--(ISNUMBER($AL$6:$AL$26)),($A$6:$A$26=$A$38)*$AL$6:$AL$26),0) -> 0
A39: ='Fringe Rates (Federal)'!N1 -> S&W Contracted | E39: =HLOOKUP(A39,'Fringe Rates (Federal)'!$F$1:$R$2,2,FALSE) -> 50100 | F39: =ROUND(SUMPRODUCT(--(ISNUMBER($AL$6:$AL$26)),($A$6:$A$26=$A$39)*$F$6:$F$26),0) -> 0 | G39: =ROUND(SUMPRODUCT(--(ISNUMBER($AL$6:$AL$26)),($A$6:$A$26=$A$39)*$G$6:$G$26),0) -> 0 | H39: =ROUND(SUMPRODUCT(--(ISNUMBER($AL$6:$AL$26)),($A$6:$A$26=$A$39)*$H$6:$H$26),0) -> 0 | I39: =ROUND(SUMPRODUCT(--(ISNUMBER($AL$6:$AL$26)),($A$6:$A$26=$A$39)*$I$6:$I$26),0) -> 0 | J39: =ROUND(SUMPRODUCT(--(ISNUMBER($AL$6:$AL$26)),($A$6:$A$26=$A$39)*$J$6:$J$26),0) -> 0 | K39: =ROUND(SUMPRODUCT(--(ISNUMBER($AL$6:$AL$26)),($A$6:$A$26=$A$39)*$K$6:$K$26),0) -> 0 | L39: =ROUND(SUMPRODUCT(--(ISNUMBER($AL$6:$AL$26)),($A$6:$A$26=$A$39)*$L$6:$L$26),0) -> 0 | M39: =ROUND(SUMPRODUCT(--(ISNUMBER($AL$6:$AL$26)),($A$6:$A$26=$A$39)*$M$6:$M$26),0) -> 0 | N39: =ROUND(SUMPRODUCT(--(ISNUMBER($AL$6:$AL$26)),($A$6:$A$26=$A$39)*$N$6:$N$26),0) -> 0 | O39: =ROUND(SUMPRODUCT(--(ISNUMBER($AL$6:$AL$26)),($A$6:$A$26=$A$39)*$O$6:$O$26),0) -> 0 | P39: =ROUND(SUMPRODUCT(--(ISNUMBER($AL$6:$AL$26)),($A$6:$A$26=$A$39)*$P$6:$P$26),0) -> 0 | Q39: =ROUND(SUMPRODUCT(--(ISNUMBER($AL$6:$AL$26)),($A$6:$A$26=$A$39)*$Q$6:$Q$26),0) -> 0 | R39: =ROUND(SUMPRODUCT(--(ISNUMBER($AL$6:$AL$26)),($A$6:$A$26=$A$39)*$R$6:$R$26),0) -> 0 | S39: =ROUND(SUMPRODUCT(--(ISNUMBER($AL$6:$AL$26)),($A$6:$A$26=$A$39)*$S$6:$S$26),0) -> 0 | T39: =ROUND(SUMPRODUCT(--(ISNUMBER($AL$6:$AL$26)),($A$6:$A$26=$A$39)*$T$6:$T$26),0) -> 0 | U39: =ROUND(SUMPRODUCT(--(ISNUMBER($AL$6:$AL$26)),($A$6:$A$26=$A$39)*$U$6:$U$26),0) -> 0 | V39: =ROUND(SUMPRODUCT(--(ISNUMBER($AL$6:$AL$26)),($A$6:$A$26=$A$39)*$V$6:$V$26),0) -> 0 | W39: =ROUND(SUMPRODUCT(--(ISNUMBER($AL$6:$AL$26)),($A$6:$A$26=$A$39)*$W$6:$W$26),0) -> 0 | X39: =ROUND(SUMPRODUCT(--(ISNUMBER($AL$6:$AL$26)),($A$6:$A$26=$A$39)*$X$6:$X$26),0) -> 0 | Y39: =ROUND(SUMPRODUCT(--(ISNUMBER($AL$6:$AL$26)),($A$6:$A$26=$A$39)*$Y$6:$Y$26),0) -> 0 | Z39: =ROUND(SUMPRODUCT(--(ISNUMBER($AL$6:$AL$26)),($A$6:$A$26=$A$39)*$Z$6:$Z$26),0) -> 0 | AA39: =ROUND(SUMPRODUCT(--(ISNUMBER($AL$6:$AL$26)),($A$6:$A$26=$A$39)*$AA$6:$AA$26),0) -> 0 | AB39: =ROUND(SUMPRODUCT(--(ISNUMBER($AL$6:$AL$26)),($A$6:$A$26=$A$39)*$AB$6:$AB$26),0) -> 0 | AC39: =ROUND(SUMPRODUCT(--(ISNUMBER($AL$6:$AL$26)),($A$6:$A$26=$A$39)*$AC$6:$AC$26),0) -> 0 | AD39: =ROUND(SUMPRODUCT(--(ISNUMBER($AL$6:$AL$26)),($A$6:$A$26=$A$39)*$AD$6:$AD$26),0) -> 0 | AE39: =ROUND(SUMPRODUCT(--(ISNUMBER($AL$6:$AL$26)),($A$6:$A$26=$A$39)*$AE$6:$AE$26),0) -> 0 | AF39: =ROUND(SUMPRODUCT(--(ISNUMBER($AL$6:$AL$26)),($A$6:$A$26=$A$39)*$AF$6:$AF$26),0) -> 0 | AG39: =ROUND(SUMPRODUCT(--(ISNUMBER($AL$6:$AL$26)),($A$6:$A$26=$A$39)*$AG$6:$AG$26),0) -> 0 | AH39: =ROUND(SUMPRODUCT(--(ISNUMBER($AL$6:$AL$26)),($A$6:$A$26=$A$39)*$AH$6:$AH$26),0) -> 0 | AI39: =ROUND(SUMPRODUCT(--(ISNUMBER($AL$6:$AL$26)),($A$6:$A$26=$A$39)*$AI$6:$AI$26),0) -> 0 | AJ39: =ROUND(SUMPRODUCT(--(ISNUMBER($AL$6:$AL$26)),($A$6:$A$26=$A$39)*$AJ$6:$AJ$26),0) -> 0 | AK39: =ROUND(SUMPRODUCT(--(ISNUMBER($AL$6:$AL$26)),($A$6:$A$26=$A$39)*$AK$6:$AK$26),0) -> 0 | AL39: =ROUND(SUMPRODUCT(--(ISNUMBER($AL$6:$AL$26)),($A$6:$A$26=$A$39)*$AL$6:$AL$26),0) -> 0
A40: ='Fringe Rates (Federal)'!O1 -> S&W Student Researcher Stipend | E40: =HLOOKUP(A40,'Fringe Rates (Federal)'!$F$1:$R$2,2,FALSE) -> 50110 | F40: =ROUND(SUMPRODUCT(--(ISNUMBER($AL$6:$AL$26)),($A$6:$A$26=$A$40)*$F$6:$F$26),0) -> 0 | G40: =ROUND(SUMPRODUCT(--(ISNUMBER($AL$6:$AL$26)),($A$6:$A$26=$A$40)*$G$6:$G$26),0) -> 0 | H40: =ROUND(SUMPRODUCT(--(ISNUMBER($AL$6:$AL$26)),($A$6:$A$26=$A$40)*$H$6:$H$26),0) -> 0 | I40: =ROUND(SUMPRODUCT(--(ISNUMBER($AL$6:$AL$26)),($A$6:$A$26=$A$40)*$I$6:$I$26),0) -> 0 | J40: =ROUND(SUMPRODUCT(--(ISNUMBER($AL$6:$AL$26)),($A$6:$A$26=$A$40)*$J$6:$J$26),0) -> 0 | K40: =ROUND(SUMPRODUCT(--(ISNUMBER($AL$6:$AL$26)),($A$6:$A$26=$A$40)*$K$6:$K$26),0) -> 0 | L40: =ROUND(SUMPRODUCT(--(ISNUMBER($AL$6:$AL$26)),($A$6:$A$26=$A$40)*$L$6:$L$26),0) -> 0 | M40: =ROUND(SUMPRODUCT(--(ISNUMBER($AL$6:$AL$26)),($A$6:$A$26=$A$40)*$M$6:$M$26),0) -> 0 | N40: =ROUND(SUMPRODUCT(--(ISNUMBER($AL$6:$AL$26)),($A$6:$A$26=$A$40)*$N$6:$N$26),0) -> 0 | O40: =ROUND(SUMPRODUCT(--(ISNUMBER($AL$6:$AL$26)),($A$6:$A$26=$A$40)*$O$6:$O$26),0) -> 0 | P40: =ROUND(SUMPRODUCT(--(ISNUMBER($AL$6:$AL$26)),($A$6:$A$26=$A$40)*$P$6:$P$26),0) -> 0 | Q40: =ROUND(SUMPRODUCT(--(ISNUMBER($AL$6:$AL$26)),($A$6:$A$26=$A$40)*$Q$6:$Q$26),0) -> 0 | R40: =ROUND(SUMPRODUCT(--(ISNUMBER($AL$6:$AL$26)),($A$6:$A$26=$A$40)*$R$6:$R$26),0) -> 0 | S40: =ROUND(SUMPRODUCT(--(ISNUMBER($AL$6:$AL$26)),($A$6:$A$26=$A$40)*$S$6:$S$26),0) -> 0 | T40: =ROUND(SUMPRODUCT(--(ISNUMBER($AL$6:$AL$26)),($A$6:$A$26=$A$40)*$T$6:$T$26),0) -> 0 | U40: =ROUND(SUMPRODUCT(--(ISNUMBER($AL$6:$AL$26)),($A$6:$A$26=$A$40)*$U$6:$U$26),0) -> 0 | V40: =ROUND(SUMPRODUCT(--(ISNUMBER($AL$6:$AL$26)),($A$6:$A$26=$A$40)*$V$6:$V$26),0) -> 0 | W40: =ROUND(SUMPRODUCT(--(ISNUMBER($AL$6:$AL$26)),($A$6:$A$26=$A$40)*$W$6:$W$26),0) -> 0 | X40: =ROUND(SUMPRODUCT(--(ISNUMBER($AL$6:$AL$26)),($A$6:$A$26=$A$40)*$X$6:$X$26),0) -> 0 | Y40: =ROUND(SUMPRODUCT(--(ISNUMBER($AL$6:$AL$26)),($A$6:$A$26=$A$40)*$Y$6:$Y$26),0) -> 0 | Z40: =ROUND(SUMPRODUCT(--(ISNUMBER($AL$6:$AL$26)),($A$6:$A$26=$A$40)*$Z$6:$Z$26),0) -> 0 | AA40: =ROUND(SUMPRODUCT(--(ISNUMBER($AL$6:$AL$26)),($A$6:$A$26=$A$40)*$AA$6:$AA$26),0) -> 0 | AB40: =ROUND(SUMPRODUCT(--(ISNUMBER($AL$6:$AL$26)),($A$6:$A$26=$A$40)*$AB$6:$AB$26),0) -> 0 | AC40: =ROUND(SUMPRODUCT(--(ISNUMBER($AL$6:$AL$26)),($A$6:$A$26=$A$40)*$AC$6:$AC$26),0) -> 0 | AD40: =ROUND(SUMPRODUCT(--(ISNUMBER($AL$6:$AL$26)),($A$6:$A$26=$A$40)*$AD$6:$AD$26),0) -> 0 | AE40: =ROUND(SUMPRODUCT(--(ISNUMBER($AL$6:$AL$26)),($A$6:$A$26=$A$40)*$AE$6:$AE$26),0) -> 0 | AF40: =ROUND(SUMPRODUCT(--(ISNUMBER($AL$6:$AL$26)),($A$6:$A$26=$A$40)*$AF$6:$AF$26),0) -> 0 | AG40: =ROUND(SUMPRODUCT(--(ISNUMBER($AL$6:$AL$26)),($A$6:$A$26=$A$40)*$AG$6:$AG$26),0) -> 0 | AH40: =ROUND(SUMPRODUCT(--(ISNUMBER($AL$6:$AL$26)),($A$6:$A$26=$A$40)*$AH$6:$AH$26),0) -> 0 | AI40: =ROUND(SUMPRODUCT(--(ISNUMBER($AL$6:$AL$26)),($A$6:$A$26=$A$40)*$AI$6:$AI$26),0) -> 0 | AJ40: =ROUND(SUMPRODUCT(--(ISNUMBER($AL$6:$AL$26)),($A$6:$A$26=$A$40)*$AJ$6:$AJ$26),0) -> 0 | AK40: =ROUND(SUMPRODUCT(--(ISNUMBER($AL$6:$AL$26)),($A$6:$A$26=$A$40)*$AK$6:$AK$26),0) -> 0 | AL40: =ROUND(SUMPRODUCT(--(ISNUMBER($AL$6:$AL$26)),($A$6:$A$26=$A$40)*$AL$6:$AL$26),0) -> 0
A41: ='Fringe Rates (Federal)'!P1 -> S&W Pre & Post Doctoral Employee | E41: =HLOOKUP(A41,'Fringe Rates (Federal)'!$F$1:$R$2,2,FALSE) -> 50115 | F41: =ROUND(SUMPRODUCT(--(ISNUMBER($AL$6:$AL$26)),($A$6:$A$26=$A$41)*$F$6:$F$26),0) -> 0 | G41: =ROUND(SUMPRODUCT(--(ISNUMBER($AL$6:$AL$26)),($A$6:$A$26=$A$41)*$G$6:$G$26),0) -> 0 | H41: =ROUND(SUMPRODUCT(--(ISNUMBER($AL$6:$AL$26)),($A$6:$A$26=$A$41)*$H$6:$H$26),0) -> 0 | I41: =ROUND(SUMPRODUCT(--(ISNUMBER($AL$6:$AL$26)),($A$6:$A$26=$A$41)*$I$6:$I$26),0) -> 0 | J41: =ROUND(SUMPRODUCT(--(ISNUMBER($AL$6:$AL$26)),($A$6:$A$26=$A$41)*$J$6:$J$26),0) -> 0 | K41: =ROUND(SUMPRODUCT(--(ISNUMBER($AL$6:$AL$26)),($A$6:$A$26=$A$41)*$K$6:$K$26),0) -> 0 | L41: =ROUND(SUMPRODUCT(--(ISNUMBER($AL$6:$AL$26)),($A$6:$A$26=$A$41)*$L$6:$L$26),0) -> 0 | M41: =ROUND(SUMPRODUCT(--(ISNUMBER($AL$6:$AL$26)),($A$6:$A$26=$A$41)*$M$6:$M$26),0) -> 0 | N41: =ROUND(SUMPRODUCT(--(ISNUMBER($AL$6:$AL$26)),($A$6:$A$26=$A$41)*$N$6:$N$26),0) -> 0 | O41: =ROUND(SUMPRODUCT(--(ISNUMBER($AL$6:$AL$26)),($A$6:$A$26=$A$41)*$O$6:$O$26),0) -> 0 | P41: =ROUND(SUMPRODUCT(--(ISNUMBER($AL$6:$AL$26)),($A$6:$A$26=$A$41)*$P$6:$P$26),0) -> 0 | Q41: =ROUND(SUMPRODUCT(--(ISNUMBER($AL$6:$AL$26)),($A$6:$A$26=$A$41)*$Q$6:$Q$26),0) -> 0 | R41: =ROUND(SUMPRODUCT(--(ISNUMBER($AL$6:$AL$26)),($A$6:$A$26=$A$41)*$R$6:$R$26),0) -> 0 | S41: =ROUND(SUMPRODUCT(--(ISNUMBER($AL$6:$AL$26)),($A$6:$A$26=$A$41)*$S$6:$S$26),0) -> 0 | T41: =ROUND(SUMPRODUCT(--(ISNUMBER($AL$6:$AL$26)),($A$6:$A$26=$A$41)*$T$6:$T$26),0) -> 0 | U41: =ROUND(SUMPRODUCT(--(ISNUMBER($AL$6:$AL$26)),($A$6:$A$26=$A$41)*$U$6:$U$26),0) -> 0 | V41: =ROUND(SUMPRODUCT(--(ISNUMBER($AL$6:$AL$26)),($A$6:$A$26=$A$41)*$V$6:$V$26),0) -> 0 | W41: =ROUND(SUMPRODUCT(--(ISNUMBER($AL$6:$AL$26)),($A$6:$A$26=$A$41)*$W$6:$W$26),0) -> 0 | X41: =ROUND(SUMPRODUCT(--(ISNUMBER($AL$6:$AL$26)),($A$6:$A$26=$A$41)*$X$6:$X$26),0) -> 0 | Y41: =ROUND(SUMPRODUCT(--(ISNUMBER($AL$6:$AL$26)),($A$6:$A$26=$A$41)*$Y$6:$Y$26),0) -> 0 | Z41: =ROUND(SUMPRODUCT(--(ISNUMBER($AL$6:$AL$26)),($A$6:$A$26=$A$41)*$Z$6:$Z$26),0) -> 0 | AA41: =ROUND(SUMPRODUCT(--(ISNUMBER($AL$6:$AL$26)),($A$6:$A$26=$A$41)*$AA$6:$AA$26),0) -> 0 | AB41: =ROUND(SUMPRODUCT(--(ISNUMBER($AL$6:$AL$26)),($A$6:$A$26=$A$41)*$AB$6:$AB$26),0) -> 0 | AC41: =ROUND(SUMPRODUCT(--(ISNUMBER($AL$6:$AL$26)),($A$6:$A$26=$A$41)*$AC$6:$AC$26),0) -> 0 | AD41: =ROUND(SUMPRODUCT(--(ISNUMBER($AL$6:$AL$26)),($A$6:$A$26=$A$41)*$AD$6:$AD$26),0) -> 0 | AE41: =ROUND(SUMPRODUCT(--(ISNUMBER($AL$6:$AL$26)),($A$6:$A$26=$A$41)*$AE$6:$AE$26),0) -> 0 | AF41: =ROUND(SUMPRODUCT(--(ISNUMBER($AL$6:$AL$26)),($A$6:$A$26=$A$41)*$AF$6:$AF$26),0) -> 0 | AG41: =ROUND(SUMPRODUCT(--(ISNUMBER($AL$6:$AL$26)),($A$6:$A$26=$A$41)*$AG$6:$AG$26),0) -> 0 | AH41: =ROUND(SUMPRODUCT(--(ISNUMBER($AL$6:$AL$26)),($A$6:$A$26=$A$41)*$AH$6:$AH$26),0) -> 0 | AI41: =ROUND(SUMPRODUCT(--(ISNUMBER($AL$6:$AL$26)),($A$6:$A$26=$A$41)*$AI$6:$AI$26),0) -> 0 | AJ41: =ROUND(SUMPRODUCT(--(ISNUMBER($AL$6:$AL$26)),($A$6:$A$26=$A$41)*$AJ$6:$AJ$26),0) -> 0 | AK41: =ROUND(SUMPRODUCT(--(ISNUMBER($AL$6:$AL$26)),($A$6:$A$26=$A$41)*$AK$6:$AK$26),0) -> 0 | AL41: =ROUND(SUMPRODUCT(--(ISNUMBER($AL$6:$AL$26)),($A$6:$A$26=$A$41)*$AL$6:$AL$26),0) -> 0
A42: ='Fringe Rates (Federal)'!Q1 -> S&W Hourly Employees | E42: =HLOOKUP(A42,'Fringe Rates (Federal)'!$F$1:$R$2,2,FALSE) -> 50120 | F42: =ROUND(SUMPRODUCT(--(ISNUMBER($AL$6:$AL$26)),($A$6:$A$26=$A$42)*$F$6:$F$26),0) -> 0 | G42: =ROUND(SUMPRODUCT(--(ISNUMBER($AL$6:$AL$26)),($A$6:$A$26=$A$42)*$G$6:$G$26),0) -> 0 | H42: =ROUND(SUMPRODUCT(--(ISNUMBER($AL$6:$AL$26)),($A$6:$A$26=$A$42)*$H$6:$H$26),0) -> 0 | I42: =ROUND(SUMPRODUCT(--(ISNUMBER($AL$6:$AL$26)),($A$6:$A$26=$A$42)*$I$6:$I$26),0) -> 0 | J42: =ROUND(SUMPRODUCT(--(ISNUMBER($AL$6:$AL$26)),($A$6:$A$26=$A$42)*$J$6:$J$26),0) -> 0 | K42: =ROUND(SUMPRODUCT(--(ISNUMBER($AL$6:$AL$26)),($A$6:$A$26=$A$42)*$K$6:$K$26),0) -> 0 | L42: =ROUND(SUMPRODUCT(--(ISNUMBER($AL$6:$AL$26)),($A$6:$A$26=$A$42)*$L$6:$L$26),0) -> 0 | M42: =ROUND(SUMPRODUCT(--(ISNUMBER($AL$6:$AL$26)),($A$6:$A$26=$A$42)*$M$6:$M$26),0) -> 0 | N42: =ROUND(SUMPRODUCT(--(ISNUMBER($AL$6:$AL$26)),($A$6:$A$26=$A$42)*$N$6:$N$26),0) -> 0 | O42: =ROUND(SUMPRODUCT(--(ISNUMBER($AL$6:$AL$26)),($A$6:$A$26=$A$42)*$O$6:$O$26),0) -> 0 | P42: =ROUND(SUMPRODUCT(--(ISNUMBER($AL$6:$AL$26)),($A$6:$A$26=$A$42)*$P$6:$P$26),0) -> 0 | Q42: =ROUND(SUMPRODUCT(--(ISNUMBER($AL$6:$AL$26)),($A$6:$A$26=$A$42)*$Q$6:$Q$26),0) -> 0 | R42: =ROUND(SUMPRODUCT(--(ISNUMBER($AL$6:$AL$26)),($A$6:$A$26=$A$42)*$R$6:$R$26),0) -> 0 | S42: =ROUND(SUMPRODUCT(--(ISNUMBER($AL$6:$AL$26)),($A$6:$A$26=$A$42)*$S$6:$S$26),0) -> 0 | T42: =ROUND(SUMPRODUCT(--(ISNUMBER($AL$6:$AL$26)),($A$6:$A$26=$A$42)*$T$6:$T$26),0) -> 0 | U42: =ROUND(SUMPRODUCT(--(ISNUMBER($AL$6:$AL$26)),($A$6:$A$26=$A$42)*$U$6:$U$26),0) -> 0 | V42: =ROUND(SUMPRODUCT(--(ISNUMBER($AL$6:$AL$26)),($A$6:$A$26=$A$42)*$V$6:$V$26),0) -> 0 | W42: =ROUND(SUMPRODUCT(--(ISNUMBER($AL$6:$AL$26)),($A$6:$A$26=$A$42)*$W$6:$W$26),0) -> 0 | X42: =ROUND(SUMPRODUCT(--(ISNUMBER($AL$6:$AL$26)),($A$6:$A$26=$A$42)*$X$6:$X$26),0) -> 0 | Y42: =ROUND(SUMPRODUCT(--(ISNUMBER($AL$6:$AL$26)),($A$6:$A$26=$A$42)*$Y$6:$Y$26),0) -> 0 | Z42: =ROUND(SUMPRODUCT(--(ISNUMBER($AL$6:$AL$26)),($A$6:$A$26=$A$42)*$Z$6:$Z$26),0) -> 0 | AA42: =ROUND(SUMPRODUCT(--(ISNUMBER($AL$6:$AL$26)),($A$6:$A$26=$A$42)*$AA$6:$AA$26),0) -> 0 | AB42: =ROUND(SUMPRODUCT(--(ISNUMBER($AL$6:$AL$26)),($A$6:$A$26=$A$42)*$AB$6:$AB$26),0) -> 0 | AC42: =ROUND(SUMPRODUCT(--(ISNUMBER($AL$6:$AL$26)),($A$6:$A$26=$A$42)*$AC$6:$AC$26),0) -> 0 | AD42: =ROUND(SUMPRODUCT(--(ISNUMBER($AL$6:$AL$26)),($A$6:$A$26=$A$42)*$AD$6:$AD$26),0) -> 0 | AE42: =ROUND(SUMPRODUCT(--(ISNUMBER($AL$6:$AL$26)),($A$6:$A$26=$A$42)*$AE$6:$AE$26),0) -> 0 | AF42: =ROUND(SUMPRODUCT(--(ISNUMBER($AL$6:$AL$26)),($A$6:$A$26=$A$42)*$AF$6:$AF$26),0) -> 0 | AG42: =ROUND(SUMPRODUCT(--(ISNUMBER($AL$6:$AL$26)),($A$6:$A$26=$A$42)*$AG$6:$AG$26),0) -> 0 | AH42: =ROUND(SUMPRODUCT(--(ISNUMBER($AL$6:$AL$26)),($A$6:$A$26=$A$42)*$AH$6:$AH$26),0) -> 0 | AI42: =ROUND(SUMPRODUCT(--(ISNUMBER($AL$6:$AL$26)),($A$6:$A$26=$A$42)*$AI$6:$AI$26),0) -> 0 | AJ42: =ROUND(SUMPRODUCT(--(ISNUMBER($AL$6:$AL$26)),($A$6:$A$26=$A$42)*$AJ$6:$AJ$26),0) -> 0 | AK42: =ROUND(SUMPRODUCT(--(ISNUMBER($AL$6:$AL$26)),($A$6:$A$26=$A$42)*$AK$6:$AK$26),0) -> 0 | AL42: =ROUND(SUMPRODUCT(--(ISNUMBER($AL$6:$AL$26)),($A$6:$A$26=$A$42)*$AL$6:$AL$26),0) -> 0
A43: ='Fringe Rates (Federal)'!R1 -> S&W (No Fringe) | E43: =HLOOKUP(A43,'Fringe Rates (Federal)'!$F$1:$R$2,2,FALSE) -> N/A | F43: =ROUND(SUMPRODUCT(--(ISNUMBER($AL$6:$AL$26)),($A$6:$A$26=$A$43)*$F$6:$F$26),0) -> 0 | G43: =ROUND(SUMPRODUCT(--(ISNUMBER($AL$6:$AL$26)),($A$6:$A$26=$A$43)*$G$6:$G$26),0) -> 0 | H43: =ROUND(SUMPRODUCT(--(ISNUMBER($AL$6:$AL$26)),($A$6:$A$26=$A$43)*$H$6:$H$26),0) -> 0 | I43: =ROUND(SUMPRODUCT(--(ISNUMBER($AL$6:$AL$26)),($A$6:$A$26=$A$43)*$I$6:$I$26),0) -> 0 | J43: =ROUND(SUMPRODUCT(--(ISNUMBER($AL$6:$AL$26)),($A$6:$A$26=$A$43)*$J$6:$J$26),0) -> 0 | K43: =ROUND(SUMPRODUCT(--(ISNUMBER($AL$6:$AL$26)),($A$6:$A$26=$A$43)*$K$6:$K$26),0) -> 0 | L43: =ROUND(SUMPRODUCT(--(ISNUMBER($AL$6:$AL$26)),($A$6:$A$26=$A$43)*$L$6:$L$26),0) -> 0 | M43: =ROUND(SUMPRODUCT(--(ISNUMBER($AL$6:$AL$26)),($A$6:$A$26=$A$43)*$M$6:$M$26),0) -> 0 | N43: =ROUND(SUMPRODUCT(--(ISNUMBER($AL$6:$AL$26)),($A$6:$A$26=$A$43)*$N$6:$N$26),0) -> 0 | O43: =ROUND(SUMPRODUCT(--(ISNUMBER($AL$6:$AL$26)),($A$6:$A$26=$A$43)*$O$6:$O$26),0) -> 0 | P43: =ROUND(SUMPRODUCT(--(ISNUMBER($AL$6:$AL$26)),($A$6:$A$26=$A$43)*$P$6:$P$26),0) -> 0 | Q43: =ROUND(SUMPRODUCT(--(ISNUMBER($AL$6:$AL$26)),($A$6:$A$26=$A$43)*$Q$6:$Q$26),0) -> 0 | R43: =ROUND(SUMPRODUCT(--(ISNUMBER($AL$6:$AL$26)),($A$6:$A$26=$A$43)*$R$6:$R$26),0) -> 0 | S43: =ROUND(SUMPRODUCT(--(ISNUMBER($AL$6:$AL$26)),($A$6:$A$26=$A$43)*$S$6:$S$26),0) -> 0 | T43: =ROUND(SUMPRODUCT(--(ISNUMBER($AL$6:$AL$26)),($A$6:$A$26=$A$43)*$T$6:$T$26),0) -> 0 | U43: =ROUND(SUMPRODUCT(--(ISNUMBER($AL$6:$AL$26)),($A$6:$A$26=$A$43)*$U$6:$U$26),0) -> 0 | V43: =ROUND(SUMPRODUCT(--(ISNUMBER($AL$6:$AL$26)),($A$6:$A$26=$A$43)*$V$6:$V$26),0) -> 0 | W43: =ROUND(SUMPRODUCT(--(ISNUMBER($AL$6:$AL$26)),($A$6:$A$26=$A$43)*$W$6:$W$26),0) -> 0 | X43: =ROUND(SUMPRODUCT(--(ISNUMBER($AL$6:$AL$26)),($A$6:$A$26=$A$43)*$X$6:$X$26),0) -> 0 | Y43: =ROUND(SUMPRODUCT(--(ISNUMBER($AL$6:$AL$26)),($A$6:$A$26=$A$43)*$Y$6:$Y$26),0) -> 0 | Z43: =ROUND(SUMPRODUCT(--(ISNUMBER($AL$6:$AL$26)),($A$6:$A$26=$A$43)*$Z$6:$Z$26),0) -> 0 | AA43: =ROUND(SUMPRODUCT(--(ISNUMBER($AL$6:$AL$26)),($A$6:$A$26=$A$43)*$AA$6:$AA$26),0) -> 0 | AB43: =ROUND(SUMPRODUCT(--(ISNUMBER($AL$6:$AL$26)),($A$6:$A$26=$A$43)*$AB$6:$AB$26),0) -> 0 | AC43: =ROUND(SUMPRODUCT(--(ISNUMBER($AL$6:$AL$26)),($A$6:$A$26=$A$43)*$AC$6:$AC$26),0) -> 0 | AD43: =ROUND(SUMPRODUCT(--(ISNUMBER($AL$6:$AL$26)),($A$6:$A$26=$A$43)*$AD$6:$AD$26),0) -> 0 | AE43: =ROUND(SUMPRODUCT(--(ISNUMBER($AL$6:$AL$26)),($A$6:$A$26=$A$43)*$AE$6:$AE$26),0) -> 0 | AF43: =ROUND(SUMPRODUCT(--(ISNUMBER($AL$6:$AL$26)),($A$6:$A$26=$A$43)*$AF$6:$AF$26),0) -> 0 | AG43: =ROUND(SUMPRODUCT(--(ISNUMBER($AL$6:$AL$26)),($A$6:$A$26=$A$43)*$AG$6:$AG$26),0) -> 0 | AH43: =ROUND(SUMPRODUCT(--(ISNUMBER($AL$6:$AL$26)),($A$6:$A$26=$A$43)*$AH$6:$AH$26),0) -> 0 | AI43: =ROUND(SUMPRODUCT(--(ISNUMBER($AL$6:$AL$26)),($A$6:$A$26=$A$43)*$AI$6:$AI$26),0) -> 0 | AJ43: =ROUND(SUMPRODUCT(--(ISNUMBER($AL$6:$AL$26)),($A$6:$A$26=$A$43)*$AJ$6:$AJ$26),0) -> 0 | AK43: =ROUND(SUMPRODUCT(--(ISNUMBER($AL$6:$AL$26)),($A$6:$A$26=$A$43)*$AK$6:$AK$26),0) -> 0 | AL43: =ROUND(SUMPRODUCT(--(ISNUMBER($AL$6:$AL$26)),($A$6:$A$26=$A$43)*$AL$6:$AL$26),0) -> 0
A44: ='Fringe Rates (Federal)'!S1 -> S&W (Custom Fringe Rate) | E44: N/A | F44: =ROUND(SUMPRODUCT(--(ISNUMBER($AL$6:$AL$26)),($A$6:$A$26=$A$44)*$F$6:$F$26),0) -> 0 | G44: =ROUND(SUMPRODUCT(--(ISNUMBER($AL$6:$AL$26)),($A$6:$A$26=$A$44)*$G$6:$G$26),0) -> 0 | H44: =ROUND(SUMPRODUCT(--(ISNUMBER($AL$6:$AL$26)),($A$6:$A$26=$A$44)*$H$6:$H$26),0) -> 0 | I44: =ROUND(SUMPRODUCT(--(ISNUMBER($AL$6:$AL$26)),($A$6:$A$26=$A$44)*$I$6:$I$26),0) -> 0 | J44: =ROUND(SUMPRODUCT(--(ISNUMBER($AL$6:$AL$26)),($A$6:$A$26=$A$44)*$J$6:$J$26),0) -> 0 | K44: =ROUND(SUMPRODUCT(--(ISNUMBER($AL$6:$AL$26)),($A$6:$A$26=$A$44)*$K$6:$K$26),0) -> 0 | L44: =ROUND(SUMPRODUCT(--(ISNUMBER($AL$6:$AL$26)),($A$6:$A$26=$A$44)*$L$6:$L$26),0) -> 0 | M44: =ROUND(SUMPRODUCT(--(ISNUMBER($AL$6:$AL$26)),($A$6:$A$26=$A$44)*$M$6:$M$26),0) -> 0 | N44: =ROUND(SUMPRODUCT(--(ISNUMBER($AL$6:$AL$26)),($A$6:$A$26=$A$44)*$N$6:$N$26),0) -> 0 | O44: =ROUND(SUMPRODUCT(--(ISNUMBER($AL$6:$AL$26)),($A$6:$A$26=$A$44)*$O$6:$O$26),0) -> 0 | P44: =ROUND(SUMPRODUCT(--(ISNUMBER($AL$6:$AL$26)),($A$6:$A$26=$A$44)*$P$6:$P$26),0) -> 0 | Q44: =ROUND(SUMPRODUCT(--(ISNUMBER($AL$6:$AL$26)),($A$6:$A$26=$A$44)*$Q$6:$Q$26),0) -> 0 | R44: =ROUND(SUMPRODUCT(--(ISNUMBER($AL$6:$AL$26)),($A$6:$A$26=$A$44)*$R$6:$R$26),0) -> 0 | S44: =ROUND(SUMPRODUCT(--(ISNUMBER($AL$6:$AL$26)),($A$6:$A$26=$A$44)*$S$6:$S$26),0) -> 0 | T44: =ROUND(SUMPRODUCT(--(ISNUMBER($AL$6:$AL$26)),($A$6:$A$26=$A$44)*$T$6:$T$26),0) -> 0 | U44: =ROUND(SUMPRODUCT(--(ISNUMBER($AL$6:$AL$26)),($A$6:$A$26=$A$44)*$U$6:$U$26),0) -> 0 | V44: =ROUND(SUMPRODUCT(--(ISNUMBER($AL$6:$AL$26)),($A$6:$A$26=$A$44)*$V$6:$V$26),0) -> 0 | W44: =ROUND(SUMPRODUCT(--(ISNUMBER($AL$6:$AL$26)),($A$6:$A$26=$A$44)*$W$6:$W$26),0) -> 0 | X44: =ROUND(SUMPRODUCT(--(ISNUMBER($AL$6:$AL$26)),($A$6:$A$26=$A$44)*$X$6:$X$26),0) -> 0 | Y44: =ROUND(SUMPRODUCT(--(ISNUMBER($AL$6:$AL$26)),($A$6:$A$26=$A$44)*$Y$6:$Y$26),0) -> 0 | Z44: =ROUND(SUMPRODUCT(--(ISNUMBER($AL$6:$AL$26)),($A$6:$A$26=$A$44)*$Z$6:$Z$26),0) -> 0 | AA44: =ROUND(SUMPRODUCT(--(ISNUMBER($AL$6:$AL$26)),($A$6:$A$26=$A$44)*$AA$6:$AA$26),0) -> 0 | AB44: =ROUND(SUMPRODUCT(--(ISNUMBER($AL$6:$AL$26)),($A$6:$A$26=$A$44)*$AB$6:$AB$26),0) -> 0 | AC44: =ROUND(SUMPRODUCT(--(ISNUMBER($AL$6:$AL$26)),($A$6:$A$26=$A$44)*$AC$6:$AC$26),0) -> 0 | AD44: =ROUND(SUMPRODUCT(--(ISNUMBER($AL$6:$AL$26)),($A$6:$A$26=$A$44)*$AD$6:$AD$26),0) -> 0 | AE44: =ROUND(SUMPRODUCT(--(ISNUMBER($AL$6:$AL$26)),($A$6:$A$26=$A$44)*$AE$6:$AE$26),0) -> 0 | AF44: =ROUND(SUMPRODUCT(--(ISNUMBER($AL$6:$AL$26)),($A$6:$A$26=$A$44)*$AF$6:$AF$26),0) -> 0 | AG44: =ROUND(SUMPRODUCT(--(ISNUMBER($AL$6:$AL$26)),($A$6:$A$26=$A$44)*$AG$6:$AG$26),0) -> 0 | AH44: =ROUND(SUMPRODUCT(--(ISNUMBER($AL$6:$AL$26)),($A$6:$A$26=$A$44)*$AH$6:$AH$26),0) -> 0 | AI44: =ROUND(SUMPRODUCT(--(ISNUMBER($AL$6:$AL$26)),($A$6:$A$26=$A$44)*$AI$6:$AI$26),0) -> 0 | AJ44: =ROUND(SUMPRODUCT(--(ISNUMBER($AL$6:$AL$26)),($A$6:$A$26=$A$44)*$AJ$6:$AJ$26),0) -> 0 | AK44: =ROUND(SUMPRODUCT(--(ISNUMBER($AL$6:$AL$26)),($A$6:$A$26=$A$44)*$AK$6:$AK$26),0) -> 0 | AL44: =ROUND(SUMPRODUCT(--(ISNUMBER($AL$6:$AL$26)),($A$6:$A$26=$A$44)*$AL$6:$AL$26),0) -> 0
E45: Total Salaries & Wages | F45: =ROUND(SUM(F31:F44),0) -> 0 | G45: =ROUND(SUM(G31:G44),0) -> 0 | H45: 0 | I45: 0 | J45: 0 | K45: 0 | L45: 0 | M45: 0 | N45: 0 | O45: 0 | P45: 0 | Q45: 0 | R45: 0 | S45: 0 | T45: 0 | U45: 0 | V45: 0 | W45: 0 | X45: 0 | Y45: 0 | Z45: 0 | AA45: 0 | AB45: 0 | AC45: 0 | AD45: 0 | AE45: 0 | AF45: 0 | AG45: 0 | AH45: 0 | AI45: 0 | AJ45: 0 | AK45: 0 | AL45: 0

Sheet Personnel Cost Sharing (Basic) (hidden)
A1: Personnel Cost Sharing Worksheet (Basic) | F1: ** You are advised to build salary increases of 3% into future year budgets
A2: =Welcome!B25 -> Fringe Rates (non-Federal) | F2: ** FICA and Medicare may apply to certain GAs and TAs based on appointment.
A3: =Welcome!B26 -> 2 | E3: =Welcome!A56 -> Budget Period 1 | H3: =Welcome!A57 -> Budget Period 2 | K3: =Welcome!A58 -> Budget Period 3 | N3: =Welcome!A59 -> Budget Period 4 | Q3: =Welcome!A60 -> Budget Period 5 | T3: =Welcome!A61 -> Budget Period 6 | W3: =Welcome!A62 -> Budget Period 7 | Z3: =Welcome!A63 -> Budget Period 8 | AC3: =Welcome!A64 -> Budget Period 9 | AF3: =Welcome!A65 -> Budget Period 10
D4: =Welcome!B56 -> Enter Start Date | E4: =Welcome!C56 -> Enter End Date | F4: =IF(OR(Welcome!D56="N/A",Welcome!E56="N/A"),"N/A",Welcome!D56) -> N/A | G4: =Welcome!B57 -> Enter Start Date | H4: =Welcome!C57 -> Enter End Date | I4: =IF(OR(Welcome!D57="N/A",Welcome!E57="N/A"),"N/A",Welcome!D57) -> N/A | J4: =Welcome!B58 -> Enter Start Date | K4: =Welcome!C58 -> Enter End Date | L4: =IF(OR(Welcome!D58="N/A",Welcome!E58="N/A"),"N/A",Welcome!D58) -> N/A | M4: =Welcome!B59 -> Enter Start Date | N4: =Welcome!C59 -> Enter End Date | O4: =IF(OR(Welcome!D59="N/A",Welcome!E59="N/A"),"N/A",Welcome!D59) -> N/A | P4: =Welcome!B60 -> Enter Start Date | Q4: =Welcome!C60 -> Enter End Date | R4: =IF(OR(Welcome!D60="N/A",Welcome!E60="N/A"),"N/A",Welcome!D60) -> N/A | S4: =Welcome!B61 -> Enter Start Date | T4: =Welcome!C61 -> Enter End Date | U4: =IF(OR(Welcome!D61="N/A",Welcome!E61="N/A"),"N/A",Welcome!D61) -> N/A | V4: =Welcome!B62 -> Enter Start Date | W4: =Welcome!C62 -> Enter End Date | X4: =IF(OR(Welcome!D62="N/A",Welcome!E62="N/A"),"N/A",Welcome!D62) -> N/A | Y4: =Welcome!B63 -> Enter Start Date | Z4: =Welcome!C63 -> Enter End Date | AA4: =IF(OR(Welcome!D63="N/A",Welcome!E63="N/A"),"N/A",Welcome!D63) -> N/A | AB4: =Welcome!B64 -> Enter Start Date | AC4: =Welcome!C64 -> Enter End Date | AD4: =IF(OR(Welcome!D64="N/A",Welcome!E64="N/A"),"N/A",Welcome!D64) -> N/A | AE4: =Welcome!B65 -> Enter Start Date | AF4: =Welcome!C65 -> Enter End Date | AG4: =IF(OR(Welcome!D65="N/A",Welcome!E65="N/A"),"N/A",Welcome!D65) -> N/A | AI4: Grand Total
A5: Select Category from Dropdown | B5: Account Code | C5: Personnel Name | D5: Salary | E5: Fringe | F5: Total | G5: Salary | H5: Fringe | I5: Total | J5: Salary | K5: Fringe | L5: Total | M5: Salary | N5: Fringe | O5: Total | P5: Salary | Q5: Fringe | R5: Total | S5: Salary | T5: Fringe | U5: Total | V5: Salary | W5: Fringe | X5: Total | Y5: Salary | Z5: Fringe | AA5: Total | AB5: Salary | AC5: Fringe | AD5: Total | AE5: Salary | AF5: Fringe | AG5: Total | AH5: Salary | AI5: Fringe | AJ5: Grand Total | AL5: Notes
